Workbook

Sheet Cover Sheet
B10: Greener Bus Tool
B12: Last updated: May 2023
B13: Original Version: November 2020
B15: Version Control
B17: Date | C17: Description | D17: Quality assured?
B19: 2020-11-01 | C19: Model created | D19: Yes
B20: 2020-11-01 | C20: Do minimum cost methodology updated | D20: Yes
B21: 2020-09-01 | C21: Updated cost effectiveness indicator formula | D21: Yes
B22: 2021-05-01 | C22: Hydrogen buses functionality added | D22: Yes
B23: 2021-07-01 | C23: Version for ZEBRA phase 2 | D23: Yes
B24: 2021-07-01 | C24: update to BSOG rate and electricity input options | D24: Yes
B25: 2021-08-01 | C25: New (unpublished) BEIS carbon values | D25: Yes
B26: 2022-08-01 | C26: Updated fuel/energy consumption scenarios, update to May 2022 TAG values, update to optimism bias, inclusion of quantified risk assessment input, simplified input tabs, included input summary sheet | D26: Yes
B27: 2022-10-01 | C27: Clarification of inputs | D27: Yes
B28: 2023-01-01 | C28: Updated to latest TAG with January updates | D28: Yes
B29: 2023-05-01 | C29: Updates to latest TAG with May updates | D29: Yes
B31: Legend
C34: Banner 1: Properties and Section Breaks
C35: Banner 2: Headers, Timeline and Key Labels
C36: Input (Raw Data)
C37: Input (Assumption)
C38: Calculation
C39: Output
C40: ERROR/OK, FALSE/TRUE (manual or with Conditional Formatting)
C41: Table heading
B44: End

Sheet Inputs>>
C11: Inputs

Sheet I- User Proforma
B2: File Name | G2: =IFERROR(MID(CELL("filename",G2),FIND("[",CELL("filename",G2))+1,FIND("]",CELL("filename",G2))-FIND("[",CELL("filename",G2))-1),"Please save the file to show here") -> Greener Bus Tool.xlsm
B3: Sheet Name | G3: =IFERROR(MID(CELL("filename",G2),FIND("]",CELL("filename",G2))+1,255),"Please save the file to show here") -> I- User Proforma
B4: Description and Purpose of Sheet | G4: Users should complete all yellow input cells within this sheet, user instructions/notes are shown in red text.
B8: User Proforma
H10: Constant | J10: Unit | M10: Total | Z10: 2022 | AA10: 2023 | AB10: 2024 | AC10: 2025 | AD10: 2026 | AE10: 2027 | AF10: 2028 | AG10: 2029 | AH10: 2030 | AI10: 2031 | AJ10: 2032 | AK10: 2033 | AL10: 2034 | AM10: 2035 | AN10: 2036 | AO10: 2037 | AP10: 2038 | AQ10: 2039 | AR10: 2040 | AS10: 2041 | AT10: 2042 | AU10: 2043 | AV10: 2044 | AW10: 2045 | AX10: 2046 | AY10: 2047 | AZ10: 2048 | BA10: 2049 | BB10: 2050 | BC10: 2051 | BD10: 2052 | BE10: 2053 | BF10: 2054 | BG10: 2055 | BH10: 2056 | BI10: 2057 | BJ10: 2058 | BK10: 2059 | BL10: 2060 | BM10: 2061 | BN10: 2062 | BO10: 2063 | BP10: 2064 | BQ10: 2065 | BR10: 2066 | BS10: 2067 | BT10: 2068 | BU10: 2069 | BV10: 2070 | BW10: 2071 | BX10: 2072 | BY10: 2073 | BZ10: 2074 | CA10: 2075 | CB10: 2076 | CC10: 2077 | CD10: 2078 | CE10: 2079 | CF10: 2080 | CG10: 2081 | CH10: 2082 | CI10: 2083 | CJ10: 2084 | CK10: 2085 | CL10: 2086 | CM10: 2087 | CN10: 2088 | CO10: 2089 | CP10: 2090 | CQ10: 2091 | CR10: 2092 | CS10: 2093 | CT10: 2094 | CU10: 2095 | CV10: 2096 | CW10: 2097 | CX10: 2098 | CY10: 2099
C12: Vehicles
C13: Please ensure the first year of delivery and the delivery period are reflected in the profile of minibus vehicles delivered.
C15: Delivery Period
C16: First year of vehicle delivery | H16: Input first year of delivery | J16: yyyy
C17: Total delivery period for vehicles | J17: years
C19: Number of Zero Emission Buses delivered
C20: Number of single decker buses delivered in each year | J20: number of vehicles | M20: =SUM(X20:CY20) -> 0
C21: Number of double decker buses delivered in each year | J21: number of vehicles | M21: =SUM(X21:CY21) -> 0
C22: Total number of buses delivered in each year | J22: number of vehicles | M22: =SUM(X22:CY22) -> 0 | Z22: =SUM(Z20:Z21) -> 0 | AA22: =SUM(AA20:AA21) -> 0 | AB22: 0 | AC22: 0 | AD22: 0 | AE22: 0 | AF22: 0 | AG22: 0 | AH22: 0 | AI22: 0 | AJ22: 0 | AK22: 0 | AL22: 0 | AM22: 0 | AN22: 0 | AO22: 0 | AP22: 0 | AQ22: 0 | AR22: 0 | AS22: 0 | AT22: 0 | AU22: 0 | AV22: 0 | AW22: 0 | AX22: 0 | AY22: 0 | AZ22: 0 | BA22: 0 | BB22: 0 | BC22: 0 | BD22: 0 | BE22: 0 | BF22: 0 | BG22: 0 | BH22: 0 | BI22: 0 | BJ22: 0 | BK22: 0 | BL22: 0 | BM22: 0 | BN22: 0 | BO22: 0 | BP22: 0 | BQ22: 0 | BR22: 0 | BS22: 0 | BT22: 0 | BU22: 0 | BV22: 0 | BW22: 0 | BX22: 0 | BY22: 0 | BZ22: 0 | CA22: 0 | CB22: 0 | CC22: 0 | CD22: 0 | CE22: 0 | CF22: 0 | CG22: 0 | CH22: 0 | CI22: 0 | CJ22: 0 | CK22: =SUM(CK20:CK21) -> 0 | CL22: 0 | CM22: 0 | CN22: 0 | CO22: 0 | CP22: 0 | CQ22: 0 | CR22: 0 | CS22: 0 | CT22: 0 | CU22: 0 | CV22: 0 | CW22: 0 | CX22: 0 | CY22: 0
C24: All values should be entered in nominal prices.
C26: Total cost of Zero Emission Buses
C27: Cost incurred in each year | J27: £ | M27: =SUM(X27:CY27) -> 0 | Z27: =SUM(Z31, Z36:Z43) -> 0 | AA27: =SUM(AA31, AA36:AA43) -> 0 | AB27: =SUM(AB31, AB36:AB43) -> 0 | AC27: 0 | AD27: 0 | AE27: 0 | AF27: 0 | AG27: 0 | AH27: 0 | AI27: 0 | AJ27: 0 | AK27: 0 | AL27: 0 | AM27: 0 | AN27: 0 | AO27: 0 | AP27: 0 | AQ27: 0 | AR27: 0 | AS27: 0 | AT27: 0 | AU27: 0 | AV27: 0 | AW27: 0 | AX27: 0 | AY27: 0 | AZ27: 0 | BA27: 0 | BB27: 0 | BC27: 0 | BD27: 0 | BE27: 0 | BF27: 0 | BG27: 0 | BH27: 0 | BI27: 0 | BJ27: 0 | BK27: 0 | BL27: 0 | BM27: 0 | BN27: 0 | BO27: 0 | BP27: 0 | BQ27: 0 | BR27: 0 | BS27: 0 | BT27: 0 | BU27: 0 | BV27: 0 | BW27: 0 | BX27: 0 | BY27: 0 | BZ27: 0 | CA27: 0 | CB27: 0 | CC27: 0 | CD27: 0 | CE27: 0 | CF27: 0 | CG27: 0 | CH27: 0 | CI27: 0 | CJ27: 0 | CK27: =SUM(CK31, CK36:CK43) -> 0 | CL27: 0 | CM27: 0 | CN27: 0 | CO27: 0 | CP27: 0 | CQ27: 0 | CR27: 0 | CS27: 0 | CT27: 0 | CU27: 0 | CV27: 0 | CW27: 0 | CX27: 0 | CY27: 0
C29: Grant required from Government for zero emission buses
C30: Please provide the required grant from Government for zero emission buses including grant funding covering any risk contingency/QRA.
C31: Grant required from Government for zero emission buses in each year | J31: £ | M31: =SUM(X31:CY31) -> 0
C33: Cost to other funding sources in each year
C34: Estimates of risk contingency not covered by grant funding should be specified in row 50 below and not included in rows 36-43.
C35: Source | E35: Sector | G35: Description
J36: £ | M36: =SUM(X36:CY36) -> 0
J37: £ | M37: 0
J38: £ | M38: 0
J39: £ | M39: 0
J40: £ | M40: 0
J41: £ | M41: 0
J42: £ | M42: 0
J43: £ | M43: 0
C45: Check that sum of costs by funding sources is equal to total cost of vehicles | H45: =IF(M27=SUM(M31,M36:M43),"OK","ERROR") -> OK
C47: Risk contingency/Quantified Risk Assessment (QRA)
C48: Please provide the estimated risk contingency/QRA and specify the amount, if any, is included in the grant required from Government.
C49: Cost of risk contingency or QRA associated with zero emission buses per year not included in grant required
C50: Sector cost incurred by | H50: Input sector | J50: £ | M50: =SUM(X50:CY50) -> 0
C52: Cost of risk contingency/QRA associated with zero emission bus infrastructure per year included in grant required | J52: £ | M52: =SUM(X52:CY52) -> 0
C54: Input Price Base | H54: Nominal
C56: Life Expectancy of Zero Emission Buses | H56: 17 | J56: years
C57: Source | J57: description
C59: If value changed from the default of 17 years for sensitivity analysis purposes, please provide a source.
C61: Average Annual KM per Vehicle | J61: km/vehicle
C62: Source | J62: description
C64: Please provide a value for the estimated annual distance in km travelled per bus based on the routes the buses will be used on with an accompanying source.
C66: Supporting Infrastructure Required to Support the Delivery of Zero Emission Buses
C67: All values should be entered in nominal prices. The costs of infrastructure required to support the delivery of zero emission buses can include, but is not limited to: the cost of charging unit or refuelling stations, electrical or other power components, civil engineering works, labour costs (for installation), hardware costs, capital costs of developing associated software systems and upgrades to the energy grid.
C69: Delivery Period
C70: First year of infrastructure delivery | H70: Input first year of delivery | J70: yyyy
C71: Total delivery period for infrastructure | J71: years
C73: Please ensure the first year of delivery and the delivery period are reflected in the profile of infrastructure costs.
C75: Total cost of infrastructure
C76: Cost incurred in each year | J76: £ | M76: =SUM(X76:CY76) -> 0 | Z76: =SUM(Z80, Z85:Z92) -> 0 | AA76: =SUM(AA80, AA85:AA92) -> 0 | AB76: 0 | AC76: 0 | AD76: 0 | AE76: 0 | AF76: 0 | AG76: 0 | AH76: 0 | AI76: 0 | AJ76: 0 | AK76: 0 | AL76: 0 | AM76: 0 | AN76: 0 | AO76: 0 | AP76: 0 | AQ76: 0 | AR76: 0 | AS76: 0 | AT76: 0 | AU76: 0 | AV76: 0 | AW76: 0 | AX76: 0 | AY76: 0 | AZ76: 0 | BA76: 0 | BB76: 0 | BC76: 0 | BD76: 0 | BE76: 0 | BF76: 0 | BG76: 0 | BH76: 0 | BI76: 0 | BJ76: 0 | BK76: 0 | BL76: 0 | BM76: 0 | BN76: 0 | BO76: 0 | BP76: 0 | BQ76: 0 | BR76: 0 | BS76: 0 | BT76: 0 | BU76: 0 | BV76: 0 | BW76: 0 | BX76: 0 | BY76: 0 | BZ76: 0 | CA76: 0 | CB76: 0 | CC76: 0 | CD76: 0 | CE76: 0 | CF76: 0 | CG76: 0 | CH76: 0 | CI76: 0 | CJ76: 0 | CK76: 0 | CL76: 0 | CM76: =SUM(CM80, CM85:CM92) -> 0 | CN76: 0 | CO76: 0 | CP76: 0 | CQ76: 0 | CR76: 0 | CS76: 0 | CT76: 0 | CU76: 0 | CV76: 0 | CW76: 0 | CX76: 0 | CY76: 0
C78: Grant required from Government for supporting infrastructure
C79: Please provide the required grant from Government for supporting infrastructure including grant funding covering any risk contingency/QRA.
C80: Grant required from Government for supporting infrastructure in each year | J80: £ | M80: =SUM(X80:CY80) -> 0
C82: Cost to other funding sources in each year
C83: Estimates of risk contingency not covered by grant funding should be specified in row 99 below and not included in rows 85-92.
C84: Source | E84: Sector | G84: Description
J85: £ | M85: =SUM(X85:CY85) -> 0
J86: £ | M86: 0
J87: £ | M87: 0
J88: £ | M88: 0
J89: £ | M89: 0
J90: £ | M90: 0
J91: £ | M91: 0
J92: £ | M92: 0
C94: Check that sum of costs by funding sources is equal to total cost of vehicles | H94: =IF(M76=SUM(M80,M85:M92),"OK","ERROR") -> OK
C96: Risk contingency/Quantified Risk Assessment (QRA)
C97: Please provide the estimated risk contingency/QRA and specify the amount, if any, is included in the grant required from Government.
C98: Cost of risk contingency/QRA associated with zero emission bus infrastructure per year not included in grant required
C99: Sector cost incurred by | H99: Input sector | J99: £ | M99: =SUM(X99:CY99) -> 0
C101: Cost of risk contingency/QRA associated with zero emission bus infrastructure per year included in grant required | J101: £ | M101: =SUM(X101:CY101) -> 0
C103: Maintenance cost of supporting infrastructure
C104: If there is evidence on the annual infrastructure maintenance cost please select 'average annual cost' and input a value in cell H114. If it is not known what the average annual maintenance cost of infrastructure will be, the default '% of capex' input should be selected.
C105: Annual maintenance cost input | H105: % of capex
C107: Based on selection above please provide inputs to either of the following:
C109: Annual maintenance as % of infrastructure capex | H109: 0.021 | J109: %
C110: Source | J110: description
C112: If value changed from the default of 2.1% please provide a source.
C114: Average annual maintenance cost | J114: £
C116: Input Price Base | H116: Nominal
C118: Sector cost incurred by | H118: Input sector
C120: Cost and carbon dioxide emissions per kWh of electricity
C122: By default the model uses published BEIS forecasts for the cost and kg of CO2 per kWh of electricity. Values are recommended as part of the Treasury's Green Book supplementary appraisal guidance on valuing energy use and greenhouse gas (GHG) emissions.
C124: If local evidence suggests the cost and CO2 emissions per kWh of electricity will differ from default values, please select "Yes" in the below questions and provide estimates and a description of the source of evidence.
C126: All resource costs based on local evidence should be entered in nominal prices and in pence per kWh.
C128: is local evidence available on the resource cost per kWh of electricity. | E128: No
C130: p/kWh Resource cost | E130: If Yes, enter values for each year of the appraisal period, cost should exclude duty and VAT | J130: p/kWh | N130: 11.73817301 | O130: 12.46968201 | P130: 12.96002519 | Q130: 13.56745795 | R130: 13.66797918 | S130: 13.41238417 | T130: 13.19325828 | U130: 13.68494304 | V130: 14.72340383 | W130: 15.028567
C132: Evidence / source
C134: is local evidence available on the cost per kWh of electricity | E134: No
C136: kgs of CO2 per kWh of electricity | E136: If yes, enter values each year of the appraisal period | J136: kg/CO2/kWh
C138: Evidence / source
C140: Lists - do not edit below this line
C142: Select Yes/No | E142: Input price base year | G142: Input sector | J142: Input first year of delivery | M142: Input the type of maintenance cost input
C143: Yes | E143: 2010 | G143: Public | J143: 2022 | M143: % of capex
C144: No | E144: =E143+1 -> 2011 | G144: Private | J144: =J143+1 -> 2023 | M144: Average annual cost
E145: =E144+1 -> 2012 | J145: 2024
E146: 2013 | J146: 2025
E147: 2014 | J147: 2026
E148: 2015 | J148: 2027
E149: 2016 | J149: 2028
E150: 2017 | J150: 2029
E151: 2018 | J151: 2030
E152: 2019 | J152: 2031
E153: 2020 | J153: 2032
E154: 2021 | J154: 2033
E155: 2022 | J155: 2034
E156: Nominal | J156: 2035
J157: 2036
J158: 2037
J159: 2038
J160: 2039
J161: 2040
J162: 2041
J163: 2042
J164: 2043
J165: 2044
J166: 2045
J167: 2046
J168: 2047
J169: 2048
J170: 2049
J171: 2050
J172: 2051
J173: 2052
J174: 2053
J175: 2054
J176: =J175+1 -> 2055
J177: 2056
J178: 2057
J179: 2058
J180: 2059
J181: 2060
J182: 2061
J183: 2062
J184: 2063
J185: 2064
J186: 2065
J187: 2066
J188: 2067
J189: 2068
J190: 2069
J191: 2070
J192: 2071
J193: 2072
J194: 2073
J195: 2074
J196: 2075
J197: 2076
J198: 2077
J199: 2078
J200: 2079
J201: 2080
J202: 2081
J203: 2082
J204: 2083
J205: 2084
J206: 2085
J207: =J206+1 -> 2086
J208: 2087
J209: 2088
J210: 2089
J211: 2090
J212: 2091
J213: 2092
J214: 2093
J215: 2094
J216: 2095
J217: 2096
J218: 2097
J219: 2098
J220: 2099
B221: END

Sheet I- User Parameters
B1: =IF(SUM(A:A)=0,"OK","Error") -> OK
B2: File Name | G2: =IFERROR(MID(CELL("filename",G2),FIND("[",CELL("filename",G2))+1,FIND("]",CELL("filename",G2))-FIND("[",CELL("filename",G2))-1),"Please save the file to show here") -> Greener Bus Tool.xlsm
B3: Sheet Name | G3: =IFERROR(MID(CELL("filename",G2),FIND("]",CELL("filename",G2))+1,255),"Please save the file to show here") -> I- User Parameters
B4: Description and Purpose of Sheet | G4: This sheet allows the Active Scenario to be selected and appropriate parameter values to be set. Only cells formatted yellow should be changed.
B8: Parameters
H10: Constant | J10: Unit | L10: Source
C12: Active Scenario
C14: Active Scenario | H14: Sc. 1 - ZEBRA buisness case | J14: case | P14: Sc. 1 - ZEBRA buisness case
C15: Scenario Description | J15: description | P15: =H15 -> 0
C16: Active Column | H16: =MATCH(H14,O14:Q14,0) -> 2 | J16: number
C18: Appraisal Assumptions
C20: Current Year | H20: =INDEX(O20:Q20,,$H$16) -> 2023 | J20: yyyy | P20: 2023
C22: Appraisal Base Year | H22: =INDEX(O22:Q22,,$H$16) -> 2023 | J22: yyyy | L22: Assumption | P22: 2023
C24: Counterfactual Fleet (DM) | H24: =INDEX(O24:Q24,,$H$16) -> Diesel | J24: description | P24: Diesel
C25: Proposed Fleet (DS) | H25: =INDEX(O25:Q25,,$H$16) -> Pure Electric Bus | J25: description | P25: Pure Electric Bus
C27: Non Traded Cost of Carbon Scenario | H27: =INDEX(O27:Q27,,$H$16) -> Real Non-Traded (Central) | J27: description | L27: Assumption | P27: Real Non-Traded (Central)
C29: Cost Inflation
C31: Vehicle CapEx | H31: =INDEX(O31:Q31,,$H$16) -> GDP Deflator | J31: description | P31: GDP Deflator
C32: Do Min Vehicle Replacement CapEx | H32: GDP Deflator | J32: description | P32: GDP Deflator
C33: Infrastructure CapEx | H33: GDP Deflator | J33: description | P33: GDP Deflator
C34: Vehicle Maintenance Costs | H34: GDP Deflator | J34: description | P34: GDP Deflator
C35: Infrastructure Maintenance Cost | H35: GDP Deflator | J35: description | P35: GDP Deflator
C36: Operating Costs | H36: GDP Deflator | J36: description | P36: GDP Deflator
C38: Optimism Bias (OB)
C39: This section should only be completed if a QRA has not been conducted. If a QRA has not been conducted, the default optimism bias of 20% should be entered for bus and infrastructure capital costs. Refer to the Greener Bus Tool guidance for further detail.
C40: Vehicle CapEx Optimism Bias | H40: =INDEX(O40:Q40,,$H$16) -> 0.2 | J40: % | L40: Recommended OB for final buisness case | P40: 0.2
C41: Do Min Vehicle Replacement Optimism Bias | H41: 0.2 | J41: % | L41: Recommended OB for final buisness case | P41: 0.2
C42: Infrastructure CapEx Optimism Bias | H42: =INDEX(O42:Q42,,$H$16) -> 0.2 | J42: % | L42: Recommended OB for final buisness case | P42: 0.2
C43: Vehicle Maintenance Cost Optimism Bias | H43: =INDEX(O43:Q43,,$H$16) -> 0 | J43: % | L43: Recommended OB for final buisness case | P43: 0
C44: Infrastructure Maintenance Cost Optimism Bias | H44: =INDEX(O44:Q44,,$H$16) -> 0 | J44: % | L44: Recommended OB for final buisness case | P44: 0
C45: Operating Cost Optimism Bias | H45: =INDEX(O45:Q45,,$H$16) -> 0 | J45: % | L45: Recommended OB for final buisness case | P45: 0
C47: Operating Cost Sensitivity Analysis
C49: Diesel resource cost | H49: =INDEX(O49:Q49,,$H$16) -> Central | J49: description | L49: Assumption | P49: Central
C50: Electricity resource cost | H50: =INDEX(O50:Q50,,$H$16) -> Central | J50: description | L50: Assumption | P50: Central
C52: Damage Cost by Pollutant Selection
C54: Geography | E54: Nox | H54: =INDEX(O54:Q54,,$H$16) -> Road Transport | J54: description | P54: Road Transport
C55: Geography | E55: PM2.5 | H55: =INDEX(O55:Q55,,$H$16) -> Road Transport | J55: description | P55: Road Transport
C57: Scenario | E57: Nox | H57: =INDEX(O57:Q57,,$H$16) -> Central | J57: description | P57: Central
C58: Scenario | E58: PM2.5 | H58: =INDEX(O58:Q58,,$H$16) -> Central | J58: description | P58: Central
C60: Vehicle Maintenance Cost Technologies
C62: ='I- Lists'!K13 -> Diesel | H62: =INDEX(O62:Q62,,$H$16) -> ICE - Diesel | J62: description | P62: ICE - Diesel
C63: ='I- Lists'!K14 -> Pure Electric Bus | H63: Battery electric | J63: description | P63: Battery electric
C64: ='I- Lists'!K15 -> Plug-in Hybrid | H64: Diesel-electric (hybrid) | J64: description | P64: Diesel-electric (hybrid)
C65: ='I- Lists'!K16 -> Parallel Hybrid | H65: Diesel-electric (hybrid) | J65: description | P65: Diesel-electric (hybrid)
C66: ='I- Lists'!K17 -> Hydrogen | H66: H2 fuel cell (full) | J66: description | P66: H2 fuel cell (full)
C67: ='I- Lists'!K18 -> <Spare> | H67: 0 | J67: description
C69: Sector incurring vehicle maintenance cost | H69: =INDEX(O69:Q69,,$H$16) -> Private | J69: description | P69: Private
C70: Sector incurring operating cost | H70: =INDEX(O70:Q70,,$H$16) -> Private | J70: description | P70: Private
C72: BSOG
C74: Counterfactual Fleet (DM) | H74: =INDEX(O74:Q74,,$H$16) -> Basic BSOG rate + LCEB, AVL and Smartcard Uplifts | J74: description | P74: Basic BSOG rate + LCEB, AVL and Smartcard Uplifts
C75: Proposed Fleet (DS) | H75: =INDEX(O75:Q75,,$H$16) -> Zero emission bus BSOG rate - 22p | J75: description | P75: Zero emission bus BSOG rate - 22p
C77: Bus Fleet being Replaced
C79: Sector incurring cost of existing fleet replacement (DM costs) | H79: =INDEX(O79:Q79,,$H$16) -> Private | J79: description | P79: Private
C80: Percentage of Databook Emissions
C82: ='I- Lists'!K13 -> Diesel | G82: PM10 | H82: =INDEX(O82:Q82,,$H$16) -> 1 | J82: % | L82: Average LEBs ULEBs Performance Costs, Diesel | P82: 1
C83: ='I- Lists'!K14 -> Pure Electric Bus | G83: PM10 | H83: 0 | J83: % | L83: Average LEBs ULEBs Performance Costs, EV | P83: 0
C84: ='I- Lists'!K15 -> Plug-in Hybrid | G84: PM10 | H84: 0.5 | J84: % | L84: Average LEBs ULEBs Performance Costs, Plug-in Hybrid | P84: 0.5
C85: ='I- Lists'!K16 -> Parallel Hybrid | G85: PM10 | H85: 0.5 | J85: % | L85: Average LEBs ULEBs Performance Costs, Hybrid | P85: 0.5
C86: ='I- Lists'!K17 -> Hydrogen | G86: PM10 | H86: 0 | J86: % | P86: 0
C87: ='I- Lists'!K18 -> <Spare> | G87: PM10 | H87: 0 | J87: %
C89: ='I- Lists'!K13 -> Diesel | G89: Nox | H89: =INDEX(O89:Q89,,$H$16) -> 1 | J89: % | L89: Average LEBs ULEBs Performance Costs, Diesel | P89: 1
C90: ='I- Lists'!K14 -> Pure Electric Bus | G90: Nox | H90: 0 | J90: % | L90: Average LEBs ULEBs Performance Costs, EV | P90: 0
C91: ='I- Lists'!K15 -> Plug-in Hybrid | G91: Nox | H91: 0.5 | J91: % | L91: Average LEBs ULEBs Performance Costs, Plug-in Hybrid | P91: 0.5
C92: ='I- Lists'!K16 -> Parallel Hybrid | G92: Nox | H92: 0.5 | J92: % | L92: Average LEBs ULEBs Performance Costs, Hybrid | P92: 0.5
C93: ='I- Lists'!K17 -> Hydrogen | G93: Nox | H93: 0 | J93: % | P93: 0
C94: ='I- Lists'!K18 -> <Spare> | G94: Nox | H94: 0 | J94: %
C96: Fuel/Energy Consumption Selection
C98: Scenario | H98: =INDEX(O98:Q98,,$H$16) -> High | J98: description | P98: High
B100: END

Sheet I- Bus Costs
B1: =IF(SUM(A:A)=0,"OK","Error") -> OK
B2: File Name | G2: =IFERROR(MID(CELL("filename",G2),FIND("[",CELL("filename",G2))+1,FIND("]",CELL("filename",G2))-FIND("[",CELL("filename",G2))-1),"Please save the file to show here") -> Greener Bus Tool.xlsm
B3: Sheet Name | G3: =IFERROR(MID(CELL("filename",G2),FIND("]",CELL("filename",G2))+1,255),"Please save the file to show here") -> I- Bus Costs
B4: Description and Purpose of Sheet | G4: This sheet contains the capital costs associated with new vehicles by fuel type and vehicle type
B8: Vehicle Costs
H10: Constant | J10: Unit | L10: Source | N10: ='I- TAG Annual Rates'!N$14 -> 2010 | O10: ='I- TAG Annual Rates'!O$14 -> 2011 | P10: ='I- TAG Annual Rates'!P$14 -> 2012 | Q10: ='I- TAG Annual Rates'!Q$14 -> 2013 | R10: ='I- TAG Annual Rates'!R$14 -> 2014 | S10: ='I- TAG Annual Rates'!S$14 -> 2015 | T10: ='I- TAG Annual Rates'!T$14 -> 2016 | U10: ='I- TAG Annual Rates'!U$14 -> 2017 | V10: ='I- TAG Annual Rates'!V$14 -> 2018 | W10: ='I- TAG Annual Rates'!W$14 -> 2019 | X10: ='I- TAG Annual Rates'!X$14 -> 2020 | Y10: ='I- TAG Annual Rates'!Y$14 -> 2021 | Z10: ='I- TAG Annual Rates'!Z$14 -> 2022 | AA10: ='I- TAG Annual Rates'!AA$14 -> 2023 | AB10: ='I- TAG Annual Rates'!AB$14 -> 2024 | AC10: ='I- TAG Annual Rates'!AC$14 -> 2025 | AD10: ='I- TAG Annual Rates'!AD$14 -> 2026 | AE10: ='I- TAG Annual Rates'!AE$14 -> 2027 | AF10: ='I- TAG Annual Rates'!AF$14 -> 2028 | AG10: ='I- TAG Annual Rates'!AG$14 -> 2029 | AH10: ='I- TAG Annual Rates'!AH$14 -> 2030 | AI10: ='I- TAG Annual Rates'!AI$14 -> 2031 | AJ10: ='I- TAG Annual Rates'!AJ$14 -> 2032 | AK10: ='I- TAG Annual Rates'!AK$14 -> 2033 | AL10: ='I- TAG Annual Rates'!AL$14 -> 2034 | AM10: ='I- TAG Annual Rates'!AM$14 -> 2035 | AN10: ='I- TAG Annual Rates'!AN$14 -> 2036 | AO10: ='I- TAG Annual Rates'!AO$14 -> 2037 | AP10: ='I- TAG Annual Rates'!AP$14 -> 2038 | AQ10: ='I- TAG Annual Rates'!AQ$14 -> 2039 | AR10: ='I- TAG Annual Rates'!AR$14 -> 2040 | AS10: ='I- TAG Annual Rates'!AS$14 -> 2041 | AT10: ='I- TAG Annual Rates'!AT$14 -> 2042 | AU10: ='I- TAG Annual Rates'!AU$14 -> 2043 | AV10: ='I- TAG Annual Rates'!AV$14 -> 2044 | AW10: ='I- TAG Annual Rates'!AW$14 -> 2045 | AX10: ='I- TAG Annual Rates'!AX$14 -> 2046 | AY10: ='I- TAG Annual Rates'!AY$14 -> 2047 | AZ10: ='I- TAG Annual Rates'!AZ$14 -> 2048 | BA10: ='I- TAG Annual Rates'!BA$14 -> 2049 | BB10: ='I- TAG Annual Rates'!BB$14 -> 2050 | BC10: ='I- TAG Annual Rates'!BC$14 -> 2051 | BD10: ='I- TAG Annual Rates'!BD$14 -> 2052 | BE10: ='I- TAG Annual Rates'!BE$14 -> 2053 | BF10: ='I- TAG Annual Rates'!BF$14 -> 2054 | BG10: ='I- TAG Annual Rates'!BG$14 -> 2055 | BH10: ='I- TAG Annual Rates'!BH$14 -> 2056 | BI10: ='I- TAG Annual Rates'!BI$14 -> 2057 | BJ10: ='I- TAG Annual Rates'!BJ$14 -> 2058 | BK10: ='I- TAG Annual Rates'!BK$14 -> 2059 | BL10: ='I- TAG Annual Rates'!BL$14 -> 2060 | BM10: ='I- TAG Annual Rates'!BM$14 -> 2061 | BN10: ='I- TAG Annual Rates'!BN$14 -> 2062 | BO10: ='I- TAG Annual Rates'!BO$14 -> 2063 | BP10: ='I- TAG Annual Rates'!BP$14 -> 2064 | BQ10: ='I- TAG Annual Rates'!BQ$14 -> 2065 | BR10: ='I- TAG Annual Rates'!BR$14 -> 2066 | BS10: ='I- TAG Annual Rates'!BS$14 -> 2067 | BT10: ='I- TAG Annual Rates'!BT$14 -> 2068 | BU10: ='I- TAG Annual Rates'!BU$14 -> 2069 | BV10: ='I- TAG Annual Rates'!BV$14 -> 2070 | BW10: ='I- TAG Annual Rates'!BW$14 -> 2071 | BX10: ='I- TAG Annual Rates'!BX$14 -> 2072 | BY10: ='I- TAG Annual Rates'!BY$14 -> 2073 | BZ10: ='I- TAG Annual Rates'!BZ$14 -> 2074 | CA10: ='I- TAG Annual Rates'!CA$14 -> 2075 | CB10: ='I- TAG Annual Rates'!CB$14 -> 2076 | CC10: ='I- TAG Annual Rates'!CC$14 -> 2077 | CD10: ='I- TAG Annual Rates'!CD$14 -> 2078 | CE10: ='I- TAG Annual Rates'!CE$14 -> 2079 | CF10: ='I- TAG Annual Rates'!CF$14 -> 2080 | CG10: ='I- TAG Annual Rates'!CG$14 -> 2081 | CH10: ='I- TAG Annual Rates'!CH$14 -> 2082 | CI10: ='I- TAG Annual Rates'!CI$14 -> 2083 | CJ10: ='I- TAG Annual Rates'!CJ$14 -> 2084 | CK10: ='I- TAG Annual Rates'!CK$14 -> 2085 | CL10: ='I- TAG Annual Rates'!CL$14 -> 2086 | CM10: ='I- TAG Annual Rates'!CM$14 -> 2087 | CN10: ='I- TAG Annual Rates'!CN$14 -> 2088 | CO10: ='I- TAG Annual Rates'!CO$14 -> 2089 | CP10: ='I- TAG Annual Rates'!CP$14 -> 2090 | CQ10: ='I- TAG Annual Rates'!CQ$14 -> 2091 | CR10: ='I- TAG Annual Rates'!CR$14 -> 2092 | CS10: ='I- TAG Annual Rates'!CS$14 -> 2093 | CT10: ='I- TAG Annual Rates'!CT$14 -> 2094 | CU10: ='I- TAG Annual Rates'!CU$14 -> 2095 | CV10: ='I- TAG Annual Rates'!CV$14 -> 2096 | CW10: ='I- TAG Annual Rates'!CW$14 -> 2097 | CX10: ='I- TAG Annual Rates'!CX$14 -> 2098 | CY10: ='I- TAG Annual Rates'!CY$14 -> 2099
C12: Bus Costs
C13: Please state the capital cost per bus of the proposed zero emission buses and equivalent diesel buses using quotes from manufacturers. If the cost per bus varies across the proposed delivery period, then the weighted average should be used.
C14: Fuel Type | D14: Vehicle Type
C15: Diesel | D15: Single deck bus | F15: =C15&"_"&D15 -> Diesel_Single deck bus | J15: £
C16: Diesel | D16: Double deck bus | F16: =C16&"_"&D16 -> Diesel_Double deck bus | J16: £
C17: Pure Electric Bus | D17: Single deck bus | F17: Pure Electric Bus_Single deck bus | J17: £
C18: Pure Electric Bus | D18: Double deck bus | F18: Pure Electric Bus_Double deck bus | J18: £
C19: Plug-in Hybrid | D19: Single deck bus | F19: Plug-in Hybrid_Single deck bus | H19: 300000 | J19: £
C20: Plug-in Hybrid | D20: Double deck bus | F20: Plug-in Hybrid_Double deck bus | H20: 350000 | J20: £
C21: Parallel Hybrid | D21: Single deck bus | F21: Parallel Hybrid_Single deck bus | H21: 230000 | J21: £
C22: Parallel Hybrid | D22: Double deck bus | F22: Parallel Hybrid_Double deck bus | H22: 260000 | J22: £
C23: Hydrogen | D23: Single deck bus | F23: Hydrogen_Single deck bus | J23: £
C24: Hydrogen | D24: Double deck bus | F24: Hydrogen_Double deck bus | J24: £
C25: <Spare> | D25: Single deck bus | F25: <Spare>_Single deck bus | J25: £
C26: <Spare> | D26: Double deck bus | F26: <Spare>_Double deck bus | J26: £
C28: Input Price Base | H28: 2023
B30: END

Sheet I - Hydrogen Costs & Supply
B1: =IF(SUM(A:A)=0,"OK","Error") -> OK
B2: File Name | G2: =IFERROR(MID(CELL("filename",G2),FIND("[",CELL("filename",G2))+1,FIND("]",CELL("filename",G2))-FIND("[",CELL("filename",G2))-1),"Please save the file to show here") -> Greener Bus Tool.xlsm
B3: Sheet Name | G3: =IFERROR(MID(CELL("filename",G2),FIND("]",CELL("filename",G2))+1,255),"Please save the file to show here") -> I - Hydrogen Costs & Supply
B4: Description and Purpose of Sheet | G4: Users proposing Hydrogen buses should complete all yellow input cells within this sheet, user instructions/notes are shown in red text.
B8: Hydrogen cost and CO2 emission per kg
B10: Local Evidence (if available)
B12: Input only required if proposing investment in hydrogen buses.
B14: If local evidence is available to estimate the costs and CO2 emissions of the production of hydroden, please select "Yes" in the mandatory questions and enter estimates in rows 17 and 18, for each year the buses are expected to be in service.
B16: Mandatory questions | C16: Response | E16: Parameter | F16: Unit | H16: 2010 | I16: 2011 | J16: 2012 | K16: 2013 | L16: 2014 | M16: 2015 | N16: 2016 | O16: 2017 | P16: =O16+1 -> 2018 | Q16: =P16+1 -> 2019 | R16: 2020 | S16: 2021 | T16: 2022 | U16: 2023 | V16: 2024 | W16: 2025 | X16: 2026 | Y16: 2027 | Z16: 2028 | AA16: 2029 | AB16: 2030 | AC16: 2031 | AD16: 2032 | AE16: 2033 | AF16: 2034 | AG16: 2035 | AH16: 2036 | AI16: 2037 | AJ16: 2038 | AK16: 2039 | AL16: 2040 | AM16: 2041 | AN16: 2042 | AO16: 2043 | AP16: 2044 | AQ16: 2045 | AR16: 2046 | AS16: 2047 | AT16: =AS16+1 -> 2048 | AU16: 2049 | AV16: 2050 | AW16: =AV16+1 -> 2051 | AX16: =AW16+1 -> 2052 | AY16: =AX16+1 -> 2053 | AZ16: =AY16+1 -> 2054 | BA16: =AZ16+1 -> 2055 | BB16: =BA16+1 -> 2056 | BC16: =BB16+1 -> 2057 | BD16: =BC16+1 -> 2058 | BE16: =BD16+1 -> 2059 | BF16: =BE16+1 -> 2060 | BG16: =BF16+1 -> 2061 | BH16: =BG16+1 -> 2062 | BI16: =BH16+1 -> 2063 | BJ16: =BI16+1 -> 2064 | BK16: =BJ16+1 -> 2065 | BL16: =BK16+1 -> 2066 | BM16: =BL16+1 -> 2067 | BN16: =BM16+1 -> 2068 | BO16: =BN16+1 -> 2069 | BP16: =BO16+1 -> 2070 | BQ16: =BP16+1 -> 2071 | BR16: =BQ16+1 -> 2072 | BS16: =BR16+1 -> 2073 | BT16: =BS16+1 -> 2074 | BU16: =BT16+1 -> 2075 | BV16: =BU16+1 -> 2076 | BW16: =BV16+1 -> 2077 | BX16: =BW16+1 -> 2078 | BY16: =BX16+1 -> 2079 | BZ16: =BY16+1 -> 2080 | CA16: =BZ16+1 -> 2081 | CB16: =CA16+1 -> 2082 | CC16: =CB16+1 -> 2083 | CD16: =CC16+1 -> 2084 | CE16: =CD16+1 -> 2085 | CF16: =CE16+1 -> 2086 | CG16: =CF16+1 -> 2087 | CH16: =CG16+1 -> 2088 | CI16: =CH16+1 -> 2089 | CJ16: =CI16+1 -> 2090 | CK16: =CJ16+1 -> 2091 | CL16: =CK16+1 -> 2092 | CM16: =CL16+1 -> 2093 | CN16: =CM16+1 -> 2094 | CO16: =CN16+1 -> 2095 | CP16: =CO16+1 -> 2096 | CQ16: =CP16+1 -> 2097 | CR16: =CQ16+1 -> 2098 | CS16: =CR16+1 -> 2099
B17: Do you have local evidence of the cost of hydrogen? | C17: Select Yes/No | E17: Cost of Hydrogen | F17: £/kg, in 2021 prices
B18: Do you provide local evidence on CO2 associated with hydrogen? | C18: Select Yes/No | E18: CO2 associated with Hydrogen | F18: kgCO2/kg H2
B20: Please provide an explanation and sources of local evidence. If local evidence is not used leave blank
B22: Hydrogen scenario
B24: If no local evidence is available, please select "No" in the mandatory questions, and indicate the proposed production in the cells below. This will calculate the costs and emissions per kg based on core assumptions.
B26: Note: Totals should each equal 100%.
U27: 2020 to 2024 | V27: 2025 to 2029 | W27: 2030 to 2034 | X27: 2035 to 2039 | Y27: 2040 to 2044 | Z27: 2045 to 2049 | AA27: 2050 onwards
B28: Fuel stage | C28: H2 production scenario | U28: 1 | V28: 1 | W28: 1 | X28: 1 | Y28: 1 | Z28: 1 | AA28: 1
B29: Production | C29: Electrolysis Renewable Electricity | U29: 0 | V29: 0 | W29: 0 | X29: 0 | Y29: 0 | Z29: 0 | AA29: 0
B30: Production | C30: Electrolysis Long-run Marginal (Grid electricity) | U30: =SUM(U28:U29) -> 1 | V30: 1 | W30: 1 | X30: 1 | Y30: 1 | Z30: 1 | AA30: 1
B31: Total
D33: H2 Distribution scenario
B34: Distribution | C34: Electrolysis (Off-site) Renewable | D34: Trailer delivery | U34: =U28 -> 1 | V34: 1 | W34: 1 | X34: 1 | Y34: 1 | Z34: 1 | AA34: 1
B35: Distribution | C35: Electrolysis (Off-site) Renewable | D35: Pipeline | U35: 0 | V35: 0 | W35: 0 | X35: 0 | Y35: 0 | Z35: 0 | AA35: 0
B36: Distribution | C36: Electrolysis (Off-site) Long-run Marginal | D36: Trailer delivery | U36: =U29 -> 0 | V36: 0 | W36: 0 | X36: 0 | Y36: 0 | Z36: 0 | AA36: 0
B37: Distribution | C37: Electrolysis (Off-site) Long-run Marginal | D37: Pipeline | U37: 0 | V37: 0 | W37: 0 | X37: 0 | Y37: 0 | Z37: 0 | AA37: 0
B38: Distribution | C38: Electrolysis (On-site) | D38: On-site | U38: 0 | V38: 0 | W38: 0 | X38: 0 | Y38: 0 | Z38: 0 | AA38: 0
B39: Total | U39: =SUM(U34:U38) -> 1 | V39: 1 | W39: 1 | X39: 1 | Y39: 1 | Z39: 1 | AA39: 1
B41: Dispensing | D41: Trailer delivery | U41: =U30 -> 1 | V41: 1 | W41: 1 | X41: 1 | Y41: 1 | Z41: 1 | AA41: 1
B42: Dispensing | D42: Pipeline | U42: 0 | V42: 0 | W42: 0 | X42: 0 | Y42: 0 | Z42: 0 | AA42: 0
B43: Dispensing | D43: On-site | U43: 0 | V43: 0 | W43: 0 | X43: 0 | Y43: 0 | Z43: 0 | AA43: 0
B44: Total | U44: =SUM(U41:U43) -> 1 | V44: =SUM(V41:V43) -> 1 | W44: 1 | X44: 1 | Y44: 1 | Z44: 1 | AA44: 1
B46: Please provide an explanation for scenario, if local evidence is used above, leave blank
B48: END
C58: Select Yes/No
C59: Yes
C60: No

Sheet I- Bus Delivery (hidden)
B1: =IF(SUM(A:A)=0,"OK","Error") -> OK
B2: File Name | G2: =IFERROR(MID(CELL("filename",G2),FIND("[",CELL("filename",G2))+1,FIND("]",CELL("filename",G2))-FIND("[",CELL("filename",G2))-1),"Please save the file to show here") -> Greener Bus Tool.xlsm
B3: Sheet Name | G3: =IFERROR(MID(CELL("filename",G2),FIND("]",CELL("filename",G2))+1,255),"Please save the file to show here") -> I- Bus Delivery
B4: Description and Purpose of Sheet | G4: This sheet allows the bus delivery years to be input for non-Proforma scenarios, proforma inputs are automatically fed through into Sc 1 block.
B8: Bus Delivery
H10: Constant | J10: Unit | L10: Source | N10: ='I- TAG Annual Rates'!N$14 -> 2010 | O10: ='I- TAG Annual Rates'!O$14 -> 2011 | P10: ='I- TAG Annual Rates'!P$14 -> 2012 | Q10: ='I- TAG Annual Rates'!Q$14 -> 2013 | R10: ='I- TAG Annual Rates'!R$14 -> 2014 | S10: ='I- TAG Annual Rates'!S$14 -> 2015 | T10: ='I- TAG Annual Rates'!T$14 -> 2016 | U10: ='I- TAG Annual Rates'!U$14 -> 2017 | V10: ='I- TAG Annual Rates'!V$14 -> 2018 | W10: ='I- TAG Annual Rates'!W$14 -> 2019 | X10: ='I- TAG Annual Rates'!X$14 -> 2020 | Y10: ='I- TAG Annual Rates'!Y$14 -> 2021 | Z10: ='I- TAG Annual Rates'!Z$14 -> 2022 | AA10: ='I- TAG Annual Rates'!AA$14 -> 2023 | AB10: ='I- TAG Annual Rates'!AB$14 -> 2024 | AC10: ='I- TAG Annual Rates'!AC$14 -> 2025 | AD10: ='I- TAG Annual Rates'!AD$14 -> 2026 | AE10: ='I- TAG Annual Rates'!AE$14 -> 2027 | AF10: ='I- TAG Annual Rates'!AF$14 -> 2028 | AG10: ='I- TAG Annual Rates'!AG$14 -> 2029 | AH10: ='I- TAG Annual Rates'!AH$14 -> 2030 | AI10: ='I- TAG Annual Rates'!AI$14 -> 2031 | AJ10: ='I- TAG Annual Rates'!AJ$14 -> 2032 | AK10: ='I- TAG Annual Rates'!AK$14 -> 2033 | AL10: ='I- TAG Annual Rates'!AL$14 -> 2034 | AM10: ='I- TAG Annual Rates'!AM$14 -> 2035 | AN10: ='I- TAG Annual Rates'!AN$14 -> 2036 | AO10: ='I- TAG Annual Rates'!AO$14 -> 2037 | AP10: ='I- TAG Annual Rates'!AP$14 -> 2038 | AQ10: ='I- TAG Annual Rates'!AQ$14 -> 2039 | AR10: ='I- TAG Annual Rates'!AR$14 -> 2040 | AS10: ='I- TAG Annual Rates'!AS$14 -> 2041 | AT10: ='I- TAG Annual Rates'!AT$14 -> 2042 | AU10: ='I- TAG Annual Rates'!AU$14 -> 2043 | AV10: ='I- TAG Annual Rates'!AV$14 -> 2044 | AW10: ='I- TAG Annual Rates'!AW$14 -> 2045 | AX10: ='I- TAG Annual Rates'!AX$14 -> 2046 | AY10: ='I- TAG Annual Rates'!AY$14 -> 2047 | AZ10: ='I- TAG Annual Rates'!AZ$14 -> 2048 | BA10: ='I- TAG Annual Rates'!BA$14 -> 2049 | BB10: ='I- TAG Annual Rates'!BB$14 -> 2050 | BC10: ='I- TAG Annual Rates'!BC$14 -> 2051 | BD10: ='I- TAG Annual Rates'!BD$14 -> 2052 | BE10: ='I- TAG Annual Rates'!BE$14 -> 2053 | BF10: ='I- TAG Annual Rates'!BF$14 -> 2054 | BG10: ='I- TAG Annual Rates'!BG$14 -> 2055 | BH10: ='I- TAG Annual Rates'!BH$14 -> 2056 | BI10: ='I- TAG Annual Rates'!BI$14 -> 2057 | BJ10: ='I- TAG Annual Rates'!BJ$14 -> 2058 | BK10: ='I- TAG Annual Rates'!BK$14 -> 2059 | BL10: ='I- TAG Annual Rates'!BL$14 -> 2060 | BM10: ='I- TAG Annual Rates'!BM$14 -> 2061 | BN10: ='I- TAG Annual Rates'!BN$14 -> 2062 | BO10: ='I- TAG Annual Rates'!BO$14 -> 2063 | BP10: ='I- TAG Annual Rates'!BP$14 -> 2064 | BQ10: ='I- TAG Annual Rates'!BQ$14 -> 2065 | BR10: ='I- TAG Annual Rates'!BR$14 -> 2066 | BS10: ='I- TAG Annual Rates'!BS$14 -> 2067 | BT10: ='I- TAG Annual Rates'!BT$14 -> 2068 | BU10: ='I- TAG Annual Rates'!BU$14 -> 2069 | BV10: ='I- TAG Annual Rates'!BV$14 -> 2070 | BW10: ='I- TAG Annual Rates'!BW$14 -> 2071 | BX10: ='I- TAG Annual Rates'!BX$14 -> 2072 | BY10: ='I- TAG Annual Rates'!BY$14 -> 2073 | BZ10: ='I- TAG Annual Rates'!BZ$14 -> 2074 | CA10: ='I- TAG Annual Rates'!CA$14 -> 2075 | CB10: ='I- TAG Annual Rates'!CB$14 -> 2076 | CC10: ='I- TAG Annual Rates'!CC$14 -> 2077 | CD10: ='I- TAG Annual Rates'!CD$14 -> 2078 | CE10: ='I- TAG Annual Rates'!CE$14 -> 2079 | CF10: ='I- TAG Annual Rates'!CF$14 -> 2080 | CG10: ='I- TAG Annual Rates'!CG$14 -> 2081 | CH10: ='I- TAG Annual Rates'!CH$14 -> 2082 | CI10: ='I- TAG Annual Rates'!CI$14 -> 2083 | CJ10: ='I- TAG Annual Rates'!CJ$14 -> 2084 | CK10: ='I- TAG Annual Rates'!CK$14 -> 2085 | CL10: ='I- TAG Annual Rates'!CL$14 -> 2086 | CM10: ='I- TAG Annual Rates'!CM$14 -> 2087 | CN10: ='I- TAG Annual Rates'!CN$14 -> 2088 | CO10: ='I- TAG Annual Rates'!CO$14 -> 2089 | CP10: ='I- TAG Annual Rates'!CP$14 -> 2090 | CQ10: ='I- TAG Annual Rates'!CQ$14 -> 2091 | CR10: ='I- TAG Annual Rates'!CR$14 -> 2092 | CS10: ='I- TAG Annual Rates'!CS$14 -> 2093 | CT10: ='I- TAG Annual Rates'!CT$14 -> 2094 | CU10: ='I- TAG Annual Rates'!CU$14 -> 2095 | CV10: ='I- TAG Annual Rates'!CV$14 -> 2096 | CW10: ='I- TAG Annual Rates'!CW$14 -> 2097 | CX10: ='I- TAG Annual Rates'!CX$14 -> 2098 | CY10: ='I- TAG Annual Rates'!CY$14 -> 2099
C12: ='I- User Parameters'!$P$14 -> Sc. 1 - ZEBRA buisness case
C14: Delivery Period
C15: First year of vehicle delivery | H15: ='I- User Proforma'!H16 -> Input first year of delivery | J15: yyyy | L15: Proforma
C16: Total delivery period for vehicles | H16: ='I- User Proforma'!H17 -> 0 | J16: years | L16: Proforma
C18: Number of buses delivered
C19: Number of single decker buses delivered in each year | J19: number of vehicles | L19: Proforma | N19: ='I- User Proforma'!N20 -> 0 | O19: ='I- User Proforma'!O20 -> 0 | P19: ='I- User Proforma'!P20 -> 0 | Q19: ='I- User Proforma'!Q20 -> 0 | R19: ='I- User Proforma'!R20 -> 0 | S19: ='I- User Proforma'!S20 -> 0 | T19: ='I- User Proforma'!T20 -> 0 | U19: ='I- User Proforma'!U20 -> 0 | V19: ='I- User Proforma'!V20 -> 0 | W19: ='I- User Proforma'!W20 -> 0 | X19: ='I- User Proforma'!X20 -> 0 | Y19: ='I- User Proforma'!Y20 -> 0 | Z19: ='I- User Proforma'!Z20 -> 0 | AA19: ='I- User Proforma'!AA20 -> 0 | AB19: ='I- User Proforma'!AB20 -> 0 | AC19: ='I- User Proforma'!AC20 -> 0 | AD19: ='I- User Proforma'!AD20 -> 0 | AE19: ='I- User Proforma'!AE20 -> 0 | AF19: ='I- User Proforma'!AF20 -> 0 | AG19: ='I- User Proforma'!AG20 -> 0 | AH19: ='I- User Proforma'!AH20 -> 0 | AI19: ='I- User Proforma'!AI20 -> 0 | AJ19: ='I- User Proforma'!AJ20 -> 0 | AK19: ='I- User Proforma'!AK20 -> 0 | AL19: ='I- User Proforma'!AL20 -> 0 | AM19: ='I- User Proforma'!AM20 -> 0 | AN19: ='I- User Proforma'!AN20 -> 0 | AO19: ='I- User Proforma'!AO20 -> 0 | AP19: ='I- User Proforma'!AP20 -> 0 | AQ19: ='I- User Proforma'!AQ20 -> 0 | AR19: ='I- User Proforma'!AR20 -> 0 | AS19: ='I- User Proforma'!AS20 -> 0 | AT19: ='I- User Proforma'!AT20 -> 0 | AU19: ='I- User Proforma'!AU20 -> 0 | AV19: ='I- User Proforma'!AV20 -> 0 | AW19: ='I- User Proforma'!AW20 -> 0 | AX19: ='I- User Proforma'!AX20 -> 0 | AY19: ='I- User Proforma'!AY20 -> 0 | AZ19: ='I- User Proforma'!AZ20 -> 0 | BA19: ='I- User Proforma'!BA20 -> 0 | BB19: ='I- User Proforma'!BB20 -> 0 | BC19: ='I- User Proforma'!BC20 -> 0 | BD19: ='I- User Proforma'!BD20 -> 0 | BE19: ='I- User Proforma'!BE20 -> 0 | BF19: ='I- User Proforma'!BF20 -> 0 | BG19: ='I- User Proforma'!BG20 -> 0 | BH19: ='I- User Proforma'!BH20 -> 0 | BI19: ='I- User Proforma'!BI20 -> 0 | BJ19: ='I- User Proforma'!BJ20 -> 0 | BK19: ='I- User Proforma'!BK20 -> 0 | BL19: ='I- User Proforma'!BL20 -> 0 | BM19: ='I- User Proforma'!BM20 -> 0 | BN19: ='I- User Proforma'!BN20 -> 0 | BO19: ='I- User Proforma'!BO20 -> 0 | BP19: ='I- User Proforma'!BP20 -> 0 | BQ19: ='I- User Proforma'!BQ20 -> 0 | BR19: ='I- User Proforma'!BR20 -> 0 | BS19: ='I- User Proforma'!BS20 -> 0 | BT19: ='I- User Proforma'!BT20 -> 0 | BU19: ='I- User Proforma'!BU20 -> 0 | BV19: ='I- User Proforma'!BV20 -> 0 | BW19: ='I- User Proforma'!BW20 -> 0 | BX19: ='I- User Proforma'!BX20 -> 0 | BY19: ='I- User Proforma'!BY20 -> 0 | BZ19: ='I- User Proforma'!BZ20 -> 0 | CA19: ='I- User Proforma'!CA20 -> 0 | CB19: ='I- User Proforma'!CB20 -> 0 | CC19: ='I- User Proforma'!CC20 -> 0 | CD19: ='I- User Proforma'!CD20 -> 0 | CE19: ='I- User Proforma'!CE20 -> 0 | CF19: ='I- User Proforma'!CF20 -> 0 | CG19: ='I- User Proforma'!CG20 -> 0 | CH19: ='I- User Proforma'!CH20 -> 0 | CI19: ='I- User Proforma'!CI20 -> 0 | CJ19: ='I- User Proforma'!CJ20 -> 0 | CK19: ='I- User Proforma'!CK20 -> 0 | CL19: ='I- User Proforma'!CL20 -> 0 | CM19: ='I- User Proforma'!CM20 -> 0 | CN19: ='I- User Proforma'!CN20 -> 0 | CO19: ='I- User Proforma'!CO20 -> 0 | CP19: ='I- User Proforma'!CP20 -> 0 | CQ19: ='I- User Proforma'!CQ20 -> 0 | CR19: ='I- User Proforma'!CR20 -> 0 | CS19: ='I- User Proforma'!CS20 -> 0 | CT19: ='I- User Proforma'!CT20 -> 0 | CU19: ='I- User Proforma'!CU20 -> 0 | CV19: ='I- User Proforma'!CV20 -> 0 | CW19: ='I- User Proforma'!CW20 -> 0 | CX19: ='I- User Proforma'!CX20 -> 0 | CY19: ='I- User Proforma'!CY20 -> 0
C20: Number of double decker buses delivered in each year | J20: number of vehicles | L20: Proforma | N20: ='I- User Proforma'!N21 -> 0 | O20: ='I- User Proforma'!O21 -> 0 | P20: ='I- User Proforma'!P21 -> 0 | Q20: ='I- User Proforma'!Q21 -> 0 | R20: ='I- User Proforma'!R21 -> 0 | S20: ='I- User Proforma'!S21 -> 0 | T20: ='I- User Proforma'!T21 -> 0 | U20: ='I- User Proforma'!U21 -> 0 | V20: ='I- User Proforma'!V21 -> 0 | W20: ='I- User Proforma'!W21 -> 0 | X20: ='I- User Proforma'!X21 -> 0 | Y20: ='I- User Proforma'!Y21 -> 0 | Z20: ='I- User Proforma'!Z21 -> 0 | AA20: ='I- User Proforma'!AA21 -> 0 | AB20: ='I- User Proforma'!AB21 -> 0 | AC20: ='I- User Proforma'!AC21 -> 0 | AD20: ='I- User Proforma'!AD21 -> 0 | AE20: ='I- User Proforma'!AE21 -> 0 | AF20: ='I- User Proforma'!AF21 -> 0 | AG20: ='I- User Proforma'!AG21 -> 0 | AH20: ='I- User Proforma'!AH21 -> 0 | AI20: ='I- User Proforma'!AI21 -> 0 | AJ20: ='I- User Proforma'!AJ21 -> 0 | AK20: ='I- User Proforma'!AK21 -> 0 | AL20: ='I- User Proforma'!AL21 -> 0 | AM20: ='I- User Proforma'!AM21 -> 0 | AN20: ='I- User Proforma'!AN21 -> 0 | AO20: ='I- User Proforma'!AO21 -> 0 | AP20: ='I- User Proforma'!AP21 -> 0 | AQ20: ='I- User Proforma'!AQ21 -> 0 | AR20: ='I- User Proforma'!AR21 -> 0 | AS20: ='I- User Proforma'!AS21 -> 0 | AT20: ='I- User Proforma'!AT21 -> 0 | AU20: ='I- User Proforma'!AU21 -> 0 | AV20: ='I- User Proforma'!AV21 -> 0 | AW20: ='I- User Proforma'!AW21 -> 0 | AX20: ='I- User Proforma'!AX21 -> 0 | AY20: ='I- User Proforma'!AY21 -> 0 | AZ20: ='I- User Proforma'!AZ21 -> 0 | BA20: ='I- User Proforma'!BA21 -> 0 | BB20: ='I- User Proforma'!BB21 -> 0 | BC20: ='I- User Proforma'!BC21 -> 0 | BD20: ='I- User Proforma'!BD21 -> 0 | BE20: ='I- User Proforma'!BE21 -> 0 | BF20: ='I- User Proforma'!BF21 -> 0 | BG20: ='I- User Proforma'!BG21 -> 0 | BH20: ='I- User Proforma'!BH21 -> 0 | BI20: ='I- User Proforma'!BI21 -> 0 | BJ20: ='I- User Proforma'!BJ21 -> 0 | BK20: ='I- User Proforma'!BK21 -> 0 | BL20: ='I- User Proforma'!BL21 -> 0 | BM20: ='I- User Proforma'!BM21 -> 0 | BN20: ='I- User Proforma'!BN21 -> 0 | BO20: ='I- User Proforma'!BO21 -> 0 | BP20: ='I- User Proforma'!BP21 -> 0 | BQ20: ='I- User Proforma'!BQ21 -> 0 | BR20: ='I- User Proforma'!BR21 -> 0 | BS20: ='I- User Proforma'!BS21 -> 0 | BT20: ='I- User Proforma'!BT21 -> 0 | BU20: ='I- User Proforma'!BU21 -> 0 | BV20: ='I- User Proforma'!BV21 -> 0 | BW20: ='I- User Proforma'!BW21 -> 0 | BX20: ='I- User Proforma'!BX21 -> 0 | BY20: ='I- User Proforma'!BY21 -> 0 | BZ20: ='I- User Proforma'!BZ21 -> 0 | CA20: ='I- User Proforma'!CA21 -> 0 | CB20: ='I- User Proforma'!CB21 -> 0 | CC20: ='I- User Proforma'!CC21 -> 0 | CD20: ='I- User Proforma'!CD21 -> 0 | CE20: ='I- User Proforma'!CE21 -> 0 | CF20: ='I- User Proforma'!CF21 -> 0 | CG20: ='I- User Proforma'!CG21 -> 0 | CH20: ='I- User Proforma'!CH21 -> 0 | CI20: ='I- User Proforma'!CI21 -> 0 | CJ20: ='I- User Proforma'!CJ21 -> 0 | CK20: ='I- User Proforma'!CK21 -> 0 | CL20: ='I- User Proforma'!CL21 -> 0 | CM20: ='I- User Proforma'!CM21 -> 0 | CN20: ='I- User Proforma'!CN21 -> 0 | CO20: ='I- User Proforma'!CO21 -> 0 | CP20: ='I- User Proforma'!CP21 -> 0 | CQ20: ='I- User Proforma'!CQ21 -> 0 | CR20: ='I- User Proforma'!CR21 -> 0 | CS20: ='I- User Proforma'!CS21 -> 0 | CT20: ='I- User Proforma'!CT21 -> 0 | CU20: ='I- User Proforma'!CU21 -> 0 | CV20: ='I- User Proforma'!CV21 -> 0 | CW20: ='I- User Proforma'!CW21 -> 0 | CX20: ='I- User Proforma'!CX21 -> 0 | CY20: ='I- User Proforma'!CY21 -> 0
C21: Total number of buses delivered in each year | J21: number of vehicles | L21: Proforma | N21: ='I- User Proforma'!N22 -> 0 | O21: ='I- User Proforma'!O22 -> 0 | P21: ='I- User Proforma'!P22 -> 0 | Q21: ='I- User Proforma'!Q22 -> 0 | R21: ='I- User Proforma'!R22 -> 0 | S21: ='I- User Proforma'!S22 -> 0 | T21: ='I- User Proforma'!T22 -> 0 | U21: ='I- User Proforma'!U22 -> 0 | V21: ='I- User Proforma'!V22 -> 0 | W21: ='I- User Proforma'!W22 -> 0 | X21: ='I- User Proforma'!X22 -> 0 | Y21: ='I- User Proforma'!Y22 -> 0 | Z21: ='I- User Proforma'!Z22 -> 0 | AA21: ='I- User Proforma'!AA22 -> 0 | AB21: ='I- User Proforma'!AB22 -> 0 | AC21: ='I- User Proforma'!AC22 -> 0 | AD21: ='I- User Proforma'!AD22 -> 0 | AE21: ='I- User Proforma'!AE22 -> 0 | AF21: ='I- User Proforma'!AF22 -> 0 | AG21: ='I- User Proforma'!AG22 -> 0 | AH21: ='I- User Proforma'!AH22 -> 0 | AI21: ='I- User Proforma'!AI22 -> 0 | AJ21: ='I- User Proforma'!AJ22 -> 0 | AK21: ='I- User Proforma'!AK22 -> 0 | AL21: ='I- User Proforma'!AL22 -> 0 | AM21: ='I- User Proforma'!AM22 -> 0 | AN21: ='I- User Proforma'!AN22 -> 0 | AO21: ='I- User Proforma'!AO22 -> 0 | AP21: ='I- User Proforma'!AP22 -> 0 | AQ21: ='I- User Proforma'!AQ22 -> 0 | AR21: ='I- User Proforma'!AR22 -> 0 | AS21: ='I- User Proforma'!AS22 -> 0 | AT21: ='I- User Proforma'!AT22 -> 0 | AU21: ='I- User Proforma'!AU22 -> 0 | AV21: ='I- User Proforma'!AV22 -> 0 | AW21: ='I- User Proforma'!AW22 -> 0 | AX21: ='I- User Proforma'!AX22 -> 0 | AY21: ='I- User Proforma'!AY22 -> 0 | AZ21: ='I- User Proforma'!AZ22 -> 0 | BA21: ='I- User Proforma'!BA22 -> 0 | BB21: ='I- User Proforma'!BB22 -> 0 | BC21: ='I- User Proforma'!BC22 -> 0 | BD21: ='I- User Proforma'!BD22 -> 0 | BE21: ='I- User Proforma'!BE22 -> 0 | BF21: ='I- User Proforma'!BF22 -> 0 | BG21: ='I- User Proforma'!BG22 -> 0 | BH21: ='I- User Proforma'!BH22 -> 0 | BI21: ='I- User Proforma'!BI22 -> 0 | BJ21: ='I- User Proforma'!BJ22 -> 0 | BK21: ='I- User Proforma'!BK22 -> 0 | BL21: ='I- User Proforma'!BL22 -> 0 | BM21: ='I- User Proforma'!BM22 -> 0 | BN21: ='I- User Proforma'!BN22 -> 0 | BO21: ='I- User Proforma'!BO22 -> 0 | BP21: ='I- User Proforma'!BP22 -> 0 | BQ21: ='I- User Proforma'!BQ22 -> 0 | BR21: ='I- User Proforma'!BR22 -> 0 | BS21: ='I- User Proforma'!BS22 -> 0 | BT21: ='I- User Proforma'!BT22 -> 0 | BU21: ='I- User Proforma'!BU22 -> 0 | BV21: ='I- User Proforma'!BV22 -> 0 | BW21: ='I- User Proforma'!BW22 -> 0 | BX21: ='I- User Proforma'!BX22 -> 0 | BY21: ='I- User Proforma'!BY22 -> 0 | BZ21: ='I- User Proforma'!BZ22 -> 0 | CA21: ='I- User Proforma'!CA22 -> 0 | CB21: ='I- User Proforma'!CB22 -> 0 | CC21: ='I- User Proforma'!CC22 -> 0 | CD21: ='I- User Proforma'!CD22 -> 0 | CE21: ='I- User Proforma'!CE22 -> 0 | CF21: ='I- User Proforma'!CF22 -> 0 | CG21: ='I- User Proforma'!CG22 -> 0 | CH21: ='I- User Proforma'!CH22 -> 0 | CI21: ='I- User Proforma'!CI22 -> 0 | CJ21: ='I- User Proforma'!CJ22 -> 0 | CK21: ='I- User Proforma'!CK22 -> 0 | CL21: ='I- User Proforma'!CL22 -> 0 | CM21: ='I- User Proforma'!CM22 -> 0 | CN21: ='I- User Proforma'!CN22 -> 0 | CO21: ='I- User Proforma'!CO22 -> 0 | CP21: ='I- User Proforma'!CP22 -> 0 | CQ21: ='I- User Proforma'!CQ22 -> 0 | CR21: ='I- User Proforma'!CR22 -> 0 | CS21: ='I- User Proforma'!CS22 -> 0 | CT21: ='I- User Proforma'!CT22 -> 0 | CU21: ='I- User Proforma'!CU22 -> 0 | CV21: ='I- User Proforma'!CV22 -> 0 | CW21: ='I- User Proforma'!CW22 -> 0 | CX21: ='I- User Proforma'!CX22 -> 0 | CY21: ='I- User Proforma'!CY22 -> 0
C23: ='I- User Parameters'!#REF! -> 
C25: Delivery Period
C26: First year of vehicle delivery | J26: yyyy
C27: Total delivery period for vehicles | J27: years
C29: Number of buses delivered
C30: Number of single decker buses delivered in each year | J30: number of vehicles
C31: Number of double decker buses delivered in each year | J31: number of vehicles
C32: Total number of buses delivered in each year | J32: number of vehicles
C34: ='I- User Parameters'!#REF! -> 
C36: Delivery Period
C37: First year of vehicle delivery | J37: yyyy
C38: Total delivery period for vehicles | J38: years
C40: Number of buses delivered
C41: Number of single decker buses delivered in each year | J41: number of vehicles
C42: Number of double decker buses delivered in each year | J42: number of vehicles
C43: Total number of buses delivered in each year | J43: number of vehicles
C45: ='I- User Parameters'!#REF! -> 
C47: Delivery Period
C48: First year of vehicle delivery | J48: yyyy
C49: Total delivery period for vehicles | J49: years
C51: Number of buses delivered
C52: Number of single decker buses delivered in each year | J52: number of vehicles
C53: Number of double decker buses delivered in each year | J53: number of vehicles
C54: Total number of buses delivered in each year | J54: number of vehicles
C56: ='I- User Parameters'!#REF! -> 
C58: Delivery Period
C59: First year of vehicle delivery | J59: yyyy
C60: Total delivery period for vehicles | J60: years
C62: Number of buses delivered
C63: Number of single decker buses delivered in each year | J63: number of vehicles
C64: Number of double decker buses delivered in each year | J64: number of vehicles
C65: Total number of buses delivered in each year | J65: number of vehicles
C67: ='I- User Parameters'!#REF! -> 
C69: Delivery Period
C70: First year of vehicle delivery | J70: yyyy
C71: Total delivery period for vehicles | J71: years
C73: Number of buses delivered
C74: Number of single decker buses delivered in each year | J74: number of vehicles
C75: Number of double decker buses delivered in each year | J75: number of vehicles
C76: Total number of buses delivered in each year | J76: number of vehicles
B78: END

Sheet I- Vehicle CapEx (hidden)
B1: =IF(SUM(A:A)=0,"OK","Error") -> OK
B2: File Name | G2: =IFERROR(MID(CELL("filename",G2),FIND("[",CELL("filename",G2))+1,FIND("]",CELL("filename",G2))-FIND("[",CELL("filename",G2))-1),"Please save the file to show here") -> Greener Bus Tool.xlsm
B3: Sheet Name | G3: =IFERROR(MID(CELL("filename",G2),FIND("]",CELL("filename",G2))+1,255),"Please save the file to show here") -> I- Vehicle CapEx
B4: Description and Purpose of Sheet | G4: This sheet allows the bus capital costs to be input for non-Proforma scenarios, proforma inputs are automatically fed through into Sc 1 block.
B8: Vehicle CapEx
H10: Constant | J10: Unit | L10: Source | N10: ='I- TAG Annual Rates'!N$14 -> 2010 | O10: ='I- TAG Annual Rates'!O$14 -> 2011 | P10: ='I- TAG Annual Rates'!P$14 -> 2012 | Q10: ='I- TAG Annual Rates'!Q$14 -> 2013 | R10: ='I- TAG Annual Rates'!R$14 -> 2014 | S10: ='I- TAG Annual Rates'!S$14 -> 2015 | T10: ='I- TAG Annual Rates'!T$14 -> 2016 | U10: ='I- TAG Annual Rates'!U$14 -> 2017 | V10: ='I- TAG Annual Rates'!V$14 -> 2018 | W10: ='I- TAG Annual Rates'!W$14 -> 2019 | X10: ='I- TAG Annual Rates'!X$14 -> 2020 | Y10: ='I- TAG Annual Rates'!Y$14 -> 2021 | Z10: ='I- TAG Annual Rates'!Z$14 -> 2022 | AA10: ='I- TAG Annual Rates'!AA$14 -> 2023 | AB10: ='I- TAG Annual Rates'!AB$14 -> 2024 | AC10: ='I- TAG Annual Rates'!AC$14 -> 2025 | AD10: ='I- TAG Annual Rates'!AD$14 -> 2026 | AE10: ='I- TAG Annual Rates'!AE$14 -> 2027 | AF10: ='I- TAG Annual Rates'!AF$14 -> 2028 | AG10: ='I- TAG Annual Rates'!AG$14 -> 2029 | AH10: ='I- TAG Annual Rates'!AH$14 -> 2030 | AI10: ='I- TAG Annual Rates'!AI$14 -> 2031 | AJ10: ='I- TAG Annual Rates'!AJ$14 -> 2032 | AK10: ='I- TAG Annual Rates'!AK$14 -> 2033 | AL10: ='I- TAG Annual Rates'!AL$14 -> 2034 | AM10: ='I- TAG Annual Rates'!AM$14 -> 2035 | AN10: ='I- TAG Annual Rates'!AN$14 -> 2036 | AO10: ='I- TAG Annual Rates'!AO$14 -> 2037 | AP10: ='I- TAG Annual Rates'!AP$14 -> 2038 | AQ10: ='I- TAG Annual Rates'!AQ$14 -> 2039 | AR10: ='I- TAG Annual Rates'!AR$14 -> 2040 | AS10: ='I- TAG Annual Rates'!AS$14 -> 2041 | AT10: ='I- TAG Annual Rates'!AT$14 -> 2042 | AU10: ='I- TAG Annual Rates'!AU$14 -> 2043 | AV10: ='I- TAG Annual Rates'!AV$14 -> 2044 | AW10: ='I- TAG Annual Rates'!AW$14 -> 2045 | AX10: ='I- TAG Annual Rates'!AX$14 -> 2046 | AY10: ='I- TAG Annual Rates'!AY$14 -> 2047 | AZ10: ='I- TAG Annual Rates'!AZ$14 -> 2048 | BA10: ='I- TAG Annual Rates'!BA$14 -> 2049 | BB10: ='I- TAG Annual Rates'!BB$14 -> 2050 | BC10: ='I- TAG Annual Rates'!BC$14 -> 2051 | BD10: ='I- TAG Annual Rates'!BD$14 -> 2052 | BE10: ='I- TAG Annual Rates'!BE$14 -> 2053 | BF10: ='I- TAG Annual Rates'!BF$14 -> 2054 | BG10: ='I- TAG Annual Rates'!BG$14 -> 2055 | BH10: ='I- TAG Annual Rates'!BH$14 -> 2056 | BI10: ='I- TAG Annual Rates'!BI$14 -> 2057 | BJ10: ='I- TAG Annual Rates'!BJ$14 -> 2058 | BK10: ='I- TAG Annual Rates'!BK$14 -> 2059 | BL10: ='I- TAG Annual Rates'!BL$14 -> 2060 | BM10: ='I- TAG Annual Rates'!BM$14 -> 2061 | BN10: ='I- TAG Annual Rates'!BN$14 -> 2062 | BO10: ='I- TAG Annual Rates'!BO$14 -> 2063 | BP10: ='I- TAG Annual Rates'!BP$14 -> 2064 | BQ10: ='I- TAG Annual Rates'!BQ$14 -> 2065 | BR10: ='I- TAG Annual Rates'!BR$14 -> 2066 | BS10: ='I- TAG Annual Rates'!BS$14 -> 2067 | BT10: ='I- TAG Annual Rates'!BT$14 -> 2068 | BU10: ='I- TAG Annual Rates'!BU$14 -> 2069 | BV10: ='I- TAG Annual Rates'!BV$14 -> 2070 | BW10: ='I- TAG Annual Rates'!BW$14 -> 2071 | BX10: ='I- TAG Annual Rates'!BX$14 -> 2072 | BY10: ='I- TAG Annual Rates'!BY$14 -> 2073 | BZ10: ='I- TAG Annual Rates'!BZ$14 -> 2074 | CA10: ='I- TAG Annual Rates'!CA$14 -> 2075 | CB10: ='I- TAG Annual Rates'!CB$14 -> 2076 | CC10: ='I- TAG Annual Rates'!CC$14 -> 2077 | CD10: ='I- TAG Annual Rates'!CD$14 -> 2078 | CE10: ='I- TAG Annual Rates'!CE$14 -> 2079 | CF10: ='I- TAG Annual Rates'!CF$14 -> 2080 | CG10: ='I- TAG Annual Rates'!CG$14 -> 2081 | CH10: ='I- TAG Annual Rates'!CH$14 -> 2082 | CI10: ='I- TAG Annual Rates'!CI$14 -> 2083 | CJ10: ='I- TAG Annual Rates'!CJ$14 -> 2084 | CK10: ='I- TAG Annual Rates'!CK$14 -> 2085 | CL10: ='I- TAG Annual Rates'!CL$14 -> 2086 | CM10: ='I- TAG Annual Rates'!CM$14 -> 2087 | CN10: ='I- TAG Annual Rates'!CN$14 -> 2088 | CO10: ='I- TAG Annual Rates'!CO$14 -> 2089 | CP10: ='I- TAG Annual Rates'!CP$14 -> 2090 | CQ10: ='I- TAG Annual Rates'!CQ$14 -> 2091 | CR10: ='I- TAG Annual Rates'!CR$14 -> 2092 | CS10: ='I- TAG Annual Rates'!CS$14 -> 2093 | CT10: ='I- TAG Annual Rates'!CT$14 -> 2094 | CU10: ='I- TAG Annual Rates'!CU$14 -> 2095 | CV10: ='I- TAG Annual Rates'!CV$14 -> 2096 | CW10: ='I- TAG Annual Rates'!CW$14 -> 2097 | CX10: ='I- TAG Annual Rates'!CX$14 -> 2098 | CY10: ='I- TAG Annual Rates'!CY$14 -> 2099
C12: ='I- User Parameters'!$P$14 -> Sc. 1 - ZEBRA buisness case
C14: Total cost of buses
C15: Cost incurred in each year | J15: £ | L15: Proforma | N15: ='I- User Proforma'!N27 -> 0 | O15: ='I- User Proforma'!O27 -> 0 | P15: ='I- User Proforma'!P27 -> 0 | Q15: ='I- User Proforma'!Q27 -> 0 | R15: ='I- User Proforma'!R27 -> 0 | S15: ='I- User Proforma'!S27 -> 0 | T15: ='I- User Proforma'!T27 -> 0 | U15: ='I- User Proforma'!U27 -> 0 | V15: ='I- User Proforma'!V27 -> 0 | W15: ='I- User Proforma'!W27 -> 0 | X15: ='I- User Proforma'!X27 -> 0 | Y15: ='I- User Proforma'!Y27 -> 0 | Z15: ='I- User Proforma'!Z27 -> 0 | AA15: ='I- User Proforma'!AA27 -> 0 | AB15: ='I- User Proforma'!AB27 -> 0 | AC15: ='I- User Proforma'!AC27 -> 0 | AD15: ='I- User Proforma'!AD27 -> 0 | AE15: ='I- User Proforma'!AE27 -> 0 | AF15: ='I- User Proforma'!AF27 -> 0 | AG15: ='I- User Proforma'!AG27 -> 0 | AH15: ='I- User Proforma'!AH27 -> 0 | AI15: ='I- User Proforma'!AI27 -> 0 | AJ15: ='I- User Proforma'!AJ27 -> 0 | AK15: ='I- User Proforma'!AK27 -> 0 | AL15: ='I- User Proforma'!AL27 -> 0 | AM15: ='I- User Proforma'!AM27 -> 0 | AN15: ='I- User Proforma'!AN27 -> 0 | AO15: ='I- User Proforma'!AO27 -> 0 | AP15: ='I- User Proforma'!AP27 -> 0 | AQ15: ='I- User Proforma'!AQ27 -> 0 | AR15: ='I- User Proforma'!AR27 -> 0 | AS15: ='I- User Proforma'!AS27 -> 0 | AT15: ='I- User Proforma'!AT27 -> 0 | AU15: ='I- User Proforma'!AU27 -> 0 | AV15: ='I- User Proforma'!AV27 -> 0 | AW15: ='I- User Proforma'!AW27 -> 0 | AX15: ='I- User Proforma'!AX27 -> 0 | AY15: ='I- User Proforma'!AY27 -> 0 | AZ15: ='I- User Proforma'!AZ27 -> 0 | BA15: ='I- User Proforma'!BA27 -> 0 | BB15: ='I- User Proforma'!BB27 -> 0 | BC15: ='I- User Proforma'!BC27 -> 0 | BD15: ='I- User Proforma'!BD27 -> 0 | BE15: ='I- User Proforma'!BE27 -> 0 | BF15: ='I- User Proforma'!BF27 -> 0 | BG15: ='I- User Proforma'!BG27 -> 0 | BH15: ='I- User Proforma'!BH27 -> 0 | BI15: ='I- User Proforma'!BI27 -> 0 | BJ15: ='I- User Proforma'!BJ27 -> 0 | BK15: ='I- User Proforma'!BK27 -> 0 | BL15: ='I- User Proforma'!BL27 -> 0 | BM15: ='I- User Proforma'!BM27 -> 0 | BN15: ='I- User Proforma'!BN27 -> 0 | BO15: ='I- User Proforma'!BO27 -> 0 | BP15: ='I- User Proforma'!BP27 -> 0 | BQ15: ='I- User Proforma'!BQ27 -> 0 | BR15: ='I- User Proforma'!BR27 -> 0 | BS15: ='I- User Proforma'!BS27 -> 0 | BT15: ='I- User Proforma'!BT27 -> 0 | BU15: ='I- User Proforma'!BU27 -> 0 | BV15: ='I- User Proforma'!BV27 -> 0 | BW15: ='I- User Proforma'!BW27 -> 0 | BX15: ='I- User Proforma'!BX27 -> 0 | BY15: ='I- User Proforma'!BY27 -> 0 | BZ15: ='I- User Proforma'!BZ27 -> 0 | CA15: ='I- User Proforma'!CA27 -> 0 | CB15: ='I- User Proforma'!CB27 -> 0 | CC15: ='I- User Proforma'!CC27 -> 0 | CD15: ='I- User Proforma'!CD27 -> 0 | CE15: ='I- User Proforma'!CE27 -> 0 | CF15: ='I- User Proforma'!CF27 -> 0 | CG15: ='I- User Proforma'!CG27 -> 0 | CH15: ='I- User Proforma'!CH27 -> 0 | CI15: ='I- User Proforma'!CI27 -> 0 | CJ15: ='I- User Proforma'!CJ27 -> 0 | CK15: ='I- User Proforma'!CK27 -> 0 | CL15: ='I- User Proforma'!CL27 -> 0 | CM15: ='I- User Proforma'!CM27 -> 0 | CN15: ='I- User Proforma'!CN27 -> 0 | CO15: ='I- User Proforma'!CO27 -> 0 | CP15: ='I- User Proforma'!CP27 -> 0 | CQ15: ='I- User Proforma'!CQ27 -> 0 | CR15: ='I- User Proforma'!CR27 -> 0 | CS15: ='I- User Proforma'!CS27 -> 0 | CT15: ='I- User Proforma'!CT27 -> 0 | CU15: ='I- User Proforma'!CU27 -> 0 | CV15: ='I- User Proforma'!CV27 -> 0 | CW15: ='I- User Proforma'!CW27 -> 0 | CX15: ='I- User Proforma'!CX27 -> 0 | CY15: ='I- User Proforma'!CY27 -> 0
C17: Grant required from Government for buses
C18: Grant required from Government for buses in each year | J18: £ | L18: Proforma | N18: ='I- User Proforma'!N31 -> 0 | O18: ='I- User Proforma'!O31 -> 0 | P18: ='I- User Proforma'!P31 -> 0 | Q18: ='I- User Proforma'!Q31 -> 0 | R18: ='I- User Proforma'!R31 -> 0 | S18: ='I- User Proforma'!S31 -> 0 | T18: ='I- User Proforma'!T31 -> 0 | U18: ='I- User Proforma'!U31 -> 0 | V18: ='I- User Proforma'!V31 -> 0 | W18: ='I- User Proforma'!W31 -> 0 | X18: ='I- User Proforma'!X31 -> 0 | Y18: ='I- User Proforma'!Y31 -> 0 | Z18: ='I- User Proforma'!Z31 -> 0 | AA18: ='I- User Proforma'!AA31 -> 0 | AB18: ='I- User Proforma'!AB31 -> 0 | AC18: ='I- User Proforma'!AC31 -> 0 | AD18: ='I- User Proforma'!AD31 -> 0 | AE18: ='I- User Proforma'!AE31 -> 0 | AF18: ='I- User Proforma'!AF31 -> 0 | AG18: ='I- User Proforma'!AG31 -> 0 | AH18: ='I- User Proforma'!AH31 -> 0 | AI18: ='I- User Proforma'!AI31 -> 0 | AJ18: ='I- User Proforma'!AJ31 -> 0 | AK18: ='I- User Proforma'!AK31 -> 0 | AL18: ='I- User Proforma'!AL31 -> 0 | AM18: ='I- User Proforma'!AM31 -> 0 | AN18: ='I- User Proforma'!AN31 -> 0 | AO18: ='I- User Proforma'!AO31 -> 0 | AP18: ='I- User Proforma'!AP31 -> 0 | AQ18: ='I- User Proforma'!AQ31 -> 0 | AR18: ='I- User Proforma'!AR31 -> 0 | AS18: ='I- User Proforma'!AS31 -> 0 | AT18: ='I- User Proforma'!AT31 -> 0 | AU18: ='I- User Proforma'!AU31 -> 0 | AV18: ='I- User Proforma'!AV31 -> 0 | AW18: ='I- User Proforma'!AW31 -> 0 | AX18: ='I- User Proforma'!AX31 -> 0 | AY18: ='I- User Proforma'!AY31 -> 0 | AZ18: ='I- User Proforma'!AZ31 -> 0 | BA18: ='I- User Proforma'!BA31 -> 0 | BB18: ='I- User Proforma'!BB31 -> 0 | BC18: ='I- User Proforma'!BC31 -> 0 | BD18: ='I- User Proforma'!BD31 -> 0 | BE18: ='I- User Proforma'!BE31 -> 0 | BF18: ='I- User Proforma'!BF31 -> 0 | BG18: ='I- User Proforma'!BG31 -> 0 | BH18: ='I- User Proforma'!BH31 -> 0 | BI18: ='I- User Proforma'!BI31 -> 0 | BJ18: ='I- User Proforma'!BJ31 -> 0 | BK18: ='I- User Proforma'!BK31 -> 0 | BL18: ='I- User Proforma'!BL31 -> 0 | BM18: ='I- User Proforma'!BM31 -> 0 | BN18: ='I- User Proforma'!BN31 -> 0 | BO18: ='I- User Proforma'!BO31 -> 0 | BP18: ='I- User Proforma'!BP31 -> 0 | BQ18: ='I- User Proforma'!BQ31 -> 0 | BR18: ='I- User Proforma'!BR31 -> 0 | BS18: ='I- User Proforma'!BS31 -> 0 | BT18: ='I- User Proforma'!BT31 -> 0 | BU18: ='I- User Proforma'!BU31 -> 0 | BV18: ='I- User Proforma'!BV31 -> 0 | BW18: ='I- User Proforma'!BW31 -> 0 | BX18: ='I- User Proforma'!BX31 -> 0 | BY18: ='I- User Proforma'!BY31 -> 0 | BZ18: ='I- User Proforma'!BZ31 -> 0 | CA18: ='I- User Proforma'!CA31 -> 0 | CB18: ='I- User Proforma'!CB31 -> 0 | CC18: ='I- User Proforma'!CC31 -> 0 | CD18: ='I- User Proforma'!CD31 -> 0 | CE18: ='I- User Proforma'!CE31 -> 0 | CF18: ='I- User Proforma'!CF31 -> 0 | CG18: ='I- User Proforma'!CG31 -> 0 | CH18: ='I- User Proforma'!CH31 -> 0 | CI18: ='I- User Proforma'!CI31 -> 0 | CJ18: ='I- User Proforma'!CJ31 -> 0 | CK18: ='I- User Proforma'!CK31 -> 0 | CL18: ='I- User Proforma'!CL31 -> 0 | CM18: ='I- User Proforma'!CM31 -> 0 | CN18: ='I- User Proforma'!CN31 -> 0 | CO18: ='I- User Proforma'!CO31 -> 0 | CP18: ='I- User Proforma'!CP31 -> 0 | CQ18: ='I- User Proforma'!CQ31 -> 0 | CR18: ='I- User Proforma'!CR31 -> 0 | CS18: ='I- User Proforma'!CS31 -> 0 | CT18: ='I- User Proforma'!CT31 -> 0 | CU18: ='I- User Proforma'!CU31 -> 0 | CV18: ='I- User Proforma'!CV31 -> 0 | CW18: ='I- User Proforma'!CW31 -> 0 | CX18: ='I- User Proforma'!CX31 -> 0 | CY18: ='I- User Proforma'!CY31 -> 0
C20: Cost to other funding sources in each year
C21: Source | E21: Sector
C22: ='I- User Proforma'!C36 -> 0 | E22: ='I- User Proforma'!E36 -> 0 | J22: £ | L22: Proforma | N22: ='I- User Proforma'!N36 -> 0 | O22: ='I- User Proforma'!O36 -> 0 | P22: ='I- User Proforma'!P36 -> 0 | Q22: ='I- User Proforma'!Q36 -> 0 | R22: ='I- User Proforma'!R36 -> 0 | S22: ='I- User Proforma'!S36 -> 0 | T22: ='I- User Proforma'!T36 -> 0 | U22: ='I- User Proforma'!U36 -> 0 | V22: ='I- User Proforma'!V36 -> 0 | W22: ='I- User Proforma'!W36 -> 0 | X22: ='I- User Proforma'!X36 -> 0 | Y22: ='I- User Proforma'!Y36 -> 0 | Z22: ='I- User Proforma'!Z36 -> 0 | AA22: ='I- User Proforma'!AA36 -> 0 | AB22: ='I- User Proforma'!AB36 -> 0 | AC22: ='I- User Proforma'!AC36 -> 0 | AD22: ='I- User Proforma'!AD36 -> 0 | AE22: ='I- User Proforma'!AE36 -> 0 | AF22: ='I- User Proforma'!AF36 -> 0 | AG22: ='I- User Proforma'!AG36 -> 0 | AH22: ='I- User Proforma'!AH36 -> 0 | AI22: ='I- User Proforma'!AI36 -> 0 | AJ22: ='I- User Proforma'!AJ36 -> 0 | AK22: ='I- User Proforma'!AK36 -> 0 | AL22: ='I- User Proforma'!AL36 -> 0 | AM22: ='I- User Proforma'!AM36 -> 0 | AN22: ='I- User Proforma'!AN36 -> 0 | AO22: ='I- User Proforma'!AO36 -> 0 | AP22: ='I- User Proforma'!AP36 -> 0 | AQ22: ='I- User Proforma'!AQ36 -> 0 | AR22: ='I- User Proforma'!AR36 -> 0 | AS22: ='I- User Proforma'!AS36 -> 0 | AT22: ='I- User Proforma'!AT36 -> 0 | AU22: ='I- User Proforma'!AU36 -> 0 | AV22: ='I- User Proforma'!AV36 -> 0 | AW22: ='I- User Proforma'!AW36 -> 0 | AX22: ='I- User Proforma'!AX36 -> 0 | AY22: ='I- User Proforma'!AY36 -> 0 | AZ22: ='I- User Proforma'!AZ36 -> 0 | BA22: ='I- User Proforma'!BA36 -> 0 | BB22: ='I- User Proforma'!BB36 -> 0 | BC22: ='I- User Proforma'!BC36 -> 0 | BD22: ='I- User Proforma'!BD36 -> 0 | BE22: ='I- User Proforma'!BE36 -> 0 | BF22: ='I- User Proforma'!BF36 -> 0 | BG22: ='I- User Proforma'!BG36 -> 0 | BH22: ='I- User Proforma'!BH36 -> 0 | BI22: ='I- User Proforma'!BI36 -> 0 | BJ22: ='I- User Proforma'!BJ36 -> 0 | BK22: ='I- User Proforma'!BK36 -> 0 | BL22: ='I- User Proforma'!BL36 -> 0 | BM22: ='I- User Proforma'!BM36 -> 0 | BN22: ='I- User Proforma'!BN36 -> 0 | BO22: ='I- User Proforma'!BO36 -> 0 | BP22: ='I- User Proforma'!BP36 -> 0 | BQ22: ='I- User Proforma'!BQ36 -> 0 | BR22: ='I- User Proforma'!BR36 -> 0 | BS22: ='I- User Proforma'!BS36 -> 0 | BT22: ='I- User Proforma'!BT36 -> 0 | BU22: ='I- User Proforma'!BU36 -> 0 | BV22: ='I- User Proforma'!BV36 -> 0 | BW22: ='I- User Proforma'!BW36 -> 0 | BX22: ='I- User Proforma'!BX36 -> 0 | BY22: ='I- User Proforma'!BY36 -> 0 | BZ22: ='I- User Proforma'!BZ36 -> 0 | CA22: ='I- User Proforma'!CA36 -> 0 | CB22: ='I- User Proforma'!CB36 -> 0 | CC22: ='I- User Proforma'!CC36 -> 0 | CD22: ='I- User Proforma'!CD36 -> 0 | CE22: ='I- User Proforma'!CE36 -> 0 | CF22: ='I- User Proforma'!CF36 -> 0 | CG22: ='I- User Proforma'!CG36 -> 0 | CH22: ='I- User Proforma'!CH36 -> 0 | CI22: ='I- User Proforma'!CI36 -> 0 | CJ22: ='I- User Proforma'!CJ36 -> 0 | CK22: ='I- User Proforma'!CK36 -> 0 | CL22: ='I- User Proforma'!CL36 -> 0 | CM22: ='I- User Proforma'!CM36 -> 0 | CN22: ='I- User Proforma'!CN36 -> 0 | CO22: ='I- User Proforma'!CO36 -> 0 | CP22: ='I- User Proforma'!CP36 -> 0 | CQ22: ='I- User Proforma'!CQ36 -> 0 | CR22: ='I- User Proforma'!CR36 -> 0 | CS22: ='I- User Proforma'!CS36 -> 0 | CT22: ='I- User Proforma'!CT36 -> 0 | CU22: ='I- User Proforma'!CU36 -> 0 | CV22: ='I- User Proforma'!CV36 -> 0 | CW22: ='I- User Proforma'!CW36 -> 0 | CX22: ='I- User Proforma'!CX36 -> 0 | CY22: ='I- User Proforma'!CY36 -> 0
C23: ='I- User Proforma'!C37 -> 0 | E23: ='I- User Proforma'!E37 -> 0 | J23: £ | L23: Proforma | N23: ='I- User Proforma'!N37 -> 0 | O23: ='I- User Proforma'!O37 -> 0 | P23: ='I- User Proforma'!P37 -> 0 | Q23: ='I- User Proforma'!Q37 -> 0 | R23: ='I- User Proforma'!R37 -> 0 | S23: ='I- User Proforma'!S37 -> 0 | T23: ='I- User Proforma'!T37 -> 0 | U23: ='I- User Proforma'!U37 -> 0 | V23: ='I- User Proforma'!V37 -> 0 | W23: ='I- User Proforma'!W37 -> 0 | X23: ='I- User Proforma'!X37 -> 0 | Y23: ='I- User Proforma'!Y37 -> 0 | Z23: ='I- User Proforma'!Z37 -> 0 | AA23: ='I- User Proforma'!AA37 -> 0 | AB23: ='I- User Proforma'!AB37 -> 0 | AC23: ='I- User Proforma'!AC37 -> 0 | AD23: ='I- User Proforma'!AD37 -> 0 | AE23: ='I- User Proforma'!AE37 -> 0 | AF23: ='I- User Proforma'!AF37 -> 0 | AG23: ='I- User Proforma'!AG37 -> 0 | AH23: ='I- User Proforma'!AH37 -> 0 | AI23: ='I- User Proforma'!AI37 -> 0 | AJ23: ='I- User Proforma'!AJ37 -> 0 | AK23: ='I- User Proforma'!AK37 -> 0 | AL23: ='I- User Proforma'!AL37 -> 0 | AM23: ='I- User Proforma'!AM37 -> 0 | AN23: ='I- User Proforma'!AN37 -> 0 | AO23: ='I- User Proforma'!AO37 -> 0 | AP23: ='I- User Proforma'!AP37 -> 0 | AQ23: ='I- User Proforma'!AQ37 -> 0 | AR23: ='I- User Proforma'!AR37 -> 0 | AS23: ='I- User Proforma'!AS37 -> 0 | AT23: ='I- User Proforma'!AT37 -> 0 | AU23: ='I- User Proforma'!AU37 -> 0 | AV23: ='I- User Proforma'!AV37 -> 0 | AW23: ='I- User Proforma'!AW37 -> 0 | AX23: ='I- User Proforma'!AX37 -> 0 | AY23: ='I- User Proforma'!AY37 -> 0 | AZ23: ='I- User Proforma'!AZ37 -> 0 | BA23: ='I- User Proforma'!BA37 -> 0 | BB23: ='I- User Proforma'!BB37 -> 0 | BC23: ='I- User Proforma'!BC37 -> 0 | BD23: ='I- User Proforma'!BD37 -> 0 | BE23: ='I- User Proforma'!BE37 -> 0 | BF23: ='I- User Proforma'!BF37 -> 0 | BG23: ='I- User Proforma'!BG37 -> 0 | BH23: ='I- User Proforma'!BH37 -> 0 | BI23: ='I- User Proforma'!BI37 -> 0 | BJ23: ='I- User Proforma'!BJ37 -> 0 | BK23: ='I- User Proforma'!BK37 -> 0 | BL23: ='I- User Proforma'!BL37 -> 0 | BM23: ='I- User Proforma'!BM37 -> 0 | BN23: ='I- User Proforma'!BN37 -> 0 | BO23: ='I- User Proforma'!BO37 -> 0 | BP23: ='I- User Proforma'!BP37 -> 0 | BQ23: ='I- User Proforma'!BQ37 -> 0 | BR23: ='I- User Proforma'!BR37 -> 0 | BS23: ='I- User Proforma'!BS37 -> 0 | BT23: ='I- User Proforma'!BT37 -> 0 | BU23: ='I- User Proforma'!BU37 -> 0 | BV23: ='I- User Proforma'!BV37 -> 0 | BW23: ='I- User Proforma'!BW37 -> 0 | BX23: ='I- User Proforma'!BX37 -> 0 | BY23: ='I- User Proforma'!BY37 -> 0 | BZ23: ='I- User Proforma'!BZ37 -> 0 | CA23: ='I- User Proforma'!CA37 -> 0 | CB23: ='I- User Proforma'!CB37 -> 0 | CC23: ='I- User Proforma'!CC37 -> 0 | CD23: ='I- User Proforma'!CD37 -> 0 | CE23: ='I- User Proforma'!CE37 -> 0 | CF23: ='I- User Proforma'!CF37 -> 0 | CG23: ='I- User Proforma'!CG37 -> 0 | CH23: ='I- User Proforma'!CH37 -> 0 | CI23: ='I- User Proforma'!CI37 -> 0 | CJ23: ='I- User Proforma'!CJ37 -> 0 | CK23: ='I- User Proforma'!CK37 -> 0 | CL23: ='I- User Proforma'!CL37 -> 0 | CM23: ='I- User Proforma'!CM37 -> 0 | CN23: ='I- User Proforma'!CN37 -> 0 | CO23: ='I- User Proforma'!CO37 -> 0 | CP23: ='I- User Proforma'!CP37 -> 0 | CQ23: ='I- User Proforma'!CQ37 -> 0 | CR23: ='I- User Proforma'!CR37 -> 0 | CS23: ='I- User Proforma'!CS37 -> 0 | CT23: ='I- User Proforma'!CT37 -> 0 | CU23: ='I- User Proforma'!CU37 -> 0 | CV23: ='I- User Proforma'!CV37 -> 0 | CW23: ='I- User Proforma'!CW37 -> 0 | CX23: ='I- User Proforma'!CX37 -> 0 | CY23: ='I- User Proforma'!CY37 -> 0
C24: ='I- User Proforma'!C38 -> 0 | E24: ='I- User Proforma'!E38 -> 0 | J24: £ | L24: Proforma | N24: ='I- User Proforma'!N38 -> 0 | O24: ='I- User Proforma'!O38 -> 0 | P24: ='I- User Proforma'!P38 -> 0 | Q24: ='I- User Proforma'!Q38 -> 0 | R24: ='I- User Proforma'!R38 -> 0 | S24: ='I- User Proforma'!S38 -> 0 | T24: ='I- User Proforma'!T38 -> 0 | U24: ='I- User Proforma'!U38 -> 0 | V24: ='I- User Proforma'!V38 -> 0 | W24: ='I- User Proforma'!W38 -> 0 | X24: ='I- User Proforma'!X38 -> 0 | Y24: ='I- User Proforma'!Y38 -> 0 | Z24: ='I- User Proforma'!Z38 -> 0 | AA24: ='I- User Proforma'!AA38 -> 0 | AB24: ='I- User Proforma'!AB38 -> 0 | AC24: ='I- User Proforma'!AC38 -> 0 | AD24: ='I- User Proforma'!AD38 -> 0 | AE24: ='I- User Proforma'!AE38 -> 0 | AF24: ='I- User Proforma'!AF38 -> 0 | AG24: ='I- User Proforma'!AG38 -> 0 | AH24: ='I- User Proforma'!AH38 -> 0 | AI24: ='I- User Proforma'!AI38 -> 0 | AJ24: ='I- User Proforma'!AJ38 -> 0 | AK24: ='I- User Proforma'!AK38 -> 0 | AL24: ='I- User Proforma'!AL38 -> 0 | AM24: ='I- User Proforma'!AM38 -> 0 | AN24: ='I- User Proforma'!AN38 -> 0 | AO24: ='I- User Proforma'!AO38 -> 0 | AP24: ='I- User Proforma'!AP38 -> 0 | AQ24: ='I- User Proforma'!AQ38 -> 0 | AR24: ='I- User Proforma'!AR38 -> 0 | AS24: ='I- User Proforma'!AS38 -> 0 | AT24: ='I- User Proforma'!AT38 -> 0 | AU24: ='I- User Proforma'!AU38 -> 0 | AV24: ='I- User Proforma'!AV38 -> 0 | AW24: ='I- User Proforma'!AW38 -> 0 | AX24: ='I- User Proforma'!AX38 -> 0 | AY24: ='I- User Proforma'!AY38 -> 0 | AZ24: ='I- User Proforma'!AZ38 -> 0 | BA24: ='I- User Proforma'!BA38 -> 0 | BB24: ='I- User Proforma'!BB38 -> 0 | BC24: ='I- User Proforma'!BC38 -> 0 | BD24: ='I- User Proforma'!BD38 -> 0 | BE24: ='I- User Proforma'!BE38 -> 0 | BF24: ='I- User Proforma'!BF38 -> 0 | BG24: ='I- User Proforma'!BG38 -> 0 | BH24: ='I- User Proforma'!BH38 -> 0 | BI24: ='I- User Proforma'!BI38 -> 0 | BJ24: ='I- User Proforma'!BJ38 -> 0 | BK24: ='I- User Proforma'!BK38 -> 0 | BL24: ='I- User Proforma'!BL38 -> 0 | BM24: ='I- User Proforma'!BM38 -> 0 | BN24: ='I- User Proforma'!BN38 -> 0 | BO24: ='I- User Proforma'!BO38 -> 0 | BP24: ='I- User Proforma'!BP38 -> 0 | BQ24: ='I- User Proforma'!BQ38 -> 0 | BR24: ='I- User Proforma'!BR38 -> 0 | BS24: ='I- User Proforma'!BS38 -> 0 | BT24: ='I- User Proforma'!BT38 -> 0 | BU24: ='I- User Proforma'!BU38 -> 0 | BV24: ='I- User Proforma'!BV38 -> 0 | BW24: ='I- User Proforma'!BW38 -> 0 | BX24: ='I- User Proforma'!BX38 -> 0 | BY24: ='I- User Proforma'!BY38 -> 0 | BZ24: ='I- User Proforma'!BZ38 -> 0 | CA24: ='I- User Proforma'!CA38 -> 0 | CB24: ='I- User Proforma'!CB38 -> 0 | CC24: ='I- User Proforma'!CC38 -> 0 | CD24: ='I- User Proforma'!CD38 -> 0 | CE24: ='I- User Proforma'!CE38 -> 0 | CF24: ='I- User Proforma'!CF38 -> 0 | CG24: ='I- User Proforma'!CG38 -> 0 | CH24: ='I- User Proforma'!CH38 -> 0 | CI24: ='I- User Proforma'!CI38 -> 0 | CJ24: ='I- User Proforma'!CJ38 -> 0 | CK24: ='I- User Proforma'!CK38 -> 0 | CL24: ='I- User Proforma'!CL38 -> 0 | CM24: ='I- User Proforma'!CM38 -> 0 | CN24: ='I- User Proforma'!CN38 -> 0 | CO24: ='I- User Proforma'!CO38 -> 0 | CP24: ='I- User Proforma'!CP38 -> 0 | CQ24: ='I- User Proforma'!CQ38 -> 0 | CR24: ='I- User Proforma'!CR38 -> 0 | CS24: ='I- User Proforma'!CS38 -> 0 | CT24: ='I- User Proforma'!CT38 -> 0 | CU24: ='I- User Proforma'!CU38 -> 0 | CV24: ='I- User Proforma'!CV38 -> 0 | CW24: ='I- User Proforma'!CW38 -> 0 | CX24: ='I- User Proforma'!CX38 -> 0 | CY24: ='I- User Proforma'!CY38 -> 0
C25: ='I- User Proforma'!C39 -> 0 | E25: ='I- User Proforma'!E39 -> 0 | J25: £ | L25: Proforma | N25: ='I- User Proforma'!N39 -> 0 | O25: ='I- User Proforma'!O39 -> 0 | P25: ='I- User Proforma'!P39 -> 0 | Q25: ='I- User Proforma'!Q39 -> 0 | R25: ='I- User Proforma'!R39 -> 0 | S25: ='I- User Proforma'!S39 -> 0 | T25: ='I- User Proforma'!T39 -> 0 | U25: ='I- User Proforma'!U39 -> 0 | V25: ='I- User Proforma'!V39 -> 0 | W25: ='I- User Proforma'!W39 -> 0 | X25: ='I- User Proforma'!X39 -> 0 | Y25: ='I- User Proforma'!Y39 -> 0 | Z25: ='I- User Proforma'!Z39 -> 0 | AA25: ='I- User Proforma'!AA39 -> 0 | AB25: ='I- User Proforma'!AB39 -> 0 | AC25: ='I- User Proforma'!AC39 -> 0 | AD25: ='I- User Proforma'!AD39 -> 0 | AE25: ='I- User Proforma'!AE39 -> 0 | AF25: ='I- User Proforma'!AF39 -> 0 | AG25: ='I- User Proforma'!AG39 -> 0 | AH25: ='I- User Proforma'!AH39 -> 0 | AI25: ='I- User Proforma'!AI39 -> 0 | AJ25: ='I- User Proforma'!AJ39 -> 0 | AK25: ='I- User Proforma'!AK39 -> 0 | AL25: ='I- User Proforma'!AL39 -> 0 | AM25: ='I- User Proforma'!AM39 -> 0 | AN25: ='I- User Proforma'!AN39 -> 0 | AO25: ='I- User Proforma'!AO39 -> 0 | AP25: ='I- User Proforma'!AP39 -> 0 | AQ25: ='I- User Proforma'!AQ39 -> 0 | AR25: ='I- User Proforma'!AR39 -> 0 | AS25: ='I- User Proforma'!AS39 -> 0 | AT25: ='I- User Proforma'!AT39 -> 0 | AU25: ='I- User Proforma'!AU39 -> 0 | AV25: ='I- User Proforma'!AV39 -> 0 | AW25: ='I- User Proforma'!AW39 -> 0 | AX25: ='I- User Proforma'!AX39 -> 0 | AY25: ='I- User Proforma'!AY39 -> 0 | AZ25: ='I- User Proforma'!AZ39 -> 0 | BA25: ='I- User Proforma'!BA39 -> 0 | BB25: ='I- User Proforma'!BB39 -> 0 | BC25: ='I- User Proforma'!BC39 -> 0 | BD25: ='I- User Proforma'!BD39 -> 0 | BE25: ='I- User Proforma'!BE39 -> 0 | BF25: ='I- User Proforma'!BF39 -> 0 | BG25: ='I- User Proforma'!BG39 -> 0 | BH25: ='I- User Proforma'!BH39 -> 0 | BI25: ='I- User Proforma'!BI39 -> 0 | BJ25: ='I- User Proforma'!BJ39 -> 0 | BK25: ='I- User Proforma'!BK39 -> 0 | BL25: ='I- User Proforma'!BL39 -> 0 | BM25: ='I- User Proforma'!BM39 -> 0 | BN25: ='I- User Proforma'!BN39 -> 0 | BO25: ='I- User Proforma'!BO39 -> 0 | BP25: ='I- User Proforma'!BP39 -> 0 | BQ25: ='I- User Proforma'!BQ39 -> 0 | BR25: ='I- User Proforma'!BR39 -> 0 | BS25: ='I- User Proforma'!BS39 -> 0 | BT25: ='I- User Proforma'!BT39 -> 0 | BU25: ='I- User Proforma'!BU39 -> 0 | BV25: ='I- User Proforma'!BV39 -> 0 | BW25: ='I- User Proforma'!BW39 -> 0 | BX25: ='I- User Proforma'!BX39 -> 0 | BY25: ='I- User Proforma'!BY39 -> 0 | BZ25: ='I- User Proforma'!BZ39 -> 0 | CA25: ='I- User Proforma'!CA39 -> 0 | CB25: ='I- User Proforma'!CB39 -> 0 | CC25: ='I- User Proforma'!CC39 -> 0 | CD25: ='I- User Proforma'!CD39 -> 0 | CE25: ='I- User Proforma'!CE39 -> 0 | CF25: ='I- User Proforma'!CF39 -> 0 | CG25: ='I- User Proforma'!CG39 -> 0 | CH25: ='I- User Proforma'!CH39 -> 0 | CI25: ='I- User Proforma'!CI39 -> 0 | CJ25: ='I- User Proforma'!CJ39 -> 0 | CK25: ='I- User Proforma'!CK39 -> 0 | CL25: ='I- User Proforma'!CL39 -> 0 | CM25: ='I- User Proforma'!CM39 -> 0 | CN25: ='I- User Proforma'!CN39 -> 0 | CO25: ='I- User Proforma'!CO39 -> 0 | CP25: ='I- User Proforma'!CP39 -> 0 | CQ25: ='I- User Proforma'!CQ39 -> 0 | CR25: ='I- User Proforma'!CR39 -> 0 | CS25: ='I- User Proforma'!CS39 -> 0 | CT25: ='I- User Proforma'!CT39 -> 0 | CU25: ='I- User Proforma'!CU39 -> 0 | CV25: ='I- User Proforma'!CV39 -> 0 | CW25: ='I- User Proforma'!CW39 -> 0 | CX25: ='I- User Proforma'!CX39 -> 0 | CY25: ='I- User Proforma'!CY39 -> 0
C26: ='I- User Proforma'!C40 -> 0 | E26: ='I- User Proforma'!E40 -> 0 | J26: £ | L26: Proforma | N26: ='I- User Proforma'!N40 -> 0 | O26: ='I- User Proforma'!O40 -> 0 | P26: ='I- User Proforma'!P40 -> 0 | Q26: ='I- User Proforma'!Q40 -> 0 | R26: ='I- User Proforma'!R40 -> 0 | S26: ='I- User Proforma'!S40 -> 0 | T26: ='I- User Proforma'!T40 -> 0 | U26: ='I- User Proforma'!U40 -> 0 | V26: ='I- User Proforma'!V40 -> 0 | W26: ='I- User Proforma'!W40 -> 0 | X26: ='I- User Proforma'!X40 -> 0 | Y26: ='I- User Proforma'!Y40 -> 0 | Z26: ='I- User Proforma'!Z40 -> 0 | AA26: ='I- User Proforma'!AA40 -> 0 | AB26: ='I- User Proforma'!AB40 -> 0 | AC26: ='I- User Proforma'!AC40 -> 0 | AD26: ='I- User Proforma'!AD40 -> 0 | AE26: ='I- User Proforma'!AE40 -> 0 | AF26: ='I- User Proforma'!AF40 -> 0 | AG26: ='I- User Proforma'!AG40 -> 0 | AH26: ='I- User Proforma'!AH40 -> 0 | AI26: ='I- User Proforma'!AI40 -> 0 | AJ26: ='I- User Proforma'!AJ40 -> 0 | AK26: ='I- User Proforma'!AK40 -> 0 | AL26: ='I- User Proforma'!AL40 -> 0 | AM26: ='I- User Proforma'!AM40 -> 0 | AN26: ='I- User Proforma'!AN40 -> 0 | AO26: ='I- User Proforma'!AO40 -> 0 | AP26: ='I- User Proforma'!AP40 -> 0 | AQ26: ='I- User Proforma'!AQ40 -> 0 | AR26: ='I- User Proforma'!AR40 -> 0 | AS26: ='I- User Proforma'!AS40 -> 0 | AT26: ='I- User Proforma'!AT40 -> 0 | AU26: ='I- User Proforma'!AU40 -> 0 | AV26: ='I- User Proforma'!AV40 -> 0 | AW26: ='I- User Proforma'!AW40 -> 0 | AX26: ='I- User Proforma'!AX40 -> 0 | AY26: ='I- User Proforma'!AY40 -> 0 | AZ26: ='I- User Proforma'!AZ40 -> 0 | BA26: ='I- User Proforma'!BA40 -> 0 | BB26: ='I- User Proforma'!BB40 -> 0 | BC26: ='I- User Proforma'!BC40 -> 0 | BD26: ='I- User Proforma'!BD40 -> 0 | BE26: ='I- User Proforma'!BE40 -> 0 | BF26: ='I- User Proforma'!BF40 -> 0 | BG26: ='I- User Proforma'!BG40 -> 0 | BH26: ='I- User Proforma'!BH40 -> 0 | BI26: ='I- User Proforma'!BI40 -> 0 | BJ26: ='I- User Proforma'!BJ40 -> 0 | BK26: ='I- User Proforma'!BK40 -> 0 | BL26: ='I- User Proforma'!BL40 -> 0 | BM26: ='I- User Proforma'!BM40 -> 0 | BN26: ='I- User Proforma'!BN40 -> 0 | BO26: ='I- User Proforma'!BO40 -> 0 | BP26: ='I- User Proforma'!BP40 -> 0 | BQ26: ='I- User Proforma'!BQ40 -> 0 | BR26: ='I- User Proforma'!BR40 -> 0 | BS26: ='I- User Proforma'!BS40 -> 0 | BT26: ='I- User Proforma'!BT40 -> 0 | BU26: ='I- User Proforma'!BU40 -> 0 | BV26: ='I- User Proforma'!BV40 -> 0 | BW26: ='I- User Proforma'!BW40 -> 0 | BX26: ='I- User Proforma'!BX40 -> 0 | BY26: ='I- User Proforma'!BY40 -> 0 | BZ26: ='I- User Proforma'!BZ40 -> 0 | CA26: ='I- User Proforma'!CA40 -> 0 | CB26: ='I- User Proforma'!CB40 -> 0 | CC26: ='I- User Proforma'!CC40 -> 0 | CD26: ='I- User Proforma'!CD40 -> 0 | CE26: ='I- User Proforma'!CE40 -> 0 | CF26: ='I- User Proforma'!CF40 -> 0 | CG26: ='I- User Proforma'!CG40 -> 0 | CH26: ='I- User Proforma'!CH40 -> 0 | CI26: ='I- User Proforma'!CI40 -> 0 | CJ26: ='I- User Proforma'!CJ40 -> 0 | CK26: ='I- User Proforma'!CK40 -> 0 | CL26: ='I- User Proforma'!CL40 -> 0 | CM26: ='I- User Proforma'!CM40 -> 0 | CN26: ='I- User Proforma'!CN40 -> 0 | CO26: ='I- User Proforma'!CO40 -> 0 | CP26: ='I- User Proforma'!CP40 -> 0 | CQ26: ='I- User Proforma'!CQ40 -> 0 | CR26: ='I- User Proforma'!CR40 -> 0 | CS26: ='I- User Proforma'!CS40 -> 0 | CT26: ='I- User Proforma'!CT40 -> 0 | CU26: ='I- User Proforma'!CU40 -> 0 | CV26: ='I- User Proforma'!CV40 -> 0 | CW26: ='I- User Proforma'!CW40 -> 0 | CX26: ='I- User Proforma'!CX40 -> 0 | CY26: ='I- User Proforma'!CY40 -> 0
C27: ='I- User Proforma'!C41 -> 0 | E27: ='I- User Proforma'!E41 -> 0 | J27: £ | L27: Proforma | N27: ='I- User Proforma'!N41 -> 0 | O27: ='I- User Proforma'!O41 -> 0 | P27: ='I- User Proforma'!P41 -> 0 | Q27: ='I- User Proforma'!Q41 -> 0 | R27: ='I- User Proforma'!R41 -> 0 | S27: ='I- User Proforma'!S41 -> 0 | T27: ='I- User Proforma'!T41 -> 0 | U27: ='I- User Proforma'!U41 -> 0 | V27: ='I- User Proforma'!V41 -> 0 | W27: ='I- User Proforma'!W41 -> 0 | X27: ='I- User Proforma'!X41 -> 0 | Y27: ='I- User Proforma'!Y41 -> 0 | Z27: ='I- User Proforma'!Z41 -> 0 | AA27: ='I- User Proforma'!AA41 -> 0 | AB27: ='I- User Proforma'!AB41 -> 0 | AC27: ='I- User Proforma'!AC41 -> 0 | AD27: ='I- User Proforma'!AD41 -> 0 | AE27: ='I- User Proforma'!AE41 -> 0 | AF27: ='I- User Proforma'!AF41 -> 0 | AG27: ='I- User Proforma'!AG41 -> 0 | AH27: ='I- User Proforma'!AH41 -> 0 | AI27: ='I- User Proforma'!AI41 -> 0 | AJ27: ='I- User Proforma'!AJ41 -> 0 | AK27: ='I- User Proforma'!AK41 -> 0 | AL27: ='I- User Proforma'!AL41 -> 0 | AM27: ='I- User Proforma'!AM41 -> 0 | AN27: ='I- User Proforma'!AN41 -> 0 | AO27: ='I- User Proforma'!AO41 -> 0 | AP27: ='I- User Proforma'!AP41 -> 0 | AQ27: ='I- User Proforma'!AQ41 -> 0 | AR27: ='I- User Proforma'!AR41 -> 0 | AS27: ='I- User Proforma'!AS41 -> 0 | AT27: ='I- User Proforma'!AT41 -> 0 | AU27: ='I- User Proforma'!AU41 -> 0 | AV27: ='I- User Proforma'!AV41 -> 0 | AW27: ='I- User Proforma'!AW41 -> 0 | AX27: ='I- User Proforma'!AX41 -> 0 | AY27: ='I- User Proforma'!AY41 -> 0 | AZ27: ='I- User Proforma'!AZ41 -> 0 | BA27: ='I- User Proforma'!BA41 -> 0 | BB27: ='I- User Proforma'!BB41 -> 0 | BC27: ='I- User Proforma'!BC41 -> 0 | BD27: ='I- User Proforma'!BD41 -> 0 | BE27: ='I- User Proforma'!BE41 -> 0 | BF27: ='I- User Proforma'!BF41 -> 0 | BG27: ='I- User Proforma'!BG41 -> 0 | BH27: ='I- User Proforma'!BH41 -> 0 | BI27: ='I- User Proforma'!BI41 -> 0 | BJ27: ='I- User Proforma'!BJ41 -> 0 | BK27: ='I- User Proforma'!BK41 -> 0 | BL27: ='I- User Proforma'!BL41 -> 0 | BM27: ='I- User Proforma'!BM41 -> 0 | BN27: ='I- User Proforma'!BN41 -> 0 | BO27: ='I- User Proforma'!BO41 -> 0 | BP27: ='I- User Proforma'!BP41 -> 0 | BQ27: ='I- User Proforma'!BQ41 -> 0 | BR27: ='I- User Proforma'!BR41 -> 0 | BS27: ='I- User Proforma'!BS41 -> 0 | BT27: ='I- User Proforma'!BT41 -> 0 | BU27: ='I- User Proforma'!BU41 -> 0 | BV27: ='I- User Proforma'!BV41 -> 0 | BW27: ='I- User Proforma'!BW41 -> 0 | BX27: ='I- User Proforma'!BX41 -> 0 | BY27: ='I- User Proforma'!BY41 -> 0 | BZ27: ='I- User Proforma'!BZ41 -> 0 | CA27: ='I- User Proforma'!CA41 -> 0 | CB27: ='I- User Proforma'!CB41 -> 0 | CC27: ='I- User Proforma'!CC41 -> 0 | CD27: ='I- User Proforma'!CD41 -> 0 | CE27: ='I- User Proforma'!CE41 -> 0 | CF27: ='I- User Proforma'!CF41 -> 0 | CG27: ='I- User Proforma'!CG41 -> 0 | CH27: ='I- User Proforma'!CH41 -> 0 | CI27: ='I- User Proforma'!CI41 -> 0 | CJ27: ='I- User Proforma'!CJ41 -> 0 | CK27: ='I- User Proforma'!CK41 -> 0 | CL27: ='I- User Proforma'!CL41 -> 0 | CM27: ='I- User Proforma'!CM41 -> 0 | CN27: ='I- User Proforma'!CN41 -> 0 | CO27: ='I- User Proforma'!CO41 -> 0 | CP27: ='I- User Proforma'!CP41 -> 0 | CQ27: ='I- User Proforma'!CQ41 -> 0 | CR27: ='I- User Proforma'!CR41 -> 0 | CS27: ='I- User Proforma'!CS41 -> 0 | CT27: ='I- User Proforma'!CT41 -> 0 | CU27: ='I- User Proforma'!CU41 -> 0 | CV27: ='I- User Proforma'!CV41 -> 0 | CW27: ='I- User Proforma'!CW41 -> 0 | CX27: ='I- User Proforma'!CX41 -> 0 | CY27: ='I- User Proforma'!CY41 -> 0
C28: ='I- User Proforma'!C42 -> 0 | E28: ='I- User Proforma'!E42 -> 0 | J28: £ | L28: Proforma | N28: ='I- User Proforma'!N42 -> 0 | O28: ='I- User Proforma'!O42 -> 0 | P28: ='I- User Proforma'!P42 -> 0 | Q28: ='I- User Proforma'!Q42 -> 0 | R28: ='I- User Proforma'!R42 -> 0 | S28: ='I- User Proforma'!S42 -> 0 | T28: ='I- User Proforma'!T42 -> 0 | U28: ='I- User Proforma'!U42 -> 0 | V28: ='I- User Proforma'!V42 -> 0 | W28: ='I- User Proforma'!W42 -> 0 | X28: ='I- User Proforma'!X42 -> 0 | Y28: ='I- User Proforma'!Y42 -> 0 | Z28: ='I- User Proforma'!Z42 -> 0 | AA28: ='I- User Proforma'!AA42 -> 0 | AB28: ='I- User Proforma'!AB42 -> 0 | AC28: ='I- User Proforma'!AC42 -> 0 | AD28: ='I- User Proforma'!AD42 -> 0 | AE28: ='I- User Proforma'!AE42 -> 0 | AF28: ='I- User Proforma'!AF42 -> 0 | AG28: ='I- User Proforma'!AG42 -> 0 | AH28: ='I- User Proforma'!AH42 -> 0 | AI28: ='I- User Proforma'!AI42 -> 0 | AJ28: ='I- User Proforma'!AJ42 -> 0 | AK28: ='I- User Proforma'!AK42 -> 0 | AL28: ='I- User Proforma'!AL42 -> 0 | AM28: ='I- User Proforma'!AM42 -> 0 | AN28: ='I- User Proforma'!AN42 -> 0 | AO28: ='I- User Proforma'!AO42 -> 0 | AP28: ='I- User Proforma'!AP42 -> 0 | AQ28: ='I- User Proforma'!AQ42 -> 0 | AR28: ='I- User Proforma'!AR42 -> 0 | AS28: ='I- User Proforma'!AS42 -> 0 | AT28: ='I- User Proforma'!AT42 -> 0 | AU28: ='I- User Proforma'!AU42 -> 0 | AV28: ='I- User Proforma'!AV42 -> 0 | AW28: ='I- User Proforma'!AW42 -> 0 | AX28: ='I- User Proforma'!AX42 -> 0 | AY28: ='I- User Proforma'!AY42 -> 0 | AZ28: ='I- User Proforma'!AZ42 -> 0 | BA28: ='I- User Proforma'!BA42 -> 0 | BB28: ='I- User Proforma'!BB42 -> 0 | BC28: ='I- User Proforma'!BC42 -> 0 | BD28: ='I- User Proforma'!BD42 -> 0 | BE28: ='I- User Proforma'!BE42 -> 0 | BF28: ='I- User Proforma'!BF42 -> 0 | BG28: ='I- User Proforma'!BG42 -> 0 | BH28: ='I- User Proforma'!BH42 -> 0 | BI28: ='I- User Proforma'!BI42 -> 0 | BJ28: ='I- User Proforma'!BJ42 -> 0 | BK28: ='I- User Proforma'!BK42 -> 0 | BL28: ='I- User Proforma'!BL42 -> 0 | BM28: ='I- User Proforma'!BM42 -> 0 | BN28: ='I- User Proforma'!BN42 -> 0 | BO28: ='I- User Proforma'!BO42 -> 0 | BP28: ='I- User Proforma'!BP42 -> 0 | BQ28: ='I- User Proforma'!BQ42 -> 0 | BR28: ='I- User Proforma'!BR42 -> 0 | BS28: ='I- User Proforma'!BS42 -> 0 | BT28: ='I- User Proforma'!BT42 -> 0 | BU28: ='I- User Proforma'!BU42 -> 0 | BV28: ='I- User Proforma'!BV42 -> 0 | BW28: ='I- User Proforma'!BW42 -> 0 | BX28: ='I- User Proforma'!BX42 -> 0 | BY28: ='I- User Proforma'!BY42 -> 0 | BZ28: ='I- User Proforma'!BZ42 -> 0 | CA28: ='I- User Proforma'!CA42 -> 0 | CB28: ='I- User Proforma'!CB42 -> 0 | CC28: ='I- User Proforma'!CC42 -> 0 | CD28: ='I- User Proforma'!CD42 -> 0 | CE28: ='I- User Proforma'!CE42 -> 0 | CF28: ='I- User Proforma'!CF42 -> 0 | CG28: ='I- User Proforma'!CG42 -> 0 | CH28: ='I- User Proforma'!CH42 -> 0 | CI28: ='I- User Proforma'!CI42 -> 0 | CJ28: ='I- User Proforma'!CJ42 -> 0 | CK28: ='I- User Proforma'!CK42 -> 0 | CL28: ='I- User Proforma'!CL42 -> 0 | CM28: ='I- User Proforma'!CM42 -> 0 | CN28: ='I- User Proforma'!CN42 -> 0 | CO28: ='I- User Proforma'!CO42 -> 0 | CP28: ='I- User Proforma'!CP42 -> 0 | CQ28: ='I- User Proforma'!CQ42 -> 0 | CR28: ='I- User Proforma'!CR42 -> 0 | CS28: ='I- User Proforma'!CS42 -> 0 | CT28: ='I- User Proforma'!CT42 -> 0 | CU28: ='I- User Proforma'!CU42 -> 0 | CV28: ='I- User Proforma'!CV42 -> 0 | CW28: ='I- User Proforma'!CW42 -> 0 | CX28: ='I- User Proforma'!CX42 -> 0 | CY28: ='I- User Proforma'!CY42 -> 0
A29: =--NOT(SUM(N22:CY29,N18:CY18)=SUM(N15:CY15)) -> 0 | C29: ='I- User Proforma'!C43 -> 0 | E29: ='I- User Proforma'!E43 -> 0 | J29: £ | L29: Proforma | N29: ='I- User Proforma'!N43 -> 0 | O29: ='I- User Proforma'!O43 -> 0 | P29: ='I- User Proforma'!P43 -> 0 | Q29: ='I- User Proforma'!Q43 -> 0 | R29: ='I- User Proforma'!R43 -> 0 | S29: ='I- User Proforma'!S43 -> 0 | T29: ='I- User Proforma'!T43 -> 0 | U29: ='I- User Proforma'!U43 -> 0 | V29: ='I- User Proforma'!V43 -> 0 | W29: ='I- User Proforma'!W43 -> 0 | X29: ='I- User Proforma'!X43 -> 0 | Y29: ='I- User Proforma'!Y43 -> 0 | Z29: ='I- User Proforma'!Z43 -> 0 | AA29: ='I- User Proforma'!AA43 -> 0 | AB29: ='I- User Proforma'!AB43 -> 0 | AC29: ='I- User Proforma'!AC43 -> 0 | AD29: ='I- User Proforma'!AD43 -> 0 | AE29: ='I- User Proforma'!AE43 -> 0 | AF29: ='I- User Proforma'!AF43 -> 0 | AG29: ='I- User Proforma'!AG43 -> 0 | AH29: ='I- User Proforma'!AH43 -> 0 | AI29: ='I- User Proforma'!AI43 -> 0 | AJ29: ='I- User Proforma'!AJ43 -> 0 | AK29: ='I- User Proforma'!AK43 -> 0 | AL29: ='I- User Proforma'!AL43 -> 0 | AM29: ='I- User Proforma'!AM43 -> 0 | AN29: ='I- User Proforma'!AN43 -> 0 | AO29: ='I- User Proforma'!AO43 -> 0 | AP29: ='I- User Proforma'!AP43 -> 0 | AQ29: ='I- User Proforma'!AQ43 -> 0 | AR29: ='I- User Proforma'!AR43 -> 0 | AS29: ='I- User Proforma'!AS43 -> 0 | AT29: ='I- User Proforma'!AT43 -> 0 | AU29: ='I- User Proforma'!AU43 -> 0 | AV29: ='I- User Proforma'!AV43 -> 0 | AW29: ='I- User Proforma'!AW43 -> 0 | AX29: ='I- User Proforma'!AX43 -> 0 | AY29: ='I- User Proforma'!AY43 -> 0 | AZ29: ='I- User Proforma'!AZ43 -> 0 | BA29: ='I- User Proforma'!BA43 -> 0 | BB29: ='I- User Proforma'!BB43 -> 0 | BC29: ='I- User Proforma'!BC43 -> 0 | BD29: ='I- User Proforma'!BD43 -> 0 | BE29: ='I- User Proforma'!BE43 -> 0 | BF29: ='I- User Proforma'!BF43 -> 0 | BG29: ='I- User Proforma'!BG43 -> 0 | BH29: ='I- User Proforma'!BH43 -> 0 | BI29: ='I- User Proforma'!BI43 -> 0 | BJ29: ='I- User Proforma'!BJ43 -> 0 | BK29: ='I- User Proforma'!BK43 -> 0 | BL29: ='I- User Proforma'!BL43 -> 0 | BM29: ='I- User Proforma'!BM43 -> 0 | BN29: ='I- User Proforma'!BN43 -> 0 | BO29: ='I- User Proforma'!BO43 -> 0 | BP29: ='I- User Proforma'!BP43 -> 0 | BQ29: ='I- User Proforma'!BQ43 -> 0 | BR29: ='I- User Proforma'!BR43 -> 0 | BS29: ='I- User Proforma'!BS43 -> 0 | BT29: ='I- User Proforma'!BT43 -> 0 | BU29: ='I- User Proforma'!BU43 -> 0 | BV29: ='I- User Proforma'!BV43 -> 0 | BW29: ='I- User Proforma'!BW43 -> 0 | BX29: ='I- User Proforma'!BX43 -> 0 | BY29: ='I- User Proforma'!BY43 -> 0 | BZ29: ='I- User Proforma'!BZ43 -> 0 | CA29: ='I- User Proforma'!CA43 -> 0 | CB29: ='I- User Proforma'!CB43 -> 0 | CC29: ='I- User Proforma'!CC43 -> 0 | CD29: ='I- User Proforma'!CD43 -> 0 | CE29: ='I- User Proforma'!CE43 -> 0 | CF29: ='I- User Proforma'!CF43 -> 0 | CG29: ='I- User Proforma'!CG43 -> 0 | CH29: ='I- User Proforma'!CH43 -> 0 | CI29: ='I- User Proforma'!CI43 -> 0 | CJ29: ='I- User Proforma'!CJ43 -> 0 | CK29: ='I- User Proforma'!CK43 -> 0 | CL29: ='I- User Proforma'!CL43 -> 0 | CM29: ='I- User Proforma'!CM43 -> 0 | CN29: ='I- User Proforma'!CN43 -> 0 | CO29: ='I- User Proforma'!CO43 -> 0 | CP29: ='I- User Proforma'!CP43 -> 0 | CQ29: ='I- User Proforma'!CQ43 -> 0 | CR29: ='I- User Proforma'!CR43 -> 0 | CS29: ='I- User Proforma'!CS43 -> 0 | CT29: ='I- User Proforma'!CT43 -> 0 | CU29: ='I- User Proforma'!CU43 -> 0 | CV29: ='I- User Proforma'!CV43 -> 0 | CW29: ='I- User Proforma'!CW43 -> 0 | CX29: ='I- User Proforma'!CX43 -> 0 | CY29: ='I- User Proforma'!CY43 -> 0
C31: Risk contingency/Quantified Risk Assessment (QRA)
E32: Sector
E33: ='I- User Proforma'!$H$50 -> Input sector | J33: £ | L33: Proforma | N33: ='I- User Proforma'!N50 -> 0 | O33: ='I- User Proforma'!O50 -> 0 | P33: ='I- User Proforma'!P50 -> 0 | Q33: ='I- User Proforma'!Q50 -> 0 | R33: ='I- User Proforma'!R50 -> 0 | S33: ='I- User Proforma'!S50 -> 0 | T33: ='I- User Proforma'!T50 -> 0 | U33: ='I- User Proforma'!U50 -> 0 | V33: ='I- User Proforma'!V50 -> 0 | W33: ='I- User Proforma'!W50 -> 0 | X33: ='I- User Proforma'!X50 -> 0 | Y33: ='I- User Proforma'!Y50 -> 0 | Z33: ='I- User Proforma'!Z50 -> 0 | AA33: ='I- User Proforma'!AA50 -> 0 | AB33: ='I- User Proforma'!AB50 -> 0 | AC33: ='I- User Proforma'!AC50 -> 0 | AD33: ='I- User Proforma'!AD50 -> 0 | AE33: ='I- User Proforma'!AE50 -> 0 | AF33: ='I- User Proforma'!AF50 -> 0 | AG33: ='I- User Proforma'!AG50 -> 0 | AH33: ='I- User Proforma'!AH50 -> 0 | AI33: ='I- User Proforma'!AI50 -> 0 | AJ33: ='I- User Proforma'!AJ50 -> 0 | AK33: ='I- User Proforma'!AK50 -> 0 | AL33: ='I- User Proforma'!AL50 -> 0 | AM33: ='I- User Proforma'!AM50 -> 0 | AN33: ='I- User Proforma'!AN50 -> 0 | AO33: ='I- User Proforma'!AO50 -> 0 | AP33: ='I- User Proforma'!AP50 -> 0 | AQ33: ='I- User Proforma'!AQ50 -> 0 | AR33: ='I- User Proforma'!AR50 -> 0 | AS33: ='I- User Proforma'!AS50 -> 0 | AT33: ='I- User Proforma'!AT50 -> 0 | AU33: ='I- User Proforma'!AU50 -> 0 | AV33: ='I- User Proforma'!AV50 -> 0 | AW33: ='I- User Proforma'!AW50 -> 0 | AX33: ='I- User Proforma'!AX50 -> 0 | AY33: ='I- User Proforma'!AY50 -> 0 | AZ33: ='I- User Proforma'!AZ50 -> 0 | BA33: ='I- User Proforma'!BA50 -> 0 | BB33: ='I- User Proforma'!BB50 -> 0 | BC33: ='I- User Proforma'!BC50 -> 0 | BD33: ='I- User Proforma'!BD50 -> 0 | BE33: ='I- User Proforma'!BE50 -> 0 | BF33: ='I- User Proforma'!BF50 -> 0 | BG33: ='I- User Proforma'!BG50 -> 0 | BH33: ='I- User Proforma'!BH50 -> 0 | BI33: ='I- User Proforma'!BI50 -> 0 | BJ33: ='I- User Proforma'!BJ50 -> 0 | BK33: ='I- User Proforma'!BK50 -> 0 | BL33: ='I- User Proforma'!BL50 -> 0 | BM33: ='I- User Proforma'!BM50 -> 0 | BN33: ='I- User Proforma'!BN50 -> 0 | BO33: ='I- User Proforma'!BO50 -> 0 | BP33: ='I- User Proforma'!BP50 -> 0 | BQ33: ='I- User Proforma'!BQ50 -> 0 | BR33: ='I- User Proforma'!BR50 -> 0 | BS33: ='I- User Proforma'!BS50 -> 0 | BT33: ='I- User Proforma'!BT50 -> 0 | BU33: ='I- User Proforma'!BU50 -> 0 | BV33: ='I- User Proforma'!BV50 -> 0 | BW33: ='I- User Proforma'!BW50 -> 0 | BX33: ='I- User Proforma'!BX50 -> 0 | BY33: ='I- User Proforma'!BY50 -> 0 | BZ33: ='I- User Proforma'!BZ50 -> 0 | CA33: ='I- User Proforma'!CA50 -> 0 | CB33: ='I- User Proforma'!CB50 -> 0 | CC33: ='I- User Proforma'!CC50 -> 0 | CD33: ='I- User Proforma'!CD50 -> 0 | CE33: ='I- User Proforma'!CE50 -> 0 | CF33: ='I- User Proforma'!CF50 -> 0 | CG33: ='I- User Proforma'!CG50 -> 0 | CH33: ='I- User Proforma'!CH50 -> 0 | CI33: ='I- User Proforma'!CI50 -> 0 | CJ33: ='I- User Proforma'!CJ50 -> 0 | CK33: ='I- User Proforma'!CK50 -> 0 | CL33: ='I- User Proforma'!CL50 -> 0 | CM33: ='I- User Proforma'!CM50 -> 0 | CN33: ='I- User Proforma'!CN50 -> 0 | CO33: ='I- User Proforma'!CO50 -> 0 | CP33: ='I- User Proforma'!CP50 -> 0 | CQ33: ='I- User Proforma'!CQ50 -> 0 | CR33: ='I- User Proforma'!CR50 -> 0 | CS33: ='I- User Proforma'!CS50 -> 0 | CT33: ='I- User Proforma'!CT50 -> 0 | CU33: ='I- User Proforma'!CU50 -> 0 | CV33: ='I- User Proforma'!CV50 -> 0 | CW33: ='I- User Proforma'!CW50 -> 0 | CX33: ='I- User Proforma'!CX50 -> 0 | CY33: ='I- User Proforma'!CY50 -> 0
C35: Input Price Base | H35: ='I- User Proforma'!H54 -> Nominal
C37: ='I- User Parameters'!#REF! -> 
C39: Total cost of buses
C40: Cost incurred in each year | J40: £
C42: Grant required from Government for buses
C43: Grant required from Government for buses in each year | J43: £
C45: Cost to other funding sources in each year
C46: Source | E46: Sector
J47: £
J48: £
J49: £
J50: £
J51: £
J52: £
J53: £
A54: =--NOT(SUM(N47:CY54,N43:CY43)=SUM(N40:CY40)) -> 0 | J54: £
C56: Input Price Base
C57: Inclusive of VAT?
C59: ='I- User Parameters'!#REF! -> 
C61: Total cost of buses
C62: Cost incurred in each year | J62: £
C64: Grant required from Government for buses
C65: Grant required from Government for buses in each year | J65: £
C67: Cost to other funding sources in each year
C68: Source | E68: Sector
J69: £
J70: £
J71: £
J72: £
J73: £
J74: £
J75: £
A76: =--NOT(SUM(N69:CY76,N65:CY65)=SUM(N62:CY62)) -> 0 | J76: £
C78: Input Price Base
C79: Inclusive of VAT?
C81: ='I- User Parameters'!#REF! -> 
C83: Total cost of buses
C84: Cost incurred in each year | J84: £
C86: Grant required from Government for buses
C87: Grant required from Government for buses in each year | J87: £
C89: Cost to other funding sources in each year
C90: Source | E90: Sector
J91: £
J92: £
J93: £
J94: £
J95: £
J96: £
J97: £
A98: =--NOT(SUM(N91:CY98,N87:CY87)=SUM(N84:CY84)) -> 0 | J98: £
C100: Input Price Base
C101: Inclusive of VAT?
C103: ='I- User Parameters'!#REF! -> 
C105: Total cost of buses
C106: Cost incurred in each year | J106: £
C108: Grant required from Government for buses
C109: Grant required from Government for buses in each year | J109: £
C111: Cost to other funding sources in each year
C112: Source | E112: Sector
J113: £
J114: £
J115: £
J116: £
J117: £
J118: £
J119: £
A120: =--NOT(SUM(N113:CY120,N109:CY109)=SUM(N106:CY106)) -> 0 | J120: £
C122: Input Price Base
C123: Inclusive of VAT?
C125: ='I- User Parameters'!#REF! -> 
C127: Total cost of buses
C128: Cost incurred in each year | J128: £
C130: Grant required from Government for buses
C131: Grant required from Government for buses in each year | J131: £
C133: Cost to other funding sources in each year
C134: Source | E134: Sector
J135: £
J136: £
J137: £
J138: £
J139: £
J140: £
J141: £
A142: =--NOT(SUM(N135:CY142,N131:CY131)=SUM(N128:CY128)) -> 0 | J142: £
C144: Input Price Base
C145: Inclusive of VAT?
B147: END

Sheet I- Infra CapEx (hidden)
B1: =IF(SUM(A:A)=0,"OK","Error") -> OK
B2: File Name | G2: =IFERROR(MID(CELL("filename",G2),FIND("[",CELL("filename",G2))+1,FIND("]",CELL("filename",G2))-FIND("[",CELL("filename",G2))-1),"Please save the file to show here") -> Greener Bus Tool.xlsm
B3: Sheet Name | G3: =IFERROR(MID(CELL("filename",G2),FIND("]",CELL("filename",G2))+1,255),"Please save the file to show here") -> I- Infra CapEx
B4: Description and Purpose of Sheet | G4: This sheet allows the supporting infrastructure costs to be input for non-Proforma scenarios, proforma inputs are automatically fed through into Sc 1 block.
B8: Infrastructure CapEx
H10: Constant | J10: Unit | L10: Source | N10: ='I- TAG Annual Rates'!N$14 -> 2010 | O10: ='I- TAG Annual Rates'!O$14 -> 2011 | P10: ='I- TAG Annual Rates'!P$14 -> 2012 | Q10: ='I- TAG Annual Rates'!Q$14 -> 2013 | R10: ='I- TAG Annual Rates'!R$14 -> 2014 | S10: ='I- TAG Annual Rates'!S$14 -> 2015 | T10: ='I- TAG Annual Rates'!T$14 -> 2016 | U10: ='I- TAG Annual Rates'!U$14 -> 2017 | V10: ='I- TAG Annual Rates'!V$14 -> 2018 | W10: ='I- TAG Annual Rates'!W$14 -> 2019 | X10: ='I- TAG Annual Rates'!X$14 -> 2020 | Y10: ='I- TAG Annual Rates'!Y$14 -> 2021 | Z10: ='I- TAG Annual Rates'!Z$14 -> 2022 | AA10: ='I- TAG Annual Rates'!AA$14 -> 2023 | AB10: ='I- TAG Annual Rates'!AB$14 -> 2024 | AC10: ='I- TAG Annual Rates'!AC$14 -> 2025 | AD10: ='I- TAG Annual Rates'!AD$14 -> 2026 | AE10: ='I- TAG Annual Rates'!AE$14 -> 2027 | AF10: ='I- TAG Annual Rates'!AF$14 -> 2028 | AG10: ='I- TAG Annual Rates'!AG$14 -> 2029 | AH10: ='I- TAG Annual Rates'!AH$14 -> 2030 | AI10: ='I- TAG Annual Rates'!AI$14 -> 2031 | AJ10: ='I- TAG Annual Rates'!AJ$14 -> 2032 | AK10: ='I- TAG Annual Rates'!AK$14 -> 2033 | AL10: ='I- TAG Annual Rates'!AL$14 -> 2034 | AM10: ='I- TAG Annual Rates'!AM$14 -> 2035 | AN10: ='I- TAG Annual Rates'!AN$14 -> 2036 | AO10: ='I- TAG Annual Rates'!AO$14 -> 2037 | AP10: ='I- TAG Annual Rates'!AP$14 -> 2038 | AQ10: ='I- TAG Annual Rates'!AQ$14 -> 2039 | AR10: ='I- TAG Annual Rates'!AR$14 -> 2040 | AS10: ='I- TAG Annual Rates'!AS$14 -> 2041 | AT10: ='I- TAG Annual Rates'!AT$14 -> 2042 | AU10: ='I- TAG Annual Rates'!AU$14 -> 2043 | AV10: ='I- TAG Annual Rates'!AV$14 -> 2044 | AW10: ='I- TAG Annual Rates'!AW$14 -> 2045 | AX10: ='I- TAG Annual Rates'!AX$14 -> 2046 | AY10: ='I- TAG Annual Rates'!AY$14 -> 2047 | AZ10: ='I- TAG Annual Rates'!AZ$14 -> 2048 | BA10: ='I- TAG Annual Rates'!BA$14 -> 2049 | BB10: ='I- TAG Annual Rates'!BB$14 -> 2050 | BC10: ='I- TAG Annual Rates'!BC$14 -> 2051 | BD10: ='I- TAG Annual Rates'!BD$14 -> 2052 | BE10: ='I- TAG Annual Rates'!BE$14 -> 2053 | BF10: ='I- TAG Annual Rates'!BF$14 -> 2054 | BG10: ='I- TAG Annual Rates'!BG$14 -> 2055 | BH10: ='I- TAG Annual Rates'!BH$14 -> 2056 | BI10: ='I- TAG Annual Rates'!BI$14 -> 2057 | BJ10: ='I- TAG Annual Rates'!BJ$14 -> 2058 | BK10: ='I- TAG Annual Rates'!BK$14 -> 2059 | BL10: ='I- TAG Annual Rates'!BL$14 -> 2060 | BM10: ='I- TAG Annual Rates'!BM$14 -> 2061 | BN10: ='I- TAG Annual Rates'!BN$14 -> 2062 | BO10: ='I- TAG Annual Rates'!BO$14 -> 2063 | BP10: ='I- TAG Annual Rates'!BP$14 -> 2064 | BQ10: ='I- TAG Annual Rates'!BQ$14 -> 2065 | BR10: ='I- TAG Annual Rates'!BR$14 -> 2066 | BS10: ='I- TAG Annual Rates'!BS$14 -> 2067 | BT10: ='I- TAG Annual Rates'!BT$14 -> 2068 | BU10: ='I- TAG Annual Rates'!BU$14 -> 2069 | BV10: ='I- TAG Annual Rates'!BV$14 -> 2070 | BW10: ='I- TAG Annual Rates'!BW$14 -> 2071 | BX10: ='I- TAG Annual Rates'!BX$14 -> 2072 | BY10: ='I- TAG Annual Rates'!BY$14 -> 2073 | BZ10: ='I- TAG Annual Rates'!BZ$14 -> 2074 | CA10: ='I- TAG Annual Rates'!CA$14 -> 2075 | CB10: ='I- TAG Annual Rates'!CB$14 -> 2076 | CC10: ='I- TAG Annual Rates'!CC$14 -> 2077 | CD10: ='I- TAG Annual Rates'!CD$14 -> 2078 | CE10: ='I- TAG Annual Rates'!CE$14 -> 2079 | CF10: ='I- TAG Annual Rates'!CF$14 -> 2080 | CG10: ='I- TAG Annual Rates'!CG$14 -> 2081 | CH10: ='I- TAG Annual Rates'!CH$14 -> 2082 | CI10: ='I- TAG Annual Rates'!CI$14 -> 2083 | CJ10: ='I- TAG Annual Rates'!CJ$14 -> 2084 | CK10: ='I- TAG Annual Rates'!CK$14 -> 2085 | CL10: ='I- TAG Annual Rates'!CL$14 -> 2086 | CM10: ='I- TAG Annual Rates'!CM$14 -> 2087 | CN10: ='I- TAG Annual Rates'!CN$14 -> 2088 | CO10: ='I- TAG Annual Rates'!CO$14 -> 2089 | CP10: ='I- TAG Annual Rates'!CP$14 -> 2090 | CQ10: ='I- TAG Annual Rates'!CQ$14 -> 2091 | CR10: ='I- TAG Annual Rates'!CR$14 -> 2092 | CS10: ='I- TAG Annual Rates'!CS$14 -> 2093 | CT10: ='I- TAG Annual Rates'!CT$14 -> 2094 | CU10: ='I- TAG Annual Rates'!CU$14 -> 2095 | CV10: ='I- TAG Annual Rates'!CV$14 -> 2096 | CW10: ='I- TAG Annual Rates'!CW$14 -> 2097 | CX10: ='I- TAG Annual Rates'!CX$14 -> 2098 | CY10: ='I- TAG Annual Rates'!CY$14 -> 2099
C12: ='I- User Parameters'!$P$14 -> Sc. 1 - ZEBRA buisness case
C14: Total cost of supporting infrastructure
C15: Cost incurred in each year | J15: £ | L15: Proforma | N15: ='I- User Proforma'!N76 -> 0 | O15: ='I- User Proforma'!O76 -> 0 | P15: ='I- User Proforma'!P76 -> 0 | Q15: ='I- User Proforma'!Q76 -> 0 | R15: ='I- User Proforma'!R76 -> 0 | S15: ='I- User Proforma'!S76 -> 0 | T15: ='I- User Proforma'!T76 -> 0 | U15: ='I- User Proforma'!U76 -> 0 | V15: ='I- User Proforma'!V76 -> 0 | W15: ='I- User Proforma'!W76 -> 0 | X15: ='I- User Proforma'!X76 -> 0 | Y15: ='I- User Proforma'!Y76 -> 0 | Z15: ='I- User Proforma'!Z76 -> 0 | AA15: ='I- User Proforma'!AA76 -> 0 | AB15: ='I- User Proforma'!AB76 -> 0 | AC15: ='I- User Proforma'!AC76 -> 0 | AD15: ='I- User Proforma'!AD76 -> 0 | AE15: ='I- User Proforma'!AE76 -> 0 | AF15: ='I- User Proforma'!AF76 -> 0 | AG15: ='I- User Proforma'!AG76 -> 0 | AH15: ='I- User Proforma'!AH76 -> 0 | AI15: ='I- User Proforma'!AI76 -> 0 | AJ15: ='I- User Proforma'!AJ76 -> 0 | AK15: ='I- User Proforma'!AK76 -> 0 | AL15: ='I- User Proforma'!AL76 -> 0 | AM15: ='I- User Proforma'!AM76 -> 0 | AN15: ='I- User Proforma'!AN76 -> 0 | AO15: ='I- User Proforma'!AO76 -> 0 | AP15: ='I- User Proforma'!AP76 -> 0 | AQ15: ='I- User Proforma'!AQ76 -> 0 | AR15: ='I- User Proforma'!AR76 -> 0 | AS15: ='I- User Proforma'!AS76 -> 0 | AT15: ='I- User Proforma'!AT76 -> 0 | AU15: ='I- User Proforma'!AU76 -> 0 | AV15: ='I- User Proforma'!AV76 -> 0 | AW15: ='I- User Proforma'!AW76 -> 0 | AX15: ='I- User Proforma'!AX76 -> 0 | AY15: ='I- User Proforma'!AY76 -> 0 | AZ15: ='I- User Proforma'!AZ76 -> 0 | BA15: ='I- User Proforma'!BA76 -> 0 | BB15: ='I- User Proforma'!BB76 -> 0 | BC15: ='I- User Proforma'!BC76 -> 0 | BD15: ='I- User Proforma'!BD76 -> 0 | BE15: ='I- User Proforma'!BE76 -> 0 | BF15: ='I- User Proforma'!BF76 -> 0 | BG15: ='I- User Proforma'!BG76 -> 0 | BH15: ='I- User Proforma'!BH76 -> 0 | BI15: ='I- User Proforma'!BI76 -> 0 | BJ15: ='I- User Proforma'!BJ76 -> 0 | BK15: ='I- User Proforma'!BK76 -> 0 | BL15: ='I- User Proforma'!BL76 -> 0 | BM15: ='I- User Proforma'!BM76 -> 0 | BN15: ='I- User Proforma'!BN76 -> 0 | BO15: ='I- User Proforma'!BO76 -> 0 | BP15: ='I- User Proforma'!BP76 -> 0 | BQ15: ='I- User Proforma'!BQ76 -> 0 | BR15: ='I- User Proforma'!BR76 -> 0 | BS15: ='I- User Proforma'!BS76 -> 0 | BT15: ='I- User Proforma'!BT76 -> 0 | BU15: ='I- User Proforma'!BU76 -> 0 | BV15: ='I- User Proforma'!BV76 -> 0 | BW15: ='I- User Proforma'!BW76 -> 0 | BX15: ='I- User Proforma'!BX76 -> 0 | BY15: ='I- User Proforma'!BY76 -> 0 | BZ15: ='I- User Proforma'!BZ76 -> 0 | CA15: ='I- User Proforma'!CA76 -> 0 | CB15: ='I- User Proforma'!CB76 -> 0 | CC15: ='I- User Proforma'!CC76 -> 0 | CD15: ='I- User Proforma'!CD76 -> 0 | CE15: ='I- User Proforma'!CE76 -> 0 | CF15: ='I- User Proforma'!CF76 -> 0 | CG15: ='I- User Proforma'!CG76 -> 0 | CH15: ='I- User Proforma'!CH76 -> 0 | CI15: ='I- User Proforma'!CI76 -> 0 | CJ15: ='I- User Proforma'!CJ76 -> 0 | CK15: ='I- User Proforma'!CK76 -> 0 | CL15: ='I- User Proforma'!CL76 -> 0 | CM15: ='I- User Proforma'!CM76 -> 0 | CN15: ='I- User Proforma'!CN76 -> 0 | CO15: ='I- User Proforma'!CO76 -> 0 | CP15: ='I- User Proforma'!CP76 -> 0 | CQ15: ='I- User Proforma'!CQ76 -> 0 | CR15: ='I- User Proforma'!CR76 -> 0 | CS15: ='I- User Proforma'!CS76 -> 0 | CT15: ='I- User Proforma'!CT76 -> 0 | CU15: ='I- User Proforma'!CU76 -> 0 | CV15: ='I- User Proforma'!CV76 -> 0 | CW15: ='I- User Proforma'!CW76 -> 0 | CX15: ='I- User Proforma'!CX76 -> 0 | CY15: ='I- User Proforma'!CY76 -> 0
C17: Grant required from Government for supporting infrastructure
C18: Grant required from Government for supporting infrastructure in each year | J18: £ | L18: Proforma | N18: ='I- User Proforma'!N80 -> 0 | O18: ='I- User Proforma'!O80 -> 0 | P18: ='I- User Proforma'!P80 -> 0 | Q18: ='I- User Proforma'!Q80 -> 0 | R18: ='I- User Proforma'!R80 -> 0 | S18: ='I- User Proforma'!S80 -> 0 | T18: ='I- User Proforma'!T80 -> 0 | U18: ='I- User Proforma'!U80 -> 0 | V18: ='I- User Proforma'!V80 -> 0 | W18: ='I- User Proforma'!W80 -> 0 | X18: ='I- User Proforma'!X80 -> 0 | Y18: ='I- User Proforma'!Y80 -> 0 | Z18: ='I- User Proforma'!Z80 -> 0 | AA18: ='I- User Proforma'!AA80 -> 0 | AB18: ='I- User Proforma'!AB80 -> 0 | AC18: ='I- User Proforma'!AC80 -> 0 | AD18: ='I- User Proforma'!AD80 -> 0 | AE18: ='I- User Proforma'!AE80 -> 0 | AF18: ='I- User Proforma'!AF80 -> 0 | AG18: ='I- User Proforma'!AG80 -> 0 | AH18: ='I- User Proforma'!AH80 -> 0 | AI18: ='I- User Proforma'!AI80 -> 0 | AJ18: ='I- User Proforma'!AJ80 -> 0 | AK18: ='I- User Proforma'!AK80 -> 0 | AL18: ='I- User Proforma'!AL80 -> 0 | AM18: ='I- User Proforma'!AM80 -> 0 | AN18: ='I- User Proforma'!AN80 -> 0 | AO18: ='I- User Proforma'!AO80 -> 0 | AP18: ='I- User Proforma'!AP80 -> 0 | AQ18: ='I- User Proforma'!AQ80 -> 0 | AR18: ='I- User Proforma'!AR80 -> 0 | AS18: ='I- User Proforma'!AS80 -> 0 | AT18: ='I- User Proforma'!AT80 -> 0 | AU18: ='I- User Proforma'!AU80 -> 0 | AV18: ='I- User Proforma'!AV80 -> 0 | AW18: ='I- User Proforma'!AW80 -> 0 | AX18: ='I- User Proforma'!AX80 -> 0 | AY18: ='I- User Proforma'!AY80 -> 0 | AZ18: ='I- User Proforma'!AZ80 -> 0 | BA18: ='I- User Proforma'!BA80 -> 0 | BB18: ='I- User Proforma'!BB80 -> 0 | BC18: ='I- User Proforma'!BC80 -> 0 | BD18: ='I- User Proforma'!BD80 -> 0 | BE18: ='I- User Proforma'!BE80 -> 0 | BF18: ='I- User Proforma'!BF80 -> 0 | BG18: ='I- User Proforma'!BG80 -> 0 | BH18: ='I- User Proforma'!BH80 -> 0 | BI18: ='I- User Proforma'!BI80 -> 0 | BJ18: ='I- User Proforma'!BJ80 -> 0 | BK18: ='I- User Proforma'!BK80 -> 0 | BL18: ='I- User Proforma'!BL80 -> 0 | BM18: ='I- User Proforma'!BM80 -> 0 | BN18: ='I- User Proforma'!BN80 -> 0 | BO18: ='I- User Proforma'!BO80 -> 0 | BP18: ='I- User Proforma'!BP80 -> 0 | BQ18: ='I- User Proforma'!BQ80 -> 0 | BR18: ='I- User Proforma'!BR80 -> 0 | BS18: ='I- User Proforma'!BS80 -> 0 | BT18: ='I- User Proforma'!BT80 -> 0 | BU18: ='I- User Proforma'!BU80 -> 0 | BV18: ='I- User Proforma'!BV80 -> 0 | BW18: ='I- User Proforma'!BW80 -> 0 | BX18: ='I- User Proforma'!BX80 -> 0 | BY18: ='I- User Proforma'!BY80 -> 0 | BZ18: ='I- User Proforma'!BZ80 -> 0 | CA18: ='I- User Proforma'!CA80 -> 0 | CB18: ='I- User Proforma'!CB80 -> 0 | CC18: ='I- User Proforma'!CC80 -> 0 | CD18: ='I- User Proforma'!CD80 -> 0 | CE18: ='I- User Proforma'!CE80 -> 0 | CF18: ='I- User Proforma'!CF80 -> 0 | CG18: ='I- User Proforma'!CG80 -> 0 | CH18: ='I- User Proforma'!CH80 -> 0 | CI18: ='I- User Proforma'!CI80 -> 0 | CJ18: ='I- User Proforma'!CJ80 -> 0 | CK18: ='I- User Proforma'!CK80 -> 0 | CL18: ='I- User Proforma'!CL80 -> 0 | CM18: ='I- User Proforma'!CM80 -> 0 | CN18: ='I- User Proforma'!CN80 -> 0 | CO18: ='I- User Proforma'!CO80 -> 0 | CP18: ='I- User Proforma'!CP80 -> 0 | CQ18: ='I- User Proforma'!CQ80 -> 0 | CR18: ='I- User Proforma'!CR80 -> 0 | CS18: ='I- User Proforma'!CS80 -> 0 | CT18: ='I- User Proforma'!CT80 -> 0 | CU18: ='I- User Proforma'!CU80 -> 0 | CV18: ='I- User Proforma'!CV80 -> 0 | CW18: ='I- User Proforma'!CW80 -> 0 | CX18: ='I- User Proforma'!CX80 -> 0 | CY18: ='I- User Proforma'!CY80 -> 0
C20: Cost to other funding sources in each year
C21: Source | E21: Sector
C22: ='I- User Proforma'!C85 -> 0 | E22: ='I- User Proforma'!E85 -> 0 | J22: £ | L22: Proforma | N22: ='I- User Proforma'!N85 -> 0 | O22: ='I- User Proforma'!O85 -> 0 | P22: ='I- User Proforma'!P85 -> 0 | Q22: ='I- User Proforma'!Q85 -> 0 | R22: ='I- User Proforma'!R85 -> 0 | S22: ='I- User Proforma'!S85 -> 0 | T22: ='I- User Proforma'!T85 -> 0 | U22: ='I- User Proforma'!U85 -> 0 | V22: ='I- User Proforma'!V85 -> 0 | W22: ='I- User Proforma'!W85 -> 0 | X22: ='I- User Proforma'!X85 -> 0 | Y22: ='I- User Proforma'!Y85 -> 0 | Z22: ='I- User Proforma'!Z85 -> 0 | AA22: ='I- User Proforma'!AA85 -> 0 | AB22: ='I- User Proforma'!AB85 -> 0 | AC22: ='I- User Proforma'!AC85 -> 0 | AD22: ='I- User Proforma'!AD85 -> 0 | AE22: ='I- User Proforma'!AE85 -> 0 | AF22: ='I- User Proforma'!AF85 -> 0 | AG22: ='I- User Proforma'!AG85 -> 0 | AH22: ='I- User Proforma'!AH85 -> 0 | AI22: ='I- User Proforma'!AI85 -> 0 | AJ22: ='I- User Proforma'!AJ85 -> 0 | AK22: ='I- User Proforma'!AK85 -> 0 | AL22: ='I- User Proforma'!AL85 -> 0 | AM22: ='I- User Proforma'!AM85 -> 0 | AN22: ='I- User Proforma'!AN85 -> 0 | AO22: ='I- User Proforma'!AO85 -> 0 | AP22: ='I- User Proforma'!AP85 -> 0 | AQ22: ='I- User Proforma'!AQ85 -> 0 | AR22: ='I- User Proforma'!AR85 -> 0 | AS22: ='I- User Proforma'!AS85 -> 0 | AT22: ='I- User Proforma'!AT85 -> 0 | AU22: ='I- User Proforma'!AU85 -> 0 | AV22: ='I- User Proforma'!AV85 -> 0 | AW22: ='I- User Proforma'!AW85 -> 0 | AX22: ='I- User Proforma'!AX85 -> 0 | AY22: ='I- User Proforma'!AY85 -> 0 | AZ22: ='I- User Proforma'!AZ85 -> 0 | BA22: ='I- User Proforma'!BA85 -> 0 | BB22: ='I- User Proforma'!BB85 -> 0 | BC22: ='I- User Proforma'!BC85 -> 0 | BD22: ='I- User Proforma'!BD85 -> 0 | BE22: ='I- User Proforma'!BE85 -> 0 | BF22: ='I- User Proforma'!BF85 -> 0 | BG22: ='I- User Proforma'!BG85 -> 0 | BH22: ='I- User Proforma'!BH85 -> 0 | BI22: ='I- User Proforma'!BI85 -> 0 | BJ22: ='I- User Proforma'!BJ85 -> 0 | BK22: ='I- User Proforma'!BK85 -> 0 | BL22: ='I- User Proforma'!BL85 -> 0 | BM22: ='I- User Proforma'!BM85 -> 0 | BN22: ='I- User Proforma'!BN85 -> 0 | BO22: ='I- User Proforma'!BO85 -> 0 | BP22: ='I- User Proforma'!BP85 -> 0 | BQ22: ='I- User Proforma'!BQ85 -> 0 | BR22: ='I- User Proforma'!BR85 -> 0 | BS22: ='I- User Proforma'!BS85 -> 0 | BT22: ='I- User Proforma'!BT85 -> 0 | BU22: ='I- User Proforma'!BU85 -> 0 | BV22: ='I- User Proforma'!BV85 -> 0 | BW22: ='I- User Proforma'!BW85 -> 0 | BX22: ='I- User Proforma'!BX85 -> 0 | BY22: ='I- User Proforma'!BY85 -> 0 | BZ22: ='I- User Proforma'!BZ85 -> 0 | CA22: ='I- User Proforma'!CA85 -> 0 | CB22: ='I- User Proforma'!CB85 -> 0 | CC22: ='I- User Proforma'!CC85 -> 0 | CD22: ='I- User Proforma'!CD85 -> 0 | CE22: ='I- User Proforma'!CE85 -> 0 | CF22: ='I- User Proforma'!CF85 -> 0 | CG22: ='I- User Proforma'!CG85 -> 0 | CH22: ='I- User Proforma'!CH85 -> 0 | CI22: ='I- User Proforma'!CI85 -> 0 | CJ22: ='I- User Proforma'!CJ85 -> 0 | CK22: ='I- User Proforma'!CK85 -> 0 | CL22: ='I- User Proforma'!CL85 -> 0 | CM22: ='I- User Proforma'!CM85 -> 0 | CN22: ='I- User Proforma'!CN85 -> 0 | CO22: ='I- User Proforma'!CO85 -> 0 | CP22: ='I- User Proforma'!CP85 -> 0 | CQ22: ='I- User Proforma'!CQ85 -> 0 | CR22: ='I- User Proforma'!CR85 -> 0 | CS22: ='I- User Proforma'!CS85 -> 0 | CT22: ='I- User Proforma'!CT85 -> 0 | CU22: ='I- User Proforma'!CU85 -> 0 | CV22: ='I- User Proforma'!CV85 -> 0 | CW22: ='I- User Proforma'!CW85 -> 0 | CX22: ='I- User Proforma'!CX85 -> 0 | CY22: ='I- User Proforma'!CY85 -> 0
C23: ='I- User Proforma'!C86 -> 0 | E23: ='I- User Proforma'!E86 -> 0 | J23: £ | L23: Proforma | N23: ='I- User Proforma'!N86 -> 0 | O23: ='I- User Proforma'!O86 -> 0 | P23: ='I- User Proforma'!P86 -> 0 | Q23: ='I- User Proforma'!Q86 -> 0 | R23: ='I- User Proforma'!R86 -> 0 | S23: ='I- User Proforma'!S86 -> 0 | T23: ='I- User Proforma'!T86 -> 0 | U23: ='I- User Proforma'!U86 -> 0 | V23: ='I- User Proforma'!V86 -> 0 | W23: ='I- User Proforma'!W86 -> 0 | X23: ='I- User Proforma'!X86 -> 0 | Y23: ='I- User Proforma'!Y86 -> 0 | Z23: ='I- User Proforma'!Z86 -> 0 | AA23: ='I- User Proforma'!AA86 -> 0 | AB23: ='I- User Proforma'!AB86 -> 0 | AC23: ='I- User Proforma'!AC86 -> 0 | AD23: ='I- User Proforma'!AD86 -> 0 | AE23: ='I- User Proforma'!AE86 -> 0 | AF23: ='I- User Proforma'!AF86 -> 0 | AG23: ='I- User Proforma'!AG86 -> 0 | AH23: ='I- User Proforma'!AH86 -> 0 | AI23: ='I- User Proforma'!AI86 -> 0 | AJ23: ='I- User Proforma'!AJ86 -> 0 | AK23: ='I- User Proforma'!AK86 -> 0 | AL23: ='I- User Proforma'!AL86 -> 0 | AM23: ='I- User Proforma'!AM86 -> 0 | AN23: ='I- User Proforma'!AN86 -> 0 | AO23: ='I- User Proforma'!AO86 -> 0 | AP23: ='I- User Proforma'!AP86 -> 0 | AQ23: ='I- User Proforma'!AQ86 -> 0 | AR23: ='I- User Proforma'!AR86 -> 0 | AS23: ='I- User Proforma'!AS86 -> 0 | AT23: ='I- User Proforma'!AT86 -> 0 | AU23: ='I- User Proforma'!AU86 -> 0 | AV23: ='I- User Proforma'!AV86 -> 0 | AW23: ='I- User Proforma'!AW86 -> 0 | AX23: ='I- User Proforma'!AX86 -> 0 | AY23: ='I- User Proforma'!AY86 -> 0 | AZ23: ='I- User Proforma'!AZ86 -> 0 | BA23: ='I- User Proforma'!BA86 -> 0 | BB23: ='I- User Proforma'!BB86 -> 0 | BC23: ='I- User Proforma'!BC86 -> 0 | BD23: ='I- User Proforma'!BD86 -> 0 | BE23: ='I- User Proforma'!BE86 -> 0 | BF23: ='I- User Proforma'!BF86 -> 0 | BG23: ='I- User Proforma'!BG86 -> 0 | BH23: ='I- User Proforma'!BH86 -> 0 | BI23: ='I- User Proforma'!BI86 -> 0 | BJ23: ='I- User Proforma'!BJ86 -> 0 | BK23: ='I- User Proforma'!BK86 -> 0 | BL23: ='I- User Proforma'!BL86 -> 0 | BM23: ='I- User Proforma'!BM86 -> 0 | BN23: ='I- User Proforma'!BN86 -> 0 | BO23: ='I- User Proforma'!BO86 -> 0 | BP23: ='I- User Proforma'!BP86 -> 0 | BQ23: ='I- User Proforma'!BQ86 -> 0 | BR23: ='I- User Proforma'!BR86 -> 0 | BS23: ='I- User Proforma'!BS86 -> 0 | BT23: ='I- User Proforma'!BT86 -> 0 | BU23: ='I- User Proforma'!BU86 -> 0 | BV23: ='I- User Proforma'!BV86 -> 0 | BW23: ='I- User Proforma'!BW86 -> 0 | BX23: ='I- User Proforma'!BX86 -> 0 | BY23: ='I- User Proforma'!BY86 -> 0 | BZ23: ='I- User Proforma'!BZ86 -> 0 | CA23: ='I- User Proforma'!CA86 -> 0 | CB23: ='I- User Proforma'!CB86 -> 0 | CC23: ='I- User Proforma'!CC86 -> 0 | CD23: ='I- User Proforma'!CD86 -> 0 | CE23: ='I- User Proforma'!CE86 -> 0 | CF23: ='I- User Proforma'!CF86 -> 0 | CG23: ='I- User Proforma'!CG86 -> 0 | CH23: ='I- User Proforma'!CH86 -> 0 | CI23: ='I- User Proforma'!CI86 -> 0 | CJ23: ='I- User Proforma'!CJ86 -> 0 | CK23: ='I- User Proforma'!CK86 -> 0 | CL23: ='I- User Proforma'!CL86 -> 0 | CM23: ='I- User Proforma'!CM86 -> 0 | CN23: ='I- User Proforma'!CN86 -> 0 | CO23: ='I- User Proforma'!CO86 -> 0 | CP23: ='I- User Proforma'!CP86 -> 0 | CQ23: ='I- User Proforma'!CQ86 -> 0 | CR23: ='I- User Proforma'!CR86 -> 0 | CS23: ='I- User Proforma'!CS86 -> 0 | CT23: ='I- User Proforma'!CT86 -> 0 | CU23: ='I- User Proforma'!CU86 -> 0 | CV23: ='I- User Proforma'!CV86 -> 0 | CW23: ='I- User Proforma'!CW86 -> 0 | CX23: ='I- User Proforma'!CX86 -> 0 | CY23: ='I- User Proforma'!CY86 -> 0
C24: ='I- User Proforma'!C87 -> 0 | E24: ='I- User Proforma'!E87 -> 0 | J24: £ | L24: Proforma | N24: ='I- User Proforma'!N87 -> 0 | O24: ='I- User Proforma'!O87 -> 0 | P24: ='I- User Proforma'!P87 -> 0 | Q24: ='I- User Proforma'!Q87 -> 0 | R24: ='I- User Proforma'!R87 -> 0 | S24: ='I- User Proforma'!S87 -> 0 | T24: ='I- User Proforma'!T87 -> 0 | U24: ='I- User Proforma'!U87 -> 0 | V24: ='I- User Proforma'!V87 -> 0 | W24: ='I- User Proforma'!W87 -> 0 | X24: ='I- User Proforma'!X87 -> 0 | Y24: ='I- User Proforma'!Y87 -> 0 | Z24: ='I- User Proforma'!Z87 -> 0 | AA24: ='I- User Proforma'!AA87 -> 0 | AB24: ='I- User Proforma'!AB87 -> 0 | AC24: ='I- User Proforma'!AC87 -> 0 | AD24: ='I- User Proforma'!AD87 -> 0 | AE24: ='I- User Proforma'!AE87 -> 0 | AF24: ='I- User Proforma'!AF87 -> 0 | AG24: ='I- User Proforma'!AG87 -> 0 | AH24: ='I- User Proforma'!AH87 -> 0 | AI24: ='I- User Proforma'!AI87 -> 0 | AJ24: ='I- User Proforma'!AJ87 -> 0 | AK24: ='I- User Proforma'!AK87 -> 0 | AL24: ='I- User Proforma'!AL87 -> 0 | AM24: ='I- User Proforma'!AM87 -> 0 | AN24: ='I- User Proforma'!AN87 -> 0 | AO24: ='I- User Proforma'!AO87 -> 0 | AP24: ='I- User Proforma'!AP87 -> 0 | AQ24: ='I- User Proforma'!AQ87 -> 0 | AR24: ='I- User Proforma'!AR87 -> 0 | AS24: ='I- User Proforma'!AS87 -> 0 | AT24: ='I- User Proforma'!AT87 -> 0 | AU24: ='I- User Proforma'!AU87 -> 0 | AV24: ='I- User Proforma'!AV87 -> 0 | AW24: ='I- User Proforma'!AW87 -> 0 | AX24: ='I- User Proforma'!AX87 -> 0 | AY24: ='I- User Proforma'!AY87 -> 0 | AZ24: ='I- User Proforma'!AZ87 -> 0 | BA24: ='I- User Proforma'!BA87 -> 0 | BB24: ='I- User Proforma'!BB87 -> 0 | BC24: ='I- User Proforma'!BC87 -> 0 | BD24: ='I- User Proforma'!BD87 -> 0 | BE24: ='I- User Proforma'!BE87 -> 0 | BF24: ='I- User Proforma'!BF87 -> 0 | BG24: ='I- User Proforma'!BG87 -> 0 | BH24: ='I- User Proforma'!BH87 -> 0 | BI24: ='I- User Proforma'!BI87 -> 0 | BJ24: ='I- User Proforma'!BJ87 -> 0 | BK24: ='I- User Proforma'!BK87 -> 0 | BL24: ='I- User Proforma'!BL87 -> 0 | BM24: ='I- User Proforma'!BM87 -> 0 | BN24: ='I- User Proforma'!BN87 -> 0 | BO24: ='I- User Proforma'!BO87 -> 0 | BP24: ='I- User Proforma'!BP87 -> 0 | BQ24: ='I- User Proforma'!BQ87 -> 0 | BR24: ='I- User Proforma'!BR87 -> 0 | BS24: ='I- User Proforma'!BS87 -> 0 | BT24: ='I- User Proforma'!BT87 -> 0 | BU24: ='I- User Proforma'!BU87 -> 0 | BV24: ='I- User Proforma'!BV87 -> 0 | BW24: ='I- User Proforma'!BW87 -> 0 | BX24: ='I- User Proforma'!BX87 -> 0 | BY24: ='I- User Proforma'!BY87 -> 0 | BZ24: ='I- User Proforma'!BZ87 -> 0 | CA24: ='I- User Proforma'!CA87 -> 0 | CB24: ='I- User Proforma'!CB87 -> 0 | CC24: ='I- User Proforma'!CC87 -> 0 | CD24: ='I- User Proforma'!CD87 -> 0 | CE24: ='I- User Proforma'!CE87 -> 0 | CF24: ='I- User Proforma'!CF87 -> 0 | CG24: ='I- User Proforma'!CG87 -> 0 | CH24: ='I- User Proforma'!CH87 -> 0 | CI24: ='I- User Proforma'!CI87 -> 0 | CJ24: ='I- User Proforma'!CJ87 -> 0 | CK24: ='I- User Proforma'!CK87 -> 0 | CL24: ='I- User Proforma'!CL87 -> 0 | CM24: ='I- User Proforma'!CM87 -> 0 | CN24: ='I- User Proforma'!CN87 -> 0 | CO24: ='I- User Proforma'!CO87 -> 0 | CP24: ='I- User Proforma'!CP87 -> 0 | CQ24: ='I- User Proforma'!CQ87 -> 0 | CR24: ='I- User Proforma'!CR87 -> 0 | CS24: ='I- User Proforma'!CS87 -> 0 | CT24: ='I- User Proforma'!CT87 -> 0 | CU24: ='I- User Proforma'!CU87 -> 0 | CV24: ='I- User Proforma'!CV87 -> 0 | CW24: ='I- User Proforma'!CW87 -> 0 | CX24: ='I- User Proforma'!CX87 -> 0 | CY24: ='I- User Proforma'!CY87 -> 0
C25: ='I- User Proforma'!C88 -> 0 | E25: ='I- User Proforma'!E88 -> 0 | J25: £ | L25: Proforma | N25: ='I- User Proforma'!N88 -> 0 | O25: ='I- User Proforma'!O88 -> 0 | P25: ='I- User Proforma'!P88 -> 0 | Q25: ='I- User Proforma'!Q88 -> 0 | R25: ='I- User Proforma'!R88 -> 0 | S25: ='I- User Proforma'!S88 -> 0 | T25: ='I- User Proforma'!T88 -> 0 | U25: ='I- User Proforma'!U88 -> 0 | V25: ='I- User Proforma'!V88 -> 0 | W25: ='I- User Proforma'!W88 -> 0 | X25: ='I- User Proforma'!X88 -> 0 | Y25: ='I- User Proforma'!Y88 -> 0 | Z25: ='I- User Proforma'!Z88 -> 0 | AA25: ='I- User Proforma'!AA88 -> 0 | AB25: ='I- User Proforma'!AB88 -> 0 | AC25: ='I- User Proforma'!AC88 -> 0 | AD25: ='I- User Proforma'!AD88 -> 0 | AE25: ='I- User Proforma'!AE88 -> 0 | AF25: ='I- User Proforma'!AF88 -> 0 | AG25: ='I- User Proforma'!AG88 -> 0 | AH25: ='I- User Proforma'!AH88 -> 0 | AI25: ='I- User Proforma'!AI88 -> 0 | AJ25: ='I- User Proforma'!AJ88 -> 0 | AK25: ='I- User Proforma'!AK88 -> 0 | AL25: ='I- User Proforma'!AL88 -> 0 | AM25: ='I- User Proforma'!AM88 -> 0 | AN25: ='I- User Proforma'!AN88 -> 0 | AO25: ='I- User Proforma'!AO88 -> 0 | AP25: ='I- User Proforma'!AP88 -> 0 | AQ25: ='I- User Proforma'!AQ88 -> 0 | AR25: ='I- User Proforma'!AR88 -> 0 | AS25: ='I- User Proforma'!AS88 -> 0 | AT25: ='I- User Proforma'!AT88 -> 0 | AU25: ='I- User Proforma'!AU88 -> 0 | AV25: ='I- User Proforma'!AV88 -> 0 | AW25: ='I- User Proforma'!AW88 -> 0 | AX25: ='I- User Proforma'!AX88 -> 0 | AY25: ='I- User Proforma'!AY88 -> 0 | AZ25: ='I- User Proforma'!AZ88 -> 0 | BA25: ='I- User Proforma'!BA88 -> 0 | BB25: ='I- User Proforma'!BB88 -> 0 | BC25: ='I- User Proforma'!BC88 -> 0 | BD25: ='I- User Proforma'!BD88 -> 0 | BE25: ='I- User Proforma'!BE88 -> 0 | BF25: ='I- User Proforma'!BF88 -> 0 | BG25: ='I- User Proforma'!BG88 -> 0 | BH25: ='I- User Proforma'!BH88 -> 0 | BI25: ='I- User Proforma'!BI88 -> 0 | BJ25: ='I- User Proforma'!BJ88 -> 0 | BK25: ='I- User Proforma'!BK88 -> 0 | BL25: ='I- User Proforma'!BL88 -> 0 | BM25: ='I- User Proforma'!BM88 -> 0 | BN25: ='I- User Proforma'!BN88 -> 0 | BO25: ='I- User Proforma'!BO88 -> 0 | BP25: ='I- User Proforma'!BP88 -> 0 | BQ25: ='I- User Proforma'!BQ88 -> 0 | BR25: ='I- User Proforma'!BR88 -> 0 | BS25: ='I- User Proforma'!BS88 -> 0 | BT25: ='I- User Proforma'!BT88 -> 0 | BU25: ='I- User Proforma'!BU88 -> 0 | BV25: ='I- User Proforma'!BV88 -> 0 | BW25: ='I- User Proforma'!BW88 -> 0 | BX25: ='I- User Proforma'!BX88 -> 0 | BY25: ='I- User Proforma'!BY88 -> 0 | BZ25: ='I- User Proforma'!BZ88 -> 0 | CA25: ='I- User Proforma'!CA88 -> 0 | CB25: ='I- User Proforma'!CB88 -> 0 | CC25: ='I- User Proforma'!CC88 -> 0 | CD25: ='I- User Proforma'!CD88 -> 0 | CE25: ='I- User Proforma'!CE88 -> 0 | CF25: ='I- User Proforma'!CF88 -> 0 | CG25: ='I- User Proforma'!CG88 -> 0 | CH25: ='I- User Proforma'!CH88 -> 0 | CI25: ='I- User Proforma'!CI88 -> 0 | CJ25: ='I- User Proforma'!CJ88 -> 0 | CK25: ='I- User Proforma'!CK88 -> 0 | CL25: ='I- User Proforma'!CL88 -> 0 | CM25: ='I- User Proforma'!CM88 -> 0 | CN25: ='I- User Proforma'!CN88 -> 0 | CO25: ='I- User Proforma'!CO88 -> 0 | CP25: ='I- User Proforma'!CP88 -> 0 | CQ25: ='I- User Proforma'!CQ88 -> 0 | CR25: ='I- User Proforma'!CR88 -> 0 | CS25: ='I- User Proforma'!CS88 -> 0 | CT25: ='I- User Proforma'!CT88 -> 0 | CU25: ='I- User Proforma'!CU88 -> 0 | CV25: ='I- User Proforma'!CV88 -> 0 | CW25: ='I- User Proforma'!CW88 -> 0 | CX25: ='I- User Proforma'!CX88 -> 0 | CY25: ='I- User Proforma'!CY88 -> 0
C26: ='I- User Proforma'!C89 -> 0 | E26: ='I- User Proforma'!E89 -> 0 | J26: £ | L26: Proforma | N26: ='I- User Proforma'!N89 -> 0 | O26: ='I- User Proforma'!O89 -> 0 | P26: ='I- User Proforma'!P89 -> 0 | Q26: ='I- User Proforma'!Q89 -> 0 | R26: ='I- User Proforma'!R89 -> 0 | S26: ='I- User Proforma'!S89 -> 0 | T26: ='I- User Proforma'!T89 -> 0 | U26: ='I- User Proforma'!U89 -> 0 | V26: ='I- User Proforma'!V89 -> 0 | W26: ='I- User Proforma'!W89 -> 0 | X26: ='I- User Proforma'!X89 -> 0 | Y26: ='I- User Proforma'!Y89 -> 0 | Z26: ='I- User Proforma'!Z89 -> 0 | AA26: ='I- User Proforma'!AA89 -> 0 | AB26: ='I- User Proforma'!AB89 -> 0 | AC26: ='I- User Proforma'!AC89 -> 0 | AD26: ='I- User Proforma'!AD89 -> 0 | AE26: ='I- User Proforma'!AE89 -> 0 | AF26: ='I- User Proforma'!AF89 -> 0 | AG26: ='I- User Proforma'!AG89 -> 0 | AH26: ='I- User Proforma'!AH89 -> 0 | AI26: ='I- User Proforma'!AI89 -> 0 | AJ26: ='I- User Proforma'!AJ89 -> 0 | AK26: ='I- User Proforma'!AK89 -> 0 | AL26: ='I- User Proforma'!AL89 -> 0 | AM26: ='I- User Proforma'!AM89 -> 0 | AN26: ='I- User Proforma'!AN89 -> 0 | AO26: ='I- User Proforma'!AO89 -> 0 | AP26: ='I- User Proforma'!AP89 -> 0 | AQ26: ='I- User Proforma'!AQ89 -> 0 | AR26: ='I- User Proforma'!AR89 -> 0 | AS26: ='I- User Proforma'!AS89 -> 0 | AT26: ='I- User Proforma'!AT89 -> 0 | AU26: ='I- User Proforma'!AU89 -> 0 | AV26: ='I- User Proforma'!AV89 -> 0 | AW26: ='I- User Proforma'!AW89 -> 0 | AX26: ='I- User Proforma'!AX89 -> 0 | AY26: ='I- User Proforma'!AY89 -> 0 | AZ26: ='I- User Proforma'!AZ89 -> 0 | BA26: ='I- User Proforma'!BA89 -> 0 | BB26: ='I- User Proforma'!BB89 -> 0 | BC26: ='I- User Proforma'!BC89 -> 0 | BD26: ='I- User Proforma'!BD89 -> 0 | BE26: ='I- User Proforma'!BE89 -> 0 | BF26: ='I- User Proforma'!BF89 -> 0 | BG26: ='I- User Proforma'!BG89 -> 0 | BH26: ='I- User Proforma'!BH89 -> 0 | BI26: ='I- User Proforma'!BI89 -> 0 | BJ26: ='I- User Proforma'!BJ89 -> 0 | BK26: ='I- User Proforma'!BK89 -> 0 | BL26: ='I- User Proforma'!BL89 -> 0 | BM26: ='I- User Proforma'!BM89 -> 0 | BN26: ='I- User Proforma'!BN89 -> 0 | BO26: ='I- User Proforma'!BO89 -> 0 | BP26: ='I- User Proforma'!BP89 -> 0 | BQ26: ='I- User Proforma'!BQ89 -> 0 | BR26: ='I- User Proforma'!BR89 -> 0 | BS26: ='I- User Proforma'!BS89 -> 0 | BT26: ='I- User Proforma'!BT89 -> 0 | BU26: ='I- User Proforma'!BU89 -> 0 | BV26: ='I- User Proforma'!BV89 -> 0 | BW26: ='I- User Proforma'!BW89 -> 0 | BX26: ='I- User Proforma'!BX89 -> 0 | BY26: ='I- User Proforma'!BY89 -> 0 | BZ26: ='I- User Proforma'!BZ89 -> 0 | CA26: ='I- User Proforma'!CA89 -> 0 | CB26: ='I- User Proforma'!CB89 -> 0 | CC26: ='I- User Proforma'!CC89 -> 0 | CD26: ='I- User Proforma'!CD89 -> 0 | CE26: ='I- User Proforma'!CE89 -> 0 | CF26: ='I- User Proforma'!CF89 -> 0 | CG26: ='I- User Proforma'!CG89 -> 0 | CH26: ='I- User Proforma'!CH89 -> 0 | CI26: ='I- User Proforma'!CI89 -> 0 | CJ26: ='I- User Proforma'!CJ89 -> 0 | CK26: ='I- User Proforma'!CK89 -> 0 | CL26: ='I- User Proforma'!CL89 -> 0 | CM26: ='I- User Proforma'!CM89 -> 0 | CN26: ='I- User Proforma'!CN89 -> 0 | CO26: ='I- User Proforma'!CO89 -> 0 | CP26: ='I- User Proforma'!CP89 -> 0 | CQ26: ='I- User Proforma'!CQ89 -> 0 | CR26: ='I- User Proforma'!CR89 -> 0 | CS26: ='I- User Proforma'!CS89 -> 0 | CT26: ='I- User Proforma'!CT89 -> 0 | CU26: ='I- User Proforma'!CU89 -> 0 | CV26: ='I- User Proforma'!CV89 -> 0 | CW26: ='I- User Proforma'!CW89 -> 0 | CX26: ='I- User Proforma'!CX89 -> 0 | CY26: ='I- User Proforma'!CY89 -> 0
C27: ='I- User Proforma'!C90 -> 0 | E27: ='I- User Proforma'!E90 -> 0 | J27: £ | L27: Proforma | N27: ='I- User Proforma'!N90 -> 0 | O27: ='I- User Proforma'!O90 -> 0 | P27: ='I- User Proforma'!P90 -> 0 | Q27: ='I- User Proforma'!Q90 -> 0 | R27: ='I- User Proforma'!R90 -> 0 | S27: ='I- User Proforma'!S90 -> 0 | T27: ='I- User Proforma'!T90 -> 0 | U27: ='I- User Proforma'!U90 -> 0 | V27: ='I- User Proforma'!V90 -> 0 | W27: ='I- User Proforma'!W90 -> 0 | X27: ='I- User Proforma'!X90 -> 0 | Y27: ='I- User Proforma'!Y90 -> 0 | Z27: ='I- User Proforma'!Z90 -> 0 | AA27: ='I- User Proforma'!AA90 -> 0 | AB27: ='I- User Proforma'!AB90 -> 0 | AC27: ='I- User Proforma'!AC90 -> 0 | AD27: ='I- User Proforma'!AD90 -> 0 | AE27: ='I- User Proforma'!AE90 -> 0 | AF27: ='I- User Proforma'!AF90 -> 0 | AG27: ='I- User Proforma'!AG90 -> 0 | AH27: ='I- User Proforma'!AH90 -> 0 | AI27: ='I- User Proforma'!AI90 -> 0 | AJ27: ='I- User Proforma'!AJ90 -> 0 | AK27: ='I- User Proforma'!AK90 -> 0 | AL27: ='I- User Proforma'!AL90 -> 0 | AM27: ='I- User Proforma'!AM90 -> 0 | AN27: ='I- User Proforma'!AN90 -> 0 | AO27: ='I- User Proforma'!AO90 -> 0 | AP27: ='I- User Proforma'!AP90 -> 0 | AQ27: ='I- User Proforma'!AQ90 -> 0 | AR27: ='I- User Proforma'!AR90 -> 0 | AS27: ='I- User Proforma'!AS90 -> 0 | AT27: ='I- User Proforma'!AT90 -> 0 | AU27: ='I- User Proforma'!AU90 -> 0 | AV27: ='I- User Proforma'!AV90 -> 0 | AW27: ='I- User Proforma'!AW90 -> 0 | AX27: ='I- User Proforma'!AX90 -> 0 | AY27: ='I- User Proforma'!AY90 -> 0 | AZ27: ='I- User Proforma'!AZ90 -> 0 | BA27: ='I- User Proforma'!BA90 -> 0 | BB27: ='I- User Proforma'!BB90 -> 0 | BC27: ='I- User Proforma'!BC90 -> 0 | BD27: ='I- User Proforma'!BD90 -> 0 | BE27: ='I- User Proforma'!BE90 -> 0 | BF27: ='I- User Proforma'!BF90 -> 0 | BG27: ='I- User Proforma'!BG90 -> 0 | BH27: ='I- User Proforma'!BH90 -> 0 | BI27: ='I- User Proforma'!BI90 -> 0 | BJ27: ='I- User Proforma'!BJ90 -> 0 | BK27: ='I- User Proforma'!BK90 -> 0 | BL27: ='I- User Proforma'!BL90 -> 0 | BM27: ='I- User Proforma'!BM90 -> 0 | BN27: ='I- User Proforma'!BN90 -> 0 | BO27: ='I- User Proforma'!BO90 -> 0 | BP27: ='I- User Proforma'!BP90 -> 0 | BQ27: ='I- User Proforma'!BQ90 -> 0 | BR27: ='I- User Proforma'!BR90 -> 0 | BS27: ='I- User Proforma'!BS90 -> 0 | BT27: ='I- User Proforma'!BT90 -> 0 | BU27: ='I- User Proforma'!BU90 -> 0 | BV27: ='I- User Proforma'!BV90 -> 0 | BW27: ='I- User Proforma'!BW90 -> 0 | BX27: ='I- User Proforma'!BX90 -> 0 | BY27: ='I- User Proforma'!BY90 -> 0 | BZ27: ='I- User Proforma'!BZ90 -> 0 | CA27: ='I- User Proforma'!CA90 -> 0 | CB27: ='I- User Proforma'!CB90 -> 0 | CC27: ='I- User Proforma'!CC90 -> 0 | CD27: ='I- User Proforma'!CD90 -> 0 | CE27: ='I- User Proforma'!CE90 -> 0 | CF27: ='I- User Proforma'!CF90 -> 0 | CG27: ='I- User Proforma'!CG90 -> 0 | CH27: ='I- User Proforma'!CH90 -> 0 | CI27: ='I- User Proforma'!CI90 -> 0 | CJ27: ='I- User Proforma'!CJ90 -> 0 | CK27: ='I- User Proforma'!CK90 -> 0 | CL27: ='I- User Proforma'!CL90 -> 0 | CM27: ='I- User Proforma'!CM90 -> 0 | CN27: ='I- User Proforma'!CN90 -> 0 | CO27: ='I- User Proforma'!CO90 -> 0 | CP27: ='I- User Proforma'!CP90 -> 0 | CQ27: ='I- User Proforma'!CQ90 -> 0 | CR27: ='I- User Proforma'!CR90 -> 0 | CS27: ='I- User Proforma'!CS90 -> 0 | CT27: ='I- User Proforma'!CT90 -> 0 | CU27: ='I- User Proforma'!CU90 -> 0 | CV27: ='I- User Proforma'!CV90 -> 0 | CW27: ='I- User Proforma'!CW90 -> 0 | CX27: ='I- User Proforma'!CX90 -> 0 | CY27: ='I- User Proforma'!CY90 -> 0
C28: ='I- User Proforma'!C91 -> 0 | E28: ='I- User Proforma'!E91 -> 0 | J28: £ | L28: Proforma | N28: ='I- User Proforma'!N91 -> 0 | O28: ='I- User Proforma'!O91 -> 0 | P28: ='I- User Proforma'!P91 -> 0 | Q28: ='I- User Proforma'!Q91 -> 0 | R28: ='I- User Proforma'!R91 -> 0 | S28: ='I- User Proforma'!S91 -> 0 | T28: ='I- User Proforma'!T91 -> 0 | U28: ='I- User Proforma'!U91 -> 0 | V28: ='I- User Proforma'!V91 -> 0 | W28: ='I- User Proforma'!W91 -> 0 | X28: ='I- User Proforma'!X91 -> 0 | Y28: ='I- User Proforma'!Y91 -> 0 | Z28: ='I- User Proforma'!Z91 -> 0 | AA28: ='I- User Proforma'!AA91 -> 0 | AB28: ='I- User Proforma'!AB91 -> 0 | AC28: ='I- User Proforma'!AC91 -> 0 | AD28: ='I- User Proforma'!AD91 -> 0 | AE28: ='I- User Proforma'!AE91 -> 0 | AF28: ='I- User Proforma'!AF91 -> 0 | AG28: ='I- User Proforma'!AG91 -> 0 | AH28: ='I- User Proforma'!AH91 -> 0 | AI28: ='I- User Proforma'!AI91 -> 0 | AJ28: ='I- User Proforma'!AJ91 -> 0 | AK28: ='I- User Proforma'!AK91 -> 0 | AL28: ='I- User Proforma'!AL91 -> 0 | AM28: ='I- User Proforma'!AM91 -> 0 | AN28: ='I- User Proforma'!AN91 -> 0 | AO28: ='I- User Proforma'!AO91 -> 0 | AP28: ='I- User Proforma'!AP91 -> 0 | AQ28: ='I- User Proforma'!AQ91 -> 0 | AR28: ='I- User Proforma'!AR91 -> 0 | AS28: ='I- User Proforma'!AS91 -> 0 | AT28: ='I- User Proforma'!AT91 -> 0 | AU28: ='I- User Proforma'!AU91 -> 0 | AV28: ='I- User Proforma'!AV91 -> 0 | AW28: ='I- User Proforma'!AW91 -> 0 | AX28: ='I- User Proforma'!AX91 -> 0 | AY28: ='I- User Proforma'!AY91 -> 0 | AZ28: ='I- User Proforma'!AZ91 -> 0 | BA28: ='I- User Proforma'!BA91 -> 0 | BB28: ='I- User Proforma'!BB91 -> 0 | BC28: ='I- User Proforma'!BC91 -> 0 | BD28: ='I- User Proforma'!BD91 -> 0 | BE28: ='I- User Proforma'!BE91 -> 0 | BF28: ='I- User Proforma'!BF91 -> 0 | BG28: ='I- User Proforma'!BG91 -> 0 | BH28: ='I- User Proforma'!BH91 -> 0 | BI28: ='I- User Proforma'!BI91 -> 0 | BJ28: ='I- User Proforma'!BJ91 -> 0 | BK28: ='I- User Proforma'!BK91 -> 0 | BL28: ='I- User Proforma'!BL91 -> 0 | BM28: ='I- User Proforma'!BM91 -> 0 | BN28: ='I- User Proforma'!BN91 -> 0 | BO28: ='I- User Proforma'!BO91 -> 0 | BP28: ='I- User Proforma'!BP91 -> 0 | BQ28: ='I- User Proforma'!BQ91 -> 0 | BR28: ='I- User Proforma'!BR91 -> 0 | BS28: ='I- User Proforma'!BS91 -> 0 | BT28: ='I- User Proforma'!BT91 -> 0 | BU28: ='I- User Proforma'!BU91 -> 0 | BV28: ='I- User Proforma'!BV91 -> 0 | BW28: ='I- User Proforma'!BW91 -> 0 | BX28: ='I- User Proforma'!BX91 -> 0 | BY28: ='I- User Proforma'!BY91 -> 0 | BZ28: ='I- User Proforma'!BZ91 -> 0 | CA28: ='I- User Proforma'!CA91 -> 0 | CB28: ='I- User Proforma'!CB91 -> 0 | CC28: ='I- User Proforma'!CC91 -> 0 | CD28: ='I- User Proforma'!CD91 -> 0 | CE28: ='I- User Proforma'!CE91 -> 0 | CF28: ='I- User Proforma'!CF91 -> 0 | CG28: ='I- User Proforma'!CG91 -> 0 | CH28: ='I- User Proforma'!CH91 -> 0 | CI28: ='I- User Proforma'!CI91 -> 0 | CJ28: ='I- User Proforma'!CJ91 -> 0 | CK28: ='I- User Proforma'!CK91 -> 0 | CL28: ='I- User Proforma'!CL91 -> 0 | CM28: ='I- User Proforma'!CM91 -> 0 | CN28: ='I- User Proforma'!CN91 -> 0 | CO28: ='I- User Proforma'!CO91 -> 0 | CP28: ='I- User Proforma'!CP91 -> 0 | CQ28: ='I- User Proforma'!CQ91 -> 0 | CR28: ='I- User Proforma'!CR91 -> 0 | CS28: ='I- User Proforma'!CS91 -> 0 | CT28: ='I- User Proforma'!CT91 -> 0 | CU28: ='I- User Proforma'!CU91 -> 0 | CV28: ='I- User Proforma'!CV91 -> 0 | CW28: ='I- User Proforma'!CW91 -> 0 | CX28: ='I- User Proforma'!CX91 -> 0 | CY28: ='I- User Proforma'!CY91 -> 0
A29: =--NOT(SUM(N22:CY29,N18:CY18)=SUM(N15:CY15)) -> 0 | C29: ='I- User Proforma'!C92 -> 0 | E29: ='I- User Proforma'!E92 -> 0 | J29: £ | L29: Proforma | N29: ='I- User Proforma'!N92 -> 0 | O29: ='I- User Proforma'!O92 -> 0 | P29: ='I- User Proforma'!P92 -> 0 | Q29: ='I- User Proforma'!Q92 -> 0 | R29: ='I- User Proforma'!R92 -> 0 | S29: ='I- User Proforma'!S92 -> 0 | T29: ='I- User Proforma'!T92 -> 0 | U29: ='I- User Proforma'!U92 -> 0 | V29: ='I- User Proforma'!V92 -> 0 | W29: ='I- User Proforma'!W92 -> 0 | X29: ='I- User Proforma'!X92 -> 0 | Y29: ='I- User Proforma'!Y92 -> 0 | Z29: ='I- User Proforma'!Z92 -> 0 | AA29: ='I- User Proforma'!AA92 -> 0 | AB29: ='I- User Proforma'!AB92 -> 0 | AC29: ='I- User Proforma'!AC92 -> 0 | AD29: ='I- User Proforma'!AD92 -> 0 | AE29: ='I- User Proforma'!AE92 -> 0 | AF29: ='I- User Proforma'!AF92 -> 0 | AG29: ='I- User Proforma'!AG92 -> 0 | AH29: ='I- User Proforma'!AH92 -> 0 | AI29: ='I- User Proforma'!AI92 -> 0 | AJ29: ='I- User Proforma'!AJ92 -> 0 | AK29: ='I- User Proforma'!AK92 -> 0 | AL29: ='I- User Proforma'!AL92 -> 0 | AM29: ='I- User Proforma'!AM92 -> 0 | AN29: ='I- User Proforma'!AN92 -> 0 | AO29: ='I- User Proforma'!AO92 -> 0 | AP29: ='I- User Proforma'!AP92 -> 0 | AQ29: ='I- User Proforma'!AQ92 -> 0 | AR29: ='I- User Proforma'!AR92 -> 0 | AS29: ='I- User Proforma'!AS92 -> 0 | AT29: ='I- User Proforma'!AT92 -> 0 | AU29: ='I- User Proforma'!AU92 -> 0 | AV29: ='I- User Proforma'!AV92 -> 0 | AW29: ='I- User Proforma'!AW92 -> 0 | AX29: ='I- User Proforma'!AX92 -> 0 | AY29: ='I- User Proforma'!AY92 -> 0 | AZ29: ='I- User Proforma'!AZ92 -> 0 | BA29: ='I- User Proforma'!BA92 -> 0 | BB29: ='I- User Proforma'!BB92 -> 0 | BC29: ='I- User Proforma'!BC92 -> 0 | BD29: ='I- User Proforma'!BD92 -> 0 | BE29: ='I- User Proforma'!BE92 -> 0 | BF29: ='I- User Proforma'!BF92 -> 0 | BG29: ='I- User Proforma'!BG92 -> 0 | BH29: ='I- User Proforma'!BH92 -> 0 | BI29: ='I- User Proforma'!BI92 -> 0 | BJ29: ='I- User Proforma'!BJ92 -> 0 | BK29: ='I- User Proforma'!BK92 -> 0 | BL29: ='I- User Proforma'!BL92 -> 0 | BM29: ='I- User Proforma'!BM92 -> 0 | BN29: ='I- User Proforma'!BN92 -> 0 | BO29: ='I- User Proforma'!BO92 -> 0 | BP29: ='I- User Proforma'!BP92 -> 0 | BQ29: ='I- User Proforma'!BQ92 -> 0 | BR29: ='I- User Proforma'!BR92 -> 0 | BS29: ='I- User Proforma'!BS92 -> 0 | BT29: ='I- User Proforma'!BT92 -> 0 | BU29: ='I- User Proforma'!BU92 -> 0 | BV29: ='I- User Proforma'!BV92 -> 0 | BW29: ='I- User Proforma'!BW92 -> 0 | BX29: ='I- User Proforma'!BX92 -> 0 | BY29: ='I- User Proforma'!BY92 -> 0 | BZ29: ='I- User Proforma'!BZ92 -> 0 | CA29: ='I- User Proforma'!CA92 -> 0 | CB29: ='I- User Proforma'!CB92 -> 0 | CC29: ='I- User Proforma'!CC92 -> 0 | CD29: ='I- User Proforma'!CD92 -> 0 | CE29: ='I- User Proforma'!CE92 -> 0 | CF29: ='I- User Proforma'!CF92 -> 0 | CG29: ='I- User Proforma'!CG92 -> 0 | CH29: ='I- User Proforma'!CH92 -> 0 | CI29: ='I- User Proforma'!CI92 -> 0 | CJ29: ='I- User Proforma'!CJ92 -> 0 | CK29: ='I- User Proforma'!CK92 -> 0 | CL29: ='I- User Proforma'!CL92 -> 0 | CM29: ='I- User Proforma'!CM92 -> 0 | CN29: ='I- User Proforma'!CN92 -> 0 | CO29: ='I- User Proforma'!CO92 -> 0 | CP29: ='I- User Proforma'!CP92 -> 0 | CQ29: ='I- User Proforma'!CQ92 -> 0 | CR29: ='I- User Proforma'!CR92 -> 0 | CS29: ='I- User Proforma'!CS92 -> 0 | CT29: ='I- User Proforma'!CT92 -> 0 | CU29: ='I- User Proforma'!CU92 -> 0 | CV29: ='I- User Proforma'!CV92 -> 0 | CW29: ='I- User Proforma'!CW92 -> 0 | CX29: ='I- User Proforma'!CX92 -> 0 | CY29: ='I- User Proforma'!CY92 -> 0
C31: Risk contingency/Quantified Risk Assessment (QRA)
E32: Sector
E33: ='I- User Proforma'!$H$99 -> Input sector | J33: £ | L33: Proforma | N33: ='I- User Proforma'!N99 -> 0 | O33: ='I- User Proforma'!O99 -> 0 | P33: ='I- User Proforma'!P99 -> 0 | Q33: ='I- User Proforma'!Q99 -> 0 | R33: ='I- User Proforma'!R99 -> 0 | S33: ='I- User Proforma'!S99 -> 0 | T33: ='I- User Proforma'!T99 -> 0 | U33: ='I- User Proforma'!U99 -> 0 | V33: ='I- User Proforma'!V99 -> 0 | W33: ='I- User Proforma'!W99 -> 0 | X33: ='I- User Proforma'!X99 -> 0 | Y33: ='I- User Proforma'!Y99 -> 0 | Z33: ='I- User Proforma'!Z99 -> 0 | AA33: ='I- User Proforma'!AA99 -> 0 | AB33: ='I- User Proforma'!AB99 -> 0 | AC33: ='I- User Proforma'!AC99 -> 0 | AD33: ='I- User Proforma'!AD99 -> 0 | AE33: ='I- User Proforma'!AE99 -> 0 | AF33: ='I- User Proforma'!AF99 -> 0 | AG33: ='I- User Proforma'!AG99 -> 0 | AH33: ='I- User Proforma'!AH99 -> 0 | AI33: ='I- User Proforma'!AI99 -> 0 | AJ33: ='I- User Proforma'!AJ99 -> 0 | AK33: ='I- User Proforma'!AK99 -> 0 | AL33: ='I- User Proforma'!AL99 -> 0 | AM33: ='I- User Proforma'!AM99 -> 0 | AN33: ='I- User Proforma'!AN99 -> 0 | AO33: ='I- User Proforma'!AO99 -> 0 | AP33: ='I- User Proforma'!AP99 -> 0 | AQ33: ='I- User Proforma'!AQ99 -> 0 | AR33: ='I- User Proforma'!AR99 -> 0 | AS33: ='I- User Proforma'!AS99 -> 0 | AT33: ='I- User Proforma'!AT99 -> 0 | AU33: ='I- User Proforma'!AU99 -> 0 | AV33: ='I- User Proforma'!AV99 -> 0 | AW33: ='I- User Proforma'!AW99 -> 0 | AX33: ='I- User Proforma'!AX99 -> 0 | AY33: ='I- User Proforma'!AY99 -> 0 | AZ33: ='I- User Proforma'!AZ99 -> 0 | BA33: ='I- User Proforma'!BA99 -> 0 | BB33: ='I- User Proforma'!BB99 -> 0 | BC33: ='I- User Proforma'!BC99 -> 0 | BD33: ='I- User Proforma'!BD99 -> 0 | BE33: ='I- User Proforma'!BE99 -> 0 | BF33: ='I- User Proforma'!BF99 -> 0 | BG33: ='I- User Proforma'!BG99 -> 0 | BH33: ='I- User Proforma'!BH99 -> 0 | BI33: ='I- User Proforma'!BI99 -> 0 | BJ33: ='I- User Proforma'!BJ99 -> 0 | BK33: ='I- User Proforma'!BK99 -> 0 | BL33: ='I- User Proforma'!BL99 -> 0 | BM33: ='I- User Proforma'!BM99 -> 0 | BN33: ='I- User Proforma'!BN99 -> 0 | BO33: ='I- User Proforma'!BO99 -> 0 | BP33: ='I- User Proforma'!BP99 -> 0 | BQ33: ='I- User Proforma'!BQ99 -> 0 | BR33: ='I- User Proforma'!BR99 -> 0 | BS33: ='I- User Proforma'!BS99 -> 0 | BT33: ='I- User Proforma'!BT99 -> 0 | BU33: ='I- User Proforma'!BU99 -> 0 | BV33: ='I- User Proforma'!BV99 -> 0 | BW33: ='I- User Proforma'!BW99 -> 0 | BX33: ='I- User Proforma'!BX99 -> 0 | BY33: ='I- User Proforma'!BY99 -> 0 | BZ33: ='I- User Proforma'!BZ99 -> 0 | CA33: ='I- User Proforma'!CA99 -> 0 | CB33: ='I- User Proforma'!CB99 -> 0 | CC33: ='I- User Proforma'!CC99 -> 0 | CD33: ='I- User Proforma'!CD99 -> 0 | CE33: ='I- User Proforma'!CE99 -> 0 | CF33: ='I- User Proforma'!CF99 -> 0 | CG33: ='I- User Proforma'!CG99 -> 0 | CH33: ='I- User Proforma'!CH99 -> 0 | CI33: ='I- User Proforma'!CI99 -> 0 | CJ33: ='I- User Proforma'!CJ99 -> 0 | CK33: ='I- User Proforma'!CK99 -> 0 | CL33: ='I- User Proforma'!CL99 -> 0 | CM33: ='I- User Proforma'!CM99 -> 0 | CN33: ='I- User Proforma'!CN99 -> 0 | CO33: ='I- User Proforma'!CO99 -> 0 | CP33: ='I- User Proforma'!CP99 -> 0 | CQ33: ='I- User Proforma'!CQ99 -> 0 | CR33: ='I- User Proforma'!CR99 -> 0 | CS33: ='I- User Proforma'!CS99 -> 0 | CT33: ='I- User Proforma'!CT99 -> 0 | CU33: ='I- User Proforma'!CU99 -> 0 | CV33: ='I- User Proforma'!CV99 -> 0 | CW33: ='I- User Proforma'!CW99 -> 0 | CX33: ='I- User Proforma'!CX99 -> 0 | CY33: ='I- User Proforma'!CY99 -> 0
C35: Input Price Base | H35: ='I- User Proforma'!H54 -> Nominal
C37: ='I- User Parameters'!#REF! -> 
C39: Total cost of supporting infrastructure
C40: Cost incurred in each year | J40: £
C42: Grant required from Government for supporting infrastructure
C43: Grant required from Government for supporting infrastructure in each year | J43: £
C45: Cost to other funding sources in each year
C46: Source | E46: Sector
J47: £
J48: £
J49: £
J50: £
J51: £
J52: £
J53: £
A54: =--NOT(SUM(N47:CY54,N43:CY43)=SUM(N40:CY40)) -> 0 | J54: £
C56: Input Price Base
C57: Inclusive of VAT?
C59: ='I- User Parameters'!#REF! -> 
C61: Total cost of supporting infrastructure
C62: Cost incurred in each year | J62: £
C64: Grant required from Government for supporting infrastructure
C65: Grant required from Government for supporting infrastructure in each year | J65: £
C67: Cost to other funding sources in each year
C68: Source | E68: Sector
J69: £
J70: £
J71: £
J72: £
J73: £
J74: £
J75: £
A76: =--NOT(SUM(N69:CY76,N65:CY65)=SUM(N62:CY62)) -> 0 | J76: £
C78: Input Price Base
C79: Inclusive of VAT?
C81: ='I- User Parameters'!#REF! -> 
C83: Total cost of supporting infrastructure
C84: Cost incurred in each year | J84: £
C86: Grant required from Government for supporting infrastructure
C87: Grant required from Government for supporting infrastructure in each year | J87: £
C89: Cost to other funding sources in each year
C90: Source | E90: Sector
J91: £
J92: £
J93: £
J94: £
J95: £
J96: £
J97: £
A98: =--NOT(SUM(N91:CY98,N87:CY87)=SUM(N84:CY84)) -> 0 | J98: £
C100: Input Price Base
C101: Inclusive of VAT?
C103: ='I- User Parameters'!#REF! -> 
C105: Total cost of supporting infrastructure
C106: Cost incurred in each year | J106: £
C108: Grant required from Government for supporting infrastructure
C109: Grant required from Government for supporting infrastructure in each year | J109: £
C111: Cost to other funding sources in each year
C112: Source | E112: Sector
J113: £
J114: £
J115: £
J116: £
J117: £
J118: £
J119: £
A120: =--NOT(SUM(N113:CY120,N109:CY109)=SUM(N106:CY106)) -> 0 | J120: £
C122: Input Price Base
C123: Inclusive of VAT?
C125: ='I- User Parameters'!#REF! -> 
C127: Total cost of supporting infrastructure
C128: Cost incurred in each year | J128: £
C130: Grant required from Government for supporting infrastructure
C131: Grant required from Government for supporting infrastructure in each year | J131: £
C133: Cost to other funding sources in each year
C134: Source | E134: Sector
J135: £
J136: £
J137: £
J138: £
J139: £
J140: £
J141: £
A142: =--NOT(SUM(N135:CY142,N131:CY131)=SUM(N128:CY128)) -> 0 | J142: £
C144: Input Price Base
C145: Inclusive of VAT?
B147: END

Sheet I- Infra Maint (hidden)
B1: =IF(SUM(A:A)=0,"OK","Error") -> OK
B2: File Name | G2: =IFERROR(MID(CELL("filename",G2),FIND("[",CELL("filename",G2))+1,FIND("]",CELL("filename",G2))-FIND("[",CELL("filename",G2))-1),"Please save the file to show here") -> Greener Bus Tool.xlsm
B3: Sheet Name | G3: =IFERROR(MID(CELL("filename",G2),FIND("]",CELL("filename",G2))+1,255),"Please save the file to show here") -> I- Infra Maint
B4: Description and Purpose of Sheet | G4: This sheet allows the maintenance costs of supporting infrastructure to be input for non-Proforma scenarios, proforma inputs are automatically fed through into Sc 1 block. The cost approach can be chosen from a % of capex or an average annual cost.
B8: Infrastructure Maintenance Cost
H10: Constant | J10: Unit | L10: Source | N10: ='I- TAG Annual Rates'!N$14 -> 2010 | O10: ='I- TAG Annual Rates'!O$14 -> 2011 | P10: ='I- TAG Annual Rates'!P$14 -> 2012 | Q10: ='I- TAG Annual Rates'!Q$14 -> 2013 | R10: ='I- TAG Annual Rates'!R$14 -> 2014 | S10: ='I- TAG Annual Rates'!S$14 -> 2015 | T10: ='I- TAG Annual Rates'!T$14 -> 2016 | U10: ='I- TAG Annual Rates'!U$14 -> 2017 | V10: ='I- TAG Annual Rates'!V$14 -> 2018 | W10: ='I- TAG Annual Rates'!W$14 -> 2019 | X10: ='I- TAG Annual Rates'!X$14 -> 2020 | Y10: ='I- TAG Annual Rates'!Y$14 -> 2021 | Z10: ='I- TAG Annual Rates'!Z$14 -> 2022 | AA10: ='I- TAG Annual Rates'!AA$14 -> 2023 | AB10: ='I- TAG Annual Rates'!AB$14 -> 2024 | AC10: ='I- TAG Annual Rates'!AC$14 -> 2025 | AD10: ='I- TAG Annual Rates'!AD$14 -> 2026 | AE10: ='I- TAG Annual Rates'!AE$14 -> 2027 | AF10: ='I- TAG Annual Rates'!AF$14 -> 2028 | AG10: ='I- TAG Annual Rates'!AG$14 -> 2029 | AH10: ='I- TAG Annual Rates'!AH$14 -> 2030 | AI10: ='I- TAG Annual Rates'!AI$14 -> 2031 | AJ10: ='I- TAG Annual Rates'!AJ$14 -> 2032 | AK10: ='I- TAG Annual Rates'!AK$14 -> 2033 | AL10: ='I- TAG Annual Rates'!AL$14 -> 2034 | AM10: ='I- TAG Annual Rates'!AM$14 -> 2035 | AN10: ='I- TAG Annual Rates'!AN$14 -> 2036 | AO10: ='I- TAG Annual Rates'!AO$14 -> 2037 | AP10: ='I- TAG Annual Rates'!AP$14 -> 2038 | AQ10: ='I- TAG Annual Rates'!AQ$14 -> 2039 | AR10: ='I- TAG Annual Rates'!AR$14 -> 2040 | AS10: ='I- TAG Annual Rates'!AS$14 -> 2041 | AT10: ='I- TAG Annual Rates'!AT$14 -> 2042 | AU10: ='I- TAG Annual Rates'!AU$14 -> 2043 | AV10: ='I- TAG Annual Rates'!AV$14 -> 2044 | AW10: ='I- TAG Annual Rates'!AW$14 -> 2045 | AX10: ='I- TAG Annual Rates'!AX$14 -> 2046 | AY10: ='I- TAG Annual Rates'!AY$14 -> 2047 | AZ10: ='I- TAG Annual Rates'!AZ$14 -> 2048 | BA10: ='I- TAG Annual Rates'!BA$14 -> 2049 | BB10: ='I- TAG Annual Rates'!BB$14 -> 2050 | BC10: ='I- TAG Annual Rates'!BC$14 -> 2051 | BD10: ='I- TAG Annual Rates'!BD$14 -> 2052 | BE10: ='I- TAG Annual Rates'!BE$14 -> 2053 | BF10: ='I- TAG Annual Rates'!BF$14 -> 2054 | BG10: ='I- TAG Annual Rates'!BG$14 -> 2055 | BH10: ='I- TAG Annual Rates'!BH$14 -> 2056 | BI10: ='I- TAG Annual Rates'!BI$14 -> 2057 | BJ10: ='I- TAG Annual Rates'!BJ$14 -> 2058 | BK10: ='I- TAG Annual Rates'!BK$14 -> 2059 | BL10: ='I- TAG Annual Rates'!BL$14 -> 2060 | BM10: ='I- TAG Annual Rates'!BM$14 -> 2061 | BN10: ='I- TAG Annual Rates'!BN$14 -> 2062 | BO10: ='I- TAG Annual Rates'!BO$14 -> 2063 | BP10: ='I- TAG Annual Rates'!BP$14 -> 2064 | BQ10: ='I- TAG Annual Rates'!BQ$14 -> 2065 | BR10: ='I- TAG Annual Rates'!BR$14 -> 2066 | BS10: ='I- TAG Annual Rates'!BS$14 -> 2067 | BT10: ='I- TAG Annual Rates'!BT$14 -> 2068 | BU10: ='I- TAG Annual Rates'!BU$14 -> 2069 | BV10: ='I- TAG Annual Rates'!BV$14 -> 2070 | BW10: ='I- TAG Annual Rates'!BW$14 -> 2071 | BX10: ='I- TAG Annual Rates'!BX$14 -> 2072 | BY10: ='I- TAG Annual Rates'!BY$14 -> 2073 | BZ10: ='I- TAG Annual Rates'!BZ$14 -> 2074 | CA10: ='I- TAG Annual Rates'!CA$14 -> 2075 | CB10: ='I- TAG Annual Rates'!CB$14 -> 2076 | CC10: ='I- TAG Annual Rates'!CC$14 -> 2077 | CD10: ='I- TAG Annual Rates'!CD$14 -> 2078 | CE10: ='I- TAG Annual Rates'!CE$14 -> 2079 | CF10: ='I- TAG Annual Rates'!CF$14 -> 2080 | CG10: ='I- TAG Annual Rates'!CG$14 -> 2081 | CH10: ='I- TAG Annual Rates'!CH$14 -> 2082 | CI10: ='I- TAG Annual Rates'!CI$14 -> 2083 | CJ10: ='I- TAG Annual Rates'!CJ$14 -> 2084 | CK10: ='I- TAG Annual Rates'!CK$14 -> 2085 | CL10: ='I- TAG Annual Rates'!CL$14 -> 2086 | CM10: ='I- TAG Annual Rates'!CM$14 -> 2087 | CN10: ='I- TAG Annual Rates'!CN$14 -> 2088 | CO10: ='I- TAG Annual Rates'!CO$14 -> 2089 | CP10: ='I- TAG Annual Rates'!CP$14 -> 2090 | CQ10: ='I- TAG Annual Rates'!CQ$14 -> 2091 | CR10: ='I- TAG Annual Rates'!CR$14 -> 2092 | CS10: ='I- TAG Annual Rates'!CS$14 -> 2093 | CT10: ='I- TAG Annual Rates'!CT$14 -> 2094 | CU10: ='I- TAG Annual Rates'!CU$14 -> 2095 | CV10: ='I- TAG Annual Rates'!CV$14 -> 2096 | CW10: ='I- TAG Annual Rates'!CW$14 -> 2097 | CX10: ='I- TAG Annual Rates'!CX$14 -> 2098 | CY10: ='I- TAG Annual Rates'!CY$14 -> 2099
C12: ='I- User Parameters'!$P$14 -> Sc. 1 - ZEBRA buisness case
C14: Maintenance cost of supporting infrastructure
C16: Maintenance cost approach | H16: ='I- User Proforma'!$H$105 -> % of capex | J16: description | L16: Proforma
C18: Annual maintenance as % of capex | H18: ='I- User Proforma'!$H$109 -> 0.021 | J18: % | L18: Proforma
C20: Annual maintenance cost | H20: ='I- User Proforma'!$H$114 -> 0 | J20: £ | L20: Proforma
C22: Input Price Base | H22: ='I- User Proforma'!$H$116 -> Nominal | L22: Proforma
C24: Sector incurring cost | H24: ='I- User Proforma'!$H$118 -> Input sector | L24: Proforma
C26: ='I- User Parameters'!#REF! -> 
C28: Maintenance cost of supporting infrastructure
C30: Maintenance cost approach | J30: description
C32: Annual maintenance as % of capex | J32: %
C34: Annual maintenance cost | J34: £
C36: Input Price Base
C37: Inclusive of VAT?
C39: Sector incurring cost | J39: description
C41: ='I- User Parameters'!#REF! -> 
C43: Maintenance cost of supporting infrastructure
C45: Maintenance cost approach | J45: description
C47: Annual maintenance as % of capex | J47: %
C49: Annual maintenance cost | J49: £
C51: Input Price Base
C52: Inclusive of VAT?
C54: Sector incurring cost | J54: description
C56: ='I- User Parameters'!#REF! -> 
C58: Maintenance cost of supporting infrastructure
C60: Maintenance cost approach | J60: description
C62: Annual maintenance as % of capex | J62: %
C64: Annual maintenance cost | J64: £
C66: Input Price Base
C67: Inclusive of VAT?
C69: Sector incurring cost | J69: description
C71: ='I- User Parameters'!#REF! -> 
C73: Maintenance cost of supporting infrastructure
C75: Maintenance cost approach | J75: description
C77: Annual maintenance as % of capex | J77: %
C79: Annual maintenance cost | J79: £
C81: Input Price Base
C82: Inclusive of VAT?
C84: Sector incurring cost | J84: description
C86: ='I- User Parameters'!#REF! -> 
C88: Maintenance cost of supporting infrastructure
C90: Maintenance cost approach | J90: description
C92: Annual maintenance as % of capex | J92: %
C94: Annual maintenance cost | J94: £
C96: Input Price Base
C97: Inclusive of VAT?
C99: Sector incurring cost | J99: description
B101: END

Sheet I- Fuel Energy Consumption (hidden)
B1: =IF(SUM(A:A)=0,"OK","Error") -> OK
B2: File Name | G2: =IFERROR(MID(CELL("filename",G2),FIND("[",CELL("filename",G2))+1,FIND("]",CELL("filename",G2))-FIND("[",CELL("filename",G2))-1),"Please save the file to show here") -> Greener Bus Tool.xlsm
B3: Sheet Name | G3: =IFERROR(MID(CELL("filename",G2),FIND("]",CELL("filename",G2))+1,255),"Please save the file to show here") -> I- Fuel Energy Consumption
B4: Description and Purpose of Sheet | G4: This sheet sets out the fuel and energy consumption figures from Zemo test certificates. For proposals investing in both single and double-deck buses, the weighted average consumption for single and double deck is calculated in this sheet.
B8: Fuel/Energy Consumption
C12: Diesel Fuel Consumption
D14: Manufacturer | E14: Model | F14: Technology | G14: Vehicle type (Bus/Minibus/Coach) | H14: Single Deck / Double Deck / Coach | I14: Vehicle Length (m) | J14: Total Passenger Capacity | K14: Seated Capacity | L14: Measured Unladen Weight (kg) | M14: Total Test Weight (kg) | N14: Added Test Weight (kg) | O14: Engine size (l) | P14: Fuel Consumption (l/100 km) | U14: NOx (g/km) | Z14: PM2.5 (g/km) | AE14: Tank to Wheel CO2e (g / km) * calculated using TAG databook values
P15: Inner Urban | Q15: Outer Urban | R15: Rural | S15: MLTB average | T15: LUB average | U15: Inner Urban | V15: Outer Urban | W15: Rural | X15: MLTB average | Y15: LUB average | Z15: Inner Urban | AA15: Outer Urban | AB15: Rural | AC15: MLTB average | AD15: LUB average | AE15: Inner Urban | AF15: Outer Urban | AG15: Rural | AH15: MLTB average | AI15: LUB average
C16: LEB Certificate Data | D16: Optare | E16: Metrodecker | F16: Euro VI Diesel | G16: Bus | H16: Double deck | I16: 11.1 | J16: 100 | K16: 63 | L16: 10546 | M16: 12865 | N16: 2319 | O16: 5.1 | P16: 47.12 | Q16: 34.67 | R16: 28.27 | S16: 38.15 | T16: 33.67 | U16: 0.139 | V16: 0.049 | W16: 0.141 | X16: 0.074 | Y16: 0.105 | Z16: N/A | AA16: N/A | AB16: N/A | AC16: N/A | AD16: 0.105 | AE16: 1140.298701 | AF16: 839.0101009 | AG16: 684.1308207 | AH16: 923.2257096 | AI16: 814.8102134
D17: Optare | E17: Metrocity | F17: Euro VI Diesel | G17: Bus | H17: Single deck | I17: 10.8 | J17: 64 | K17: 39 | L17: 7830 | M17: 9142 | N17: 1312 | O17: 5.1 | P17: 40.53 | Q17: 27.6 | R17: 21.63 | S17: 31.2 | T17: 26.86 | U17: 0.068 | V17: 0.028 | W17: 0.066 | X17: 0.039 | Y17: 0.051 | Z17: N/A | AA17: N/A | AB17: N/A | AC17: N/A | AD17: 0.0033 | AE17: 980.8214419 | AF17: 667.916896 | AG17: 523.4435674 | AH17: 755.0364912 | AI17: 650.0089793
D18: Optare | E18: Solo | F18: Euro VI Diesel | G18: Bus | H18: Single deck | I18: 9.9 | J18: 41 | K18: 37 | L18: 6951 | M18: 7922 | N18: 971 | O18: 5.1 | P18: 32.57 | Q18: 22.9 | R18: 18.35 | S18: 25.6 | T18: 22.32 | U18: 0.064 | V18: 0.025 | W18: 0.037 | X18: 0.036 | Y18: 0.037 | Z18: N/A | AA18: N/A | AB18: N/A | AC18: N/A | AD18: 0.0032 | AE18: 788.1903371 | AF18: 554.1774246 | AG18: 444.0679363 | AH18: 619.517121 | AI18: 540.1414898
D19: Volvo | E19: B8RLE | F19: Euro VI Diesel | G19: Bus | H19: Single deck | I19: 12.8 | J19: 100 | K19: 42 | L19: 11643 | M19: 13418 | N19: 1775 | O19: 7.7 | P19: 48.23 | Q19: 35.69 | R19: 28.21 | S19: 39.16 | T19: 34.21 | U19: 0.847 | V19: 0.284 | W19: 0.299 | X19: 0.44 | Y19: 0.376 | Z19: N/A | AA19: N/A | AB19: N/A | AC19: N/A | AD19: 0.0039 | AE19: 1167.160576 | AF19: 863.6939862 | AG19: 682.6788274 | AH19: 947.667596 | AI19: 827.8781527
D20: ADL | E20: E200 | F20: Euro VI Diesel | G20: Bus | H20: Single deck | I20: 10.4 | J20: 72 | K20: 38 | L20: 8150 | M20: 9537 | N20: 1387 | O20: 4.5 | P20: 37.78 | Q20: 27.04 | R20: 22.05 | S20: 30.06 | T20: 26.45 | U20: 0.499 | V20: 0.174 | W20: 0.179 | X20: 0.265 | Y20: 0.227 | Z20: N/A | AA20: N/A | AB20: N/A | AC20: N/A | AD20: 0.0075 | AE20: 914.2717512 | AF20: 654.364959 | AG20: 533.6075202 | AH20: 727.4486194 | AI20: 640.0870254
C22: Euro VI Test Programme | D22: Wrightbus | E22: Streetlite | F22: Euro VI Diesel | G22: Bus | H22: Single Deck | I22: 9.5 | J22: 70 | K22: 32 | L22: 8360 | M22: 9523 | N22: 1163 | O22: 5.1 | P22: 23.21 | Q22: 39.14 | R22: 29.2 | S22: 31.98 | T22: 28 | U22: 0.184 | V22: 0.139 | W22: 0.358 | X22: 0.297 | Y22: 0.025 | Z22: N/A | AA22: N/A | AB22: N/A | AC22: N/A | AD22: 0.0064
D23: Mercedes | E23: Citaro | F23: Euro VI Diesel | G23: Bus | H23: Single Deck | I23: 10.6 | J23: 84 | K23: 28 | L23: 10533 | M23: 11594 | N23: 1061 | O23: 7.7 | P23: 48.58 | Q23: 34.59 | R23: 27.42 | S23: 38.41 | T23: 33.42 | U23: 0.508 | V23: 0.593 | W23: 0.427 | X23: 0.569 | Y23: 0.505 | Z23: N/A | AA23: N/A | AB23: N/A | AC23: N/A | AD23: 0.0032
D24: Volvo | E24: B8RLE | F24: Euro VI Diesel | G24: Bus | H24: Single deck | I24: 12.8 | J24: 90 | K24: 41 | L24: 11390 | M24: 12859 | N24: 1469 | O24: 7.7 | P24: 49.43 | Q24: 37.21 | R24: 29.23 | S24: 40.64 | T24: 35.48 | U24: 0.526 | V24: 0.443 | W24: 0.395 | X24: 0.465 | Y24: 0.434 | Z24: N/A | AA24: N/A | AB24: N/A | AC24: N/A | AD24: 0.0028
D25: ADL / Scania | E25: E300 | F25: Euro VI Diesel | G25: Bus | H25: Single Deck | I25: 12.3 | J25: 89 | K25: 78 | L25: 11738 | M25: 14442 | N25: 2704 | O25: 9.3 | P25: 59.99 | Q25: 44.69 | R25: 33.98 | S25: 48.94 | T25: 42.19 | U25: 0.121 | V25: 0.031 | W25: 0.053 | X25: 0.056 | Y25: 0.055 | Z25: N/A | AA25: N/A | AB25: N/A | AC25: N/A | AD25: 0.0049
D26: ADL | E26: E400 | F26: Euro VI Diesel | G26: Bus | H26: Double Deck | I26: 10.9 | J26: 99 | K26: 74 | L26: 11250 | M26: 13766 | N26: 2516 | O26: 6.7 | P26: 54.82 | Q26: 40.79 | R26: 31.99 | S26: 44.81 | T26: 39.04 | U26: 0.026 | V26: 0.028 | W26: 0.01 | X26: 0.027 | Y26: 0.02 | Z26: N/A | AA26: N/A | AB26: N/A | AC26: N/A | AD26: 0.0078
C29: Electricity Consumption
C31: Manufacturer | D31: Model | E31: Technology | F31: Vehicle type (Bus/Minibus/Coach) | G31: Single Deck / Double Deck / Coach | H31: Vehicle Length (m) | I31: Total Passenger Capacity | J31: Seated Capacity | K31: Estimated Range (km) | L31: Battery Capacity (kWh) | M31: Hydrogen Tank Capacity (kg) | N31: Declared Unladen Weight (kg) | O31: Measured Unladen Weight (kg) | P31: Total Test Weight (kg) | Q31: Added Test Weight (kg) | R31: Zemo Calculated Added Test Weight (kg) | S31: Actual vs Calculated Added Test Weight deficit (kg) | T31: Overall Energy Efficiency (kWh/km) | U31: WTW greenhouse gas emissions (CO2e/km) | V31: WTW CO2e per passenger km | W31: WTW saving compared to Euro VI diesel equivalent (%) | X31: Vehicle Energy Consumption (kWh/km) | AC31: Grid-to-Wheel (Charging) Efficiency (%) | AD31: Grid Electrical Energy Consumption (kWh/100km)
X32: Inner Urban | Y32: Outer Urban | Z32: Rural | AA32: LBC Average | AB32: UKBC Average | AD32: Inner Urban | AE32: Outer Urban | AF32: Rural | AG32: LBC Average | AH32: UKBC Average
C33: Yutong | D33: Yutong E12 | E33: Battery-Electric | F33: Bus | G33: Single Deck | H33: 12.2 | I33: 70 | J33: 37 | K33: 443 | L33: 422 | M33: N/A | N33: 13750 | O33: 13852 | P33: 15110 | Q33: =P33-O33 -> 1258 | R33: =J33/2*68+75 -> 1333 | S33: =Q33-R33 -> -75 | T33: =SUM(AH33/100) -> 0.9130434783 | U33: 265.3 | V33: 3.8 | W33: 0.77 | X33: 1.01 | Y33: 0.91 | Z33: 0.71 | AA33: 0.94 | AB33: 0.84 | AC33: 0.92 | AD33: =SUM(X33*100)/AC33 -> 109.7826087 | AE33: =SUM(Y33*100)/AC33 -> 98.91304348 | AF33: =SUM(Z33*100)/AC33 -> 77.17391304 | AG33: =SUM(AA33*100)/AC33 -> 102.173913 | AH33: =SUM(AB33*100)/AC33 -> 91.30434783
C34: Caetano | D34: Caetano e.City Gold | E34: Battery-Electric | F34: Bus | G34: Single Deck | H34: 10.7 / 12.0 | I34: 65 | J34: 31 | K34: 376 | L34: 385 | M34: N/A | N34: 13530 | O34: 13195 | P34: 14375 | Q34: 1180 | R34: =I34/4*68+75 -> 1180 | S34: 0 | T34: 1.223684211 | U34: 356.2 | V34: 5.5 | W34: 0.67 | X34: 1.2 | Y34: 1.02 | Z34: 0.76 | AA34: 1.07 | AB34: 0.93 | AC34: 0.76 | AD34: 157.8947368 | AE34: 134.2105263 | AF34: 100 | AG34: 140.7894737 | AH34: 122.3684211
C35: Volvo | D35: Volvo 7900e | E35: Battery-Electric | F35: Bus | G35: Single Deck | H35: 12 | I35: 87 | J35: 40 | K35: 184 | L35: 198 | M35: N/A | N35: 12095 | O35: 13167 | P35: 14579 | Q35: 1412 | R35: =I35/4*68+75 -> 1554 | S35: -142 | T35: 1.270588235 | U35: 367.3 | V35: 4.3 | W35: 0.72 | X35: 1.12 | Y35: 1.23 | Z35: 0.93 | AA35: 1.2 | AB35: 1.08 | AC35: 0.85 | AD35: 131.7647059 | AE35: 144.7058824 | AF35: 109.4117647 | AG35: 141.1764706 | AH35: 127.0588235
C36: Alexander-Dennis | D36: Alexander-Dennis Enviro200 EV | E36: Battery-Electric | F36: Bus | G36: Single Deck | H36: 9.6 / 10.2 / 10.9 / 11.6 | I36: 65 | J36: 34 | K36: 290 | L36: 348 | M36: N/A | N36: 12246 | O36: 11793 | P36: 12777 | Q36: 984 | R36: =J36/2*68+75 -> 1231 | S36: -247 | T36: 1.443037975 | U36: 417.7 | V36: 6.4 | W36: 0.62 | X36: 1.68 | Y36: 1.22 | Z36: 0.89 | AA36: 1.35 | AB36: 1.14 | AC36: 0.79 | AD36: 212.6582278 | AE36: 154.4303797 | AF36: 112.6582278 | AG36: 170.8860759 | AH36: 144.3037975
C37: Mellor | D37: Mellor Sigma 8 | E37: Battery-Electric | F37: Bus | G37: Single Deck | H37: 8.7 | I37: 54 | J37: 27 | K37: 163 | L37: 241 | M37: N/A | N37: 8720 | O37: 10260 | P37: 11314 | Q37: 1054 | R37: 993 | S37: 61 | T37: 1.38372093 | U37: 402.2 | V37: 7.4 | W37: 0.59 | X37: 1.5 | Y37: 1.32 | Z37: 0.96 | AA37: 1.37 | AB37: 1.19 | AC37: 0.86 | AD37: 174.4186047 | AE37: 153.4883721 | AF37: 111.627907 | AG37: 159.3023256 | AH37: 138.372093
C38: Volvo | D38: Volvo BZL Double Deck | E38: Battery-Electric | F38: Bus | G38: Double Deck | H38: 10.8 | I38: 81 | J38: 64 | K38: 345 | L38: 470 | M38: N/A | N38: 13406 | O38: 14215 | P38: 16391 | Q38: 2176 | R38: 2251 | S38: -75 | T38: 1.303827751 | U38: 429.1 | V38: 5.3 | W38: 0.65 | X38: 1.5 | Y38: 1.19 | Z38: 0.86 | AA38: 1.27 | AB38: 1.09 | AC38: =AVERAGE(AC33:AC37) -> 0.836 | AD38: 179.4258373 | AE38: 142.3444976 | AF38: 102.8708134 | AG38: 151.9138756 | AH38: 130.3827751
C39: Switch Mobility | D39: Switch Mobility Metrodecker EV | E39: Battery-Electric | F39: Bus | G39: Double Deck | H39: 10.5 / 11.1 | I39: 98 | J39: 69 | K39: 219 | L39: 300 | M39: N/A | N39: 11180 | O39: 11262 | P39: 13683 | Q39: 2421 | R39: 2421 | S39: 0 | T39: 1.363636364 | U39: 423.6 | V39: 4.3 | W39: 0.7 | X39: 1.56 | Y39: 1.22 | Z39: 0.94 | AA39: 1.31 | AB39: 1.14 | AC39: =AVERAGE(AC33:AC37) -> 0.836 | AD39: 186.6028708 | AE39: 145.9330144 | AF39: 112.4401914 | AG39: 156.6985646 | AH39: 136.3636364
C40: ADL | D40: Alexander-Dennis Enviro400 EV | E40: Battery-Electric | F40: Bus | G40: Double Deck | M40: N/A | S40: 0
C41: Yutong | D41: Yutong TCe12 | E41: Battery-Electric | F41: Coach | G41: Coach | H41: 12.4 | I41: 50 | J41: 50 | K41: 312 | L41: 281 | M41: N/A | N41: 13885 | O41: 13885 | P41: 15585 | Q41: =P41-O41 -> 1700 | R41: =J41/2*68+75 -> 1775 | S41: -75 | T41: =SUM(AH41/100) -> 1.25 | U41: 366.6 | V41: 7.3 | W41: 0.61 | X41: 1.33 | Y41: 0.97 | Z41: 0.69 | AA41: 1.07 | AB41: 0.9 | AC41: 0.72 | AD41: =SUM(X41*100)/AC41 -> 184.7222222 | AE41: =SUM(Y41*100)/AC41 -> 134.7222222 | AF41: =SUM(Z41*100)/AC41 -> 95.83333333 | AG41: =SUM(AA41*100)/AC41 -> 148.6111111 | AH41: =SUM(AB41*100)/AC41 -> 125
C43: Average fuel/energy consumption
D46: Diesel (l/100km) | F46: Electricity (kWh/100km)
D47: SD | E47: DD | F47: SD | G47: DD
C48: Inner Urban | D48: =AVERAGE($P$17:$P$20, $P$22:$P$25) -> 42.54 | E48: =AVERAGE($P$16, $P$26) -> 50.97 | F48: =AVERAGE($AD$33:$AD$35, $AD$36:$AD$37) -> 157.3037768 | G48: =AVERAGE($AD$38:$AD$39) -> 183.0143541
C49: Outer Urban | D49: =AVERAGE($Q$17:$Q$20, $Q$22:$Q$25) -> 33.6075 | E49: =AVERAGE($Q$16, $Q$26) -> 37.73 | F49: =AVERAGE($AE$33:$AE$35, $AE$36:$AE$37) -> 137.1496408 | G49: =AVERAGE($AE$38:$AE$39) -> 144.138756
C50: Rural | D50: =AVERAGE($R$17:$R$20, $R$22:$R$25) -> 26.25875 | E50: =AVERAGE($R$16, $R$26) -> 30.13 | F50: =AVERAGE($AF$33:$AF$35, $AF$36:$AF$37) -> 102.1743625 | G50: =AVERAGE($AF$38:$AF$39) -> 107.6555024
C53: SD only proposal flag | D53: =IF(AND('I- User Proforma'!$M$20>1, 'I- User Proforma'!$M$21=0), 1, 0) -> 0
C54: DD only proposal flag | D54: =IF(AND('I- User Proforma'!$M$20=0, 'I- User Proforma'!$M$21>1), 1, 0) -> 0
C55: SD and DD proposal flag | D55: =IF(AND('I- User Proforma'!$M$20 >1, 'I- User Proforma'!$M$21>1), 1, 0) -> 0
C56: % SD | D56: =IFERROR('I- User Proforma'!$M$20/SUM('I- User Proforma'!$M$20:$M$21), 0) -> 0
C57: % DD | D57: =IFERROR('I- User Proforma'!$M$21/SUM('I- User Proforma'!$M$20:$M$21), 0) -> 0
C59: Diesel SD average consumption (l/100km) | D59: =IF('I- User Parameters'!$H$98= "Low", 'I- Fuel Energy Consumption'!D50, IF('I- User Parameters'!$H$98= "Medium", 'I- Fuel Energy Consumption'!D49, 'I- Fuel Energy Consumption'!D48)) -> 42.54
C60: Diesel DD weighted average consumption (l/100km) | D60: =IF('I- User Parameters'!$H$98= "Low", 'I- Fuel Energy Consumption'!E50, IF('I- User Parameters'!$H$98= "Medium", 'I- Fuel Energy Consumption'!E49, 'I- Fuel Energy Consumption'!E48)) -> 50.97
C61: Electric SD weighted average consumption (kWh/100km) | D61: =IF('I- User Parameters'!$H$98= "Low", 'I- Fuel Energy Consumption'!F50, IF('I- User Parameters'!$H$98= "Medium", 'I- Fuel Energy Consumption'!F49, 'I- Fuel Energy Consumption'!F48)) -> 157.3037768
C62: Electric DD weighted average consumption (kWh/100km) | D62: =IF('I- User Parameters'!$H$98= "Low", 'I- Fuel Energy Consumption'!G50, IF('I- User Parameters'!$H$98= "Medium", 'I- Fuel Energy Consumption'!G49, 'I- Fuel Energy Consumption'!G48)) -> 183.0143541
B64: END

Sheet I- Bus Stats (hidden)
B1: =IF(SUM(A:A)=0,"OK","Error") -> OK
B2: File Name | G2: =IFERROR(MID(CELL("filename",G2),FIND("[",CELL("filename",G2))+1,FIND("]",CELL("filename",G2))-FIND("[",CELL("filename",G2))-1),"Please save the file to show here") -> Greener Bus Tool.xlsm
B3: Sheet Name | G3: =IFERROR(MID(CELL("filename",G2),FIND("]",CELL("filename",G2))+1,255),"Please save the file to show here") -> I- Bus Stats
B4: Description and Purpose of Sheet | G4: This sheet allows the inputs for bus operation from various sources identified in column L
B8: Bus Stats
H10: Constant | J10: Unit | L10: Source
C12: Consumption Statistics
C14: ='I- Lists'!K13 -> Diesel | D14: Fuel Consumption per 100km | H14: =IF('I- Fuel Energy Consumption'!$D$53= 1, 'I- Fuel Energy Consumption'!$D$59, IF('I- Fuel Energy Consumption'!$D$54=1, 'I- Fuel Energy Consumption'!$D$60, SUMPRODUCT('I- Fuel Energy Consumption'!$D$56:$D$57, 'I- Fuel Energy Consumption'!$D$59:$D$60))) -> 0 | J14: litres/100km | L14: Zemo Test Certificates
C15: ='I- Lists'!K14 -> Pure Electric Bus | D15: Fuel Consumption per 100km | H15: 0 | J15: litres/100km | L15: Zemo Test Certificates
C16: ='I- Lists'!K15 -> Plug-in Hybrid | D16: Fuel Consumption per 100km | H16: 25 | J16: litres/100km | L16: Average LEBs ULEBs Performance Costs, EURO VI
C17: ='I- Lists'!K16 -> Parallel Hybrid | D17: Fuel Consumption per 100km | H17: 25 | J17: litres/100km | L17: Average LEBs ULEBs Performance Costs, EURO VI
C18: ='I- Lists'!K17 -> Hydrogen | D18: Fuel Consumption per 100km | H18: 0 | J18: litres/100km
C19: ='I- Lists'!K18 -> <Spare> | D19: Fuel Consumption per 100km | H19: 0 | J19: litres/100km
C21: ='I- Lists'!K13 -> Diesel | D21: Electricity Consumption per 100km | H21: 0 | J21: kWh/100km | L21: Zemo Test Certificates
C22: ='I- Lists'!K14 -> Pure Electric Bus | D22: Electricity Consumption per 100km | H22: =IF('I- Fuel Energy Consumption'!$D$53= 1, 'I- Fuel Energy Consumption'!$D$61, IF('I- Fuel Energy Consumption'!$D$54= 1, 'I- Fuel Energy Consumption'!$D$62, SUMPRODUCT('I- Fuel Energy Consumption'!$D$56:$D$57, 'I- Fuel Energy Consumption'!$D$61:$D$62))) -> 0 | J22: kWh/100km | L22: Zemo Test Certificates
C23: ='I- Lists'!K15 -> Plug-in Hybrid | D23: Electricity Consumption per 100km | H23: 200 | J23: kWh/100km | L23: Average LEBs ULEBs Performance Costs, EURO VI
C24: ='I- Lists'!K16 -> Parallel Hybrid | D24: Electricity Consumption per 100km | H24: 0 | J24: kWh/100km
C25: ='I- Lists'!K17 -> Hydrogen | D25: Electricity Consumption per 100km | H25: 0 | J25: kWh/100km
C26: ='I- Lists'!K18 -> <Spare> | D26: Electricity Consumption per 100km | H26: 0 | J26: kWh/100km
C28: ='I- Lists'!K13 -> Diesel | D28: Hydrogen Consumption per 100km | H28: 0 | J28: kg/100km
C29: ='I- Lists'!K14 -> Pure Electric Bus | D29: Hydrogen Consumption per 100km | H29: 0 | J29: kg/100km
C30: ='I- Lists'!K15 -> Plug-in Hybrid | D30: Hydrogen Consumption per 100km | H30: 0 | J30: kg/100km
C31: ='I- Lists'!K16 -> Parallel Hybrid | D31: Hydrogen Consumption per 100km | H31: 0 | J31: kg/100km
C32: ='I- Lists'!K17 -> Hydrogen | D32: Hydrogen Consumption per 100km | H32: =IF('I- User Parameters'!$H$98="Low", 6, IF('I- User Parameters'!$H$98="Medium", 6.5, 7)) -> 7 | J32: kg/100km | L32: LEBs report and ZEMO estimates
C33: ='I- Lists'!K18 -> <Spare> | D33: Hydrogen Consumption per 100km | H33: 0 | J33: kg/100km
C35: Hybrid Composition
C37: ='I- Lists'!$K$13 -> Diesel | D37: Diesel Range | F37: =C37&"_"&D37 -> Diesel_Diesel Range | H37: 1 | J37: %
A38: =--NOT(SUM(H37:H39)=1) -> 0 | C38: ='I- Lists'!$K$13 -> Diesel | D38: Electric Range | F38: =C38&"_"&D38 -> Diesel_Electric Range | H38: 0 | J38: %
C39: ='I- Lists'!$K$13 -> Diesel | D39: Hydrogen Range | F39: Diesel_Hydrogen Range | H39: 0 | J39: %
C40: ='I- Lists'!$K$14 -> Pure Electric Bus | D40: Diesel Range | F40: Pure Electric Bus_Diesel Range | H40: 0 | J40: %
A41: =--NOT(SUM(H40:H42)=1) -> 0 | C41: ='I- Lists'!$K$14 -> Pure Electric Bus | D41: Electric Range | F41: Pure Electric Bus_Electric Range | H41: 1 | J41: %
C42: ='I- Lists'!$K$14 -> Pure Electric Bus | D42: Hydrogen Range | F42: Pure Electric Bus_Hydrogen Range | H42: 0 | J42: %
C43: ='I- Lists'!$K$15 -> Plug-in Hybrid | D43: Diesel Range | F43: Plug-in Hybrid_Diesel Range | H43: 0.61 | J43: % | L43: 200715 energy split plug in hybrid spreadsheet
A44: =--NOT(SUM(H43:H45)=1) -> 0 | C44: ='I- Lists'!$K$15 -> Plug-in Hybrid | D44: Electric Range | F44: Plug-in Hybrid_Electric Range | H44: 0.39 | J44: % | L44: 200715 energy split plug in hybrid spreadsheet
C45: ='I- Lists'!$K$15 -> Plug-in Hybrid | D45: Hydrogen Range | F45: Plug-in Hybrid_Hydrogen Range | H45: 0 | J45: %
C46: ='I- Lists'!$K$16 -> Parallel Hybrid | D46: Diesel Range | F46: Parallel Hybrid_Diesel Range | H46: 1 | J46: %
A47: =--NOT(SUM(H46:H48)=1) -> 0 | C47: ='I- Lists'!$K$16 -> Parallel Hybrid | D47: Electric Range | F47: Parallel Hybrid_Electric Range | H47: 0 | J47: %
C48: ='I- Lists'!$K$16 -> Parallel Hybrid | D48: Hydrogen Range | F48: Parallel Hybrid_Hydrogen Range | H48: 0 | J48: %
C49: ='I- Lists'!$K$17 -> Hydrogen | D49: Diesel Range | F49: Hydrogen_Diesel Range | H49: 0 | J49: %
A50: =--NOT(SUM(H49:H51)=1) -> 0 | C50: ='I- Lists'!$K$17 -> Hydrogen | D50: Electric Range | F50: Hydrogen_Electric Range | H50: 0 | J50: %
C51: ='I- Lists'!$K$17 -> Hydrogen | D51: Hydrogen Range | F51: Hydrogen_Hydrogen Range | H51: 1 | J51: %
C52: ='I- Lists'!$K$18 -> <Spare> | D52: Diesel Range | F52: <Spare>_Diesel Range | H52: 0 | J52: %
A53: =--NOT(SUM(H52:H54)=1) -> 0 | C53: ='I- Lists'!$K$18 -> <Spare> | D53: Electric Range | F53: <Spare>_Electric Range | H53: 1 | J53: %
C54: ='I- Lists'!$K$18 -> <Spare> | D54: Hydrogen Range | F54: =C54&"_"&D54 -> <Spare>_Hydrogen Range | H54: 0 | J54: %
C56: Bus Services Operator Grant (BSOG) Subsidies
C58: Current BSOG | H58: 0.3457 | J58: £/litre | L58: https://www.gov.uk/government/publications/bus-service-operators-grant-guidance-for-commercial-transport-operators/bus-service-operators-grant-guidance-for-commercial-transport-operators
C59: Low Carbon Emission Bus BSOG | H59: 0.06 | J59: £/km | L59: https://www.gov.uk/government/publications/bus-service-operators-grant-guidance-for-commercial-transport-operators/bus-service-operators-grant-guidance-for-commercial-transport-operators
C60: Distance Based BSOG | H60: 0.22 | J60: £/km
C62: Input price base: | H62: Nominal | J62: yyyy | L62: https://www.gov.uk/government/publications/bus-service-operators-grant-guidance-for-commercial-transport-operators/bus-service-operators-grant-guidance-for-commercial-transport-operators
B64: END

Sheet I- TAG Values (hidden)
B1: =IF(SUM(A:A)=0,"OK","Error") -> OK
B2: File Name | G2: =IFERROR(MID(CELL("filename",G2),FIND("[",CELL("filename",G2))+1,FIND("]",CELL("filename",G2))-FIND("[",CELL("filename",G2))-1),"Please save the file to show here") -> Greener Bus Tool.xlsm
B3: Sheet Name | G3: =IFERROR(MID(CELL("filename",G2),FIND("]",CELL("filename",G2))+1,255),"Please save the file to show here") -> I- TAG Values
B4: Description and Purpose of Sheet | G4: This sheet inputs the (non-annual) values from TAG Databook input
B8: TAG Values
H10: Constant | K10: Unit | M10: Source
C12: Discount Rate
H14: Standard rate | I14: Health rate
C15: Period 1 Discount Rate | H15: 0.035 | I15: 0.015 | K15: % | M15: TAG Databook A1.1.1 (May 2023)
C17: Period 2 Discount Rate | H17: 0.035 | I17: 0.015 | K17: % | M17: TAG Databook A1.1.1 (May 2023)
C18: Period 2 Length | H18: 30 | I18: 30 | K18: years | M18: TAG Databook A1.1.1 (May 2023)
C20: Period 3 Discount Rate | H20: 0.03 | I20: 0.0129 | K20: % | M20: TAG Databook A1.1.1 (May 2023)
C21: Period 3 Length | H21: 45 | I21: 45 | K21: years | M21: TAG Databook A1.1.1 (May 2023)
C23: Period 4 Discount Rate | H23: 0.025 | I23: 0.0107 | K23: % | M23: TAG Databook A1.1.1 (May 2023)
C24: Period 4 Length | H24: 50 | I24: 50 | K24: years | M24: TAG Databook A1.1.1 (May 2023)
C26: Marginal Utility of Income
C28: Marginal Utility of Income | H28: 1.3 | K28: factor | M28: TAG Databook A4.1 (May 2023), Green Book, Annex 3 (2022)
C30: Damage Cost Values by Pollutant
C32: Road Transport | D32: Central | E32: Nox | F32: =C32&"_"&D32&"_"&E32 -> Road Transport _Central_Nox | H32: 7907.751758 | K32: £/tonne | M32: TAG Databook A3.2 (May 2023)
C33: Road Transport Central London | D33: Central | E33: Nox | F33: =C33&"_"&D33&"_"&E33 -> Road Transport Central London _Central_Nox | H33: 42680.33351 | K33: £/tonne | M33: TAG Databook A3.2 (May 2023)
C34: Road Transport Inner London | D34: Central | E34: Nox | F34: Road Transport Inner London _Central_Nox | H34: 40776.84113 | K34: £/tonne | M34: TAG Databook A3.2 (May 2023)
C35: Road Transport Outer London | D35: Central | E35: Nox | F35: Road Transport Outer London _Central_Nox | H35: 22381.60453 | K35: £/tonne | M35: TAG Databook A3.2 (May 2023)
C36: Road Transport Inner Conurbation | D36: Central | E36: Nox | F36: Road Transport Inner Conurbation _Central_Nox | H36: 15318.64597 | K36: £/tonne | M36: TAG Databook A3.2 (May 2023)
C37: Road Transport Outer Conurbation | D37: Central | E37: Nox | F37: Road Transport Outer Conurbation _Central_Nox | H37: 9753.029218 | K37: £/tonne | M37: TAG Databook A3.2 (May 2023)
C38: Road Transport Urban Big | D38: Central | E38: Nox | F38: Road Transport Urban Big _Central_Nox | H38: 9030.758106 | K38: £/tonne | M38: TAG Databook A3.2 (May 2023)
C39: Road Transport Urban Large | D39: Central | E39: Nox | F39: Road Transport Urban Large _Central_Nox | H39: 7454.893863 | K39: £/tonne | M39: TAG Databook A3.2 (May 2023)
C40: Road Transport Urban Medium | D40: Central | E40: Nox | F40: Road Transport Urban Medium _Central_Nox | H40: 6128.812225 | K40: £/tonne | M40: TAG Databook A3.2 (May 2023)
C41: Road Transport Urban Small | D41: Central | E41: Nox | F41: Road Transport Urban Small _Central_Nox | H41: 5107.343521 | K41: £/tonne | M41: TAG Databook A3.2 (May 2023)
C42: Road Transport Rural | D42: Central | E42: Nox | F42: Road Transport Rural _Central_Nox | H42: 3331.111659 | K42: £/tonne | M42: TAG Databook A3.2 (May 2023)
C43: Road Transport | D43: Low | E43: Nox | F43: Road Transport _Low_Nox | H43: 1316.604791 | K43: £/tonne | M43: TAG Databook A3.2 (May 2023)
C44: Road Transport Central London | D44: Low | E44: Nox | F44: Road Transport Central London _Low_Nox | H44: 5031.528746 | K44: £/tonne | M44: TAG Databook A3.2 (May 2023)
C45: Road Transport Inner London | D45: Low | E45: Nox | F45: Road Transport Inner London _Low_Nox | H45: 4827.77654 | K45: £/tonne | M45: TAG Databook A3.2 (May 2023)
C46: Road Transport Outer London | D46: Low | E46: Nox | F46: Road Transport Outer London _Low_Nox | H46: 2862.684659 | K46: £/tonne | M46: TAG Databook A3.2 (May 2023)
C47: Road Transport Inner Conurbation | D47: Low | E47: Nox | F47: Road Transport Inner Conurbation _Low_Nox | H47: 2108.598418 | K47: £/tonne | M47: TAG Databook A3.2 (May 2023)
C48: Road Transport Outer Conurbation | D48: Low | E48: Nox | F48: Road Transport Outer Conurbation _Low_Nox | H48: 1513.587821 | K48: £/tonne | M48: TAG Databook A3.2 (May 2023)
C49: Road Transport Urban Big | D49: Low | E49: Nox | F49: Road Transport Urban Big _Low_Nox | H49: 1436.419212 | K49: £/tonne | M49: TAG Databook A3.2 (May 2023)
C50: Road Transport Urban Large | D50: Low | E50: Nox | F50: Road Transport Urban Large _Low_Nox | H50: 1268.543639 | K50: £/tonne | M50: TAG Databook A3.2 (May 2023)
C51: Road Transport Urban Medium | D51: Low | E51: Nox | F51: Road Transport Urban Medium _Low_Nox | H51: 1126.390937 | K51: £/tonne | M51: TAG Databook A3.2 (May 2023)
C52: Road Transport Urban Small | D52: Low | E52: Nox | F52: Road Transport Urban Small _Low_Nox | H52: 1017.407198 | K52: £/tonne | M52: TAG Databook A3.2 (May 2023)
C53: Road Transport Rural | D53: Low | E53: Nox | F53: Road Transport Rural _Low_Nox | H53: 827.8702619 | K53: £/tonne | M53: TAG Databook A3.2 (May 2023)
C54: Road Transport | D54: High | E54: Nox | F54: Road Transport _High_Nox | H54: 30411.87838 | K54: £/tonne | M54: TAG Databook A3.2 (May 2023)
C55: Road Transport Central London | D55: High | E55: Nox | F55: Road Transport Central London _High_Nox | H55: 174497.8575 | K55: £/tonne | M55: TAG Databook A3.2 (May 2023)
C56: Road Transport Inner London | D56: High | E56: Nox | F56: Road Transport Inner London _High_Nox | H56: 166611.0902 | K56: £/tonne | M56: TAG Databook A3.2 (May 2023)
C57: Road Transport Outer London | D57: High | E57: Nox | F57: Road Transport Outer London _High_Nox | H57: 90386.78043 | K57: £/tonne | M57: TAG Databook A3.2 (May 2023)
C58: Road Transport Inner Conurbation | D58: High | E58: Nox | F58: Road Transport Inner Conurbation _High_Nox | H58: 61119.56976 | K58: £/tonne | M58: TAG Databook A3.2 (May 2023)
C59: Road Transport Outer Conurbation | D59: High | E59: Nox | F59: Road Transport Outer Conurbation _High_Nox | H59: 38056.30918 | K59: £/tonne | M59: TAG Databook A3.2 (May 2023)
C60: Road Transport Urban Big | D60: High | E60: Nox | F60: Road Transport Urban Big _High_Nox | H60: 35064.33325 | K60: £/tonne | M60: TAG Databook A3.2 (May 2023)
C61: Road Transport Urban Large | D61: High | E61: Nox | F61: Road Transport Urban Large _High_Nox | H61: 28532.75504 | K61: £/tonne | M61: TAG Databook A3.2 (May 2023)
C62: Road Transport Urban Medium | D62: High | E62: Nox | F62: Road Transport Urban Medium _High_Nox | H62: 23040.24538 | K62: £/tonne | M62: TAG Databook A3.2 (May 2023)
C63: Road Transport Urban Small | D63: High | E63: Nox | F63: Road Transport Urban Small _High_Nox | H63: 18806.12561 | K63: £/tonne | M63: TAG Databook A3.2 (May 2023)
C64: Road Transport Rural | D64: High | E64: Nox | F64: Road Transport Rural _High_Nox | H64: 11445.32329 | K64: £/tonne | M64: TAG Databook A3.2 (May 2023)
C65: Road Transport | D65: Central | E65: PM2.5 | F65: Road Transport _Central_PM2.5 | H65: 57232.03181 | K65: £/tonne | M65: TAG Databook A3.2 (May 2023)
C66: Road Transport Central London | D66: Central | E66: PM2.5 | F66: Road Transport Central London _Central_PM2.5 | H66: 319949.1795 | K66: £/tonne | M66: TAG Databook A3.2 (May 2023)
C67: Road Transport Inner London | D67: Central | E67: PM2.5 | F67: Road Transport Inner London _Central_PM2.5 | H67: 304758.4709 | K67: £/tonne | M67: TAG Databook A3.2 (May 2023)
C68: Road Transport Outer London | D68: Central | E68: PM2.5 | F68: Road Transport Outer London _Central_PM2.5 | H68: 167159.3935 | K68: £/tonne | M68: TAG Databook A3.2 (May 2023)
C69: Road Transport Inner Conurbation | D69: Central | E69: PM2.5 | F69: Road Transport Inner Conurbation _Central_PM2.5 | H69: 113550.2248 | K69: £/tonne | M69: TAG Databook A3.2 (May 2023)
C70: Road Transport Outer Conurbation | D70: Central | E70: PM2.5 | F70: Road Transport Outer Conurbation _Central_PM2.5 | H70: 70963.30594 | K70: £/tonne | M70: TAG Databook A3.2 (May 2023)
C71: Road Transport Urban Big | D71: Central | E71: PM2.5 | F71: Road Transport Urban Big _Central_PM2.5 | H71: 65384.82775 | K71: £/tonne | M71: TAG Databook A3.2 (May 2023)
C72: Road Transport Urban Large | D72: Central | E72: PM2.5 | F72: Road Transport Urban Large _Central_PM2.5 | H72: 53364.80139 | K72: £/tonne | M72: TAG Databook A3.2 (May 2023)
C73: Road Transport Urban Medium | D73: Central | E73: PM2.5 | F73: Road Transport Urban Medium _Central_PM2.5 | H73: 43164.32962 | K73: £/tonne | M73: TAG Databook A3.2 (May 2023)
C74: Road Transport Urban Small | D74: Central | E74: PM2.5 | F74: Road Transport Urban Small _Central_PM2.5 | H74: 35276.88539 | K74: £/tonne | M74: TAG Databook A3.2 (May 2023)
C75: Road Transport Rural | D75: Central | E75: PM2.5 | F75: Road Transport Rural _Central_PM2.5 | H75: 21642.41048 | K75: £/tonne | M75: TAG Databook A3.2 (May 2023)
C76: Road Transport | D76: Low | E76: PM2.5 | F76: Road Transport _Low_PM2.5 | H76: 22699.0789 | K76: £/tonne | M76: TAG Databook A3.2 (May 2023)
C77: Road Transport Central London | D77: Low | E77: PM2.5 | F77: Road Transport Central London _Low_PM2.5 | H77: 126790.0567 | K77: £/tonne | M77: TAG Databook A3.2 (May 2023)
C78: Road Transport Inner London | D78: Low | E78: PM2.5 | F78: Road Transport Inner London _Low_PM2.5 | H78: 120774.2898 | K78: £/tonne | M78: TAG Databook A3.2 (May 2023)
C79: Road Transport Outer London | D79: Low | E79: PM2.5 | F79: Road Transport Outer London _Low_PM2.5 | H79: 66295.28196 | K79: £/tonne | M79: TAG Databook A3.2 (May 2023)
C80: Road Transport Inner Conurbation | D80: Low | E80: PM2.5 | F80: Road Transport Inner Conurbation _Low_PM2.5 | H80: 45029.91461 | K80: £/tonne | M80: TAG Databook A3.2 (May 2023)
C81: Road Transport Outer Conurbation | D81: Low | E81: PM2.5 | F81: Road Transport Outer Conurbation _Low_PM2.5 | H81: 28144.88123 | K81: £/tonne | M81: TAG Databook A3.2 (May 2023)
C82: Road Transport Urban Big | D82: Low | E82: PM2.5 | F82: Road Transport Urban Big _Low_PM2.5 | H82: 25930.00675 | K82: £/tonne | M82: TAG Databook A3.2 (May 2023)
C83: Road Transport Urban Large | D83: Low | E83: PM2.5 | F83: Road Transport Urban Large _Low_PM2.5 | H83: 21161.12204 | K83: £/tonne | M83: TAG Databook A3.2 (May 2023)
C84: Road Transport Urban Medium | D84: Low | E84: PM2.5 | F84: Road Transport Urban Medium _Low_PM2.5 | H84: 17115.18537 | K84: £/tonne | M84: TAG Databook A3.2 (May 2023)
C85: Road Transport Urban Small | D85: Low | E85: PM2.5 | F85: Road Transport Urban Small _Low_PM2.5 | H85: 13987.149 | K85: £/tonne | M85: TAG Databook A3.2 (May 2023)
C86: Road Transport Rural | D86: Low | E86: PM2.5 | F86: Road Transport Rural _Low_PM2.5 | H86: 8585.346306 | K86: £/tonne | M86: TAG Databook A3.2 (May 2023)
C87: Road Transport | D87: High | E87: PM2.5 | F87: Road Transport _High_PM2.5 | H87: 164329.2009 | K87: £/tonne | M87: TAG Databook A3.2 (May 2023)
C88: Road Transport Central London | D88: High | E88: PM2.5 | F88: Road Transport Central London _High_PM2.5 | H88: 910143.5076 | K88: £/tonne | M88: TAG Databook A3.2 (May 2023)
C89: Road Transport Inner London | D89: High | E89: PM2.5 | F89: Road Transport Inner London _High_PM2.5 | H89: 867219.4837 | K89: £/tonne | M89: TAG Databook A3.2 (May 2023)
C90: Road Transport Outer London | D90: High | E90: PM2.5 | F90: Road Transport Outer London _High_PM2.5 | H90: 479782.2934 | K90: £/tonne | M90: TAG Databook A3.2 (May 2023)
C91: Road Transport Inner Conurbation | D91: High | E91: PM2.5 | F91: Road Transport Inner Conurbation _High_PM2.5 | H91: 325571.6573 | K91: £/tonne | M91: TAG Databook A3.2 (May 2023)
C92: Road Transport Outer Conurbation | D92: High | E92: PM2.5 | F92: Road Transport Outer Conurbation _High_PM2.5 | H92: 203755.5913 | K92: £/tonne | M92: TAG Databook A3.2 (May 2023)
C93: Road Transport Urban Big | D93: High | E93: PM2.5 | F93: Road Transport Urban Big _High_PM2.5 | H93: 187552.214 | K93: £/tonne | M93: TAG Databook A3.2 (May 2023)
C94: Road Transport Urban Large | D94: High | E94: PM2.5 | F94: Road Transport Urban Large _High_PM2.5 | H94: 152902.1543 | K94: £/tonne | M94: TAG Databook A3.2 (May 2023)
C95: Road Transport Urban Medium | D95: High | E95: PM2.5 | F95: Road Transport Urban Medium _High_PM2.5 | H95: 123574.698 | K95: £/tonne | M95: TAG Databook A3.2 (May 2023)
C96: Road Transport Urban Small | D96: High | E96: PM2.5 | F96: Road Transport Urban Small _High_PM2.5 | H96: 100949.4031 | K96: £/tonne | M96: TAG Databook A3.2 (May 2023)
C97: Road Transport Rural | D97: High | E97: PM2.5 | F97: =C97&"_"&D97&"_"&E97 -> Road Transport Rural _High_PM2.5 | H97: 62284.545 | K97: £/tonne | M97: TAG Databook A3.2 (May 2023)
C99: Input Price Base | H99: 2010
C101: PM10 to PM2.5 Conversion Factor (Road Transport) | H101: 0.622 | K101: factor | M101: TAG Databook A3.2.3 (May 2023)
B103: END

Sheet I- TAG Annual Rates (hidden)
B1: =IF(SUM(A:A)=0,"OK","Error") -> OK
B2: File Name | G2: =IFERROR(MID(CELL("filename",G2),FIND("[",CELL("filename",G2))+1,FIND("]",CELL("filename",G2))-FIND("[",CELL("filename",G2))-1),"Please save the file to show here") -> Greener Bus Tool.xlsm
B3: Sheet Name | G3: =IFERROR(MID(CELL("filename",G2),FIND("]",CELL("filename",G2))+1,255),"Please save the file to show here") -> I- TAG Annual Rates
B4: Description and Purpose of Sheet | G4: This sheet inputs the annual values from TAG Databook
B8: TAG Annual Rates
G10: Notes | H10: Constant | J10: Unit | L10: Source
C12: Time
N14: 2010 | O14: 2011 | P14: 2012 | Q14: 2013 | R14: 2014 | S14: 2015 | T14: 2016 | U14: 2017 | V14: 2018 | W14: 2019 | X14: 2020 | Y14: 2021 | Z14: 2022 | AA14: 2023 | AB14: 2024 | AC14: 2025 | AD14: 2026 | AE14: 2027 | AF14: 2028 | AG14: 2029 | AH14: 2030 | AI14: 2031 | AJ14: 2032 | AK14: 2033 | AL14: 2034 | AM14: 2035 | AN14: 2036 | AO14: 2037 | AP14: 2038 | AQ14: 2039 | AR14: 2040 | AS14: 2041 | AT14: 2042 | AU14: 2043 | AV14: 2044 | AW14: 2045 | AX14: 2046 | AY14: 2047 | AZ14: 2048 | BA14: 2049 | BB14: 2050 | BC14: 2051 | BD14: 2052 | BE14: 2053 | BF14: 2054 | BG14: 2055 | BH14: 2056 | BI14: 2057 | BJ14: 2058 | BK14: 2059 | BL14: 2060 | BM14: 2061 | BN14: 2062 | BO14: 2063 | BP14: 2064 | BQ14: 2065 | BR14: 2066 | BS14: 2067 | BT14: 2068 | BU14: 2069 | BV14: 2070 | BW14: 2071 | BX14: 2072 | BY14: 2073 | BZ14: 2074 | CA14: 2075 | CB14: 2076 | CC14: 2077 | CD14: 2078 | CE14: 2079 | CF14: 2080 | CG14: 2081 | CH14: 2082 | CI14: 2083 | CJ14: 2084 | CK14: 2085 | CL14: 2086 | CM14: 2087 | CN14: 2088 | CO14: 2089 | CP14: 2090 | CQ14: 2091 | CR14: 2092 | CS14: 2093 | CT14: 2094 | CU14: 2095 | CV14: 2096 | CW14: 2097 | CX14: 2098 | CY14: 2099
C16: GDP Deflator
C18: GDP Deflator Index | J18: factor | L18: TAG Databook Annual Parameters (May 2023) | N18: 100 | O18: 102.1256363 | P18: 103.6314735 | Q18: 105.8797999 | R18: 107.233408 | S18: 107.9989584 | T18: 110.0254838 | U18: 111.9973363 | V18: 113.9437957 | W18: 116.3522542 | X18: 123.5221795 | Y18: 123.2849612 | Z18: 129.55667 | AA18: 133.2967434 | AB18: 135.8427002 | AC18: 137.2898789 | AD18: 138.7173232 | AE18: 140.9501683 | AF18: 144.1920222 | AG18: 147.5084387 | AH18: 150.9011328 | AI18: 154.3718588 | AJ18: 157.9224116 | AK18: 161.554627 | AL18: 165.2703835 | AM18: 169.0716023 | AN18: 172.9602491 | AO18: 176.9383349 | AP18: 181.0079166 | AQ18: 185.1710986 | AR18: 189.4300339 | AS18: 193.7869247 | AT18: 198.244024 | AU18: 202.8036365 | AV18: 207.4681201 | AW18: 212.2398869 | AX18: 217.1214043 | AY18: 222.1151966 | AZ18: 227.2238461 | BA18: 232.4499946 | BB18: 237.7963445 | BC18: 243.2656604 | BD18: 248.8607706 | BE18: 254.5845683 | BF18: 260.4400134 | BG18: 266.4301337 | BH18: 272.5580268 | BI18: 278.8268614 | BJ18: 285.2398792 | BK18: 291.8003964 | BL18: 298.5118055 | BM18: 305.377577 | BN18: 312.4012613 | BO18: 319.5864903 | BP18: 326.9369796 | BQ18: 334.4565301 | BR18: 342.1490303 | BS18: 350.018458 | BT18: 358.0688826 | BU18: 366.3044669 | BV18: 374.7294696 | BW18: 383.3482474 | BX18: 392.1652571 | BY18: 401.185058 | BZ18: 410.4123143 | CA18: 419.8517976 | CB18: 429.5083889 | CC18: 439.3870819 | CD18: 449.4929847 | CE18: 459.8313234 | CF18: 470.4074438 | CG18: 481.226815 | CH18: 492.2950318 | CI18: 503.6178175 | CJ18: 515.2010273 | CK18: 527.0506509 | CL18: 539.1728159 | CM18: 551.5737907 | CN18: 564.2599879 | CO18: 577.2379676 | CP18: 590.5144408 | CQ18: 604.096273 | CR18: 617.9904873 | CS18: 632.2042685 | CT18: 646.7449666 | CU18: 661.6201009 | CV18: 676.8373632 | CW18: 692.4046225 | CX18: 708.3299289 | CY18: 724.6215172 | CZ18: 741.2878121
C19: Real GDP per household Index | J19: factor | L19: TAG Databook Annual Parameters (May 2023) | N19: 110.5400623 | O19: 111.252001 | P19: 112.1408712 | Q19: 112.3220153 | R19: 112.6211138 | S19: 113.9354621 | T19: 114.2008594 | U19: 114.69374 | V19: 116.1681692 | W19: 117.2129076 | X19: 117.6215351 | Y19: 118.2955599 | Z19: 120.0648468 | AA19: 120.9968991 | AB19: 121.807084 | AC19: 122.5686086 | AD19: 123.3244972 | AE19: 124.1011138 | AF19: 124.6255741 | AG19: 125.1178844 | AH19: 125.5811014 | AI19: 126.0493224 | AJ19: 126.5077449 | AK19: 126.9463659 | AL19: 127.3569741 | AM19: 127.745901 | AN19: 128.1403263 | AO19: 128.5099876 | AP19: 128.8579041 | AQ19: 129.1732466 | AR19: 129.1897454 | AS19: 129.204867 | AT19: 129.2175287 | AU19: 129.2269976 | AV19: 129.2321798 | AW19: 129.2297899 | AX19: 129.216295 | AY19: 129.1896283 | AZ19: 129.1474112 | BA19: 129.0873521 | BB19: 129.0076618 | BC19: 128.9076337 | BD19: 128.7872226 | BE19: 128.6465928 | BF19: 128.4864263 | BG19: 128.3082628 | BH19: 128.1143544 | BI19: 127.907225 | BJ19: 127.6893949 | BK19: 127.4633787 | BL19: 127.231708 | BM19: 126.9966158 | BN19: 126.7603335 | BO19: 126.5248125 | BP19: 126.2917267 | BQ19: 126.0623042 | BR19: 125.8373271 | BS19: 125.6171449 | BT19: 125.4018483 | BU19: 125.1911369 | BV19: 124.9845271 | BW19: 124.7810722 | BX19: 124.5712286 | BY19: 124.3620018 | BZ19: 124.1521997 | CA19: 123.9406869 | CB19: 123.7263562 | CC19: 123.5083589 | CD19: 123.2859819 | CE19: 123.0587102 | CF19: 122.826263 | CG19: 122.5885364 | CH19: 122.3455965 | CI19: 122.0976336 | CJ19: 121.8450535 | CK19: 121.588324 | CL19: 121.3279975 | CM19: 121.0647569 | CN19: 120.7991815 | CO19: 120.5320029 | CP19: 120.2638171 | CQ19: 119.9952579 | CR19: 119.726897 | CS19: 119.4592133 | CT19: 119.1925803 | CU19: 118.9271602 | CV19: 118.6629208 | CW19: 118.3996585 | CX19: 118.1370603 | CY19: 117.8746543 | CZ19: 117.6119674
C20: Real GDP per capita Index | J20: factor | L20: TAG Databook Annual Parameters (May 2023) | N20: 131.4360558 | O20: 131.7360151 | P20: 132.763263 | Q20: 134.3344188 | R20: 137.5787595 | S20: 139.7608082 | T20: 141.6165316 | U20: 144.2156665 | V20: 145.8016214 | W20: 147.3396666 | X20: 130.5314649 | Y20: 140.5631748 | Z20: 145.3998822 | AA20: 144.2804219 | AB20: 146.2002022 | AC20: 149.1706449 | AD20: 151.7704426 | AE20: 154.0953407 | AF20: 156.6947961 | AG20: 159.292203 | AH20: 161.8746051 | AI20: 164.4158707 | AJ20: 166.9668902 | AK20: 169.5358393 | AL20: 172.1093163 | AM20: 174.7002286 | AN20: 177.5619575 | AO20: 180.4223045 | AP20: 183.2681269 | AQ20: 186.1010811 | AR20: 188.904488 | AS20: 191.6928227 | AT20: 194.451431 | AU20: 197.1754499 | AV20: 199.87405 | AW20: 202.5723295 | AX20: 205.291601 | AY20: 208.0042076 | AZ20: 210.7121885 | BA20: 213.4135669 | BB20: 216.1391142 | BC20: 218.9022035 | BD20: 221.7065928 | BE20: 224.5581231 | BF20: 227.4634787 | BG20: 230.4477757 | BH20: 233.5021447 | BI20: 236.6272978 | BJ20: 239.8202725 | BK20: 243.0791769 | BL20: 246.4082632 | BM20: 249.8065428 | BN20: 253.2722306 | BO20: 256.8161735 | BP20: 260.4287157 | BQ20: 264.1079853 | BR20: 267.8532196 | BS20: 271.6560599 | BT20: 275.5159713 | BU20: 279.4494261 | BV20: 283.5523557 | BW20: 287.9030962 | BX20: 292.4854359 | BY20: 297.0128538 | BZ20: 301.3833359 | CA20: 305.6817238 | CB20: 309.8324739 | CC20: 314.0550158 | CD20: 318.2549006 | CE20: 322.3898757 | CF20: 326.4792315 | CG20: 330.7905276 | CH20: 335.2855642 | CI20: 339.8862778 | CJ20: 344.5389282 | CK20: 349.4302781 | CL20: 354.5624623 | CM20: 359.9797962 | CN20: 365.6997834 | CO20: 371.7907816 | CP20: 378.0730092 | CQ20: 384.5134181 | CR20: 391.0468213 | CS20: 397.6940728 | CT20: 404.4762916 | CU20: 411.3897224 | CV20: 418.4307898 | CW20: 425.5937012 | CX20: 432.8743952 | CY20: 440.2660889 | CZ20: 447.7605703
C21: Nominal Index | J21: factor | N21: 1 | O21: 1 | P21: 1 | Q21: 1 | R21: 1 | S21: 1 | T21: 1 | U21: 1 | V21: 1 | W21: 1 | X21: 1 | Y21: 1 | Z21: 1 | AA21: 1 | AB21: 1 | AC21: 1 | AD21: 1 | AE21: 1 | AF21: 1 | AG21: 1 | AH21: 1 | AI21: 1 | AJ21: 1 | AK21: 1 | AL21: 1 | AM21: 1 | AN21: 1 | AO21: 1 | AP21: 1 | AQ21: 1 | AR21: 1 | AS21: 1 | AT21: 1 | AU21: 1 | AV21: 1 | AW21: 1 | AX21: 1 | AY21: 1 | AZ21: 1 | BA21: 1 | BB21: 1 | BC21: 1 | BD21: 1 | BE21: 1 | BF21: 1 | BG21: 1 | BH21: 1 | BI21: 1 | BJ21: 1 | BK21: 1 | BL21: 1 | BM21: 1 | BN21: 1 | BO21: 1 | BP21: 1 | BQ21: 1 | BR21: 1 | BS21: 1 | BT21: 1 | BU21: 1 | BV21: 1 | BW21: 1 | BX21: 1 | BY21: 1 | BZ21: 1 | CA21: 1 | CB21: 1 | CC21: 1 | CD21: 1 | CE21: 1 | CF21: 1 | CG21: 1 | CH21: 1 | CI21: 1 | CJ21: 1 | CK21: 1 | CL21: 1 | CM21: 1 | CN21: 1 | CO21: 1 | CP21: 1 | CQ21: 1 | CR21: 1 | CS21: 1 | CT21: 1 | CU21: 1 | CV21: 1 | CW21: 1 | CX21: 1 | CY21: 1
C23: Cost of Carbon
C25: Real Non-Traded (Low) | J25: £/tonnes CO2e | L25: TAG Databook A3.4 (May 2023) | N25: 83.56564758 | O25: 84.83822089 | P25: 86.13017349 | Q25: 87.4418005 | R25: 88.77340153 | S25: 90.12528074 | T25: 91.49774694 | U25: 92.89111364 | V25: 94.30569913 | W25: 95.74182653 | X25: 97.19982389 | Y25: 99.02185048 | Z25: 100.5297974 | AA25: 102.0607081 | AB25: 103.614932 | AC25: 105.1928244 | AD25: 106.7947456 | AE25: 108.4210615 | AF25: 110.0721437 | AG25: 111.7483692 | AH25: 113.450121 | AI25: 115.1777878 | AJ25: 116.9317643 | AK25: 118.7124511 | AL25: 120.5202549 | AM25: 122.3555887 | AN25: 124.2188718 | AO25: 126.1105298 | AP25: 128.0309947 | AQ25: 129.9807053 | AR25: 131.9601069 | AS25: 133.9395085 | AT25: 135.9486011 | AU25: 137.9878301 | AV25: 140.0576476 | AW25: 142.1585123 | AX25: 144.29089 | AY25: 146.4552533 | AZ25: 148.6520821 | BA25: 150.8818633 | BB25: 153.1450913 | BC25: 155.4422677 | BD25: 157.7739017 | BE25: 160.1405102 | BF25: 162.5426178 | BG25: 164.9807571 | BH25: 167.4554685 | BI25: 169.9673005 | BJ25: 172.51681 | BK25: 175.1045622 | BL25: 177.7311306 | BM25: 180.3970975 | BN25: 183.103054 | BO25: 185.8495998 | BP25: 188.6373438 | BQ25: 191.466904 | BR25: 194.3389075 | BS25: 197.2539911 | BT25: 200.212801 | BU25: 203.215993 | BV25: 206.2642329 | BW25: 209.3581964 | BX25: 212.4985694 | BY25: 215.6860479 | BZ25: 218.9213386 | CA25: 222.2051587 | CB25: 225.5382361 | CC25: 228.9213096 | CD25: 232.3551293 | CE25: 235.8404562 | CF25: 239.378063 | CG25: 242.968734 | CH25: 246.613265 | CI25: 250.312464 | CJ25: 254.0671509 | CK25: 257.8781582 | CL25: 261.7463306 | CM25: 265.6725255 | CN25: 269.6576134 | CO25: 273.7024776 | CP25: 277.8080148 | CQ25: 281.975135 | CR25: 286.204762 | CS25: 290.4978335 | CT25: 294.855301 | CU25: 299.2781305 | CV25: 303.7673024 | CW25: 308.323812 | CX25: 312.9486692 | CY25: 317.6428992 | CZ25: 322.4075427
C26: Real Non-Traded (Central) | J26: £/tonnes CO2e | L26: TAG Databook A3.4 (May 2023) | N26: 167.1312952 | O26: 169.6764418 | P26: 172.260347 | Q26: 174.883601 | R26: 177.5468031 | S26: 180.2505615 | T26: 182.9954939 | U26: 185.7822273 | V26: 188.6113983 | W26: 191.4836531 | X26: 194.3996478 | Y26: 198.043701 | Z26: 201.0595949 | AA26: 204.1214161 | AB26: 207.2298641 | AC26: 210.3856488 | AD26: 213.5894912 | AE26: 216.842123 | AF26: 220.1442874 | AG26: 223.4967384 | AH26: 226.9002421 | AI26: 230.3555757 | AJ26: 233.8635286 | AK26: 237.4249022 | AL26: 241.0405098 | AM26: 244.7111775 | AN26: 248.4377436 | AO26: 252.2210595 | AP26: 256.0619894 | AQ26: 259.9614105 | AR26: 263.9202137 | AS26: 267.8790169 | AT26: 271.8972022 | AU26: 275.9756602 | AV26: 280.1152951 | AW26: 284.3170245 | AX26: 288.5817799 | AY26: 292.9105066 | AZ26: 297.3041642 | BA26: 301.7637267 | BB26: 306.2901826 | BC26: 310.8845353 | BD26: 315.5478033 | BE26: 320.2810204 | BF26: 325.0852357 | BG26: 329.9615142 | BH26: 334.9109369 | BI26: 339.934601 | BJ26: 345.03362 | BK26: 350.2091243 | BL26: 355.4622612 | BM26: 360.7941951 | BN26: 366.206108 | BO26: 371.6991996 | BP26: 377.2746876 | BQ26: 382.9338079 | BR26: 388.6778151 | BS26: 394.5079823 | BT26: 400.425602 | BU26: 406.4319861 | BV26: 412.5284658 | BW26: 418.7163928 | BX26: 424.9971387 | BY26: 431.3720958 | BZ26: 437.8426772 | CA26: 444.4103174 | CB26: 451.0764722 | CC26: 457.8426192 | CD26: 464.7102585 | CE26: 471.6809124 | CF26: 478.7561261 | CG26: 485.937468 | CH26: 493.22653 | CI26: 500.624928 | CJ26: 508.1343019 | CK26: 515.7563164 | CL26: 523.4926612 | CM26: 531.3450511 | CN26: 539.3152268 | CO26: 547.4049552 | CP26: 555.6160296 | CQ26: 563.95027 | CR26: 572.4095241 | CS26: 580.9956669 | CT26: 589.7106019 | CU26: 598.556261 | CV26: 607.5346049 | CW26: 616.6476239 | CX26: 625.8973383 | CY26: 635.2857984 | CZ26: 644.8150854
C27: Real Non-Traded (High) | J27: £/tonnes CO2e | L27: TAG Databook A3.4 (May 2023) | N27: 250.6969427 | O27: 254.5146627 | P27: 258.3905205 | Q27: 262.3254015 | R27: 266.3202046 | S27: 270.3758422 | T27: 274.4932408 | U27: 278.6733409 | V27: 282.9170974 | W27: 287.2254796 | X27: 291.5994717 | Y27: 297.0655515 | Z27: 301.5893923 | AA27: 306.1821242 | AB27: 310.8447961 | AC27: 315.5784732 | AD27: 320.3842368 | AE27: 325.2631846 | AF27: 330.216431 | AG27: 335.2451076 | AH27: 340.3503631 | AI27: 345.5333635 | AJ27: 350.7952929 | AK27: 356.1373532 | AL27: 361.5607647 | AM27: 367.0667662 | AN27: 372.6566154 | AO27: 378.3315893 | AP27: 384.092984 | AQ27: 389.9421158 | AR27: 395.8803206 | AS27: 401.8185254 | AT27: 407.8458033 | AU27: 413.9634903 | AV27: 420.1729427 | AW27: 426.4755368 | AX27: 432.8726699 | AY27: 439.3657599 | AZ27: 445.9562463 | BA27: 452.64559 | BB27: 459.4352738 | BC27: 466.326803 | BD27: 473.321705 | BE27: 480.4215306 | BF27: 487.6278535 | BG27: 494.9422713 | BH27: 502.3664054 | BI27: 509.9019015 | BJ27: 517.55043 | BK27: 525.3136865 | BL27: 533.1933918 | BM27: 541.1912926 | BN27: 549.309162 | BO27: 557.5487995 | BP27: 565.9120314 | BQ27: 574.4007119 | BR27: 583.0167226 | BS27: 591.7619734 | BT27: 600.638403 | BU27: 609.6479791 | BV27: 618.7926988 | BW27: 628.0745892 | BX27: 637.4957081 | BY27: 647.0581437 | BZ27: 656.7640159 | CA27: 666.6154761 | CB27: 676.6147082 | CC27: 686.7639289 | CD27: 697.0653878 | CE27: 707.5213686 | CF27: 718.1341891 | CG27: 728.906202 | CH27: 739.839795 | CI27: 750.9373919 | CJ27: 762.2014528 | CK27: 773.6344746 | CL27: 785.2389917 | CM27: 797.0175766 | CN27: 808.9728403 | CO27: 821.1074329 | CP27: 833.4240444 | CQ27: 845.925405 | CR27: 858.6142861 | CS27: 871.4935004 | CT27: 884.5659029 | CU27: 897.8343914 | CV27: 911.3019073 | CW27: 924.9714359 | CX27: 938.8460075 | CY27: 952.9286976 | CZ27: 967.222628
C29: Input Price Base | H29: 2010
C31: Carbon Dioxide Emissions
C33: Petrol | J33: kg C02e/l | L33: TAG Databook A3.3 (May 2023) | N33: 2.229919977 | O33: 2.256039048 | P33: 2.232772686 | Q33: 2.226021012 | R33: 2.22942843 | S33: 2.229063225 | T33: 2.228459535 | U33: 2.226091024 | V33: 2.228943583 | W33: 2.229164839 | X33: 2.229509373 | Y33: 2.227144557 | Z33: 2.110000746 | AA33: 2.110000339 | AB33: 2.109999856 | AC33: 2.109999538 | AD33: 2.109999419 | AE33: 2.109999395 | AF33: 2.109999383 | AG33: 2.109999458 | AH33: 2.110000376 | AI33: 2.110001037 | AJ33: 2.110001785 | AK33: 2.110001785 | AL33: 2.110001785 | AM33: 2.110001785 | AN33: 2.110001785 | AO33: 2.110001785 | AP33: 2.110001785 | AQ33: 2.110001785 | AR33: 2.110001785 | AS33: 2.110001785 | AT33: 2.110001785 | AU33: 2.110001785 | AV33: 2.110001785 | AW33: 2.110001785 | AX33: 2.110001785 | AY33: 2.110001785 | AZ33: 2.110001785 | BA33: 2.110001785 | BB33: 2.110001785 | BC33: 2.110001785 | BD33: 2.110001785 | BE33: 2.110001785 | BF33: 2.110001785 | BG33: 2.110001785 | BH33: 2.110001785 | BI33: 2.110001785 | BJ33: 2.110001785 | BK33: 2.110001785 | BL33: 2.110001785 | BM33: 2.110001785 | BN33: 2.110001785 | BO33: 2.110001785 | BP33: 2.110001785 | BQ33: 2.110001785 | BR33: 2.110001785 | BS33: 2.110001785 | BT33: 2.110001785 | BU33: 2.110001785 | BV33: 2.110001785 | BW33: 2.110001785 | BX33: 2.110001785 | BY33: 2.110001785 | BZ33: 2.110001785 | CA33: 2.110001785 | CB33: 2.110001785 | CC33: 2.110001785 | CD33: 2.110001785 | CE33: 2.110001785 | CF33: 2.110001785 | CG33: 2.110001785 | CH33: 2.110001785 | CI33: 2.110001785 | CJ33: 2.110001785 | CK33: 2.110001785 | CL33: 2.110001785 | CM33: 2.110001785 | CN33: 2.110001785 | CO33: 2.110001785 | CP33: 2.110001785 | CQ33: 2.110001785 | CR33: 2.110001785 | CS33: 2.110001785 | CT33: 2.110001785 | CU33: 2.110001785 | CV33: 2.110001785 | CW33: 2.110001785 | CX33: 2.110001785 | CY33: 2.110001785 | CZ33: 2.110001785
C34: Diesel | J34: kg C02e/l | L34: TAG Databook A3.3 (May 2023) | N34: 2.561712918 | O34: 2.610816975 | P34: 2.582860164 | Q34: 2.705067806 | R34: 2.704647278 | S34: 2.704114139 | T34: 2.704235246 | U34: 2.704795466 | V34: 2.697577392 | W34: 2.65675165 | X34: 2.536769928 | Y34: 2.522744576 | Z34: 2.530180775 | AA34: 2.522899713 | AB34: 2.518507552 | AC34: 2.514793286 | AD34: 2.513928391 | AE34: 2.512771834 | AF34: 2.511869752 | AG34: 2.510961676 | AH34: 2.509946139 | AI34: 2.509261174 | AJ34: 2.508580733 | AK34: 2.508580733 | AL34: 2.508580733 | AM34: 2.508580733 | AN34: 2.508580733 | AO34: 2.508580733 | AP34: 2.508580733 | AQ34: 2.508580733 | AR34: 2.508580733 | AS34: 2.508580733 | AT34: 2.508580733 | AU34: 2.508580733 | AV34: 2.508580733 | AW34: 2.508580733 | AX34: 2.508580733 | AY34: 2.508580733 | AZ34: 2.508580733 | BA34: 2.508580733 | BB34: 2.508580733 | BC34: 2.508580733 | BD34: 2.508580733 | BE34: 2.508580733 | BF34: 2.508580733 | BG34: 2.508580733 | BH34: 2.508580733 | BI34: 2.508580733 | BJ34: 2.508580733 | BK34: 2.508580733 | BL34: 2.508580733 | BM34: 2.508580733 | BN34: 2.508580733 | BO34: 2.508580733 | BP34: 2.508580733 | BQ34: 2.508580733 | BR34: 2.508580733 | BS34: 2.508580733 | BT34: 2.508580733 | BU34: 2.508580733 | BV34: 2.508580733 | BW34: 2.508580733 | BX34: 2.508580733 | BY34: 2.508580733 | BZ34: 2.508580733 | CA34: 2.508580733 | CB34: 2.508580733 | CC34: 2.508580733 | CD34: 2.508580733 | CE34: 2.508580733 | CF34: 2.508580733 | CG34: 2.508580733 | CH34: 2.508580733 | CI34: 2.508580733 | CJ34: 2.508580733 | CK34: 2.508580733 | CL34: 2.508580733 | CM34: 2.508580733 | CN34: 2.508580733 | CO34: 2.508580733 | CP34: 2.508580733 | CQ34: 2.508580733 | CR34: 2.508580733 | CS34: 2.508580733 | CT34: 2.508580733 | CU34: 2.508580733 | CV34: 2.508580733 | CW34: 2.508580733 | CX34: 2.508580733 | CY34: 2.508580733 | CZ34: 2.508580733
C35: Gas Oil Rail Diesel | J35: kg C02e/l | L35: TAG Databook A3.3 (May 2023) | N35: 2.925770375 | O35: 2.925770375 | P35: 2.925770375 | Q35: 2.758098088 | R35: 2.757668717 | S35: 2.757124368 | T35: 2.757248022 | U35: 2.757820021 | V35: 2.750450177 | W35: 2.708766015 | X35: 2.693597769 | Y35: 2.693597769 | Z35: 2.693597769 | AA35: 2.693597769 | AB35: 2.693597769 | AC35: 2.693597769 | AD35: 2.693597769 | AE35: 2.693597769 | AF35: 2.693597769 | AG35: 2.693597769 | AH35: 2.693597769 | AI35: 2.693597769 | AJ35: 2.693597769 | AK35: 2.693597769 | AL35: 2.693597769 | AM35: 2.693597769 | AN35: 2.693597769 | AO35: 2.693597769 | AP35: 2.693597769 | AQ35: 2.693597769 | AR35: 2.693597769 | AS35: 2.693597769 | AT35: 2.693597769 | AU35: 2.693597769 | AV35: 2.693597769 | AW35: 2.693597769 | AX35: 2.693597769 | AY35: 2.693597769 | AZ35: 2.693597769 | BA35: 2.693597769 | BB35: 2.693597769 | BC35: 2.693597769 | BD35: 2.693597769 | BE35: 2.693597769 | BF35: 2.693597769 | BG35: 2.693597769 | BH35: 2.693597769 | BI35: 2.693597769 | BJ35: 2.693597769 | BK35: 2.693597769 | BL35: 2.693597769 | BM35: 2.693597769 | BN35: 2.693597769 | BO35: 2.693597769 | BP35: 2.693597769 | BQ35: 2.693597769 | BR35: 2.693597769 | BS35: 2.693597769 | BT35: 2.693597769 | BU35: 2.693597769 | BV35: 2.693597769 | BW35: 2.693597769 | BX35: 2.693597769 | BY35: 2.693597769 | BZ35: 2.693597769 | CA35: 2.693597769 | CB35: 2.693597769 | CC35: 2.693597769 | CD35: 2.693597769 | CE35: 2.693597769 | CF35: 2.693597769 | CG35: 2.693597769 | CH35: 2.693597769 | CI35: 2.693597769 | CJ35: 2.693597769 | CK35: 2.693597769 | CL35: 2.693597769 | CM35: 2.693597769 | CN35: 2.693597769 | CO35: 2.693597769 | CP35: 2.693597769 | CQ35: 2.693597769 | CR35: 2.693597769 | CS35: 2.693597769 | CT35: 2.693597769 | CU35: 2.693597769 | CV35: 2.693597769 | CW35: 2.693597769 | CX35: 2.693597769 | CY35: 2.693597769 | CZ35: 2.693597769
C36: Electricity Roads | J36: kg C02e/kWh | L36: TAG Databook A3.3 (May 2023) | N36: 0.3893783937 | O36: 0.3840771996 | P36: 0.3770913583 | Q36: 0.3680384903 | R36: 0.3611175251 | S36: 0.3507973735 | T36: 0.3399413982 | U36: 0.3299586184 | V36: 0.3186890832 | W36: 0.3064095106 | X36: 0.2933757517 | Y36: 0.2794231752 | Z36: 0.2644870089 | AA36: 0.2484979145 | AB36: 0.2313816655 | AC36: 0.213058803 | AD36: 0.1934442664 | AE36: 0.172446999 | AF36: 0.1499695248 | AG36: 0.1259074964 | AH36: 0.1001492103 | AI36: 0.08338372331 | AJ36: 0.0694248641 | AK36: 0.0578027889 | AL36: 0.04812630816 | AM36: 0.0400697195 | AN36: 0.03336184474 | AO36: 0.02777690232 | AP36: 0.02312690765 | AQ36: 0.01925534574 | AR36: 0.01603190296 | AS36: 0.0152829614 | AT36: 0.0145094112 | AU36: 0.009130809656 | AV36: 0.008486546379 | AW36: 0.007889204185 | AX36: 0.007714832092 | AY36: 0.00533124571 | AZ36: 0.005182195424 | BA36: 0.003285134259 | BB36: 0.002500849074 | BC36: 0.002500849074 | BD36: 0.002500849074 | BE36: 0.002500849074 | BF36: 0.002500849074 | BG36: 0.002500849074 | BH36: 0.002500849074 | BI36: 0.002500849074 | BJ36: 0.002500849074 | BK36: 0.002500849074 | BL36: 0.002500849074 | BM36: 0.002500849074 | BN36: 0.002500849074 | BO36: 0.002500849074 | BP36: 0.002500849074 | BQ36: 0.002500849074 | BR36: 0.002500849074 | BS36: 0.002500849074 | BT36: 0.002500849074 | BU36: 0.002500849074 | BV36: 0.002500849074 | BW36: 0.002500849074 | BX36: 0.002500849074 | BY36: 0.002500849074 | BZ36: 0.002500849074 | CA36: 0.002500849074 | CB36: 0.002500849074 | CC36: 0.002500849074 | CD36: 0.002500849074 | CE36: 0.002500849074 | CF36: 0.002500849074 | CG36: 0.002500849074 | CH36: 0.002500849074 | CI36: 0.002500849074 | CJ36: 0.002500849074 | CK36: 0.002500849074 | CL36: 0.002500849074 | CM36: 0.002500849074 | CN36: 0.002500849074 | CO36: 0.002500849074 | CP36: 0.002500849074 | CQ36: 0.002500849074 | CR36: 0.002500849074 | CS36: 0.002500849074 | CT36: 0.002500849074 | CU36: 0.002500849074 | CV36: 0.002500849074 | CW36: 0.002500849074 | CX36: 0.002500849074 | CY36: 0.002500849074 | CZ36: 0.002500849074
C37: Electricity Rail | J37: kg C02e/kWh | L37: TAG Databook A3.3 (May 2023) | N37: 0.3625044211 | O37: 0.3559613996 | P37: 0.3489571264 | Q37: 0.3414590854 | R37: 0.3334324685 | S37: 0.3248400136 | T37: 0.3156418318 | U37: 0.3057952222 | V37: 0.2952544738 | W37: 0.2839706531 | X37: 0.2718913772 | Y37: 0.2589605701 | Z37: 0.2451182032 | AA37: 0.2303000156 | AB37: 0.2144372169 | AC37: 0.1974561668 | AD37: 0.1792780341 | AE37: 0.1598184301 | AF37: 0.1389870172 | AG37: 0.1166870895 | AH37: 0.09281512377 | AI37: 0.07727740018 | AJ37: 0.06434077051 | AK37: 0.05356979842 | AL37: 0.04460194181 | AM37: 0.03713535 | AN37: 0.03091870361 | AO37: 0.02574275543 | AP37: 0.0214332873 | AQ37: 0.01784524604 | AR37: 0.01485786113 | AS37: 0.01416376575 | AT37: 0.01344686386 | AU37: 0.008462145893 | AV37: 0.007865063044 | AW37: 0.007311465172 | AX37: 0.007149862626 | AY37: 0.004940830078 | AZ37: 0.004802694983 | BA37: 0.003044558634 | BB37: 0.002317707906 | BC37: 0.002317707906 | BD37: 0.002317707906 | BE37: 0.002317707906 | BF37: 0.002317707906 | BG37: 0.002317707906 | BH37: 0.002317707906 | BI37: 0.002317707906 | BJ37: 0.002317707906 | BK37: 0.002317707906 | BL37: 0.002317707906 | BM37: 0.002317707906 | BN37: 0.002317707906 | BO37: 0.002317707906 | BP37: 0.002317707906 | BQ37: 0.002317707906 | BR37: 0.002317707906 | BS37: 0.002317707906 | BT37: 0.002317707906 | BU37: 0.002317707906 | BV37: 0.002317707906 | BW37: 0.002317707906 | BX37: 0.002317707906 | BY37: 0.002317707906 | BZ37: 0.002317707906 | CA37: 0.002317707906 | CB37: 0.002317707906 | CC37: 0.002317707906 | CD37: 0.002317707906 | CE37: 0.002317707906 | CF37: 0.002317707906 | CG37: 0.002317707906 | CH37: 0.002317707906 | CI37: 0.002317707906 | CJ37: 0.002317707906 | CK37: 0.002317707906 | CL37: 0.002317707906 | CM37: 0.002317707906 | CN37: 0.002317707906 | CO37: 0.002317707906 | CP37: 0.002317707906 | CQ37: 0.002317707906 | CR37: 0.002317707906 | CS37: 0.002317707906 | CT37: 0.002317707906 | CU37: 0.002317707906 | CV37: 0.002317707906 | CW37: 0.002317707906 | CX37: 0.002317707906 | CY37: 0.002317707906 | CZ37: 0.002317707906
C38: Hydrogen | G38: Input based on formula found in "C- Hydrogen costs and Emissions" different fomula used for years before 2017 and after 2050 | J38: kg C02e/kg | L38: H2SM Vehicle Cost Benefit Model | N38: =O38 -> 0 | O38: =P38 -> 0 | P38: 0 | Q38: =R38 -> 0 | R38: 0 | S38: =T38 -> 0 | T38: =U38 -> 0 | U38: ='C- Hydrogen Costs and Emissions'!U100 -> 0 | V38: ='C- Hydrogen Costs and Emissions'!V100 -> 0 | W38: ='C- Hydrogen Costs and Emissions'!W100 -> 0 | X38: ='C- Hydrogen Costs and Emissions'!X100 -> 0 | Y38: ='C- Hydrogen Costs and Emissions'!Y100 -> 0 | Z38: ='C- Hydrogen Costs and Emissions'!Z100 -> 0 | AA38: ='C- Hydrogen Costs and Emissions'!AA100 -> 0 | AB38: ='C- Hydrogen Costs and Emissions'!AB100 -> 0 | AC38: ='C- Hydrogen Costs and Emissions'!AC100 -> 0 | AD38: ='C- Hydrogen Costs and Emissions'!AD100 -> 0 | AE38: ='C- Hydrogen Costs and Emissions'!AE100 -> 0 | AF38: ='C- Hydrogen Costs and Emissions'!AF100 -> 0 | AG38: ='C- Hydrogen Costs and Emissions'!AG100 -> 0 | AH38: ='C- Hydrogen Costs and Emissions'!AH100 -> 0 | AI38: ='C- Hydrogen Costs and Emissions'!AI100 -> 0 | AJ38: ='C- Hydrogen Costs and Emissions'!AJ100 -> 0 | AK38: ='C- Hydrogen Costs and Emissions'!AK100 -> 0 | AL38: ='C- Hydrogen Costs and Emissions'!AL100 -> 0 | AM38: ='C- Hydrogen Costs and Emissions'!AM100 -> 0 | AN38: ='C- Hydrogen Costs and Emissions'!AN100 -> 0 | AO38: ='C- Hydrogen Costs and Emissions'!AO100 -> 0 | AP38: ='C- Hydrogen Costs and Emissions'!AP100 -> 0 | AQ38: ='C- Hydrogen Costs and Emissions'!AQ100 -> 0 | AR38: ='C- Hydrogen Costs and Emissions'!AR100 -> 0 | AS38: ='C- Hydrogen Costs and Emissions'!AS100 -> 0 | AT38: ='C- Hydrogen Costs and Emissions'!AT100 -> 0 | AU38: ='C- Hydrogen Costs and Emissions'!AU100 -> 0 | AV38: ='C- Hydrogen Costs and Emissions'!AV100 -> 0 | AW38: ='C- Hydrogen Costs and Emissions'!AW100 -> 0 | AX38: ='C- Hydrogen Costs and Emissions'!AX100 -> 0 | AY38: ='C- Hydrogen Costs and Emissions'!AY100 -> 0 | AZ38: ='C- Hydrogen Costs and Emissions'!AZ100 -> 0 | BA38: ='C- Hydrogen Costs and Emissions'!BA100 -> 0 | BB38: ='C- Hydrogen Costs and Emissions'!BB100 -> 0 | BC38: =BB38 -> 0 | BD38: =BC38 -> 0 | BE38: 0 | BF38: 0 | BG38: 0 | BH38: 0 | BI38: 0 | BJ38: 0 | BK38: 0 | BL38: 0 | BM38: 0 | BN38: 0 | BO38: 0 | BP38: 0 | BQ38: 0 | BR38: 0 | BS38: 0 | BT38: 0 | BU38: 0 | BV38: 0 | BW38: 0 | BX38: 0 | BY38: 0 | BZ38: 0 | CA38: 0 | CB38: 0 | CC38: 0 | CD38: 0 | CE38: 0 | CF38: 0 | CG38: 0 | CH38: 0 | CI38: 0 | CJ38: 0 | CK38: 0 | CL38: 0 | CM38: 0 | CN38: 0 | CO38: 0 | CP38: 0 | CQ38: 0 | CR38: 0 | CS38: 0 | CT38: 0 | CU38: 0 | CV38: 0 | CW38: 0 | CX38: 0 | CY38: 0
C40: Fuel and Electricity Prices and Components
C42: Resource Cost - Petrol | J42: p/litre, resource cost
C43: Resource Cost - Diesel (Low) | J43: p/litre, resource cost | L43: Adjusted figures from DESNZ forecasts | N43: 44.3012248 | O43: 56.26096228 | P43: 58.05954279 | Q43: 55.92272725 | R43: 49.57951694 | S43: 34.9517772 | T43: 30.61866588 | U43: 37.45145958 | V43: 43.74403602 | W43: 43.89634903 | X43: 33.22148428 | Y43: 43.34197225 | Z43: 65.49740377 | AA43: 43.82326262 | AB43: 36.73806046 | AC43: 37.0943964 | AD43: 37.21252781 | AE43: 38.64468691 | AF43: 39.15062603 | AG43: 39.65656515 | AH43: 40.16250427 | AI43: 40.6684434 | AJ43: 41.17438252 | AK43: 42.18626076 | AL43: 42.69219988 | AM43: 43.70407813 | AN43: 43.70407813 | AO43: 43.70407813 | AP43: 43.70407813 | AQ43: 43.70407813 | AR43: 43.70407813 | AS43: 43.70407813 | AT43: 43.70407813 | AU43: 43.70407813 | AV43: 43.70407813 | AW43: 43.70407813 | AX43: 43.70407813 | AY43: 43.70407813 | AZ43: 43.70407813 | BA43: 43.70407813 | BB43: 43.70407813 | BC43: 43.70407813 | BD43: 43.70407813 | BE43: 43.70407813 | BF43: 43.70407813 | BG43: 43.70407813 | BH43: 43.70407813 | BI43: 43.70407813 | BJ43: 43.70407813 | BK43: 43.70407813 | BL43: 43.70407813 | BM43: 43.70407813 | BN43: 43.70407813 | BO43: 43.70407813 | BP43: 43.70407813 | BQ43: 43.70407813 | BR43: 43.70407813 | BS43: 43.70407813 | BT43: 43.70407813 | BU43: 43.70407813 | BV43: 43.70407813 | BW43: 43.70407813 | BX43: 43.70407813 | BY43: 43.70407813 | BZ43: 43.70407813 | CA43: 43.70407813 | CB43: 43.70407813 | CC43: 43.70407813 | CD43: 43.70407813 | CE43: 43.70407813 | CF43: 43.70407813 | CG43: 43.70407813 | CH43: 43.70407813 | CI43: 43.70407813 | CJ43: 43.70407813 | CK43: 43.70407813 | CL43: 43.70407813 | CM43: 43.70407813 | CN43: 43.70407813 | CO43: 43.70407813 | CP43: 43.70407813 | CQ43: 43.70407813 | CR43: 43.70407813 | CS43: 43.70407813 | CT43: 43.70407813 | CU43: 43.70407813 | CV43: 43.70407813 | CW43: 43.70407813 | CX43: 43.70407813 | CY43: 43.70407813 | CZ43: 43.70407813
C44: Resource Cost - Diesel (Central) | J44: p/litre, resource cost | L44: TAG Databook A1.3.7 (May 2023) | N44: 44.3012248 | O44: 56.26096228 | P44: 58.05954279 | Q44: 55.92272725 | R44: 49.57951694 | S44: 34.9517772 | T44: 30.61866588 | U44: 37.45145958 | V44: 43.74403602 | W44: 43.89634903 | X44: 33.22148428 | Y44: 43.34197225 | Z44: 69.5913068 | AA44: 65.72894066 | AB44: 57.1057313 | AC44: 54.8234634 | AD44: 51.93011138 | AE44: 53.31692144 | AF44: 54.83473881 | AG44: 55.84661705 | AH44: 57.36443442 | AI44: 58.37631266 | AJ44: 59.3881909 | AK44: 60.90600827 | AL44: 62.42382564 | AM44: 63.43570388 | AN44: 63.43570388 | AO44: 63.43570388 | AP44: 63.43570388 | AQ44: 63.43570388 | AR44: 63.43570388 | AS44: 63.43570388 | AT44: 63.43570388 | AU44: 63.43570388 | AV44: 63.43570388 | AW44: 63.43570388 | AX44: 63.43570388 | AY44: 63.43570388 | AZ44: 63.43570388 | BA44: 63.43570388 | BB44: 63.43570388 | BC44: 63.43570388 | BD44: 63.43570388 | BE44: 63.43570388 | BF44: 63.43570388 | BG44: 63.43570388 | BH44: 63.43570388 | BI44: 63.43570388 | BJ44: 63.43570388 | BK44: 63.43570388 | BL44: 63.43570388 | BM44: 63.43570388 | BN44: 63.43570388 | BO44: 63.43570388 | BP44: 63.43570388 | BQ44: 63.43570388 | BR44: 63.43570388 | BS44: 63.43570388 | BT44: 63.43570388 | BU44: 63.43570388 | BV44: 63.43570388 | BW44: 63.43570388 | BX44: 63.43570388 | BY44: 63.43570388 | BZ44: 63.43570388 | CA44: 63.43570388 | CB44: 63.43570388 | CC44: 63.43570388 | CD44: 63.43570388 | CE44: 63.43570388 | CF44: 63.43570388 | CG44: 63.43570388 | CH44: 63.43570388 | CI44: 63.43570388 | CJ44: 63.43570388 | CK44: 63.43570388 | CL44: 63.43570388 | CM44: 63.43570388 | CN44: 63.43570388 | CO44: 63.43570388 | CP44: 63.43570388 | CQ44: 63.43570388 | CR44: 63.43570388 | CS44: 63.43570388 | CT44: 63.43570388 | CU44: 63.43570388 | CV44: 63.43570388 | CW44: 63.43570388 | CX44: 63.43570388 | CY44: 63.43570388 | CZ44: 63.43570388
C45: Resource Cost - Diesel (High) | J45: p/litre, resource cost | L45: Adjusted figures from DESNZ forecasts | N45: 44.3012248 | O45: 56.26096228 | P45: 58.05954279 | Q45: 55.92272725 | R45: 49.57951694 | S45: 34.9517772 | T45: 30.61866588 | U45: 37.45145958 | V45: 43.74403602 | W45: 43.89634903 | X45: 33.22148428 | Y45: 43.34197225 | Z45: 77.19426958 | AA45: 105.9880246 | AB45: 96.70953571 | AC45: 84.90915285 | AD45: 73.7527353 | AE45: 75.07230368 | AF45: 76.59012105 | AG45: 78.10793841 | AH45: 79.11981666 | AI45: 80.1316949 | AJ45: 82.15545139 | AK45: 83.16732963 | AL45: 84.685147 | AM45: 86.20296436 | AN45: 86.20296436 | AO45: 86.20296436 | AP45: 86.20296436 | AQ45: 86.20296436 | AR45: 86.20296436 | AS45: 86.20296436 | AT45: 86.20296436 | AU45: 86.20296436 | AV45: 86.20296436 | AW45: 86.20296436 | AX45: 86.20296436 | AY45: 86.20296436 | AZ45: 86.20296436 | BA45: 86.20296436 | BB45: 86.20296436 | BC45: 86.20296436 | BD45: 86.20296436 | BE45: 86.20296436 | BF45: 86.20296436 | BG45: 86.20296436 | BH45: 86.20296436 | BI45: 86.20296436 | BJ45: 86.20296436 | BK45: 86.20296436 | BL45: 86.20296436 | BM45: 86.20296436 | BN45: 86.20296436 | BO45: 86.20296436 | BP45: 86.20296436 | BQ45: 86.20296436 | BR45: 86.20296436 | BS45: 86.20296436 | BT45: 86.20296436 | BU45: 86.20296436 | BV45: 86.20296436 | BW45: 86.20296436 | BX45: 86.20296436 | BY45: 86.20296436 | BZ45: 86.20296436 | CA45: 86.20296436 | CB45: 86.20296436 | CC45: 86.20296436 | CD45: 86.20296436 | CE45: 86.20296436 | CF45: 86.20296436 | CG45: 86.20296436 | CH45: 86.20296436 | CI45: 86.20296436 | CJ45: 86.20296436 | CK45: 86.20296436 | CL45: 86.20296436 | CM45: 86.20296436 | CN45: 86.20296436 | CO45: 86.20296436 | CP45: 86.20296436 | CQ45: 86.20296436 | CR45: 86.20296436 | CS45: 86.20296436 | CT45: 86.20296436 | CU45: 86.20296436 | CV45: 86.20296436 | CW45: 86.20296436 | CX45: 86.20296436 | CY45: 86.20296436 | CZ45: 86.20296436
C46: Resource Cost - Gas Oil Rail Diesel | J46: p/litre, resource cost | L46: TAG Databook A1.3.7 (May 2023)
C47: Resource Cost - Electricity Roads (Low) | J47: p/kWh, resource cost | L47: Adjusted figures from DESNZ forecasts | N47: 11.74097561 | O47: 12.51855459 | P47: 12.98809712 | Q47: 13.56314483 | R47: 14.03722126 | S47: 13.79813104 | T47: 13.34471306 | U47: 14.00398677 | V47: 14.87988519 | W47: 15.92250805 | X47: 15.17030757 | Y47: 16.41557235 | Z47: 23.65443833 | AA47: 20.65026018 | AB47: 18.26269542 | AC47: 18.08137823 | AD47: 16.06566447 | AE47: 15.43001923 | AF47: 15.02360668 | AG47: 15.00643884 | AH47: 14.93058174 | AI47: 14.29922505 | AJ47: 14.36226315 | AK47: 14.53866285 | AL47: 14.78761304 | AM47: 14.64766385 | AN47: 14.6079086 | AO47: 14.22379473 | AP47: 14.38778658 | AQ47: 14.26937392 | AR47: 14.64539683 | AS47: 14.4251189 | AT47: 14.42497418 | AU47: 14.39375961 | AV47: 14.54328862 | AW47: 14.22626894 | AX47: 14.4917333 | AY47: 14.25963178 | AZ47: 13.90119485 | BA47: 14.14716844 | BB47: 13.8717915 | BC47: 13.8717915 | BD47: 13.8717915 | BE47: 13.8717915 | BF47: 13.8717915 | BG47: 13.8717915 | BH47: 13.8717915 | BI47: 13.8717915 | BJ47: 13.8717915 | BK47: 13.8717915 | BL47: 13.8717915 | BM47: 13.8717915 | BN47: 13.8717915 | BO47: 13.8717915 | BP47: 13.8717915 | BQ47: 13.8717915 | BR47: 13.8717915 | BS47: 13.8717915 | BT47: 13.8717915 | BU47: 13.8717915 | BV47: 13.8717915 | BW47: 13.8717915 | BX47: 13.8717915 | BY47: 13.8717915 | BZ47: 13.8717915 | CA47: 13.8717915 | CB47: 13.8717915 | CC47: 13.8717915 | CD47: 13.8717915 | CE47: 13.8717915 | CF47: 13.8717915 | CG47: 13.8717915 | CH47: 13.8717915 | CI47: 13.8717915 | CJ47: 13.8717915 | CK47: 13.8717915 | CL47: 13.8717915 | CM47: 13.8717915 | CN47: 13.8717915 | CO47: 13.8717915 | CP47: 13.8717915 | CQ47: 13.8717915 | CR47: 13.8717915 | CS47: 13.8717915 | CT47: 13.8717915 | CU47: 13.8717915 | CV47: 13.8717915 | CW47: 13.8717915 | CX47: 13.8717915 | CY47: 13.8717915 | CZ47: 13.8717915
C48: Resource Cost - Electricity Roads (Central) | J48: p/kWh, resource cost | L48: TAG Databook A1.3.7 (May 2023) | N48: 11.78138473 | O48: 12.56163991 | P48: 13.03279848 | Q48: 13.60982534 | R48: 14.08553341 | S48: 13.84562031 | T48: 13.39064179 | U48: 14.05218454 | V48: 14.93109755 | W48: 15.97730882 | X48: 15.22251948 | Y48: 16.47207011 | Z48: 23.73585022 | AA48: 32.21719128 | AB48: 31.16318326 | AC48: 26.90873002 | AD48: 17.22699064 | AE48: 16.46037484 | AF48: 16.02682367 | AG48: 16.00850943 | AH48: 15.92758689 | AI48: 15.25407071 | AJ48: 15.32131824 | AK48: 15.50949721 | AL48: 15.77507131 | AM48: 15.62577687 | AN48: 15.58336692 | AO48: 15.17360345 | AP48: 15.34854603 | AQ48: 15.22222624 | AR48: 15.62335846 | AS48: 15.38837125 | AT48: 15.38821686 | AU48: 15.35491791 | AV48: 15.51443187 | AW48: 15.17624287 | AX48: 15.45943389 | AY48: 15.21183355 | AZ48: 14.82946163 | BA48: 15.09186036 | BB48: 14.79809483 | BC48: 14.79809483 | BD48: 14.79809483 | BE48: 14.79809483 | BF48: 14.79809483 | BG48: 14.79809483 | BH48: 14.79809483 | BI48: 14.79809483 | BJ48: 14.79809483 | BK48: 14.79809483 | BL48: 14.79809483 | BM48: 14.79809483 | BN48: 14.79809483 | BO48: 14.79809483 | BP48: 14.79809483 | BQ48: 14.79809483 | BR48: 14.79809483 | BS48: 14.79809483 | BT48: 14.79809483 | BU48: 14.79809483 | BV48: 14.79809483 | BW48: 14.79809483 | BX48: 14.79809483 | BY48: 14.79809483 | BZ48: 14.79809483 | CA48: 14.79809483 | CB48: 14.79809483 | CC48: 14.79809483 | CD48: 14.79809483 | CE48: 14.79809483 | CF48: 14.79809483 | CG48: 14.79809483 | CH48: 14.79809483 | CI48: 14.79809483 | CJ48: 14.79809483 | CK48: 14.79809483 | CL48: 14.79809483 | CM48: 14.79809483 | CN48: 14.79809483 | CO48: 14.79809483 | CP48: 14.79809483 | CQ48: 14.79809483 | CR48: 14.79809483 | CS48: 14.79809483 | CT48: 14.79809483 | CU48: 14.79809483 | CV48: 14.79809483 | CW48: 14.79809483 | CX48: 14.79809483 | CY48: 14.79809483 | CZ48: 14.79809483
C49: Resource Cost - Electricity Roads (High) | J49: p/kWh, resource cost | L49: Adjusted figures from DESNZ forecasts | N49: 11.74097561 | O49: 12.51855459 | P49: 12.98809712 | Q49: 13.56314483 | R49: 14.03722126 | S49: 13.79813104 | T49: 13.34471306 | U49: 14.00398677 | V49: 14.87988519 | W49: 15.92250805 | X49: 15.17030757 | Y49: 16.41557235 | Z49: 23.65443833 | AA49: 32.10668913 | AB49: 56.32210396 | AC49: 53.23540572 | AD49: 19.3620168 | AE49: 17.39348928 | AF49: 16.93536074 | AG49: 16.91600829 | AH49: 16.83049837 | AI49: 16.11880154 | AJ49: 16.18986123 | AK49: 16.3887078 | AL49: 16.66933691 | AM49: 16.51157918 | AN49: 16.46676508 | AO49: 16.03377271 | AP49: 16.21863253 | AQ49: 16.08515186 | AR49: 16.50902368 | AS49: 16.26071539 | AT49: 16.26055224 | AU49: 16.22536562 | AV49: 16.3939222 | AW49: 16.03656176 | AX49: 16.33580647 | AY49: 16.07417002 | AZ49: 15.670122 | BA49: 15.94739572 | BB49: 15.63697706 | BC49: 15.63697706 | BD49: 15.63697706 | BE49: 15.63697706 | BF49: 15.63697706 | BG49: 15.63697706 | BH49: 15.63697706 | BI49: 15.63697706 | BJ49: 15.63697706 | BK49: 15.63697706 | BL49: 15.63697706 | BM49: 15.63697706 | BN49: 15.63697706 | BO49: 15.63697706 | BP49: 15.63697706 | BQ49: 15.63697706 | BR49: 15.63697706 | BS49: 15.63697706 | BT49: 15.63697706 | BU49: 15.63697706 | BV49: 15.63697706 | BW49: 15.63697706 | BX49: 15.63697706 | BY49: 15.63697706 | BZ49: 15.63697706 | CA49: 15.63697706 | CB49: 15.63697706 | CC49: 15.63697706 | CD49: 15.63697706 | CE49: 15.63697706 | CF49: 15.63697706 | CG49: 15.63697706 | CH49: 15.63697706 | CI49: 15.63697706 | CJ49: 15.63697706 | CK49: 15.63697706 | CL49: 15.63697706 | CM49: 15.63697706 | CN49: 15.63697706 | CO49: 15.63697706 | CP49: 15.63697706 | CQ49: 15.63697706 | CR49: 15.63697706 | CS49: 15.63697706 | CT49: 15.63697706 | CU49: 15.63697706 | CV49: 15.63697706 | CW49: 15.63697706 | CX49: 15.63697706 | CY49: 15.63697706 | CZ49: 15.63697706
C50: Resource Cost - Electricity Rail (Low) | J50: p/kWh, resource cost | L50: Adjusted figures from DESNZ forecasts
C51: Resource Cost - Electricity Rail (Central) | J51: p/kWh, resource cost | L51: TAG Databook A1.3.7 (May 2023) | N51: 6.827044937 | O51: 7.080840398 | P51: 7.73343334 | Q51: 8.461409612 | R51: 8.587257185 | S51: 8.681916634 | T51: 8.491809442 | U51: 8.837525038 | V51: 8.815626761 | W51: 9.429672208 | X51: 9.328419633 | Y51: 10.62665381 | Z51: 22.76662111 | AA51: 21.75896158 | AB51: 16.96166752 | AC51: 9.624864562 | AD51: 9.201209989 | AE51: 9.083636945 | AF51: 8.876775195 | AG51: 9.000728782 | AH51: 8.966903108 | AI51: 9.056705795 | AJ51: 8.985953509 | AK51: 9.065133226 | AL51: 9.37964047 | AM51: 9.483624548 | AN51: 9.518002541 | AO51: 9.489878738 | AP51: 9.513418483 | AQ51: 9.499280861 | AR51: 9.709166564 | AS51: 9.56494989 | AT51: 9.561040824 | AU51: 9.740050283 | AV51: 9.838725121 | AW51: 9.82123291 | AX51: 9.887941277 | AY51: 9.88688664 | AZ51: 9.846264725 | BA51: 9.788170494 | BB51: 9.832945866 | BC51: 9.832945866 | BD51: 9.832945866 | BE51: 9.832945866 | BF51: 9.832945866 | BG51: 9.832945866 | BH51: 9.832945866 | BI51: 9.832945866 | BJ51: 9.832945866 | BK51: 9.832945866 | BL51: 9.832945866 | BM51: 9.832945866 | BN51: 9.832945866 | BO51: 9.832945866 | BP51: 9.832945866 | BQ51: 9.832945866 | BR51: 9.832945866 | BS51: 9.832945866 | BT51: 9.832945866 | BU51: 9.832945866 | BV51: 9.832945866 | BW51: 9.832945866 | BX51: 9.832945866 | BY51: 9.832945866 | BZ51: 9.832945866 | CA51: 9.832945866 | CB51: 9.832945866 | CC51: 9.832945866 | CD51: 9.832945866 | CE51: 9.832945866 | CF51: 9.832945866 | CG51: 9.832945866 | CH51: 9.832945866 | CI51: 9.832945866 | CJ51: 9.832945866 | CK51: 9.832945866 | CL51: 9.832945866 | CM51: 9.832945866 | CN51: 9.832945866 | CO51: 9.832945866 | CP51: 9.832945866 | CQ51: 9.832945866 | CR51: 9.832945866 | CS51: 9.832945866 | CT51: 9.832945866 | CU51: 9.832945866 | CV51: 9.832945866 | CW51: 9.832945866 | CX51: 9.832945866 | CY51: 9.832945866 | CZ51: 9.832945866
C52: Resource Cost - Electricity Rail (High) | J52: p/kWh, resource cost | L52: Adjusted figures from DESNZ forecasts
C53: Resource Cost - Hydrogen | G53: Input based on formula found in "C- Hydrogen costs and Emissions" different fomula used for years before 2017 and after 2050 | J53: p/kg | L53: H2SM Vehicle Cost Benefit Model, figures uplifted using % change from May 2022 electricity roads values to January 2023 values | N53: =O53 -> 0 | O53: =P53 -> 0 | P53: 0 | Q53: 0 | R53: 0 | S53: 0 | T53: =U53 -> 0 | U53: ='C- Hydrogen Costs and Emissions'!U77*100 -> 0 | V53: ='C- Hydrogen Costs and Emissions'!V77*100 -> 0 | W53: ='C- Hydrogen Costs and Emissions'!W77*100 -> 0 | X53: ='C- Hydrogen Costs and Emissions'!X77*100 -> 447.1824783 | Y53: ='C- Hydrogen Costs and Emissions'!Y77*100 -> 741.3978024 | Z53: ='C- Hydrogen Costs and Emissions'!Z77*100 -> 1225.522689 | AA53: ='C- Hydrogen Costs and Emissions'!AA77*100 -> 920.7381963 | AB53: ='C- Hydrogen Costs and Emissions'!AB77*100 -> 740.5671015 | AC53: ='C- Hydrogen Costs and Emissions'!AC77*100 -> 475.8572361 | AD53: ='C- Hydrogen Costs and Emissions'!AD77*100 -> 438.01875 | AE53: ='C- Hydrogen Costs and Emissions'!AE77*100 -> 429.6731 | AF53: ='C- Hydrogen Costs and Emissions'!AF77*100 -> 399.5449879 | AG53: ='C- Hydrogen Costs and Emissions'!AG77*100 -> 387.5857696 | AH53: ='C- Hydrogen Costs and Emissions'!AH77*100 -> 351.3824018 | AI53: ='C- Hydrogen Costs and Emissions'!AI77*100 -> 351.2008443 | AJ53: ='C- Hydrogen Costs and Emissions'!AJ77*100 -> 360.4873067 | AK53: ='C- Hydrogen Costs and Emissions'!AK77*100 -> 372.9431085 | AL53: ='C- Hydrogen Costs and Emissions'!AL77*100 -> 383.4855159 | AM53: ='C- Hydrogen Costs and Emissions'!AM77*100 -> 384.4667702 | AN53: ='C- Hydrogen Costs and Emissions'!AN77*100 -> 383.337558 | AO53: ='C- Hydrogen Costs and Emissions'!AO77*100 -> 384.0011494 | AP53: ='C- Hydrogen Costs and Emissions'!AP77*100 -> 383.3992953 | AQ53: ='C- Hydrogen Costs and Emissions'!AQ77*100 -> 382.4711459 | AR53: ='C- Hydrogen Costs and Emissions'!AR77*100 -> 378.9238049 | AS53: ='C- Hydrogen Costs and Emissions'!AS77*100 -> 378.7374192 | AT53: ='C- Hydrogen Costs and Emissions'!AT77*100 -> 378.9018942 | AU53: ='C- Hydrogen Costs and Emissions'!AU77*100 -> 381.3845289 | AV53: ='C- Hydrogen Costs and Emissions'!AV77*100 -> 380.8867313 | AW53: ='C- Hydrogen Costs and Emissions'!AW77*100 -> 377.4695614 | AX53: ='C- Hydrogen Costs and Emissions'!AX77*100 -> 377.2738854 | AY53: ='C- Hydrogen Costs and Emissions'!AY77*100 -> 378.533569 | AZ53: ='C- Hydrogen Costs and Emissions'!AZ77*100 -> 378.1122099 | BA53: ='C- Hydrogen Costs and Emissions'!BA77*100 -> 378.2531141 | BB53: ='C- Hydrogen Costs and Emissions'!BB77*100 -> 376.7528868 | BC53: =BB53 -> 376.7528868 | BD53: =BC53 -> 376.7528868 | BE53: 376.7528868 | BF53: 376.7528868 | BG53: 376.7528868 | BH53: 376.7528868 | BI53: 376.7528868 | BJ53: 376.7528868 | BK53: 376.7528868 | BL53: 376.7528868 | BM53: 376.7528868 | BN53: 376.7528868 | BO53: 376.7528868 | BP53: 376.7528868 | BQ53: 376.7528868 | BR53: 376.7528868 | BS53: 376.7528868 | BT53: 376.7528868 | BU53: 376.7528868 | BV53: 376.7528868 | BW53: 376.7528868 | BX53: 376.7528868 | BY53: 376.7528868 | BZ53: 376.7528868 | CA53: 376.7528868 | CB53: 376.7528868 | CC53: 376.7528868 | CD53: 376.7528868 | CE53: 376.7528868 | CF53: 376.7528868 | CG53: 376.7528868 | CH53: 376.7528868 | CI53: 376.7528868 | CJ53: 376.7528868 | CK53: 376.7528868 | CL53: 376.7528868 | CM53: 376.7528868 | CN53: 376.7528868 | CO53: 376.7528868 | CP53: 376.7528868 | CQ53: 376.7528868 | CR53: 376.7528868 | CS53: 376.7528868 | CT53: 376.7528868 | CU53: 376.7528868 | CV53: 376.7528868 | CW53: 376.7528868 | CX53: 376.7528868 | CY53: 376.7528868 | CZ53: ='C- Hydrogen Costs and Emissions'!CZ77*100 -> 0
C55: Input Price Base | H55: 2010
C57: Duty - Petrol | J57: p/litre | L57: TAG Databook A1.3.7 (May 2023) | N57: 57.19547945 | O57: 56.99288379 | P57: 55.85223132 | Q57: 54.87696428 | R57: 53.9403559 | S57: 53.63742986 | T57: 52.71539974 | U57: 51.79190974 | V57: 50.51181314 | W57: 49.2934038 | X57: 45.88246349 | Y57: 46.15130973 | Z57: 43.84301401 | AA57: 46.26981591 | AB57: 47.51119541 | AC57: 47.73218494 | AD57: 47.93131535 | AE57: 48.2859337 | AF57: 48.63889072 | AG57: 48.99058931 | AH57: 48.8469219 | AI57: 48.70367579 | AJ57: 48.56084976 | AK57: 48.41844258 | AL57: 48.27645301 | AM57: 48.13487983 | AN57: 47.99372183 | AO57: 47.85297778 | AP57: 47.71264646 | AQ57: 47.57272668 | AR57: 47.43321722 | AS57: 47.29411687 | AT57: 47.15542445 | AU57: 47.01713875 | AV57: 46.87925857 | AW57: 46.74178274 | AX57: 46.60471007 | AY57: 46.46803936 | AZ57: 46.33176945 | BA57: 46.19589916 | BB57: 46.06042731 | BC57: 45.92535275 | BD57: 45.79067429 | BE57: 45.65639079 | BF57: 45.52250108 | BG57: 45.38900401 | BH57: 45.25589843 | BI57: 45.12318318 | BJ57: 44.99085713 | BK57: 44.85891914 | BL57: 44.72736805 | BM57: 44.59620275 | BN57: 44.4654221 | BO57: 44.33502497 | BP57: 44.20501023 | BQ57: 44.07537677 | BR57: 43.94612346 | BS57: 43.8172492 | BT57: 43.68875287 | BU57: 43.56063336 | BV57: 43.43288957 | BW57: 43.30552039 | BX57: 43.17852473 | BY57: 43.05190149 | BZ57: 42.92564958 | CA57: 42.79976791 | CB57: 42.67425539 | CC57: 42.54911095 | CD57: 42.4243335 | CE57: 42.29992196 | CF57: 42.17587527 | CG57: 42.05219235 | CH57: 41.92887214 | CI57: 41.80591357 | CJ57: 41.68331558 | CK57: 41.56107712 | CL57: 41.43919713 | CM57: 41.31767456 | CN57: 41.19650836 | CO57: 41.07569748 | CP57: 40.95524089 | CQ57: 40.83513754 | CR57: 40.71538641 | CS57: 40.59598645 | CT57: 40.47693663 | CU57: 40.35823594 | CV57: 40.23988334 | CW57: 40.12187782 | CX57: 40.00421835 | CY57: 39.88690393 | CZ57: 39.76993354
C58: Duty - Diesel | J58: p/litre | L58: TAG Databook A1.3.7 (May 2023) | N58: 57.19547945 | O58: 56.99288379 | P58: 55.85223132 | Q58: 54.87696428 | R58: 53.9403559 | S58: 53.63742986 | T58: 52.71539974 | U58: 51.79190974 | V58: 50.51181314 | W58: 49.2934038 | X58: 45.88246349 | Y58: 46.15130973 | Z58: 43.84301401 | AA58: 46.26981591 | AB58: 47.51119541 | AC58: 47.73218494 | AD58: 47.93131535 | AE58: 48.2859337 | AF58: 48.63889072 | AG58: 48.99058931 | AH58: 48.8469219 | AI58: 48.70367579 | AJ58: 48.56084976 | AK58: 48.41844258 | AL58: 48.27645301 | AM58: 48.13487983 | AN58: 47.99372183 | AO58: 47.85297778 | AP58: 47.71264646 | AQ58: 47.57272668 | AR58: 47.43321722 | AS58: 47.29411687 | AT58: 47.15542445 | AU58: 47.01713875 | AV58: 46.87925857 | AW58: 46.74178274 | AX58: 46.60471007 | AY58: 46.46803936 | AZ58: 46.33176945 | BA58: 46.19589916 | BB58: 46.06042731 | BC58: 45.92535275 | BD58: 45.79067429 | BE58: 45.65639079 | BF58: 45.52250108 | BG58: 45.38900401 | BH58: 45.25589843 | BI58: 45.12318318 | BJ58: 44.99085713 | BK58: 44.85891914 | BL58: 44.72736805 | BM58: 44.59620275 | BN58: 44.4654221 | BO58: 44.33502497 | BP58: 44.20501023 | BQ58: 44.07537677 | BR58: 43.94612346 | BS58: 43.8172492 | BT58: 43.68875287 | BU58: 43.56063336 | BV58: 43.43288957 | BW58: 43.30552039 | BX58: 43.17852473 | BY58: 43.05190149 | BZ58: 42.92564958 | CA58: 42.79976791 | CB58: 42.67425539 | CC58: 42.54911095 | CD58: 42.4243335 | CE58: 42.29992196 | CF58: 42.17587527 | CG58: 42.05219235 | CH58: 41.92887214 | CI58: 41.80591357 | CJ58: 41.68331558 | CK58: 41.56107712 | CL58: 41.43919713 | CM58: 41.31767456 | CN58: 41.19650836 | CO58: 41.07569748 | CP58: 40.95524089 | CQ58: 40.83513754 | CR58: 40.71538641 | CS58: 40.59598645 | CT58: 40.47693663 | CU58: 40.35823594 | CV58: 40.23988334 | CW58: 40.12187782 | CX58: 40.00421835 | CY58: 39.88690393 | CZ58: 39.76993354
C59: Duty - Gas Oil Rail Diesel | J59: p/litre | L59: TAG Databook A1.3.7 (May 2023) | N59: 10.9910411 | O59: 10.9555232 | P59: 10.7367361 | Q59: 10.54925595 | R59: 10.36920733 | S59: 10.31097444 | T59: 10.13372827 | U59: 9.956201458 | V59: 9.710122491 | W59: 9.475901956 | X59: 8.82020092 | Y59: 8.871882491 | Z59: 8.428888463 | AA59: 8.310196227 | AB59: 8.383982095 | AC59: 8.422978635 | AD59: 8.458117843 | AE59: 8.520694967 | AF59: 8.582978925 | AG59: 8.645040818 | AH59: 8.619688792 | AI59: 8.594411112 | AJ59: 8.56920756 | AK59: 8.544077919 | AL59: 8.519021972 | AM59: 8.494039503 | AN59: 8.469130297 | AO59: 8.444294137 | AP59: 8.419530811 | AQ59: 8.394840105 | AR59: 8.370221806 | AS59: 8.345675701 | AT59: 8.321201578 | AU59: 8.296799228 | AV59: 8.272468438 | AW59: 8.248209 | AX59: 8.224020704 | AY59: 8.199903341 | AZ59: 8.175856704 | BA59: 8.151880584 | BB59: 8.127974776 | BC59: 8.104139073 | BD59: 8.080373269 | BE59: 8.05667716 | BF59: 8.033050541 | BG59: 8.009493208 | BH59: 7.986004958 | BI59: 7.962585589 | BJ59: 7.939234898 | BK59: 7.915952684 | BL59: 7.892738746 | BM59: 7.869592885 | BN59: 7.8465149 | BO59: 7.823504592 | BP59: 7.800561764 | BQ59: 7.777686216 | BR59: 7.754877752 | BS59: 7.732136175 | BT59: 7.709461289 | BU59: 7.686852898 | BV59: 7.664310807 | BW59: 7.641834823 | BX59: 7.61942475 | BY59: 7.597080396 | BZ59: 7.574801568 | CA59: 7.552588073 | CB59: 7.530439721 | CC59: 7.50835632 | CD59: 7.48633768 | CE59: 7.46438361 | CF59: 7.442493922 | CG59: 7.420668427 | CH59: 7.398906936 | CI59: 7.377209262 | CJ59: 7.355575217 | CK59: 7.334004615 | CL59: 7.31249727 | CM59: 7.291052997 | CN59: 7.26967161 | CO59: 7.248352925 | CP59: 7.227096758 | CQ59: 7.205902926 | CR59: 7.184771245 | CS59: 7.163701535 | CT59: 7.142693613 | CU59: 7.121747297 | CV59: 7.100862408 | CW59: 7.080038764 | CX59: 7.059276187 | CY59: 7.038574497 | CZ59: 7.017933517
C60: Duty - Electricity Roads | J60: p/kWh | L60: TAG Databook A1.3.7 (May 2023) | N60: 0 | O60: 0 | P60: 0 | Q60: 0 | R60: 0 | S60: 0 | T60: 0 | U60: 0 | V60: 0 | W60: 0 | X60: 0 | Y60: 0 | Z60: 0 | AA60: 0 | AB60: 0 | AC60: 0 | AD60: 0 | AE60: 0 | AF60: 0 | AG60: 0 | AH60: 0 | AI60: 0 | AJ60: 0 | AK60: 0 | AL60: 0 | AM60: 0 | AN60: 0 | AO60: 0 | AP60: 0 | AQ60: 0 | AR60: 0 | AS60: 0 | AT60: 0 | AU60: 0 | AV60: 0 | AW60: 0 | AX60: 0 | AY60: 0 | AZ60: 0 | BA60: 0 | BB60: 0 | BC60: 0 | BD60: 0 | BE60: 0 | BF60: 0 | BG60: 0 | BH60: 0 | BI60: 0 | BJ60: 0 | BK60: 0 | BL60: 0 | BM60: 0 | BN60: 0 | BO60: 0 | BP60: 0 | BQ60: 0 | BR60: 0 | BS60: 0 | BT60: 0 | BU60: 0 | BV60: 0 | BW60: 0 | BX60: 0 | BY60: 0 | BZ60: 0 | CA60: 0 | CB60: 0 | CC60: 0 | CD60: 0 | CE60: 0 | CF60: 0 | CG60: 0 | CH60: 0 | CI60: 0 | CJ60: 0 | CK60: 0 | CL60: 0 | CM60: 0 | CN60: 0 | CO60: 0 | CP60: 0 | CQ60: 0 | CR60: 0 | CS60: 0 | CT60: 0 | CU60: 0 | CV60: 0 | CW60: 0 | CX60: 0 | CY60: 0 | CZ60: 0
C61: Duty - Hydrogen | J61: p/kg | N61: 0 | O61: 0 | P61: 0 | Q61: 0 | R61: 0 | S61: 0 | T61: 0 | U61: 0 | V61: 0 | W61: 0 | X61: 0 | Y61: 0 | Z61: 0 | AA61: 0 | AB61: 0 | AC61: 0 | AD61: 0 | AE61: 0 | AF61: 0 | AG61: 0 | AH61: 0 | AI61: 0 | AJ61: 0 | AK61: 0 | AL61: 0 | AM61: 0 | AN61: 0 | AO61: 0 | AP61: 0 | AQ61: 0 | AR61: 0 | AS61: 0 | AT61: 0 | AU61: 0 | AV61: 0 | AW61: 0 | AX61: 0 | AY61: 0 | AZ61: 0 | BA61: 0 | BB61: 0 | BC61: 0 | BD61: 0 | BE61: 0 | BF61: 0 | BG61: 0 | BH61: 0 | BI61: 0 | BJ61: 0 | BK61: 0 | BL61: 0 | BM61: 0 | BN61: 0 | BO61: 0 | BP61: 0 | BQ61: 0 | BR61: 0 | BS61: 0 | BT61: 0 | BU61: 0 | BV61: 0 | BW61: 0 | BX61: 0 | BY61: 0 | BZ61: 0 | CA61: 0 | CB61: 0 | CC61: 0 | CD61: 0 | CE61: 0 | CF61: 0 | CG61: 0 | CH61: 0 | CI61: 0 | CJ61: 0 | CK61: 0 | CL61: 0 | CM61: 0 | CN61: 0 | CO61: 0 | CP61: 0 | CQ61: 0 | CR61: 0 | CS61: 0 | CT61: 0 | CU61: 0 | CV61: 0 | CW61: 0 | CX61: 0 | CY61: 0
C63: Input Price Base | H63: 2010
C65: Exhaust Emissions Parameter Values: Bus
C67: Emissions | D67: Parameters
C68: PM10 | D68: a | J68: parameter | L68: TAG Databook A3.5a (May 2023) | S68: 0.6009445835 | X68: 0.3015516892 | AC68: 0.1464403393 | AH68: 0.1137269707 | AM68: 0.1081509226
C69: PM10 | D69: b | J69: parameter | L69: TAG Databook A3.5a (May 2023) | S69: 0.05457938251 | X69: 0.01962541797 | AC69: 0.0007800764335 | AH69: -0.004158373687 | AM69: -0.005122259995
C70: PM10 | D70: c | J70: parameter | L70: TAG Databook A3.5a (May 2023) | S70: -0.001416393551 | X70: -0.0002249416449 | AC70: 0.0003974617822 | AH70: 0.000565106594 | AM70: 0.000595304091
C71: PM10 | D71: d | J71: parameter | L71: TAG Databook A3.5a (May 2023) | S71: 2.947357649e-05 | X71: -2.085660988e-06 | AC71: -1.817161234e-05 | AH71: -2.245880793e-05 | AM71: -2.316348914e-05
C72: PM10 | D72: e | J72: parameter | L72: TAG Databook A3.5a (May 2023) | S72: -3.421886847e-07 | X72: 1.233396532e-07 | AC72: 3.559771855e-07 | AH72: 4.177938883e-07 | AM72: 4.271992493e-07
C73: PM10 | D73: f | J73: parameter | L73: TAG Databook A3.5a (May 2023) | S73: 2.026109795e-09 | X73: -1.496566465e-09 | AC73: -3.19666421e-09 | AH73: -3.645567406e-09 | AM73: -3.704665272e-09
C74: PM10 | D74: g | J74: parameter | L74: TAG Databook A3.5a (May 2023) | S74: -3.091528992e-12 | X74: 6.81933526e-12 | AC74: 1.110128179e-11 | AH74: 1.220922095e-11 | AM74: 1.227866244e-11
C75: Nox | D75: a | J75: parameter | L75: TAG Databook A3.5b (May 2023) | S75: 79.90682278 | X75: 41.45632911 | AC75: 20.41001721 | AH75: 15.31631461 | AM75: 14.31752824
C76: Nox | D76: b | J76: parameter | L76: TAG Databook A3.5b (May 2023) | S76: 3.022448248 | X76: 1.259868424 | AC76: -0.3855175074 | AH76: -0.8885017547 | AM76: -1.059678131
C77: Nox | D77: c | J77: parameter | L77: TAG Databook A3.5b (May 2023) | S77: -0.05164787181 | X77: -0.002494355275 | AC77: 0.06120027835 | AH77: 0.08155314051 | AM77: 0.08966329105
C78: Nox | D78: d | J78: parameter | L78: TAG Databook A3.5b (May 2023) | S78: 1.575370782e-06 | X78: -0.001077447166 | AC78: -0.002600081049 | AH78: -0.0030934997 | AM78: -0.003293417374
C79: Nox | D79: e | J79: parameter | L79: TAG Databook A3.5b (May 2023) | S79: 1.36895324e-05 | X79: 2.841256123e-05 | AC79: 4.975714856e-05 | AH79: 5.67341787e-05 | AM79: 5.955592833e-05
C80: Nox | D80: f | J80: parameter | L80: TAG Databook A3.5b (May 2023) | S80: -1.841957378e-07 | X80: -2.941505826e-07 | AC80: -4.544009066e-07 | AH80: -5.070863487e-07 | AM80: -5.28255825e-07
C81: Nox | D81: g | J81: parameter | L81: TAG Databook A3.5b (May 2023) | S81: 8.415289224e-10 | X81: 1.151825097e-09 | AC81: 1.617493711e-09 | AH81: 1.772430776e-09 | AM81: 1.834373181e-09
C84: PM2.5 | D84: grams/km | N84: 0.01
C85: Nox | D85: grams/km | N85: 0.4
B87: END
J184: 40.72 | K184: 40.72
J185: 40.6 | K185: 40.6
J186: 40.48 | K186: 40.48
J187: 40.36 | K187: 40.36
J188: 40.24 | K188: 40.24
J189: 40.12 | K189: 40.12
J190: 40 | K190: 40
J191: 39.89 | K191: 39.89
J192: 39.77 | K192: 39.77

Sheet I- Hydrogen Costs (hidden)
B1: =IF(SUM(A:A)=0,"OK","Error") -> OK
B2: File Name | G2: =IFERROR(MID(CELL("filename",G2),FIND("[",CELL("filename",G2))+1,FIND("]",CELL("filename",G2))-FIND("[",CELL("filename",G2))-1),"Please save the file to show here") -> Greener Bus Tool.xlsm
B3: Sheet Name | G3: =IFERROR(MID(CELL("filename",G2),FIND("]",CELL("filename",G2))+1,255),"Please save the file to show here") -> I- Hydrogen Costs
B4: Description and Purpose of Sheet | G4: This sheet contains the costs and carbon emissions associated with the production, distribution and dispensing of hydrogen.
B8: Estimated cost per kg of Hydrogen
C10: Input price | D10: 2017 | F10: Source: H2SM H2 model
C12: Parameter | D12: H2 production scenario | E12: H2 distribution scenario | F12: Hydrogen state | G12: Fuel Stage | H12: Year | U12: 2017 | V12: 2018 | W12: 2019 | X12: 2020 | Y12: 2021 | Z12: 2022 | AA12: 2023 | AB12: 2024 | AC12: 2025 | AD12: 2026 | AE12: 2027 | AF12: 2028 | AG12: 2029 | AH12: 2030 | AI12: 2031 | AJ12: 2032 | AK12: 2033 | AL12: 2034 | AM12: 2035 | AN12: 2036 | AO12: 2037 | AP12: 2038 | AQ12: 2039 | AR12: 2040 | AS12: 2041 | AT12: 2042 | AU12: 2043 | AV12: 2044 | AW12: 2045 | AX12: 2046 | AY12: 2047 | AZ12: 2048 | BA12: 2049 | BB12: 2050 | BC12: 2051 | BD12: 2052 | BE12: 2053 | BF12: 2054 | BG12: 2055 | BH12: 2056 | BI12: 2057 | BJ12: 2058 | BK12: 2059 | BL12: 2060 | BM12: 2061 | BN12: 2062 | BO12: 2063 | BP12: 2064 | BQ12: 2065 | BR12: 2066 | BS12: 2067 | BT12: 2068 | BU12: 2069 | BV12: 2070 | BW12: 2071 | BX12: 2072 | BY12: 2073 | BZ12: 2074 | CA12: 2075 | CB12: 2076 | CC12: 2077 | CD12: 2078 | CE12: 2079 | CF12: 2080 | CG12: 2081 | CH12: 2082 | CI12: 2083 | CJ12: 2084 | CK12: 2085 | CL12: 2086 | CM12: 2087 | CN12: 2088 | CO12: 2089 | CP12: 2090 | CQ12: 2091 | CR12: 2092 | CS12: 2093 | CT12: 2094 | CU12: 2095 | CV12: 2096 | CW12: 2097 | CX12: 2098 | CY12: 2099 | CZ12: 2100
C13: Levelised cost of H2 | D13: Electrolysis Renewable | E13: - | F13: - | G13: Production | H13: 2017 £/kg H2 | U13: 3.512906559 | V13: 4.127923248 | W13: 3.275025114 | X13: 2.814604558 | Y13: 7.469082373 | Z13: 9.382707615 | AA13: 6.203927359 | AB13: 4.840820847 | AC13: 3.700927684 | AD13: 3.316223569 | AE13: 3.224547583 | AF13: 2.912610103 | AG13: 2.772118424 | AH13: 2.390414586 | AI13: 2.390407547 | AJ13: 2.506747297 | AK13: 2.61922318 | AL13: 2.710674811 | AM13: 2.716038691 | AN13: 2.716038691 | AO13: 2.716038691 | AP13: 2.716038691 | AQ13: 2.716038691 | AR13: 2.663737926 | AS13: 2.663737926 | AT13: 2.663737926 | AU13: 2.663737926 | AV13: 2.663737926 | AW13: 2.647821342 | AX13: 2.647821342 | AY13: 2.647821342 | AZ13: 2.647821342 | BA13: 2.647821342 | BB13: 2.631954443 | BC13: 2.631954443 | BD13: 2.631954443 | BE13: 2.631954443 | BF13: 2.631954443 | BG13: 2.631954443 | BH13: 2.631954443 | BI13: 2.631954443 | BJ13: 2.631954443 | BK13: 2.631954443 | BL13: 2.631954443 | BM13: 2.631954443 | BN13: 2.631954443 | BO13: 2.631954443 | BP13: 2.631954443 | BQ13: 2.631954443 | BR13: 2.631954443 | BS13: 2.631954443 | BT13: 2.631954443 | BU13: 2.631954443 | BV13: 2.631954443 | BW13: 2.631954443 | BX13: 2.631954443 | BY13: 2.631954443 | BZ13: 2.631954443 | CA13: 2.631954443 | CB13: 2.631954443 | CC13: 2.631954443 | CD13: 2.631954443 | CE13: 2.631954443 | CF13: 2.631954443 | CG13: 2.631954443 | CH13: 2.631954443 | CI13: 2.631954443 | CJ13: 2.631954443 | CK13: 2.631954443 | CL13: 2.631954443 | CM13: 2.631954443 | CN13: 2.631954443 | CO13: 2.631954443 | CP13: 2.631954443 | CQ13: 2.631954443 | CR13: 2.631954443 | CS13: 2.631954443 | CT13: 2.631954443 | CU13: 2.631954443 | CV13: 2.631954443 | CW13: 2.631954443 | CX13: 2.631954443 | CY13: 2.631954443 | CZ13: 2.631954443
C14: Levelised cost of H2 | D14: Electrolysis Long-run Marginal | E14: - | F14: - | G14: Production | H14: 2017 £/kg H2 | U14: 4.488090072 | V14: 5.236448541 | W14: 4.495202361 | X14: 4.086982762 | Y14: 8.050875777 | Z14: 13.93348423 | AA14: 13.42430945 | AB14: 10.26844308 | AC14: 4.787935194 | AD14: 4.61646535 | AE14: 4.627905318 | AF14: 4.519674935 | AG14: 4.625024883 | AH14: 4.254663315 | AI14: 4.23252861 | AJ14: 4.079069378 | AK14: 4.252033161 | AL14: 4.430267713 | AM14: 4.374998241 | AN14: 4.271155945 | AO14: 4.332179782 | AP14: 4.276833303 | AQ14: 4.191480734 | AR14: 4.222445413 | AS14: 4.205559957 | AT14: 4.220460434 | AU14: 4.445372674 | AV14: 4.400275111 | AW14: 4.196877689 | AX14: 4.179239665 | AY14: 4.292786182 | AZ14: 4.254805331 | BA14: 4.26750628 | BB14: 4.237131674 | BC14: 4.237131674 | BD14: 4.237131674 | BE14: 4.237131674 | BF14: 4.237131674 | BG14: 4.237131674 | BH14: 4.237131674 | BI14: 4.237131674 | BJ14: 4.237131674 | BK14: 4.237131674 | BL14: 4.237131674 | BM14: 4.237131674 | BN14: 4.237131674 | BO14: 4.237131674 | BP14: 4.237131674 | BQ14: 4.237131674 | BR14: 4.237131674 | BS14: 4.237131674 | BT14: 4.237131674 | BU14: 4.237131674 | BV14: 4.237131674 | BW14: 4.237131674 | BX14: 4.237131674 | BY14: 4.237131674 | BZ14: 4.237131674 | CA14: 4.237131674 | CB14: 4.237131674 | CC14: 4.237131674 | CD14: 4.237131674 | CE14: 4.237131674 | CF14: 4.237131674 | CG14: 4.237131674 | CH14: 4.237131674 | CI14: 4.237131674 | CJ14: 4.237131674 | CK14: 4.237131674 | CL14: 4.237131674 | CM14: 4.237131674 | CN14: 4.237131674 | CO14: 4.237131674 | CP14: 4.237131674 | CQ14: 4.237131674 | CR14: 4.237131674 | CS14: 4.237131674 | CT14: 4.237131674 | CU14: 4.237131674 | CV14: 4.237131674 | CW14: 4.237131674 | CX14: 4.237131674 | CY14: 4.237131674 | CZ14: 4.237131674
C15: Levelised cost of H2 | D15: SMR | E15: - | F15: - | G15: Production | H15: 2017 £/kg H2
C16: Levelised cost of H2 | D16: Electrolysis (Off-site) Renewable | E16: Trailer delivery | F16: - | G16: Distribution | H16: 2017 £/kg H2 | U16: 0.6599196469 | V16: 0.6915142094 | W16: 0.6552327599 | X16: 0.6268624871 | Y16: 0.8343755288 | Z16: 0.935936474 | AA16: 0.7963616219 | AB16: 0.7313399012 | AC16: 0.4466593708 | AD16: 0.4273872077 | AE16: 0.424272825 | AF16: 0.4112840352 | AG16: 0.405667784 | AH16: 0.3965636415 | AI16: 0.3971936027 | AJ16: 0.4032759311 | AK16: 0.4095448566 | AL16: 0.4147759969 | AM16: 0.4177150616 | AN16: 0.4177150616 | AO16: 0.4177150616 | AP16: 0.4177150616 | AQ16: 0.4177150616 | AR16: 0.4172838351 | AS16: 0.4172838351 | AT16: 0.4172838351 | AU16: 0.4172838351 | AV16: 0.4172838351 | AW16: 0.4171391974 | AX16: 0.4171391974 | AY16: 0.4171391974 | AZ16: 0.4171391974 | BA16: 0.4171391974 | BB16: 0.4169941057 | BC16: 0.4169941057 | BD16: 0.4169941057 | BE16: 0.4169941057 | BF16: 0.4169941057 | BG16: 0.4169941057 | BH16: 0.4169941057 | BI16: 0.4169941057 | BJ16: 0.4169941057 | BK16: 0.4169941057 | BL16: 0.4169941057 | BM16: 0.4169941057 | BN16: 0.4169941057 | BO16: 0.4169941057 | BP16: 0.4169941057 | BQ16: 0.4169941057 | BR16: 0.4169941057 | BS16: 0.4169941057 | BT16: 0.4169941057 | BU16: 0.4169941057 | BV16: 0.4169941057 | BW16: 0.4169941057 | BX16: 0.4169941057 | BY16: 0.4169941057 | BZ16: 0.4169941057 | CA16: 0.4169941057 | CB16: 0.4169941057 | CC16: 0.4169941057 | CD16: 0.4169941057 | CE16: 0.4169941057 | CF16: 0.4169941057 | CG16: 0.4169941057 | CH16: 0.4169941057 | CI16: 0.4169941057 | CJ16: 0.4169941057 | CK16: 0.4169941057 | CL16: 0.4169941057 | CM16: 0.4169941057 | CN16: 0.4169941057 | CO16: 0.4169941057 | CP16: 0.4169941057 | CQ16: 0.4169941057 | CR16: 0.4169941057 | CS16: 0.4169941057 | CT16: 0.4169941057 | CU16: 0.4169941057 | CV16: 0.4169941057 | CW16: 0.4169941057 | CX16: 0.4169941057 | CY16: 0.4169941057 | CZ16: 0.4169941057
C17: Levelised cost of H2 | D17: Electrolysis (Off-site) Renewable | E17: Pipeline | F17: - | G17: Distribution | H17: 2017 £/kg H2
C18: Levelised cost of H2 | D18: Electrolysis (Off-site) Long-run Marginal | E18: Trailer delivery | F18: - | G18: Distribution | H18: 2017 £/kg H2 | U18: 0.7015574236 | V18: 0.7388453301 | W18: 0.707331126 | X18: 0.6811896971 | Y18: 0.8592165803 | Z18: 1.130242692 | AA18: 1.104652988 | AB18: 0.9630851258 | AC18: 0.4956865753 | AD18: 0.4860318988 | AE18: 0.4875683459 | AF18: 0.4837673395 | AG18: 0.4892392616 | AH18: 0.4839280503 | AI18: 0.4835210413 | AJ18: 0.4769597625 | AK18: 0.4860633364 | AL18: 0.4953613904 | AM18: 0.4966136289 | AN18: 0.4916749863 | AO18: 0.494577223 | AP18: 0.4919449961 | AQ18: 0.4878857076 | AR18: 0.4925320811 | AS18: 0.4917169179 | AT18: 0.4924362541 | AU18: 0.5032941295 | AV18: 0.5011169971 | AW18: 0.4922992215 | AX18: 0.4914434267 | AY18: 0.4969526899 | AZ18: 0.4951098636 | BA18: 0.4957261121 | BB18: 0.4952724624 | BC18: 0.4952724624 | BD18: 0.4952724624 | BE18: 0.4952724624 | BF18: 0.4952724624 | BG18: 0.4952724624 | BH18: 0.4952724624 | BI18: 0.4952724624 | BJ18: 0.4952724624 | BK18: 0.4952724624 | BL18: 0.4952724624 | BM18: 0.4952724624 | BN18: 0.4952724624 | BO18: 0.4952724624 | BP18: 0.4952724624 | BQ18: 0.4952724624 | BR18: 0.4952724624 | BS18: 0.4952724624 | BT18: 0.4952724624 | BU18: 0.4952724624 | BV18: 0.4952724624 | BW18: 0.4952724624 | BX18: 0.4952724624 | BY18: 0.4952724624 | BZ18: 0.4952724624 | CA18: 0.4952724624 | CB18: 0.4952724624 | CC18: 0.4952724624 | CD18: 0.4952724624 | CE18: 0.4952724624 | CF18: 0.4952724624 | CG18: 0.4952724624 | CH18: 0.4952724624 | CI18: 0.4952724624 | CJ18: 0.4952724624 | CK18: 0.4952724624 | CL18: 0.4952724624 | CM18: 0.4952724624 | CN18: 0.4952724624 | CO18: 0.4952724624 | CP18: 0.4952724624 | CQ18: 0.4952724624 | CR18: 0.4952724624 | CS18: 0.4952724624 | CT18: 0.4952724624 | CU18: 0.4952724624 | CV18: 0.4952724624 | CW18: 0.4952724624 | CX18: 0.4952724624 | CY18: 0.4952724624 | CZ18: 0.4952724624
C19: Levelised cost of H2 | D19: Electrolysis (Off-site) Long-run Marginal | E19: Pipeline | F19: - | G19: Distribution | H19: 2017 £/kg H2
C20: Levelised cost of H2 | D20: Electrolysis (On-site) | E20: On-site | F20: - | G20: Distribution | H20: 2017 £/kg H2
C23: Levelised cost of H2 | D23: - | E23: Trailer delivery | F23: - | G23: Dispensing | H23: 2017 £/kg H2 | U23: 1.641812938 | V23: 1.781659465 | W23: 1.643142019 | X23: 1.566857597 | Y23: 2.307594414 | Z23: 3.406883583 | AA23: 3.311733562 | AB23: 2.721993525 | AC23: 1.181887236 | AD23: 1.162082549 | AE23: 1.16340386 | AF23: 1.150903301 | AG23: 1.163071171 | AH23: 1.148411075 | AI23: 1.145754757 | AJ23: 1.127338585 | AK23: 1.148095438 | AL23: 1.169484821 | AM23: 1.172171663 | AN23: 1.159524787 | AO23: 1.166956835 | AP23: 1.160216228 | AQ23: 1.149821202 | AR23: 1.16282392 | AS23: 1.160736451 | AT23: 1.162578527 | AU23: 1.190383374 | AV23: 1.184808173 | AW23: 1.162598002 | AX23: 1.160406483 | AY23: 1.174514604 | AZ23: 1.169795494 | BA23: 1.171373583 | BB23: 1.170583428 | BC23: 1.170583428 | BD23: 1.170583428 | BE23: 1.170583428 | BF23: 1.170583428 | BG23: 1.170583428 | BH23: 1.170583428 | BI23: 1.170583428 | BJ23: 1.170583428 | BK23: 1.170583428 | BL23: 1.170583428 | BM23: 1.170583428 | BN23: 1.170583428 | BO23: 1.170583428 | BP23: 1.170583428 | BQ23: 1.170583428 | BR23: 1.170583428 | BS23: 1.170583428 | BT23: 1.170583428 | BU23: 1.170583428 | BV23: 1.170583428 | BW23: 1.170583428 | BX23: 1.170583428 | BY23: 1.170583428 | BZ23: 1.170583428 | CA23: 1.170583428 | CB23: 1.170583428 | CC23: 1.170583428 | CD23: 1.170583428 | CE23: 1.170583428 | CF23: 1.170583428 | CG23: 1.170583428 | CH23: 1.170583428 | CI23: 1.170583428 | CJ23: 1.170583428 | CK23: 1.170583428 | CL23: 1.170583428 | CM23: 1.170583428 | CN23: 1.170583428 | CO23: 1.170583428 | CP23: 1.170583428 | CQ23: 1.170583428 | CR23: 1.170583428 | CS23: 1.170583428 | CT23: 1.170583428 | CU23: 1.170583428 | CV23: 1.170583428 | CW23: 1.170583428 | CX23: 1.170583428 | CY23: 1.170583428 | CZ23: 1.170583428
C24: Levelised cost of H2 | D24: - | E24: Pipeline | F24: - | G24: Dispensing | H24: 2017 £/kg H2
C25: Levelised cost of H2 | D25: - | E25: On-site | F25: - | G25: Dispensing | H25: 2017 £/kg H2
C26: H2 emissions intensity | D26: Electrolysis Renewable | E26: - | F26: - | G26: Production | H26: kgCO2/kg H2 | U26: 0 | V26: 0 | W26: 0 | X26: 0 | Y26: 0 | Z26: 0 | AA26: 0 | AB26: 0 | AC26: 0 | AD26: 0 | AE26: 0 | AF26: 0 | AG26: 0 | AH26: 0 | AI26: 0 | AJ26: 0 | AK26: 0 | AL26: 0 | AM26: 0 | AN26: 0 | AO26: 0 | AP26: 0 | AQ26: 0 | AR26: 0 | AS26: 0 | AT26: 0 | AU26: 0 | AV26: 0 | AW26: 0 | AX26: 0 | AY26: 0 | AZ26: 0 | BA26: 0 | BB26: 0 | BC26: 0 | BD26: 0 | BE26: 0 | BF26: 0 | BG26: 0 | BH26: 0 | BI26: 0 | BJ26: 0 | BK26: 0 | BL26: 0 | BM26: 0 | BN26: 0 | BO26: 0 | BP26: 0 | BQ26: 0 | BR26: 0 | BS26: 0 | BT26: 0 | BU26: 0 | BV26: 0 | BW26: 0 | BX26: 0 | BY26: 0 | BZ26: 0 | CA26: 0 | CB26: 0 | CC26: 0 | CD26: 0 | CE26: 0 | CF26: 0 | CG26: 0 | CH26: 0 | CI26: 0 | CJ26: 0 | CK26: 0 | CL26: 0 | CM26: 0 | CN26: 0 | CO26: 0 | CP26: 0 | CQ26: 0 | CR26: 0 | CS26: 0 | CT26: 0 | CU26: 0 | CV26: 0 | CW26: 0 | CX26: 0 | CY26: 0 | CZ26: 0
C27: H2 emissions intensity | D27: Electrolysis (Off-site) Long-run Marginal | E27: - | F27: - | G27: Production | H27: kgCO2/kg H2 | U27: 18.45162546 | V27: 17.82164218 | W27: 17.13473512 | X27: 16.40587391 | Y27: 15.62563147 | Z27: 14.79038569 | AA27: 13.89625908 | AB27: 12.93910082 | AC27: 11.2790165 | AD27: 10.24065207 | AE27: 9.12908793 | AF27: 7.939163841 | AG27: 6.665355805 | AH27: 5.102619415 | AI27: 4.248414983 | AJ27: 3.537208716 | AK27: 2.945061994 | AL27: 2.452043643 | AM27: 2.01168194 | AN27: 1.674916156 | AO27: 1.394526676 | AP27: 1.161075821 | AQ27: 0.9667058254 | AR27: 0.7929205092 | AS27: 0.7558786728 | AT27: 0.71761972 | AU27: 0.4515999291 | AV27: 0.4197353671 | AW27: 0.3882306654 | AX27: 0.37964975 | AY27: 0.2623525796 | AZ27: 0.2550177597 | BA27: 0.1616626759 | BB27: 0.1224461427 | BC27: 0.1224461427 | BD27: 0.1224461427 | BE27: 0.1224461427 | BF27: 0.1224461427 | BG27: 0.1224461427 | BH27: 0.1224461427 | BI27: 0.1224461427 | BJ27: 0.1224461427 | BK27: 0.1224461427 | BL27: 0.1224461427 | BM27: 0.1224461427 | BN27: 0.1224461427 | BO27: 0.1224461427 | BP27: 0.1224461427 | BQ27: 0.1224461427 | BR27: 0.1224461427 | BS27: 0.1224461427 | BT27: 0.1224461427 | BU27: 0.1224461427 | BV27: 0.1224461427 | BW27: 0.1224461427 | BX27: 0.1224461427 | BY27: 0.1224461427 | BZ27: 0.1224461427 | CA27: 0.1224461427 | CB27: 0.1224461427 | CC27: 0.1224461427 | CD27: 0.1224461427 | CE27: 0.1224461427 | CF27: 0.1224461427 | CG27: 0.1224461427 | CH27: 0.1224461427 | CI27: 0.1224461427 | CJ27: 0.1224461427 | CK27: 0.1224461427 | CL27: 0.1224461427 | CM27: 0.1224461427 | CN27: 0.1224461427 | CO27: 0.1224461427 | CP27: 0.1224461427 | CQ27: 0.1224461427 | CR27: 0.1224461427 | CS27: 0.1224461427 | CT27: 0.1224461427 | CU27: 0.1224461427 | CV27: 0.1224461427 | CW27: 0.1224461427 | CX27: 0.1224461427 | CY27: 0.1224461427 | CZ27: 0.1224461427
C28: H2 emissions intensity | D28: Electrolysis (On-site) Long-run Marginal | E28: - | F28: - | G28: Production | H28: kgCO2/kg H2 | U28: 22.38450267 | V28: 21.62024142 | W28: 20.78692335 | X28: 19.9027088 | Y28: 18.95616136 | Z28: 17.94288686 | AA28: 16.85818137 | AB28: 15.69700933 | AC28: 12.86621196 | AD28: 11.68172776 | AE28: 10.4137431 | AF28: 9.056371604 | AG28: 7.603311916 | AH28: 5.848687493 | AI28: 4.869587472 | AJ28: 4.054393772 | AK28: 3.375667642 | AL28: 2.810563717 | AM28: 2.31018393 | AN28: 1.923447396 | AO28: 1.601452523 | AP28: 1.333361229 | AQ28: 1.11014978 | AR28: 0.9123512166 | AS28: 0.8697300911 | AT28: 0.8257085257 | AU28: 0.5196204915 | AV28: 0.4829564482 | AW28: 0.4470018068 | AX28: 0.4371218951 | AY28: 0.3020680425 | AZ28: 0.2936228628 | BA28: 0.1861354979 | BB28: 0.1410763811 | BC28: 0.1410763811 | BD28: 0.1410763811 | BE28: 0.1410763811 | BF28: 0.1410763811 | BG28: 0.1410763811 | BH28: 0.1410763811 | BI28: 0.1410763811 | BJ28: 0.1410763811 | BK28: 0.1410763811 | BL28: 0.1410763811 | BM28: 0.1410763811 | BN28: 0.1410763811 | BO28: 0.1410763811 | BP28: 0.1410763811 | BQ28: 0.1410763811 | BR28: 0.1410763811 | BS28: 0.1410763811 | BT28: 0.1410763811 | BU28: 0.1410763811 | BV28: 0.1410763811 | BW28: 0.1410763811 | BX28: 0.1410763811 | BY28: 0.1410763811 | BZ28: 0.1410763811 | CA28: 0.1410763811 | CB28: 0.1410763811 | CC28: 0.1410763811 | CD28: 0.1410763811 | CE28: 0.1410763811 | CF28: 0.1410763811 | CG28: 0.1410763811 | CH28: 0.1410763811 | CI28: 0.1410763811 | CJ28: 0.1410763811 | CK28: 0.1410763811 | CL28: 0.1410763811 | CM28: 0.1410763811 | CN28: 0.1410763811 | CO28: 0.1410763811 | CP28: 0.1410763811 | CQ28: 0.1410763811 | CR28: 0.1410763811 | CS28: 0.1410763811 | CT28: 0.1410763811 | CU28: 0.1410763811 | CV28: 0.1410763811 | CW28: 0.1410763811 | CX28: 0.1410763811 | CY28: 0.1410763811 | CZ28: 0.1410763811
C29: H2 emissions intensity | D29: Average Electrolysis Long-run Marginal | E29: - | F29: - | G29: Production | H29: kgCO2/kg H2 | U29: =AVERAGE(U27:U28) -> 20.41806407 | V29: =AVERAGE(V27:V28) -> 19.7209418 | W29: 18.96082923 | X29: 18.15429135 | Y29: 17.29089642 | Z29: 16.36663628 | AA29: 15.37722022 | AB29: 14.31805507 | AC29: 12.07261423 | AD29: 10.96118992 | AE29: 9.771415517 | AF29: 8.497767722 | AG29: 7.13433386 | AH29: 5.475653454 | AI29: 4.559001227 | AJ29: 3.795801244 | AK29: 3.160364818 | AL29: 2.63130368 | AM29: 2.160932935 | AN29: 1.799181776 | AO29: 1.497989599 | AP29: 1.247218525 | AQ29: 1.038427803 | AR29: 0.8526358629 | AS29: 0.8128043819 | AT29: 0.7716641229 | AU29: 0.4856102103 | AV29: 0.4513459077 | AW29: 0.4176162361 | AX29: 0.4083858225 | AY29: 0.282210311 | AZ29: 0.2743203112 | BA29: 0.1738990869 | BB29: 0.1317612619 | BC29: 0.1317612619 | BD29: 0.1317612619 | BE29: 0.1317612619 | BF29: 0.1317612619 | BG29: 0.1317612619 | BH29: 0.1317612619 | BI29: 0.1317612619 | BJ29: 0.1317612619 | BK29: 0.1317612619 | BL29: 0.1317612619 | BM29: 0.1317612619 | BN29: 0.1317612619 | BO29: 0.1317612619 | BP29: 0.1317612619 | BQ29: 0.1317612619 | BR29: 0.1317612619 | BS29: 0.1317612619 | BT29: 0.1317612619 | BU29: 0.1317612619 | BV29: 0.1317612619 | BW29: 0.1317612619 | BX29: 0.1317612619 | BY29: 0.1317612619 | BZ29: 0.1317612619 | CA29: 0.1317612619 | CB29: 0.1317612619 | CC29: 0.1317612619 | CD29: 0.1317612619 | CE29: 0.1317612619 | CF29: 0.1317612619 | CG29: 0.1317612619 | CH29: =AVERAGE(CH27:CH28) -> 0.1317612619 | CI29: 0.1317612619 | CJ29: 0.1317612619 | CK29: 0.1317612619 | CL29: 0.1317612619 | CM29: 0.1317612619 | CN29: 0.1317612619 | CO29: 0.1317612619 | CP29: 0.1317612619 | CQ29: 0.1317612619 | CR29: 0.1317612619 | CS29: 0.1317612619 | CT29: 0.1317612619 | CU29: 0.1317612619 | CV29: 0.1317612619 | CW29: 0.1317612619 | CX29: 0.1317612619 | CY29: 0.1317612619 | CZ29: 0.1317612619
C30: H2 emissions intensity | D30: SMR | E30: - | F30: - | G30: Production | H30: kgCO2/kg H2
C31: H2 emissions intensity | D31: Electrolysis (Off-site) | E31: Trailer delivery | F31: - | G31: Distribution | H31: kgCO2/kg H2 | U31: 0.1809604825 | V31: 0.1804775676 | W31: 0.1777461796 | X31: 0.1697189736 | Y31: 0.1687806275 | Z31: 0.1692781358 | AA31: 0.1687910066 | AB31: 0.1684971554 | AC31: 0.1495543624 | AD31: 0.1495029273 | AE31: 0.149434147 | AF31: 0.1493805003 | AG31: 0.1493264972 | AH31: 0.1306078404 | AI31: 0.1305721975 | AJ31: 0.13053679 | AK31: 0.13053679 | AL31: 0.13053679 | AM31: 0.13053679 | AN31: 0.13053679 | AO31: 0.13053679 | AP31: 0.13053679 | AQ31: 0.13053679 | AR31: 0.13053679 | AS31: 0.13053679 | AT31: 0.13053679 | AU31: 0.13053679 | AV31: 0.13053679 | AW31: 0.13053679 | AX31: 0.13053679 | AY31: 0.13053679 | AZ31: 0.13053679 | BA31: 0.13053679 | BB31: 0.13053679 | BC31: 0.13053679 | BD31: 0.13053679 | BE31: 0.13053679 | BF31: 0.13053679 | BG31: 0.13053679 | BH31: 0.13053679 | BI31: 0.13053679 | BJ31: 0.13053679 | BK31: 0.13053679 | BL31: 0.13053679 | BM31: 0.13053679 | BN31: 0.13053679 | BO31: 0.13053679 | BP31: 0.13053679 | BQ31: 0.13053679 | BR31: 0.13053679 | BS31: 0.13053679 | BT31: 0.13053679 | BU31: 0.13053679 | BV31: 0.13053679 | BW31: 0.13053679 | BX31: 0.13053679 | BY31: 0.13053679 | BZ31: 0.13053679 | CA31: 0.13053679 | CB31: 0.13053679 | CC31: 0.13053679 | CD31: 0.13053679 | CE31: 0.13053679 | CF31: 0.13053679 | CG31: 0.13053679 | CH31: 0.13053679 | CI31: 0.13053679 | CJ31: 0.13053679 | CK31: 0.13053679 | CL31: 0.13053679 | CM31: 0.13053679 | CN31: 0.13053679 | CO31: 0.13053679 | CP31: 0.13053679 | CQ31: 0.13053679 | CR31: 0.13053679 | CS31: 0.13053679 | CT31: 0.13053679 | CU31: 0.13053679 | CV31: 0.13053679 | CW31: 0.13053679 | CX31: 0.13053679 | CY31: 0.13053679 | CZ31: 0.13053679
C32: H2 emissions intensity | D32: Electrolysis (Off-site) | E32: Pipeline | F32: - | G32: Distribution | H32: kgCO2/kg H2 | U32: 0 | V32: 0 | W32: 0 | X32: 0 | Y32: 0 | Z32: 0 | AA32: 0 | AB32: 0 | AC32: 0 | AD32: 0 | AE32: 0 | AF32: 0 | AG32: 0 | AH32: 0 | AI32: 0 | AJ32: 0 | AK32: 0 | AL32: 0 | AM32: 0 | AN32: 0 | AO32: 0 | AP32: 0 | AQ32: 0 | AR32: 0 | AS32: 0 | AT32: 0 | AU32: 0 | AV32: 0 | AW32: 0 | AX32: 0 | AY32: 0 | AZ32: 0 | BA32: 0 | BB32: 0 | BC32: 0 | BD32: 0 | BE32: 0 | BF32: 0 | BG32: 0 | BH32: 0 | BI32: 0 | BJ32: 0 | BK32: 0 | BL32: 0 | BM32: 0 | BN32: 0 | BO32: 0 | BP32: 0 | BQ32: 0 | BR32: 0 | BS32: 0 | BT32: 0 | BU32: 0 | BV32: 0 | BW32: 0 | BX32: 0 | BY32: 0 | BZ32: 0 | CA32: 0 | CB32: 0 | CC32: 0 | CD32: 0 | CE32: 0 | CF32: 0 | CG32: 0 | CH32: 0 | CI32: 0 | CJ32: 0 | CK32: 0 | CL32: 0 | CM32: 0 | CN32: 0 | CO32: 0 | CP32: 0 | CQ32: 0 | CR32: 0 | CS32: 0 | CT32: 0 | CU32: 0 | CV32: 0 | CW32: 0 | CX32: 0 | CY32: 0 | CZ32: 0
C33: H2 emissions intensity | D33: Electrolysis (On-site) | E33: On-site | F33: - | G33: Distribution | H33: kgCO2/kg H2 | U33: 0 | V33: 0 | W33: 0 | X33: 0 | Y33: 0 | Z33: 0 | AA33: 0 | AB33: 0 | AC33: 0 | AD33: 0 | AE33: 0 | AF33: 0 | AG33: 0 | AH33: 0 | AI33: 0 | AJ33: 0 | AK33: 0 | AL33: 0 | AM33: 0 | AN33: 0 | AO33: 0 | AP33: 0 | AQ33: 0 | AR33: 0 | AS33: 0 | AT33: 0 | AU33: 0 | AV33: 0 | AW33: 0 | AX33: 0 | AY33: 0 | AZ33: 0 | BA33: 0 | BB33: 0 | BC33: 0 | BD33: 0 | BE33: 0 | BF33: 0 | BG33: 0 | BH33: 0 | BI33: 0 | BJ33: 0 | BK33: 0 | BL33: 0 | BM33: 0 | BN33: 0 | BO33: 0 | BP33: 0 | BQ33: 0 | BR33: 0 | BS33: 0 | BT33: 0 | BU33: 0 | BV33: 0 | BW33: 0 | BX33: 0 | BY33: 0 | BZ33: 0 | CA33: 0 | CB33: 0 | CC33: 0 | CD33: 0 | CE33: 0 | CF33: 0 | CG33: 0 | CH33: 0 | CI33: 0 | CJ33: 0 | CK33: 0 | CL33: 0 | CM33: 0 | CN33: 0 | CO33: 0 | CP33: 0 | CQ33: 0 | CR33: 0 | CS33: 0 | CT33: 0 | CU33: 0 | CV33: 0 | CW33: 0 | CX33: 0 | CY33: 0 | CZ33: 0
C36: H2 emissions intensity | D36: - | E36: Trailer delivery | F36: - | G36: Dispensing | H36: kgCO2/kg H2 | U36: 0 | V36: 0 | W36: 0 | X36: 0 | Y36: 0 | Z36: 0 | AA36: 0 | AB36: 0 | AC36: 0 | AD36: 0 | AE36: 0 | AF36: 0 | AG36: 0 | AH36: 0 | AI36: 0 | AJ36: 0 | AK36: 0 | AL36: 0 | AM36: 0 | AN36: 0 | AO36: 0 | AP36: 0 | AQ36: 0 | AR36: 0 | AS36: 0 | AT36: 0 | AU36: 0 | AV36: 0 | AW36: 0 | AX36: 0 | AY36: 0 | AZ36: 0 | BA36: 0 | BB36: 0 | BC36: 0 | BD36: 0 | BE36: 0 | BF36: 0 | BG36: 0 | BH36: 0 | BI36: 0 | BJ36: 0 | BK36: 0 | BL36: 0 | BM36: 0 | BN36: 0 | BO36: 0 | BP36: 0 | BQ36: 0 | BR36: 0 | BS36: 0 | BT36: 0 | BU36: 0 | BV36: 0 | BW36: 0 | BX36: 0 | BY36: 0 | BZ36: 0 | CA36: 0 | CB36: 0 | CC36: 0 | CD36: 0 | CE36: 0 | CF36: 0 | CG36: 0 | CH36: 0 | CI36: 0 | CJ36: 0 | CK36: 0 | CL36: 0 | CM36: 0 | CN36: 0 | CO36: 0 | CP36: 0 | CQ36: 0 | CR36: 0 | CS36: 0 | CT36: 0 | CU36: 0 | CV36: 0 | CW36: 0 | CX36: 0 | CY36: 0 | CZ36: 0
C37: H2 emissions intensity | D37: - | E37: Pipeline | F37: - | G37: Dispensing | H37: kgCO2/kg H2 | U37: 0 | V37: 0 | W37: 0 | X37: 0 | Y37: 0 | Z37: 0 | AA37: 0 | AB37: 0 | AC37: 0 | AD37: 0 | AE37: 0 | AF37: 0 | AG37: 0 | AH37: 0 | AI37: 0 | AJ37: 0 | AK37: 0 | AL37: 0 | AM37: 0 | AN37: 0 | AO37: 0 | AP37: 0 | AQ37: 0 | AR37: 0 | AS37: 0 | AT37: 0 | AU37: 0 | AV37: 0 | AW37: 0 | AX37: 0 | AY37: 0 | AZ37: 0 | BA37: 0 | BB37: 0 | BC37: 0 | BD37: 0 | BE37: 0 | BF37: 0 | BG37: 0 | BH37: 0 | BI37: 0 | BJ37: 0 | BK37: 0 | BL37: 0 | BM37: 0 | BN37: 0 | BO37: 0 | BP37: 0 | BQ37: 0 | BR37: 0 | BS37: 0 | BT37: 0 | BU37: 0 | BV37: 0 | BW37: 0 | BX37: 0 | BY37: 0 | BZ37: 0 | CA37: 0 | CB37: 0 | CC37: 0 | CD37: 0 | CE37: 0 | CF37: 0 | CG37: 0 | CH37: 0 | CI37: 0 | CJ37: 0 | CK37: 0 | CL37: 0 | CM37: 0 | CN37: 0 | CO37: 0 | CP37: 0 | CQ37: 0 | CR37: 0 | CS37: 0 | CT37: 0 | CU37: 0 | CV37: 0 | CW37: 0 | CX37: 0 | CY37: 0 | CZ37: 0
C38: H2 emissions intensity | D38: - | E38: On-site | F38: - | G38: Dispensing | H38: kgCO2/kg H2 | U38: 0 | V38: 0 | W38: 0 | X38: 0 | Y38: 0 | Z38: 0 | AA38: 0 | AB38: 0 | AC38: 0 | AD38: 0 | AE38: 0 | AF38: 0 | AG38: 0 | AH38: 0 | AI38: 0 | AJ38: 0 | AK38: 0 | AL38: 0 | AM38: 0 | AN38: 0 | AO38: 0 | AP38: 0 | AQ38: 0 | AR38: 0 | AS38: 0 | AT38: 0 | AU38: 0 | AV38: 0 | AW38: 0 | AX38: 0 | AY38: 0 | AZ38: 0 | BA38: 0 | BB38: 0 | BC38: 0 | BD38: 0 | BE38: 0 | BF38: 0 | BG38: 0 | BH38: 0 | BI38: 0 | BJ38: 0 | BK38: 0 | BL38: 0 | BM38: 0 | BN38: 0 | BO38: 0 | BP38: 0 | BQ38: 0 | BR38: 0 | BS38: 0 | BT38: 0 | BU38: 0 | BV38: 0 | BW38: 0 | BX38: 0 | BY38: 0 | BZ38: 0 | CA38: 0 | CB38: 0 | CC38: 0 | CD38: 0 | CE38: 0 | CF38: 0 | CG38: 0 | CH38: 0 | CI38: 0 | CJ38: 0 | CK38: 0 | CL38: 0 | CM38: 0 | CN38: 0 | CO38: 0 | CP38: 0 | CQ38: 0 | CR38: 0 | CS38: 0 | CT38: 0 | CU38: 0 | CV38: 0 | CW38: 0 | CX38: 0 | CY38: 0 | CZ38: 0
B41: END

Sheet I- Hydrogen Scenario (hidden)
B1: =IF(SUM(A:A)=0,"OK","Error") -> OK
B2: File Name | G2: =IFERROR(MID(CELL("filename",G2),FIND("[",CELL("filename",G2))+1,FIND("]",CELL("filename",G2))-FIND("[",CELL("filename",G2))-1),"Please save the file to show here") -> Greener Bus Tool.xlsm
B3: Sheet Name | G3: =IFERROR(MID(CELL("filename",G2),FIND("]",CELL("filename",G2))+1,255),"Please save the file to show here") -> I- Hydrogen Scenario
B4: Description and Purpose of Sheet | G4: This sheet presents one scenario in order to calculate the cost and carbon emissions associated with a kg of hydrogen. Each section (Production, Distribution and Dispensing) should sum up 100% and be consistent. For example, if it is produced with SMR, the Distribution should be SMR as well. In terms o Electrolysis, this can be with renewable energy or long-run marginal. If it is off-site, it will need to be distributed through trailer delivery or pipeline.
C11: Fuel stage | D11: H2 production scenario | E11: H2 Distribution scenario | F11: Year | G11: 2010 | H11: 2015 | I11: 2020 | J11: 2025 | K11: 2030 | L11: 2035 | M11: 2040 | N11: 2045 | O11: 2050
C12: Production | D12: Electrolysis Renewable | I12: ='I - Hydrogen Costs & Supply'!U28 -> 1 | J12: ='I - Hydrogen Costs & Supply'!V28 -> 1 | K12: ='I - Hydrogen Costs & Supply'!W28 -> 1 | L12: ='I - Hydrogen Costs & Supply'!X28 -> 1 | M12: ='I - Hydrogen Costs & Supply'!Y28 -> 1 | N12: ='I - Hydrogen Costs & Supply'!Z28 -> 1 | O12: ='I - Hydrogen Costs & Supply'!AA28 -> 1
C13: Production | D13: Electrolysis Long-run Marginal | I13: ='I - Hydrogen Costs & Supply'!U29 -> 0 | J13: ='I - Hydrogen Costs & Supply'!V29 -> 0 | K13: ='I - Hydrogen Costs & Supply'!W29 -> 0 | L13: ='I - Hydrogen Costs & Supply'!X29 -> 0 | M13: ='I - Hydrogen Costs & Supply'!Y29 -> 0 | N13: ='I - Hydrogen Costs & Supply'!Z29 -> 0 | O13: ='I - Hydrogen Costs & Supply'!AA29 -> 0
C14: Production | D14: SMR | I14: 0 | J14: 0 | K14: 0 | L14: 0 | M14: 0 | N14: 0 | O14: 0
C15: Total | G15: =SUM(G12:G14) -> 0 | H15: 0 | I15: 1 | J15: 1 | K15: 1 | L15: 1 | M15: 1 | N15: 1 | O15: 1
C17: Distribution | D17: Electrolysis (Off-site) Renewable | E17: Trailer delivery | I17: ='I - Hydrogen Costs & Supply'!U34 -> 1 | J17: ='I - Hydrogen Costs & Supply'!V34 -> 1 | K17: ='I - Hydrogen Costs & Supply'!W34 -> 1 | L17: ='I - Hydrogen Costs & Supply'!X34 -> 1 | M17: ='I - Hydrogen Costs & Supply'!Y34 -> 1 | N17: ='I - Hydrogen Costs & Supply'!Z34 -> 1 | O17: ='I - Hydrogen Costs & Supply'!AA34 -> 1
C18: Distribution | D18: Electrolysis (Off-site) Renewable | E18: Pipeline | I18: ='I - Hydrogen Costs & Supply'!U35 -> 0 | J18: ='I - Hydrogen Costs & Supply'!V35 -> 0 | K18: ='I - Hydrogen Costs & Supply'!W35 -> 0 | L18: ='I - Hydrogen Costs & Supply'!X35 -> 0 | M18: ='I - Hydrogen Costs & Supply'!Y35 -> 0 | N18: ='I - Hydrogen Costs & Supply'!Z35 -> 0 | O18: ='I - Hydrogen Costs & Supply'!AA35 -> 0
C19: Distribution | D19: Electrolysis (Off-site) Long-run Marginal | E19: Trailer delivery | I19: ='I - Hydrogen Costs & Supply'!U36 -> 0 | J19: ='I - Hydrogen Costs & Supply'!V36 -> 0 | K19: ='I - Hydrogen Costs & Supply'!W36 -> 0 | L19: ='I - Hydrogen Costs & Supply'!X36 -> 0 | M19: ='I - Hydrogen Costs & Supply'!Y36 -> 0 | N19: ='I - Hydrogen Costs & Supply'!Z36 -> 0 | O19: ='I - Hydrogen Costs & Supply'!AA36 -> 0
C20: Distribution | D20: Electrolysis (Off-site) Long-run Marginal | E20: Pipeline | I20: ='I - Hydrogen Costs & Supply'!U37 -> 0 | J20: ='I - Hydrogen Costs & Supply'!V37 -> 0 | K20: ='I - Hydrogen Costs & Supply'!W37 -> 0 | L20: ='I - Hydrogen Costs & Supply'!X37 -> 0 | M20: ='I - Hydrogen Costs & Supply'!Y37 -> 0 | N20: ='I - Hydrogen Costs & Supply'!Z37 -> 0 | O20: ='I - Hydrogen Costs & Supply'!AA37 -> 0
C21: Distribution | D21: Electrolysis (On-site) | E21: On-site | I21: ='I - Hydrogen Costs & Supply'!U38 -> 0 | J21: ='I - Hydrogen Costs & Supply'!V38 -> 0 | K21: ='I - Hydrogen Costs & Supply'!W38 -> 0 | L21: ='I - Hydrogen Costs & Supply'!X38 -> 0 | M21: ='I - Hydrogen Costs & Supply'!Y38 -> 0 | N21: ='I - Hydrogen Costs & Supply'!Z38 -> 0 | O21: ='I - Hydrogen Costs & Supply'!AA38 -> 0
C22: Distribution | D22: SMR | E22: Trailer delivery | I22: 0 | J22: 0 | K22: 0 | L22: 0 | M22: 0 | N22: 0 | O22: 0
C23: Distribution | D23: SMR | E23: Pipeline | I23: 0 | J23: 0 | K23: 0 | L23: 0 | M23: 0 | N23: 0 | O23: 0
C24: Total | G24: =SUM(G17:G23) -> 0 | H24: =SUM(H17:H23) -> 0 | I24: =SUM(I17:I23) -> 1 | J24: 1 | K24: 1 | L24: 1 | M24: 1 | N24: 1 | O24: 1
C26: Dispensing | E26: Trailer delivery | I26: ='I - Hydrogen Costs & Supply'!U41 -> 1 | J26: ='I - Hydrogen Costs & Supply'!V41 -> 1 | K26: ='I - Hydrogen Costs & Supply'!W41 -> 1 | L26: ='I - Hydrogen Costs & Supply'!X41 -> 1 | M26: ='I - Hydrogen Costs & Supply'!Y41 -> 1 | N26: ='I - Hydrogen Costs & Supply'!Z41 -> 1 | O26: ='I - Hydrogen Costs & Supply'!AA41 -> 1
C27: Dispensing | E27: Pipeline | I27: ='I - Hydrogen Costs & Supply'!U42 -> 0 | J27: ='I - Hydrogen Costs & Supply'!V42 -> 0 | K27: ='I - Hydrogen Costs & Supply'!W42 -> 0 | L27: ='I - Hydrogen Costs & Supply'!X42 -> 0 | M27: ='I - Hydrogen Costs & Supply'!Y42 -> 0 | N27: ='I - Hydrogen Costs & Supply'!Z42 -> 0 | O27: ='I - Hydrogen Costs & Supply'!AA42 -> 0
C28: Dispensing | E28: On-site | I28: ='I - Hydrogen Costs & Supply'!U43 -> 0 | J28: ='I - Hydrogen Costs & Supply'!V43 -> 0 | K28: ='I - Hydrogen Costs & Supply'!W43 -> 0 | L28: ='I - Hydrogen Costs & Supply'!X43 -> 0 | M28: ='I - Hydrogen Costs & Supply'!Y43 -> 0 | N28: ='I - Hydrogen Costs & Supply'!Z43 -> 0 | O28: ='I - Hydrogen Costs & Supply'!AA43 -> 0
C29: Total | G29: =SUM(G26:G28) -> 0 | H29: 0 | I29: =SUM(I26:I28) -> 1 | J29: =SUM(J26:J28) -> 1 | K29: 1 | L29: 1 | M29: 1 | N29: 1 | O29: 1
M32: Year | N32: =O32-1 -> 2010 | O32: 2011 | P32: 2012 | Q32: 2013 | R32: 2014 | S32: 2015 | T32: 2016 | U32: 2017 | V32: 2018 | W32: =X32-1 -> 2019 | X32: 2020 | Y32: =X32+1 -> 2021 | Z32: =Y32+1 -> 2022 | AA32: 2023 | AB32: 2024 | AC32: 2025 | AD32: 2026 | AE32: 2027 | AF32: 2028 | AG32: 2029 | AH32: 2030 | AI32: 2031 | AJ32: 2032 | AK32: 2033 | AL32: 2034 | AM32: 2035 | AN32: 2036 | AO32: 2037 | AP32: 2038 | AQ32: 2039 | AR32: 2040 | AS32: 2041 | AT32: 2042 | AU32: 2043 | AV32: 2044 | AW32: 2045 | AX32: 2046 | AY32: 2047 | AZ32: 2048 | BA32: 2049 | BB32: =BA32+1 -> 2050
C33: Production | D33: Electrolysis Renewable | N33: =$G12 -> 0 | O33: 0 | P33: 0 | Q33: 0 | R33: 0 | S33: =$H12 -> 0 | T33: =$H12 -> 0 | U33: 0 | V33: =$H12 -> 0 | W33: 0 | X33: =$I12 -> 1 | Y33: =$I12 -> 1 | Z33: 1 | AA33: 1 | AB33: 1 | AC33: =$J12 -> 1 | AD33: 1 | AE33: 1 | AF33: 1 | AG33: 1 | AH33: =$K12 -> 1 | AI33: 1 | AJ33: 1 | AK33: 1 | AL33: 1 | AM33: =$L12 -> 1 | AN33: 1 | AO33: 1 | AP33: 1 | AQ33: 1 | AR33: =$M12 -> 1 | AS33: 1 | AT33: 1 | AU33: 1 | AV33: 1 | AW33: =$N12 -> 1 | AX33: 1 | AY33: 1 | AZ33: 1 | BA33: 1 | BB33: =$O12 -> 1
C34: Production | D34: Electrolysis Long-run Marginal | N34: =$G13 -> 0 | O34: 0 | P34: 0 | Q34: 0 | R34: 0 | S34: 0 | T34: 0 | U34: 0 | V34: 0 | W34: 0 | X34: 0 | Y34: 0 | Z34: 0 | AA34: 0 | AB34: 0 | AC34: 0 | AD34: 0 | AE34: 0 | AF34: 0 | AG34: 0 | AH34: 0 | AI34: 0 | AJ34: 0 | AK34: 0 | AL34: 0 | AM34: 0 | AN34: 0 | AO34: 0 | AP34: 0 | AQ34: 0 | AR34: 0 | AS34: 0 | AT34: 0 | AU34: 0 | AV34: 0 | AW34: 0 | AX34: 0 | AY34: 0 | AZ34: 0 | BA34: 0 | BB34: =$O13 -> 0
C35: Production | D35: SMR | N35: 0 | O35: 0 | P35: 0 | Q35: 0 | R35: 0 | S35: 0 | T35: 0 | U35: 0 | V35: 0 | W35: 0 | X35: 0 | Y35: 0 | Z35: 0 | AA35: 0 | AB35: 0 | AC35: 0 | AD35: 0 | AE35: 0 | AF35: 0 | AG35: 0 | AH35: 0 | AI35: 0 | AJ35: 0 | AK35: 0 | AL35: 0 | AM35: 0 | AN35: 0 | AO35: 0 | AP35: 0 | AQ35: 0 | AR35: 0 | AS35: 0 | AT35: 0 | AU35: 0 | AV35: 0 | AW35: 0 | AX35: 0 | AY35: 0 | AZ35: 0 | BA35: 0 | BB35: =$O14 -> 0
C36: Total | N36: =SUM(N33:N35) -> 0 | O36: 0 | P36: 0 | Q36: 0 | R36: 0 | S36: 0 | T36: 0 | U36: 0 | V36: 0 | W36: 0 | X36: 1 | Y36: 1 | Z36: 1 | AA36: 1 | AB36: 1 | AC36: 1 | AD36: 1 | AE36: 1 | AF36: 1 | AG36: 1 | AH36: 1 | AI36: 1 | AJ36: 1 | AK36: 1 | AL36: 1 | AM36: 1 | AN36: 1 | AO36: 1 | AP36: 1 | AQ36: 1 | AR36: 1 | AS36: 1 | AT36: 1 | AU36: 1 | AV36: 1 | AW36: 1 | AX36: 1 | AY36: 1 | AZ36: 1 | BA36: 1 | BB36: 1
C38: Distribution | D38: Electrolysis (Off-site) Renewable | E38: Trailer delivery | N38: =$G17 -> 0 | O38: =$G17 -> 0 | P38: 0 | Q38: 0 | R38: 0 | S38: =$H17 -> 0 | T38: 0 | U38: 0 | V38: 0 | W38: 0 | X38: =$I17 -> 1 | Y38: =$I17 -> 1 | Z38: =$I17 -> 1 | AA38: =$I17 -> 1 | AB38: =$I17 -> 1 | AC38: =$J17 -> 1 | AD38: =$J17 -> 1 | AE38: =$J17 -> 1 | AF38: =$J17 -> 1 | AG38: =$J17 -> 1 | AH38: =$K17 -> 1 | AI38: =$K17 -> 1 | AJ38: =$K17 -> 1 | AK38: =$K17 -> 1 | AL38: =$K17 -> 1 | AM38: =$L17 -> 1 | AN38: =$L17 -> 1 | AO38: =$L17 -> 1 | AP38: =$L17 -> 1 | AQ38: =$L17 -> 1 | AR38: =$M17 -> 1 | AS38: =$M17 -> 1 | AT38: =$M17 -> 1 | AU38: =$M17 -> 1 | AV38: =$M17 -> 1 | AW38: =$N17 -> 1 | AX38: =$N17 -> 1 | AY38: =$N17 -> 1 | AZ38: =$N17 -> 1 | BA38: =$N17 -> 1 | BB38: =$O17 -> 1
C39: Distribution | D39: Electrolysis (Off-site) Renewable | E39: Pipeline | N39: =$G18 -> 0 | O39: =$G18 -> 0 | P39: 0 | Q39: 0 | R39: 0 | S39: 0 | T39: 0 | U39: 0 | V39: 0 | W39: 0 | X39: =$I18 -> 0 | Y39: 0 | Z39: 0 | AA39: 0 | AB39: 0 | AC39: =$J18 -> 0 | AD39: 0 | AE39: 0 | AF39: 0 | AG39: 0 | AH39: =$K18 -> 0 | AI39: 0 | AJ39: 0 | AK39: 0 | AL39: 0 | AM39: =$L18 -> 0 | AN39: 0 | AO39: 0 | AP39: 0 | AQ39: 0 | AR39: =$M18 -> 0 | AS39: 0 | AT39: 0 | AU39: 0 | AV39: 0 | AW39: =$N18 -> 0 | AX39: 0 | AY39: 0 | AZ39: 0 | BA39: 0 | BB39: =$O18 -> 0
C40: Distribution | D40: Electrolysis (Off-site) Long-run Marginal | E40: Trailer delivery | N40: =$G19 -> 0 | O40: =$G19 -> 0 | P40: 0 | Q40: 0 | R40: 0 | S40: 0 | T40: 0 | U40: 0 | V40: 0 | W40: 0 | X40: =$I19 -> 0 | Y40: 0 | Z40: 0 | AA40: 0 | AB40: 0 | AC40: =$J19 -> 0 | AD40: 0 | AE40: 0 | AF40: 0 | AG40: 0 | AH40: =$K19 -> 0 | AI40: 0 | AJ40: 0 | AK40: 0 | AL40: 0 | AM40: =$L19 -> 0 | AN40: 0 | AO40: 0 | AP40: 0 | AQ40: 0 | AR40: =$M19 -> 0 | AS40: 0 | AT40: 0 | AU40: 0 | AV40: 0 | AW40: =$N19 -> 0 | AX40: 0 | AY40: 0 | AZ40: 0 | BA40: 0 | BB40: 0
C41: Distribution | D41: Electrolysis (Off-site) Long-run Marginal | E41: Pipeline | N41: =$G20 -> 0 | O41: 0 | P41: 0 | Q41: 0 | R41: 0 | S41: 0 | T41: 0 | U41: 0 | V41: 0 | W41: 0 | X41: =$I20 -> 0 | Y41: 0 | Z41: 0 | AA41: 0 | AB41: 0 | AC41: =$J20 -> 0 | AD41: 0 | AE41: 0 | AF41: 0 | AG41: 0 | AH41: =$K20 -> 0 | AI41: 0 | AJ41: 0 | AK41: 0 | AL41: 0 | AM41: =$L20 -> 0 | AN41: 0 | AO41: 0 | AP41: 0 | AQ41: 0 | AR41: =$M20 -> 0 | AS41: 0 | AT41: 0 | AU41: 0 | AV41: 0 | AW41: =$N20 -> 0 | AX41: 0 | AY41: 0 | AZ41: 0 | BA41: 0 | BB41: 0
C42: Distribution | D42: Electrolysis (On-site) | E42: On-site | N42: 0 | O42: 0 | P42: 0 | Q42: 0 | R42: 0 | S42: 0 | T42: 0 | U42: 0 | V42: 0 | W42: 0 | X42: =$I21 -> 0 | Y42: 0 | Z42: 0 | AA42: 0 | AB42: 0 | AC42: =$J21 -> 0 | AD42: 0 | AE42: 0 | AF42: 0 | AG42: 0 | AH42: =$K21 -> 0 | AI42: 0 | AJ42: 0 | AK42: 0 | AL42: 0 | AM42: =$L21 -> 0 | AN42: 0 | AO42: 0 | AP42: 0 | AQ42: 0 | AR42: =$M21 -> 0 | AS42: 0 | AT42: 0 | AU42: 0 | AV42: 0 | AW42: =$N21 -> 0 | AX42: 0 | AY42: 0 | AZ42: 0 | BA42: 0 | BB42: 0
C43: Distribution | D43: SMR | E43: Trailer delivery | N43: 0 | O43: 0 | P43: 0 | Q43: 0 | R43: 0 | S43: 0 | T43: 0 | U43: 0 | V43: 0 | W43: 0 | X43: =$I22 -> 0 | Y43: 0 | Z43: 0 | AA43: 0 | AB43: 0 | AC43: =$J22 -> 0 | AD43: 0 | AE43: 0 | AF43: 0 | AG43: 0 | AH43: =$K22 -> 0 | AI43: 0 | AJ43: 0 | AK43: 0 | AL43: 0 | AM43: =$L22 -> 0 | AN43: 0 | AO43: 0 | AP43: 0 | AQ43: 0 | AR43: =$M22 -> 0 | AS43: 0 | AT43: 0 | AU43: 0 | AV43: 0 | AW43: =$N22 -> 0 | AX43: 0 | AY43: 0 | AZ43: 0 | BA43: 0 | BB43: 0
C44: Distribution | D44: SMR | E44: Pipeline | N44: 0 | O44: 0 | P44: 0 | Q44: 0 | R44: 0 | S44: 0 | T44: 0 | U44: 0 | V44: 0 | W44: 0 | X44: =$I23 -> 0 | Y44: 0 | Z44: 0 | AA44: 0 | AB44: 0 | AC44: =$J23 -> 0 | AD44: 0 | AE44: 0 | AF44: 0 | AG44: 0 | AH44: =$K23 -> 0 | AI44: 0 | AJ44: 0 | AK44: 0 | AL44: 0 | AM44: =$L23 -> 0 | AN44: 0 | AO44: 0 | AP44: 0 | AQ44: 0 | AR44: =$M23 -> 0 | AS44: 0 | AT44: 0 | AU44: 0 | AV44: 0 | AW44: =$N23 -> 0 | AX44: 0 | AY44: 0 | AZ44: 0 | BA44: 0 | BB44: 0
C45: Total | N45: =SUM(N38:N44) -> 0 | O45: 0 | P45: 0 | Q45: 0 | R45: 0 | S45: 0 | T45: 0 | U45: 0 | V45: 0 | W45: 0 | X45: 1 | Y45: 1 | Z45: 1 | AA45: 1 | AB45: 1 | AC45: 1 | AD45: 1 | AE45: 1 | AF45: 1 | AG45: 1 | AH45: 1 | AI45: 1 | AJ45: 1 | AK45: 1 | AL45: 1 | AM45: 1 | AN45: 1 | AO45: 1 | AP45: 1 | AQ45: 1 | AR45: 1 | AS45: 1 | AT45: 1 | AU45: 1 | AV45: 1 | AW45: 1 | AX45: 1 | AY45: 1 | AZ45: 1 | BA45: 1 | BB45: 1
C47: Dispensing | E47: Trailer delivery | N47: =$G26 -> 0 | O47: 0 | P47: 0 | Q47: 0 | R47: 0 | S47: =$H26 -> 0 | T47: 0 | U47: 0 | V47: 0 | W47: 0 | X47: =$I26 -> 1 | Z47: 1 | AA47: 1 | AB47: 1 | AC47: =$J26 -> 1 | AD47: 1 | AE47: 1 | AF47: 1 | AG47: 1 | AH47: =$K26 -> 1 | AI47: 1 | AJ47: 1 | AK47: 1 | AL47: 1 | AM47: =$L26 -> 1 | AN47: 1 | AO47: 1 | AP47: 1 | AQ47: 1 | AR47: =$M26 -> 1 | AS47: 1 | AT47: 1 | AU47: 1 | AV47: 1 | AW47: =$N26 -> 1 | AX47: 1 | AY47: 1 | AZ47: 1 | BA47: 1 | BB47: =$O26 -> 1
C48: Dispensing | E48: Pipeline | N48: 0 | O48: 0 | P48: 0 | Q48: 0 | R48: 0 | S48: 0 | T48: 0 | U48: 0 | V48: 0 | W48: 0 | X48: 0 | Y48: 0 | Z48: 0 | AA48: 0 | AB48: 0 | AC48: 0 | AD48: 0 | AE48: 0 | AF48: 0 | AG48: 0 | AH48: 0 | AI48: 0 | AJ48: 0 | AK48: 0 | AL48: 0 | AM48: 0 | AN48: 0 | AO48: 0 | AP48: 0 | AQ48: 0 | AR48: 0 | AS48: 0 | AT48: 0 | AU48: 0 | AV48: 0 | AW48: 0 | AX48: 0 | AY48: 0 | AZ48: 0 | BA48: 0 | BB48: =$O27 -> 0
C49: Dispensing | E49: On-site | N49: 0 | O49: 0 | P49: 0 | Q49: 0 | R49: 0 | S49: 0 | T49: 0 | U49: 0 | V49: 0 | W49: 0 | X49: 0 | Y49: 0 | Z49: 0 | AA49: 0 | AB49: 0 | AC49: 0 | AD49: 0 | AE49: 0 | AF49: 0 | AG49: 0 | AH49: 0 | AI49: 0 | AJ49: 0 | AK49: 0 | AL49: 0 | AM49: 0 | AN49: 0 | AO49: 0 | AP49: 0 | AQ49: 0 | AR49: 0 | AS49: 0 | AT49: 0 | AU49: 0 | AV49: 0 | AW49: 0 | AX49: 0 | AY49: 0 | AZ49: 0 | BA49: 0 | BB49: =$O28 -> 0
C50: Total | N50: =SUM(N47:N49) -> 0 | O50: =SUM(O47:O49) -> 0 | P50: 0 | Q50: 0 | R50: 0 | S50: 0 | T50: 0 | U50: 0 | V50: 0 | W50: 0 | X50: 1 | Y50: 0 | Z50: 1 | AA50: 1 | AB50: 1 | AC50: 1 | AD50: 1 | AE50: 1 | AF50: 1 | AG50: 1 | AH50: 1 | AI50: 1 | AJ50: 1 | AK50: 1 | AL50: 1 | AM50: 1 | AN50: 1 | AO50: 1 | AP50: 1 | AQ50: 1 | AR50: 1 | AS50: 1 | AT50: 1 | AU50: 1 | AV50: 1 | AW50: 1 | AX50: 1 | AY50: 1 | AZ50: 1 | BA50: 1 | BB50: 1
B53: END

Sheet I- Inflation (hidden)
B1: =IF(SUM(A:A)=0,"OK","Error") -> OK
B2: File Name | G2: =IFERROR(MID(CELL("filename",G2),FIND("[",CELL("filename",G2))+1,FIND("]",CELL("filename",G2))-FIND("[",CELL("filename",G2))-1),"Please save the file to show here") -> Greener Bus Tool.xlsm
B3: Sheet Name | G3: =IFERROR(MID(CELL("filename",G2),FIND("]",CELL("filename",G2))+1,255),"Please save the file to show here") -> I- Inflation
B4: Description and Purpose of Sheet | G4: This sheet allows different inflation assumptions to be added. The inflation assumption for each cost element should be selected on I- Params.
B8: Inflation
H10: Constant | J10: Unit | L10: Source | N10: ='I- TAG Annual Rates'!N$14 -> 2010 | O10: ='I- TAG Annual Rates'!O$14 -> 2011 | P10: ='I- TAG Annual Rates'!P$14 -> 2012 | Q10: ='I- TAG Annual Rates'!Q$14 -> 2013 | R10: ='I- TAG Annual Rates'!R$14 -> 2014 | S10: ='I- TAG Annual Rates'!S$14 -> 2015 | T10: ='I- TAG Annual Rates'!T$14 -> 2016 | U10: ='I- TAG Annual Rates'!U$14 -> 2017 | V10: ='I- TAG Annual Rates'!V$14 -> 2018 | W10: ='I- TAG Annual Rates'!W$14 -> 2019 | X10: ='I- TAG Annual Rates'!X$14 -> 2020 | Y10: ='I- TAG Annual Rates'!Y$14 -> 2021 | Z10: ='I- TAG Annual Rates'!Z$14 -> 2022 | AA10: ='I- TAG Annual Rates'!AA$14 -> 2023 | AB10: ='I- TAG Annual Rates'!AB$14 -> 2024 | AC10: ='I- TAG Annual Rates'!AC$14 -> 2025 | AD10: ='I- TAG Annual Rates'!AD$14 -> 2026 | AE10: ='I- TAG Annual Rates'!AE$14 -> 2027 | AF10: ='I- TAG Annual Rates'!AF$14 -> 2028 | AG10: ='I- TAG Annual Rates'!AG$14 -> 2029 | AH10: ='I- TAG Annual Rates'!AH$14 -> 2030 | AI10: ='I- TAG Annual Rates'!AI$14 -> 2031 | AJ10: ='I- TAG Annual Rates'!AJ$14 -> 2032 | AK10: ='I- TAG Annual Rates'!AK$14 -> 2033 | AL10: ='I- TAG Annual Rates'!AL$14 -> 2034 | AM10: ='I- TAG Annual Rates'!AM$14 -> 2035 | AN10: ='I- TAG Annual Rates'!AN$14 -> 2036 | AO10: ='I- TAG Annual Rates'!AO$14 -> 2037 | AP10: ='I- TAG Annual Rates'!AP$14 -> 2038 | AQ10: ='I- TAG Annual Rates'!AQ$14 -> 2039 | AR10: ='I- TAG Annual Rates'!AR$14 -> 2040 | AS10: ='I- TAG Annual Rates'!AS$14 -> 2041 | AT10: ='I- TAG Annual Rates'!AT$14 -> 2042 | AU10: ='I- TAG Annual Rates'!AU$14 -> 2043 | AV10: ='I- TAG Annual Rates'!AV$14 -> 2044 | AW10: ='I- TAG Annual Rates'!AW$14 -> 2045 | AX10: ='I- TAG Annual Rates'!AX$14 -> 2046 | AY10: ='I- TAG Annual Rates'!AY$14 -> 2047 | AZ10: ='I- TAG Annual Rates'!AZ$14 -> 2048 | BA10: ='I- TAG Annual Rates'!BA$14 -> 2049 | BB10: ='I- TAG Annual Rates'!BB$14 -> 2050 | BC10: ='I- TAG Annual Rates'!BC$14 -> 2051 | BD10: ='I- TAG Annual Rates'!BD$14 -> 2052 | BE10: ='I- TAG Annual Rates'!BE$14 -> 2053 | BF10: ='I- TAG Annual Rates'!BF$14 -> 2054 | BG10: ='I- TAG Annual Rates'!BG$14 -> 2055 | BH10: ='I- TAG Annual Rates'!BH$14 -> 2056 | BI10: ='I- TAG Annual Rates'!BI$14 -> 2057 | BJ10: ='I- TAG Annual Rates'!BJ$14 -> 2058 | BK10: ='I- TAG Annual Rates'!BK$14 -> 2059 | BL10: ='I- TAG Annual Rates'!BL$14 -> 2060 | BM10: ='I- TAG Annual Rates'!BM$14 -> 2061 | BN10: ='I- TAG Annual Rates'!BN$14 -> 2062 | BO10: ='I- TAG Annual Rates'!BO$14 -> 2063 | BP10: ='I- TAG Annual Rates'!BP$14 -> 2064 | BQ10: ='I- TAG Annual Rates'!BQ$14 -> 2065 | BR10: ='I- TAG Annual Rates'!BR$14 -> 2066 | BS10: ='I- TAG Annual Rates'!BS$14 -> 2067 | BT10: ='I- TAG Annual Rates'!BT$14 -> 2068 | BU10: ='I- TAG Annual Rates'!BU$14 -> 2069 | BV10: ='I- TAG Annual Rates'!BV$14 -> 2070 | BW10: ='I- TAG Annual Rates'!BW$14 -> 2071 | BX10: ='I- TAG Annual Rates'!BX$14 -> 2072 | BY10: ='I- TAG Annual Rates'!BY$14 -> 2073 | BZ10: ='I- TAG Annual Rates'!BZ$14 -> 2074 | CA10: ='I- TAG Annual Rates'!CA$14 -> 2075 | CB10: ='I- TAG Annual Rates'!CB$14 -> 2076 | CC10: ='I- TAG Annual Rates'!CC$14 -> 2077 | CD10: ='I- TAG Annual Rates'!CD$14 -> 2078 | CE10: ='I- TAG Annual Rates'!CE$14 -> 2079 | CF10: ='I- TAG Annual Rates'!CF$14 -> 2080 | CG10: ='I- TAG Annual Rates'!CG$14 -> 2081 | CH10: ='I- TAG Annual Rates'!CH$14 -> 2082 | CI10: ='I- TAG Annual Rates'!CI$14 -> 2083 | CJ10: ='I- TAG Annual Rates'!CJ$14 -> 2084 | CK10: ='I- TAG Annual Rates'!CK$14 -> 2085 | CL10: ='I- TAG Annual Rates'!CL$14 -> 2086 | CM10: ='I- TAG Annual Rates'!CM$14 -> 2087 | CN10: ='I- TAG Annual Rates'!CN$14 -> 2088 | CO10: ='I- TAG Annual Rates'!CO$14 -> 2089 | CP10: ='I- TAG Annual Rates'!CP$14 -> 2090 | CQ10: ='I- TAG Annual Rates'!CQ$14 -> 2091 | CR10: ='I- TAG Annual Rates'!CR$14 -> 2092 | CS10: ='I- TAG Annual Rates'!CS$14 -> 2093 | CT10: ='I- TAG Annual Rates'!CT$14 -> 2094 | CU10: ='I- TAG Annual Rates'!CU$14 -> 2095 | CV10: ='I- TAG Annual Rates'!CV$14 -> 2096 | CW10: ='I- TAG Annual Rates'!CW$14 -> 2097 | CX10: ='I- TAG Annual Rates'!CX$14 -> 2098 | CY10: ='I- TAG Annual Rates'!CY$14 -> 2099
C12: Inflation Rates
C14: ='I- Lists'!W13 -> GDP Deflator | E14: Note - this is a formula on an input sheet to ensure consistency with TAG inputs | J14: factor | L14: TAG Databook Annual Parameters (May 2020) | N14: ='I- TAG Annual Rates'!N18 -> 100 | O14: ='I- TAG Annual Rates'!O18 -> 102.1256363 | P14: ='I- TAG Annual Rates'!P18 -> 103.6314735 | Q14: ='I- TAG Annual Rates'!Q18 -> 105.8797999 | R14: ='I- TAG Annual Rates'!R18 -> 107.233408 | S14: ='I- TAG Annual Rates'!S18 -> 107.9989584 | T14: ='I- TAG Annual Rates'!T18 -> 110.0254838 | U14: ='I- TAG Annual Rates'!U18 -> 111.9973363 | V14: ='I- TAG Annual Rates'!V18 -> 113.9437957 | W14: ='I- TAG Annual Rates'!W18 -> 116.3522542 | X14: ='I- TAG Annual Rates'!X18 -> 123.5221795 | Y14: ='I- TAG Annual Rates'!Y18 -> 123.2849612 | Z14: ='I- TAG Annual Rates'!Z18 -> 129.55667 | AA14: ='I- TAG Annual Rates'!AA18 -> 133.2967434 | AB14: ='I- TAG Annual Rates'!AB18 -> 135.8427002 | AC14: ='I- TAG Annual Rates'!AC18 -> 137.2898789 | AD14: ='I- TAG Annual Rates'!AD18 -> 138.7173232 | AE14: ='I- TAG Annual Rates'!AE18 -> 140.9501683 | AF14: ='I- TAG Annual Rates'!AF18 -> 144.1920222 | AG14: ='I- TAG Annual Rates'!AG18 -> 147.5084387 | AH14: ='I- TAG Annual Rates'!AH18 -> 150.9011328 | AI14: ='I- TAG Annual Rates'!AI18 -> 154.3718588 | AJ14: ='I- TAG Annual Rates'!AJ18 -> 157.9224116 | AK14: ='I- TAG Annual Rates'!AK18 -> 161.554627 | AL14: ='I- TAG Annual Rates'!AL18 -> 165.2703835 | AM14: ='I- TAG Annual Rates'!AM18 -> 169.0716023 | AN14: ='I- TAG Annual Rates'!AN18 -> 172.9602491 | AO14: ='I- TAG Annual Rates'!AO18 -> 176.9383349 | AP14: ='I- TAG Annual Rates'!AP18 -> 181.0079166 | AQ14: ='I- TAG Annual Rates'!AQ18 -> 185.1710986 | AR14: ='I- TAG Annual Rates'!AR18 -> 189.4300339 | AS14: ='I- TAG Annual Rates'!AS18 -> 193.7869247 | AT14: ='I- TAG Annual Rates'!AT18 -> 198.244024 | AU14: ='I- TAG Annual Rates'!AU18 -> 202.8036365 | AV14: ='I- TAG Annual Rates'!AV18 -> 207.4681201 | AW14: ='I- TAG Annual Rates'!AW18 -> 212.2398869 | AX14: ='I- TAG Annual Rates'!AX18 -> 217.1214043 | AY14: ='I- TAG Annual Rates'!AY18 -> 222.1151966 | AZ14: ='I- TAG Annual Rates'!AZ18 -> 227.2238461 | BA14: ='I- TAG Annual Rates'!BA18 -> 232.4499946 | BB14: ='I- TAG Annual Rates'!BB18 -> 237.7963445 | BC14: ='I- TAG Annual Rates'!BC18 -> 243.2656604 | BD14: ='I- TAG Annual Rates'!BD18 -> 248.8607706 | BE14: ='I- TAG Annual Rates'!BE18 -> 254.5845683 | BF14: ='I- TAG Annual Rates'!BF18 -> 260.4400134 | BG14: ='I- TAG Annual Rates'!BG18 -> 266.4301337 | BH14: ='I- TAG Annual Rates'!BH18 -> 272.5580268 | BI14: ='I- TAG Annual Rates'!BI18 -> 278.8268614 | BJ14: ='I- TAG Annual Rates'!BJ18 -> 285.2398792 | BK14: ='I- TAG Annual Rates'!BK18 -> 291.8003964 | BL14: ='I- TAG Annual Rates'!BL18 -> 298.5118055 | BM14: ='I- TAG Annual Rates'!BM18 -> 305.377577 | BN14: ='I- TAG Annual Rates'!BN18 -> 312.4012613 | BO14: ='I- TAG Annual Rates'!BO18 -> 319.5864903 | BP14: ='I- TAG Annual Rates'!BP18 -> 326.9369796 | BQ14: ='I- TAG Annual Rates'!BQ18 -> 334.4565301 | BR14: ='I- TAG Annual Rates'!BR18 -> 342.1490303 | BS14: ='I- TAG Annual Rates'!BS18 -> 350.018458 | BT14: ='I- TAG Annual Rates'!BT18 -> 358.0688826 | BU14: ='I- TAG Annual Rates'!BU18 -> 366.3044669 | BV14: ='I- TAG Annual Rates'!BV18 -> 374.7294696 | BW14: ='I- TAG Annual Rates'!BW18 -> 383.3482474 | BX14: ='I- TAG Annual Rates'!BX18 -> 392.1652571 | BY14: ='I- TAG Annual Rates'!BY18 -> 401.185058 | BZ14: ='I- TAG Annual Rates'!BZ18 -> 410.4123143 | CA14: ='I- TAG Annual Rates'!CA18 -> 419.8517976 | CB14: ='I- TAG Annual Rates'!CB18 -> 429.5083889 | CC14: ='I- TAG Annual Rates'!CC18 -> 439.3870819 | CD14: ='I- TAG Annual Rates'!CD18 -> 449.4929847 | CE14: ='I- TAG Annual Rates'!CE18 -> 459.8313234 | CF14: ='I- TAG Annual Rates'!CF18 -> 470.4074438 | CG14: ='I- TAG Annual Rates'!CG18 -> 481.226815 | CH14: ='I- TAG Annual Rates'!CH18 -> 492.2950318 | CI14: ='I- TAG Annual Rates'!CI18 -> 503.6178175 | CJ14: ='I- TAG Annual Rates'!CJ18 -> 515.2010273 | CK14: ='I- TAG Annual Rates'!CK18 -> 527.0506509 | CL14: ='I- TAG Annual Rates'!CL18 -> 539.1728159 | CM14: ='I- TAG Annual Rates'!CM18 -> 551.5737907 | CN14: ='I- TAG Annual Rates'!CN18 -> 564.2599879 | CO14: ='I- TAG Annual Rates'!CO18 -> 577.2379676 | CP14: ='I- TAG Annual Rates'!CP18 -> 590.5144408 | CQ14: ='I- TAG Annual Rates'!CQ18 -> 604.096273 | CR14: ='I- TAG Annual Rates'!CR18 -> 617.9904873 | CS14: ='I- TAG Annual Rates'!CS18 -> 632.2042685 | CT14: ='I- TAG Annual Rates'!CT18 -> 646.7449666 | CU14: ='I- TAG Annual Rates'!CU18 -> 661.6201009 | CV14: ='I- TAG Annual Rates'!CV18 -> 676.8373632 | CW14: ='I- TAG Annual Rates'!CW18 -> 692.4046225 | CX14: ='I- TAG Annual Rates'!CX18 -> 708.3299289 | CY14: ='I- TAG Annual Rates'!CY18 -> 724.6215172
C15: ='I- Lists'!W14 -> <spare> | J15: factor
C16: ='I- Lists'!W15 -> <spare> | J16: factor
C17: ='I- Lists'!W16 -> <spare> | J17: factor
C18: ='I- Lists'!W17 -> <spare> | J18: factor
B20: END

Sheet I- Lists (hidden)
B1: =IF(SUM(A:A)=0,"OK","Error") -> OK
B2: File Name | G2: =IFERROR(MID(CELL("filename",G2),FIND("[",CELL("filename",G2))+1,FIND("]",CELL("filename",G2))-FIND("[",CELL("filename",G2))-1),"Please save the file to show here") -> Greener Bus Tool.xlsm
B3: Sheet Name | G3: =IFERROR(MID(CELL("filename",G2),FIND("]",CELL("filename",G2))+1,255),"Please save the file to show here") -> I- Lists
B4: Description and Purpose of Sheet | G4: This sheet contains the lists for data validation.
B8: Lists
C10: Lists of validation
C12: Yes/No | E12: Cost of Carbon Scenario | G12: Damage Cost Geography | I12: Damage Cost Scenario | K12: Fleet Types | M12: Price Bases | O12: Funding Sectors | Q12: Maintenance Cost Categories | S12: Fuel/Electricity | U12: BSOG | W12: Inflation | Y12: Infra maintenance cost approach
C13: Yes | E13: Real Non-Traded (Low) | G13: Road Transport | I13: Central | K13: Diesel | M13: 2010 | O13: Public | Q13: H2 fuel cell (full) | S13: Petrol | U13: Basic BSOG rate only | W13: GDP Deflator | Y13: % of capex
C14: No | E14: Real Non-Traded (Central) | G14: Road Transport Central London | I14: Low | K14: Pure Electric Bus | M14: 2011 | O14: Private | Q14: H2 fuel cell (mid) | S14: Diesel | U14: Zero emission bus BSOG rate - 22p | W14: <spare> | Y14: Average annual cost
E15: Real Non-Traded (High) | G15: Road Transport Inner London | I15: High | K15: Plug-in Hybrid | M15: 2012 | Q15: H2 fuel cell (range-extender) | S15: Gas Oil Rail Diesel | U15: Basic BSOG rate + LCEB, AVL and Smartcard Uplifts | W15: <spare>
G16: Road Transport Outer London | K16: Parallel Hybrid | M16: 2013 | Q16: ICE - Diesel | S16: Electricity Roads | W16: <spare>
F17: Inner Conurbation | G17: Road Transport Inner Conurbation | K17: Hydrogen | M17: 2014 | Q17: ICE - CNG | S17: Electricity Rail | W17: <spare>
F18: Outer Conurbation | G18: Road Transport Outer Conurbation | K18: <Spare> | M18: 2015 | Q18: ICE - LNG
F19: Urban Big (population>250k) | G19: Road Transport Urban Big | M19: 2016 | Q19: ICE - H2
F20: Urban Large (population>100k) | G20: Road Transport Urban Large | M20: 2017 | Q20: Battery electric
F21: Urban Medium (population>25K) | G21: Road Transport Urban Medium | M21: 2018 | Q21: Diesel-electric (hybrid)
F22: Urban Small (population<25k) | G22: Road Transport Urban Small | M22: 2019 | Q22: Diesel-electric (range extender)
F23: Rural | G23: Road Transport Rural | M23: 2020 | Q23: CNG - electric (range extender)
M24: 2021 | Q24: LNG - electric (range extender)
M25: 2022 | Q25: Battery electric (pantograph)
M26: Nominal | Q26: Diesel - electric (pantograph)
C27: Note - if items added to these lists the data validation referring to them would need to be updated to reflect this
C29: Numbers
C31: 100
C32: 1000
C33: 1000000
B70: END

Sheet I- Veh Maint Cost (hidden)
B1: =IF(SUM(A:A)=0,"OK","Error") -> OK
B2: File Name | G2: =IFERROR(MID(CELL("filename",G2),FIND("[",CELL("filename",G2))+1,FIND("]",CELL("filename",G2))-FIND("[",CELL("filename",G2))-1),"Please save the file to show here") -> Greener Bus Tool.xlsm
B3: Sheet Name | G3: =IFERROR(MID(CELL("filename",G2),FIND("]",CELL("filename",G2))+1,255),"Please save the file to show here") -> I- Veh Maint Cost
B4: Description and Purpose of Sheet | G4: This sheet allows the maintenance costs to be input by vehicle class and power train. The price base should also be input.
B8: Maintenance Cost
H10: Constant | J10: Unit | L10: Source | N10: ='I- TAG Annual Rates'!N$14 -> 2010 | O10: ='I- TAG Annual Rates'!O$14 -> 2011 | P10: ='I- TAG Annual Rates'!P$14 -> 2012 | Q10: ='I- TAG Annual Rates'!Q$14 -> 2013 | R10: ='I- TAG Annual Rates'!R$14 -> 2014 | S10: ='I- TAG Annual Rates'!S$14 -> 2015 | T10: ='I- TAG Annual Rates'!T$14 -> 2016 | U10: ='I- TAG Annual Rates'!U$14 -> 2017 | V10: ='I- TAG Annual Rates'!V$14 -> 2018 | W10: ='I- TAG Annual Rates'!W$14 -> 2019 | X10: ='I- TAG Annual Rates'!X$14 -> 2020 | Y10: ='I- TAG Annual Rates'!Y$14 -> 2021 | Z10: ='I- TAG Annual Rates'!Z$14 -> 2022 | AA10: ='I- TAG Annual Rates'!AA$14 -> 2023 | AB10: ='I- TAG Annual Rates'!AB$14 -> 2024 | AC10: ='I- TAG Annual Rates'!AC$14 -> 2025 | AD10: ='I- TAG Annual Rates'!AD$14 -> 2026 | AE10: ='I- TAG Annual Rates'!AE$14 -> 2027 | AF10: ='I- TAG Annual Rates'!AF$14 -> 2028 | AG10: ='I- TAG Annual Rates'!AG$14 -> 2029 | AH10: ='I- TAG Annual Rates'!AH$14 -> 2030 | AI10: ='I- TAG Annual Rates'!AI$14 -> 2031 | AJ10: ='I- TAG Annual Rates'!AJ$14 -> 2032 | AK10: ='I- TAG Annual Rates'!AK$14 -> 2033 | AL10: ='I- TAG Annual Rates'!AL$14 -> 2034 | AM10: ='I- TAG Annual Rates'!AM$14 -> 2035 | AN10: ='I- TAG Annual Rates'!AN$14 -> 2036 | AO10: ='I- TAG Annual Rates'!AO$14 -> 2037 | AP10: ='I- TAG Annual Rates'!AP$14 -> 2038 | AQ10: ='I- TAG Annual Rates'!AQ$14 -> 2039 | AR10: ='I- TAG Annual Rates'!AR$14 -> 2040 | AS10: ='I- TAG Annual Rates'!AS$14 -> 2041 | AT10: ='I- TAG Annual Rates'!AT$14 -> 2042 | AU10: ='I- TAG Annual Rates'!AU$14 -> 2043 | AV10: ='I- TAG Annual Rates'!AV$14 -> 2044 | AW10: ='I- TAG Annual Rates'!AW$14 -> 2045 | AX10: ='I- TAG Annual Rates'!AX$14 -> 2046 | AY10: ='I- TAG Annual Rates'!AY$14 -> 2047 | AZ10: ='I- TAG Annual Rates'!AZ$14 -> 2048 | BA10: ='I- TAG Annual Rates'!BA$14 -> 2049 | BB10: ='I- TAG Annual Rates'!BB$14 -> 2050 | BC10: ='I- TAG Annual Rates'!BC$14 -> 2051 | BD10: ='I- TAG Annual Rates'!BD$14 -> 2052 | BE10: ='I- TAG Annual Rates'!BE$14 -> 2053 | BF10: ='I- TAG Annual Rates'!BF$14 -> 2054 | BG10: ='I- TAG Annual Rates'!BG$14 -> 2055 | BH10: ='I- TAG Annual Rates'!BH$14 -> 2056 | BI10: ='I- TAG Annual Rates'!BI$14 -> 2057 | BJ10: ='I- TAG Annual Rates'!BJ$14 -> 2058 | BK10: ='I- TAG Annual Rates'!BK$14 -> 2059 | BL10: ='I- TAG Annual Rates'!BL$14 -> 2060 | BM10: ='I- TAG Annual Rates'!BM$14 -> 2061 | BN10: ='I- TAG Annual Rates'!BN$14 -> 2062 | BO10: ='I- TAG Annual Rates'!BO$14 -> 2063 | BP10: ='I- TAG Annual Rates'!BP$14 -> 2064 | BQ10: ='I- TAG Annual Rates'!BQ$14 -> 2065 | BR10: ='I- TAG Annual Rates'!BR$14 -> 2066 | BS10: ='I- TAG Annual Rates'!BS$14 -> 2067 | BT10: ='I- TAG Annual Rates'!BT$14 -> 2068 | BU10: ='I- TAG Annual Rates'!BU$14 -> 2069 | BV10: ='I- TAG Annual Rates'!BV$14 -> 2070 | BW10: ='I- TAG Annual Rates'!BW$14 -> 2071 | BX10: ='I- TAG Annual Rates'!BX$14 -> 2072 | BY10: ='I- TAG Annual Rates'!BY$14 -> 2073 | BZ10: ='I- TAG Annual Rates'!BZ$14 -> 2074 | CA10: ='I- TAG Annual Rates'!CA$14 -> 2075 | CB10: ='I- TAG Annual Rates'!CB$14 -> 2076 | CC10: ='I- TAG Annual Rates'!CC$14 -> 2077 | CD10: ='I- TAG Annual Rates'!CD$14 -> 2078 | CE10: ='I- TAG Annual Rates'!CE$14 -> 2079 | CF10: ='I- TAG Annual Rates'!CF$14 -> 2080 | CG10: ='I- TAG Annual Rates'!CG$14 -> 2081 | CH10: ='I- TAG Annual Rates'!CH$14 -> 2082 | CI10: ='I- TAG Annual Rates'!CI$14 -> 2083 | CJ10: ='I- TAG Annual Rates'!CJ$14 -> 2084 | CK10: ='I- TAG Annual Rates'!CK$14 -> 2085 | CL10: ='I- TAG Annual Rates'!CL$14 -> 2086 | CM10: ='I- TAG Annual Rates'!CM$14 -> 2087 | CN10: ='I- TAG Annual Rates'!CN$14 -> 2088 | CO10: ='I- TAG Annual Rates'!CO$14 -> 2089 | CP10: ='I- TAG Annual Rates'!CP$14 -> 2090 | CQ10: ='I- TAG Annual Rates'!CQ$14 -> 2091 | CR10: ='I- TAG Annual Rates'!CR$14 -> 2092 | CS10: ='I- TAG Annual Rates'!CS$14 -> 2093 | CT10: ='I- TAG Annual Rates'!CT$14 -> 2094 | CU10: ='I- TAG Annual Rates'!CU$14 -> 2095 | CV10: ='I- TAG Annual Rates'!CV$14 -> 2096 | CW10: ='I- TAG Annual Rates'!CW$14 -> 2097 | CX10: ='I- TAG Annual Rates'!CX$14 -> 2098 | CY10: ='I- TAG Annual Rates'!CY$14 -> 2099
C12: Maintenance Cost per Kilometre
C14: Vehicle Class | D14: Power Train
C15: Single deck bus | D15: H2 fuel cell (full) | F15: =C15&"_"&D15 -> Single deck bus_H2 fuel cell (full) | J15: £/KM | L15: H2SM Vehicle Cost Benefit Model_v1.9.5 1 | S15: 0.1989485941 | X15: 0.1989485941 | AC15: 0.1989485941 | AH15: 0.1989485941 | AM15: 0.1989485941 | AR15: 0.1989485941 | AW15: 0.1989485941 | BB15: 0.1989485941
C16: Single deck bus | D16: H2 fuel cell (mid) | F16: Single deck bus_H2 fuel cell (mid) | J16: £/KM | L16: H2SM Vehicle Cost Benefit Model_v1.9.5 1 | S16: 0.1989485941 | X16: 0.1989485941 | AC16: 0.1989485941 | AH16: 0.1989485941 | AM16: 0.1989485941 | AR16: 0.1989485941 | AW16: 0.1989485941 | BB16: 0.1989485941
C17: Single deck bus | D17: H2 fuel cell (range-extender) | F17: Single deck bus_H2 fuel cell (range-extender) | J17: £/KM | L17: H2SM Vehicle Cost Benefit Model_v1.9.5 1 | S17: 0.1989485941 | X17: 0.1989485941 | AC17: 0.1989485941 | AH17: 0.1989485941 | AM17: 0.1989485941 | AR17: 0.1989485941 | AW17: 0.1989485941 | BB17: 0.1989485941
C18: Single deck bus | D18: ICE - Diesel | F18: Single deck bus_ICE - Diesel | J18: £/KM | L18: H2SM Vehicle Cost Benefit Model_v1.9.5 1 | S18: 0.2266451131 | X18: 0.2266451131 | AC18: 0.2266451131 | AH18: 0.2266451131 | AM18: 0.2266451131 | AR18: 0.2266451131 | AW18: 0.2266451131 | BB18: 0.2266451131
C19: Single deck bus | D19: ICE - CNG | F19: Single deck bus_ICE - CNG | J19: £/KM | L19: H2SM Vehicle Cost Benefit Model_v1.9.5 1 | S19: 0.2266451131 | X19: 0.2266451131 | AC19: 0.2266451131 | AH19: 0.2266451131 | AM19: 0.2266451131 | AR19: 0.2266451131 | AW19: 0.2266451131 | BB19: 0.2266451131
C20: Single deck bus | D20: ICE - LNG | F20: Single deck bus_ICE - LNG | J20: £/KM | L20: H2SM Vehicle Cost Benefit Model_v1.9.5 1 | S20: 0.2266451131 | X20: 0.2266451131 | AC20: 0.2266451131 | AH20: 0.2266451131 | AM20: 0.2266451131 | AR20: 0.2266451131 | AW20: 0.2266451131 | BB20: 0.2266451131
C21: Single deck bus | D21: ICE - H2 | F21: Single deck bus_ICE - H2 | J21: £/KM | L21: H2SM Vehicle Cost Benefit Model_v1.9.5 1 | S21: 0.2266451131 | X21: 0.2266451131 | AC21: 0.2266451131 | AH21: 0.2266451131 | AM21: 0.2266451131 | AR21: 0.2266451131 | AW21: 0.2266451131 | BB21: 0.2266451131
C22: Single deck bus | D22: Battery electric | F22: Single deck bus_Battery electric | J22: £/KM | L22: H2SM Vehicle Cost Benefit Model_v1.9.5 1 | S22: 0.132281305 | X22: 0.132281305 | AC22: 0.132281305 | AH22: 0.132281305 | AM22: 0.132281305 | AR22: 0.132281305 | AW22: 0.132281305 | BB22: 0.132281305
C23: Single deck bus | D23: Diesel-electric (hybrid) | F23: Single deck bus_Diesel-electric (hybrid) | J23: £/KM | L23: H2SM Vehicle Cost Benefit Model_v1.9.5 1 | S23: 0.2266451131 | X23: 0.2266451131 | AC23: 0.2266451131 | AH23: 0.2266451131 | AM23: 0.2266451131 | AR23: 0.2266451131 | AW23: 0.2266451131 | BB23: 0.2266451131
C24: Single deck bus | D24: Diesel-electric (range extender) | F24: Single deck bus_Diesel-electric (range extender) | J24: £/KM | L24: H2SM Vehicle Cost Benefit Model_v1.9.5 1 | S24: 0.1989485941 | X24: 0.1989485941 | AC24: 0.1989485941 | AH24: 0.1989485941 | AM24: 0.1989485941 | AR24: 0.1989485941 | AW24: 0.1989485941 | BB24: 0.1989485941
C25: Single deck bus | D25: CNG - electric (range extender) | F25: Single deck bus_CNG - electric (range extender) | J25: £/KM | L25: H2SM Vehicle Cost Benefit Model_v1.9.5 1 | S25: 0.1989485941 | X25: 0.1989485941 | AC25: 0.1989485941 | AH25: 0.1989485941 | AM25: 0.1989485941 | AR25: 0.1989485941 | AW25: 0.1989485941 | BB25: 0.1989485941
C26: Single deck bus | D26: LNG - electric (range extender) | F26: Single deck bus_LNG - electric (range extender) | J26: £/KM | L26: H2SM Vehicle Cost Benefit Model_v1.9.5 1 | S26: 0.1989485941 | X26: 0.1989485941 | AC26: 0.1989485941 | AH26: 0.1989485941 | AM26: 0.1989485941 | AR26: 0.1989485941 | AW26: 0.1989485941 | BB26: 0.1989485941
C27: Single deck bus | D27: Battery electric (pantograph) | F27: Single deck bus_Battery electric (pantograph) | J27: £/KM | L27: H2SM Vehicle Cost Benefit Model_v1.9.5 1 | S27: 0.132281305 | X27: 0.132281305 | AC27: 0.132281305 | AH27: 0.132281305 | AM27: 0.132281305 | AR27: 0.132281305 | AW27: 0.132281305 | BB27: 0.132281305
C28: Single deck bus | D28: Diesel - electric (pantograph) | F28: Single deck bus_Diesel - electric (pantograph) | J28: £/KM | L28: H2SM Vehicle Cost Benefit Model_v1.9.5 1 | S28: 0.1989485941 | X28: 0.1989485941 | AC28: 0.1989485941 | AH28: 0.1989485941 | AM28: 0.1989485941 | AR28: 0.1989485941 | AW28: 0.1989485941 | BB28: 0.1989485941
C29: Double deck bus | D29: H2 fuel cell (full) | F29: Double deck bus_H2 fuel cell (full) | J29: £/KM | L29: H2SM Vehicle Cost Benefit Model_v1.9.5 1 | S29: 0.1989485941 | X29: 0.1989485941 | AC29: 0.1989485941 | AH29: 0.1989485941 | AM29: 0.1989485941 | AR29: 0.1989485941 | AW29: 0.1989485941 | BB29: 0.1989485941
C30: Double deck bus | D30: H2 fuel cell (mid) | F30: Double deck bus_H2 fuel cell (mid) | J30: £/KM | L30: H2SM Vehicle Cost Benefit Model_v1.9.5 1 | S30: 0.1989485941 | X30: 0.1989485941 | AC30: 0.1989485941 | AH30: 0.1989485941 | AM30: 0.1989485941 | AR30: 0.1989485941 | AW30: 0.1989485941 | BB30: 0.1989485941
C31: Double deck bus | D31: H2 fuel cell (range-extender) | F31: Double deck bus_H2 fuel cell (range-extender) | J31: £/KM | L31: H2SM Vehicle Cost Benefit Model_v1.9.5 1 | S31: 0.1989485941 | X31: 0.1989485941 | AC31: 0.1989485941 | AH31: 0.1989485941 | AM31: 0.1989485941 | AR31: 0.1989485941 | AW31: 0.1989485941 | BB31: 0.1989485941
C32: Double deck bus | D32: ICE - Diesel | F32: Double deck bus_ICE - Diesel | J32: £/KM | L32: H2SM Vehicle Cost Benefit Model_v1.9.5 1 | S32: 0.2266451131 | X32: 0.2266451131 | AC32: 0.2266451131 | AH32: 0.2266451131 | AM32: 0.2266451131 | AR32: 0.2266451131 | AW32: 0.2266451131 | BB32: 0.2266451131
C33: Double deck bus | D33: ICE - CNG | F33: Double deck bus_ICE - CNG | J33: £/KM | L33: H2SM Vehicle Cost Benefit Model_v1.9.5 1 | S33: 0.2266451131 | X33: 0.2266451131 | AC33: 0.2266451131 | AH33: 0.2266451131 | AM33: 0.2266451131 | AR33: 0.2266451131 | AW33: 0.2266451131 | BB33: 0.2266451131
C34: Double deck bus | D34: ICE - LNG | F34: Double deck bus_ICE - LNG | J34: £/KM | L34: H2SM Vehicle Cost Benefit Model_v1.9.5 1 | S34: 0.2266451131 | X34: 0.2266451131 | AC34: 0.2266451131 | AH34: 0.2266451131 | AM34: 0.2266451131 | AR34: 0.2266451131 | AW34: 0.2266451131 | BB34: 0.2266451131
C35: Double deck bus | D35: ICE - H2 | F35: Double deck bus_ICE - H2 | J35: £/KM | L35: H2SM Vehicle Cost Benefit Model_v1.9.5 1 | S35: 0.2266451131 | X35: 0.2266451131 | AC35: 0.2266451131 | AH35: 0.2266451131 | AM35: 0.2266451131 | AR35: 0.2266451131 | AW35: 0.2266451131 | BB35: 0.2266451131
